Workbook

Sheet Tournament Locations
B1: Location | C1: Tournament
A2: Tournament #1 | B2: Gold Cup Russell Pkwy, Warner Robins, GA | C2: 1 | D2: change at left in line by site
A3: Tournament #2 | B3: Royal Lanes, Goose Creek, SC | C3: 2
A4: Tournament #3 | B4: High Point Bowling Center, High Point, NC | C4: 3

Sheet Baker Scores
A1: Tournament | B1: State | C1: Age Group | D1: Gender | E1: Game 1 | F1: Game 2 | G1: Game 3 | H1: Game 4 | I1: Game 5 | J1: Game 6 | K1: Game 7 | L1: Game 8 | M1: Game 9 | N1: Game 10 | O1: Game 11 | P1: Game 12 | Q1: Total | S1: Low Game | T1: Average | U1: High Game
A2: T1
A3: T1 | B3: GA | C3: =Constants!B2 -> 15 & < | D3: F | E3: 185 | F3: 176 | G3: 173 | H3: 171 | I3: 212 | J3: 188 | K3: 182 | L3: 197 | M3: 178 | N3: 189 | O3: 142 | P3: 126 | Q3: =SUM(E3:P4) -> 3974 | S3: =MIN(H3:P3) -> 126 | T3: =AVERAGE(E3:P4) -> 165.5833333 | U3: =MAX(E3:P4) -> 212
A4: T1 | E4: 160 | F4: 152 | G4: 170 | H4: 141 | I4: 168 | J4: 161 | K4: 198 | L4: 109 | M4: 176 | N4: 146 | O4: 133 | P4: 141
A5: T1
A6: T1 | D6: M | E6: 170 | F6: 152 | G6: 144 | H6: 177 | I6: 168 | J6: 166 | K6: 175 | L6: 199 | M6: 144 | N6: 196 | O6: 172 | P6: 144 | Q6: =SUM(E6:P7) -> 4100 | S6: =MIN(H6:P6) -> 144 | T6: =AVERAGE(E6:P7) -> 170.8333333 | U6: =MAX(E6:P7) -> 216
A7: T1 | E7: 119 | F7: 166 | G7: 216 | H7: 181 | I7: 150 | J7: 172 | K7: 203 | L7: 156 | M7: 201 | N7: 201 | O7: 168 | P7: 160
A8: T1
A9: T1 | C9: =Constants!B3 -> 16-20 | D9: =D3 -> F | E9: 166 | F9: 192 | G9: 177 | H9: 188 | I9: 189 | J9: 149 | K9: 193 | L9: 143 | M9: 148 | N9: 170 | O9: 191 | P9: 184 | Q9: =SUM(E9:P10) -> 4008 | S9: =MIN(H9:P9) -> 143 | T9: =AVERAGE(E9:P10) -> 167 | U9: =MAX(E9:P10) -> 212
A10: T1 | E10: 167 | F10: 143 | G10: 148 | H10: 179 | I10: 173 | J10: 212 | K10: 134 | L10: 183 | M10: 123 | N10: 143 | O10: 147 | P10: 166
A11: T1
A12: T1 | D12: =D6 -> M | E12: 199 | F12: 196 | G12: 198 | H12: 196 | I12: 196 | J12: 147 | K12: 226 | L12: 214 | M12: 195 | N12: 207 | O12: 184 | P12: 211 | Q12: =SUM(E12:O13) -> 4158 | S12: =MIN(H12:P12) -> 147 | T12: =AVERAGE(E12:P13) -> 187.7916667 | U12: =MAX(E12:P13) -> 236
A13: T1 | E13: 178 | F13: 156 | G13: 218 | H13: 236 | I13: 190 | J13: 174 | K13: 183 | L13: 158 | M13: 190 | N13: 152 | O13: 165 | P13: 138
A14: T1
A15: T1 | B15: NC | C15: =C3 -> 15 & < | D15: F | E15: 153 | F15: 139 | G15: 157 | H15: 162 | I15: 180 | J15: 149 | K15: 186 | L15: 163 | M15: 168 | N15: 180 | O15: 174 | P15: 179 | Q15: =SUM(E15:P16) -> 3997 | S15: =MIN(H15:P15) -> 149 | T15: =AVERAGE(E15:P16) -> 166.5416667 | U15: =MAX(E15:P16) -> 190
A16: T1 | E16: 155 | F16: 129 | G16: 146 | H16: 188 | I16: 174 | J16: 148 | K16: 190 | L16: 175 | M16: 179 | N16: 178 | O16: 179 | P16: 166
A17: T1
A18: T1 | D18: M | E18: 159 | F18: 146 | G18: 140 | H18: 188 | I18: 167 | J18: 212 | K18: 215 | L18: 263 | M18: 192 | N18: 223 | O18: 222 | P18: 164 | Q18: =SUM(E18:P19) -> 4463 | S18: =MIN(H18:P18) -> 164 | T18: =AVERAGE(E18:P19) -> 185.9583333 | U18: =MAX(E18:P19) -> 263
A19: T1 | E19: 177 | F19: 175 | G19: 208 | H19: 157 | I19: 135 | J19: 191 | K19: 232 | L19: 181 | M19: 171 | N19: 167 | O19: 178 | P19: 200
A20: T1
A21: T1 | C21: =C9 -> 16-20 | D21: =D15 -> F | E21: 167 | F21: 196 | G21: 163 | H21: 125 | I21: 177 | J21: 151 | K21: 203 | L21: 170 | M21: 202 | N21: 175 | O21: 160 | P21: 145 | Q21: =SUM(E21:P22) -> 4056 | S21: =MIN(H21:P21) -> 125 | T21: =AVERAGE(E21:P22) -> 169 | U21: =MAX(E21:P22) -> 221
A22: T1 | E22: 221 | F22: 168 | G22: 170 | H22: 157 | I22: 158 | J22: 161 | K22: 157 | L22: 132 | M22: 158 | N22: 163 | O22: 199 | P22: 178
A23: T1
A24: T1 | D24: =D18 -> M | E24: 148 | F24: 169 | G24: 201 | H24: 192 | I24: 198 | J24: 248 | K24: 199 | L24: 238 | M24: 172 | N24: 241 | O24: 193 | P24: 169 | Q24: =SUM(E24:P25) -> 4751 | S24: =MIN(H24:P24) -> 169 | T24: =AVERAGE(E24:P25) -> 197.9583333 | U24: =MAX(E24:P25) -> 248
A25: T1 | E25: 197 | F25: 177 | G25: 166 | H25: 204 | I25: 222 | J25: 214 | K25: 235 | L25: 199 | M25: 212 | N25: 217 | O25: 164 | P25: 176
A26: T1
A27: T1 | B27: SC | C27: =C15 -> 15 & < | D27: F | E27: 159 | F27: 154 | G27: 164 | H27: 176 | I27: 157 | J27: 162 | K27: 144 | L27: 160 | M27: 238 | N27: 123 | O27: 149 | P27: 136 | Q27: =SUM(E27:P28) -> 3747 | S27: =MIN(H27:P27) -> 123 | T27: =AVERAGE(E27:P28) -> 156.125 | U27: =MAX(E27:P28) -> 238
A28: T1 | E28: 125 | F28: 145 | G28: 125 | H28: 200 | I28: 144 | J28: 165 | K28: 166 | L28: 167 | M28: 155 | N28: 129 | O28: 126 | P28: 178
A29: T1
A30: T1 | D30: M | E30: 169 | F30: 167 | G30: 219 | H30: 158 | I30: 160 | J30: 157 | K30: 195 | L30: 169 | M30: 162 | N30: 149 | O30: 194 | P30: 170 | Q30: =SUM(E30:P31) -> 4269 | S30: =MIN(H30:P30) -> 149 | T30: =AVERAGE(E30:P31) -> 177.875 | U30: =MAX(E30:P31) -> 250
A31: T1 | E31: 131 | F31: 186 | G31: 146 | H31: 197 | I31: 169 | J31: 203 | K31: 160 | L31: 250 | M31: 169 | N31: 214 | O31: 181 | P31: 194
A32: T1
A33: T1 | C33: =C21 -> 16-20 | D33: =D27 -> F | E33: 198 | F33: 174 | G33: 183 | H33: 176 | I33: 230 | J33: 173 | K33: 189 | L33: 113 | M33: 158 | N33: 172 | O33: 134 | P33: 166 | Q33: =SUM(E33:P34) -> 3984 | S33: =MIN(H33:P33) -> 113 | T33: =AVERAGE(E33:P34) -> 166 | U33: =MAX(E33:P34) -> 230
A34: T1 | E34: 216 | F34: 177 | G34: 160 | H34: 149 | I34: 141 | J34: 146 | K34: 191 | L34: 129 | M34: 153 | N34: 146 | O34: 177 | P34: 133
A35: T1
A36: T1 | D36: =D30 -> M | E36: 191 | F36: 224 | G36: 164 | H36: 176 | I36: 216 | J36: 180 | K36: 170 | L36: 163 | M36: 201 | N36: 172 | O36: 223 | P36: 221 | Q36: =SUM(E36:P37) -> 4496 | S36: =MIN(H36:P36) -> 163 | T36: =AVERAGE(E36:P37) -> 187.3333333 | U36: =MAX(E36:P37) -> 224
A37: T1 | E37: 180 | F37: 186 | G37: 195 | H37: 170 | I37: 169 | J37: 182 | K37: 221 | L37: 164 | M37: 167 | N37: 179 | O37: 187 | P37: 195
A38: T1
A40: T2
A41: T2 | B41: =B3 -> GA | C41: =C3 -> 15 & < | D41: F | E41: 147 | F41: 191 | G41: 206 | H41: 166 | I41: 182 | J41: 198 | K41: 192 | L41: 163 | M41: 189 | N41: 156 | O41: 162 | P41: 181 | Q41: =SUM(E41:P42) -> 4134 | S41: =MIN(H41:P41) -> 156 | T41: =AVERAGE(E41:P42) -> 172.25 | U41: =MAX(E41:P42) -> 224
A42: T2 | E42: 140 | F42: 181 | G42: 224 | H42: 189 | I42: 117 | J42: 182 | K42: 142 | L42: 136 | M42: 148 | N42: 174 | O42: 164 | P42: 204
A43: T2
A44: T2 | D44: M | E44: 200 | F44: 179 | G44: 156 | H44: 191 | I44: 125 | J44: 200 | K44: 204 | L44: 165 | M44: 178 | N44: 210 | O44: 223 | P44: 150 | Q44: =SUM(E44:P45) -> 4424 | S44: =MIN(H44:P44) -> 125 | T44: =AVERAGE(E44:P45) -> 184.3333333 | U44: =MAX(E44:P45) -> 227
A45: T2 | E45: 163 | F45: 227 | G45: 206 | H45: 190 | I45: 190 | J45: 166 | K45: 224 | L45: 205 | M45: 197 | N45: 192 | O45: 159 | P45: 124
A46: T2
A47: T2 | C47: =C9 -> 16-20 | D47: =D41 -> F | E47: 157 | F47: 162 | G47: 214 | H47: 148 | I47: 200 | J47: 170 | K47: 155 | L47: 224 | M47: 143 | N47: 155 | O47: 168 | P47: 202 | Q47: =SUM(E47:P48) -> 4018 | S47: =MIN(H47:P47) -> 143 | T47: =AVERAGE(E47:P48) -> 167.4166667 | U47: =MAX(E47:P48) -> 224
A48: T2 | E48: 154 | F48: 141 | G48: 160 | H48: 170 | I48: 168 | J48: 140 | K48: 178 | L48: 128 | M48: 174 | N48: 168 | O48: 157 | P48: 182
A49: T2
A50: T2 | D50: =D44 -> M | E50: 180 | F50: 220 | G50: 221 | H50: 214 | I50: 278 | J50: 224 | K50: 203 | L50: 224 | M50: 226 | N50: 197 | O50: 206 | P50: 187 | Q50: =SUM(E50:P51) -> 5085 | S50: =MIN(H50:P50) -> 187 | T50: =AVERAGE(E50:P51) -> 211.875 | U50: =MAX(E50:P51) -> 278
A51: T2 | E51: 225 | F51: 198 | G51: 159 | H51: 233 | I51: 198 | J51: 246 | K51: 187 | L51: 203 | M51: 226 | N51: 159 | O51: 203 | P51: 268
A52: T2
A53: T2 | B53: =B15 -> NC | C53: =C41 -> 15 & < | D53: F | E53: 202 | F53: 189 | G53: 213 | H53: 149 | I53: 183 | J53: 191 | K53: 193 | L53: 140 | M53: 139 | N53: 189 | O53: 146 | P53: 193 | Q53: =SUM(E53:P54) -> 4037 | S53: =MIN(H53:P53) -> 139 | T53: =AVERAGE(E53:P54) -> 168.2083333 | U53: =MAX(E53:P54) -> 213
A54: T2 | E54: 182 | F54: 108 | G54: 145 | H54: 193 | I54: 125 | J54: 139 | K54: 162 | L54: 136 | M54: 177 | N54: 168 | O54: 172 | P54: 203
A55: T2
A56: T2 | D56: M | E56: 173 | F56: 176 | G56: 234 | H56: 185 | I56: 174 | J56: 165 | K56: 214 | L56: 170 | M56: 166 | N56: 204 | O56: 290 | P56: 227 | Q56: =SUM(E56:P57) -> 4643 | S56: =MIN(H56:P56) -> 165 | T56: =AVERAGE(E56:P57) -> 193.4583333 | U56: =MAX(E56:P57) -> 290
A57: T2 | E57: 202 | F57: 147 | G57: 192 | H57: 159 | I57: 173 | J57: 208 | K57: 220 | L57: 201 | M57: 179 | N57: 216 | O57: 180 | P57: 188
A58: T2
A59: T2 | C59: =C47 -> 16-20 | D59: =D53 -> F | E59: 192 | F59: 212 | G59: 145 | H59: 167 | I59: 149 | J59: 171 | K59: 169 | L59: 185 | M59: 170 | N59: 187 | O59: 188 | P59: 179 | Q59: =SUM(E59:P60) -> 4156 | S59: =MIN(H59:P59) -> 149 | T59: =AVERAGE(E59:P60) -> 173.1666667 | U59: =MAX(E59:P60) -> 224
A60: T2 | E60: 138 | F60: 204 | G60: 159 | H60: 224 | I60: 156 | J60: 174 | K60: 146 | L60: 164 | M60: 174 | N60: 150 | O60: 194 | P60: 159
A61: T2
A62: T2 | D62: =D56 -> M | E62: 198 | F62: 179 | G62: 186 | H62: 195 | I62: 203 | J62: 202 | K62: 190 | L62: 233 | M62: 246 | N62: 201 | O62: 154 | P62: 226 | Q62: =SUM(E62:P63) -> 5066 | S62: =MIN(H62:P62) -> 154 | T62: =AVERAGE(E62:P63) -> 211.0833333 | U62: =MAX(E62:P63) -> 257
A63: T2 | E63: 206 | F63: 225 | G63: 208 | H63: 249 | I63: 203 | J63: 246 | K63: 233 | L63: 205 | M63: 222 | N63: 257 | O63: 185 | P63: 214
A64: T2
A65: T2 | B65: =B27 -> SC | C65: =C53 -> 15 & < | D65: F | E65: 166 | F65: 146 | G65: 179 | H65: 119 | I65: 221 | J65: 176 | K65: 125 | L65: 138 | M65: 185 | N65: 133 | O65: 159 | P65: 135 | Q65: =SUM(E65:P66) -> 4000 | S65: =MIN(H65:P65) -> 119 | T65: =AVERAGE(E65:P66) -> 166.6666667 | U65: =MAX(E65:P66) -> 221
A66: T2 | E66: 200 | F66: 191 | G66: 182 | H66: 183 | I66: 157 | J66: 154 | K66: 176 | L66: 198 | M66: 157 | N66: 173 | O66: 200 | P66: 147
A67: T2
A68: T2 | D68: M | E68: 177 | F68: 155 | G68: 199 | H68: 233 | I68: 190 | J68: 177 | K68: 219 | L68: 197 | M68: 185 | N68: 213 | O68: 187 | P68: 187 | Q68: =SUM(E68:P69) -> 4554 | S68: =MIN(H68:P68) -> 177 | T68: =AVERAGE(E68:P69) -> 189.75 | U68: =MAX(E68:P69) -> 233
A69: T2 | E69: 206 | F69: 180 | G69: 191 | H69: 191 | I69: 180 | J69: 178 | K69: 166 | L69: 182 | M69: 209 | N69: 179 | O69: 147 | P69: 226
A70: T2
A71: T2 | C71: =C59 -> 16-20 | D71: =D65 -> F | E71: 179 | F71: 180 | G71: 160 | H71: 176 | I71: 169 | J71: 153 | K71: 171 | L71: 156 | M71: 181 | N71: 147 | O71: 178 | P71: 163 | Q71: =SUM(E71:P72) -> 3996 | S71: =MIN(H71:P71) -> 147 | T71: =AVERAGE(E71:P72) -> 166.5 | U71: =MAX(E71:P72) -> 204
A72: T2 | E72: 167 | F72: 139 | G72: 148 | H72: 128 | I72: 156 | J72: 156 | K72: 179 | L72: 204 | M72: 181 | N72: 179 | O72: 148 | P72: 198
A73: T2
A74: T2 | D74: =D68 -> M | E74: 179 | F74: 180 | G74: 175 | H74: 202 | I74: 163 | J74: 190 | K74: 257 | L74: 137 | M74: 173 | N74: 213 | O74: 179 | P74: 193 | Q74: =SUM(E74:P75) -> 4588 | S74: =MIN(H74:P74) -> 137 | T74: =AVERAGE(E74:P75) -> 191.1666667 | U74: =MAX(E74:P75) -> 257
A75: T2 | E75: 194 | F75: 193 | G75: 182 | H75: 234 | I75: 190 | J75: 205 | K75: 168 | L75: 173 | M75: 168 | N75: 224 | O75: 199 | P75: 217
A76: T2
A78: T3
A79: T3 | B79: GA | C79: =C41 -> 15 & < | D79: F | Q79: =SUM(E79:P80) -> 0 | S79: =MIN(H79:P79) -> 0 | T79: =AVERAGE(E79:P80) ->  | U79: =MAX(E79:P80) -> 0
A80: T3
A81: T3
A82: T3 | D82: M | Q82: =SUM(E82:P83) -> 0 | S82: =MIN(H82:P82) -> 0 | T82: =AVERAGE(E82:P83) ->  | U82: =MAX(E82:P83) -> 0
A83: T3
A84: T3
A85: T3 | C85: =C47 -> 16-20 | D85: =D79 -> F | Q85: =SUM(E85:P86) -> 0 | S85: =MIN(H85:P85) -> 0 | T85: =AVERAGE(E85:P86) ->  | U85: =MAX(E85:P86) -> 0
A86: T3
A87: T3
A88: T3 | D88: =D82 -> M | Q88: =SUM(E88:P89) -> 0 | S88: =MIN(H88:P88) -> 0 | T88: =AVERAGE(E88:P89) ->  | U88: =MAX(E88:P89) -> 0
A89: T3
A90: T3
A91: T3 | B91: NC | C91: =C79 -> 15 & < | D91: F | Q91: =SUM(E91:P92) -> 0 | S91: =MIN(H91:P91) -> 0 | T91: =AVERAGE(E91:P92) ->  | U91: =MAX(E91:P92) -> 0
A92: T3
A93: T3
A94: T3 | D94: M | Q94: =SUM(E94:P95) -> 0 | S94: =MIN(H94:P94) -> 0 | T94: =AVERAGE(E94:P95) ->  | U94: =MAX(E94:P95) -> 0
A95: T3
A96: T3
A97: T3 | C97: =C85 -> 16-20 | D97: =D91 -> F | Q97: =SUM(E97:P98) -> 0 | S97: =MIN(H97:P97) -> 0 | T97: =AVERAGE(E97:P98) ->  | U97: =MAX(E97:P98) -> 0
A98: T3
A99: T3
A100: T3 | D100: =D94 -> M | Q100: =SUM(E100:P101) -> 0 | S100: =MIN(H100:P100) -> 0 | T100: =AVERAGE(E100:P101) ->  | U100: =MAX(E100:P101) -> 0
A101: T3
A102: T3
A103: T3 | B103: SC | C103: =C91 -> 15 & < | D103: F | Q103: =SUM(E103:P104) -> 0 | S103: =MIN(H103:P103) -> 0 | T103: =AVERAGE(E103:P104) ->  | U103: =MAX(E103:P104) -> 0
A104: T3
A105: T3
A106: T3 | D106: M | Q106: =SUM(E106:P107) -> 0 | S106: =MIN(H106:P106) -> 0 | T106: =AVERAGE(E106:P107) ->  | U106: =MAX(E106:P107) -> 0
A107: T3
A108: T3
A109: T3 | C109: =C97 -> 16-20 | D109: =D103 -> F | Q109: =SUM(E109:P110) -> 0 | S109: =MIN(H109:P109) -> 0 | T109: =AVERAGE(E109:P110) ->  | U109: =MAX(E109:P110) -> 0
A110: T3
A111: T3
A112: T3 | D112: =D106 -> M | Q112: =SUM(E112:P113) -> 0 | S112: =MIN(H112:P112) -> 0 | T112: =AVERAGE(E112:P113) ->  | U112: =MAX(E112:P113) -> 0
A113: T3
A114: T3

Sheet Scores
A2: =H5 -> 1 | B2: =E5 -> Georgia | C2: =F5 -> 15 & < | D2: =G5 -> F | E2: Tournament | F2: =DGET('Tournament Locations'!$B$1:$C$4,"Location",Scores!$H$4:$H$5) -> Gold Cup Russell Pkwy, Warner Robins, GA
A3: =A2 -> 1 | B3: =B2 -> Georgia | C3: =C2 -> 15 & < | D3: =D2 -> F | L3: High Game | N3: =MAX(J8:P19) -> 193 | P3: =IF(SUM(J21:P21)>0,"Warning: Not enough scores to drop lowest score. Be sure zeros are entered for any vacant bowler","") -> 
A4: =A3 -> 1 | B4: Georgia | C4: 15 & < | D4: F | E4: State | F4: Age | G4: Gender | H4: Tournament | L4: High Series | N4: =MAX(Q8:R19) -> 510
A5: 1 | B5: Georgia | C5: 15 & < | D5: F | E5: Georgia | F5: 15 & < | G5: F | H5: 1 | L5: High Pins | N5: =MAX(S8:S19) -> 1012
A6: 1 | B6: Georgia | C6: 15 & < | D6: F
A7: 1 | B7: Georgia | C7: 15 & < | D7: F | E7: Player Number | F7: Full Name | G7: Flag | H7: Actual Age | I7: Gender | J7: Game 1 | K7: Game 2 | L7: Game 3 | N7: Game 4 | O7: Game 5 | P7: Game 6 | Q7: Series 1 | R7: Series 2 | S7: Total
A8: 1 | B8: Georgia | C8: 15 & < | D8: F | E8: 1 | F8: Anita Li | G8: =IF(ISERROR(VLOOKUP(F8,Bowler_Name,1,FALSE)),"Not Entered",IF(H8>F$5,"Too Old",IF(I8<>G$5,"Wrong Gender",""))) ->  | H8: =IF(ISERROR(VLOOKUP(F8,Bowler_Name,1,FALSE)),"",INDIRECT("'Individual Scores'!"&ADDRESS(MATCH(F8,'Individual Scores'!$D$2:$D$169,0)+1,2))) -> 15 & < | I8: =IF(ISERROR(VLOOKUP(F8,Bowler_Name,1,FALSE)),"",INDIRECT("'Individual Scores'!"&ADDRESS(MATCH(F8,'Individual Scores'!$D$2:$D$169,0)+1,3))) -> F | J8: 135 | K8: 180 | L8: 170 | N8: 166 | O8: 183 | P8: 160 | Q8: =SUM(J8:L8) -> 485 | R8: =SUM(N8:P8) -> 509 | S8: =SUM(Q8:R8) -> 994 | U8: =S8/6 -> 165.6666667
A9: 1 | B9: Georgia | C9: 15 & < | D9: F | E9: =E8+1 -> 2 | F9: Annalise O'Bryant | H9: =IF(ISERROR(VLOOKUP(F9,Bowler_Name,1,FALSE)),"",INDIRECT("'Individual Scores'!"&ADDRESS(MATCH(F9,'Individual Scores'!$D$2:$D$169,0)+1,2))) -> 15 & < | I9: =IF(ISERROR(VLOOKUP(F9,Bowler_Name,1,FALSE)),"",INDIRECT("'Individual Scores'!"&ADDRESS(MATCH(F9,'Individual Scores'!$D$2:$D$169,0)+1,3))) -> F | J9: 164 | K9: 168 | L9: 170 | N9: 193 | O9: 152 | P9: 165 | Q9: =SUM(J9:L9) -> 502 | R9: =SUM(N9:P9) -> 510 | S9: =SUM(Q9:R9) -> 1012 | U9: =S9/6 -> 168.6666667
A10: 1 | B10: Georgia | C10: 15 & < | D10: F | E10: 3 | F10: Bethany Noel | H10: =IF(ISERROR(VLOOKUP(F10,Bowler_Name,1,FALSE)),"",INDIRECT("'Individual Scores'!"&ADDRESS(MATCH(F10,'Individual Scores'!$D$2:$D$169,0)+1,2))) -> 15 & < | I10: =IF(ISERROR(VLOOKUP(F10,Bowler_Name,1,FALSE)),"",INDIRECT("'Individual Scores'!"&ADDRESS(MATCH(F10,'Individual Scores'!$D$2:$D$169,0)+1,3))) -> F | J10: 137 | K10: 159 | L10: 176 | N10: 181 | O10: 145 | P10: 161 | Q10: 472 | R10: 487 | S10: 959 | U10: 159.8333333
A11: 1 | B11: Georgia | C11: 15 & < | D11: F | E11: 4 | F11: Catherine Friess | H11: =IF(ISERROR(VLOOKUP(F11,Bowler_Name,1,FALSE)),"",INDIRECT("'Individual Scores'!"&ADDRESS(MATCH(F11,'Individual Scores'!$D$2:$D$169,0)+1,2))) -> 15 & < | I11: =IF(ISERROR(VLOOKUP(F11,Bowler_Name,1,FALSE)),"",INDIRECT("'Individual Scores'!"&ADDRESS(MATCH(F11,'Individual Scores'!$D$2:$D$169,0)+1,3))) -> F | J11: 136 | K11: 124 | L11: 144 | N11: 168 | O11: 104 | P11: 148 | Q11: 404 | R11: 420 | S11: 824 | U11: 137.3333333
A12: 1 | B12: Georgia | C12: 15 & < | D12: F | E12: 5 | F12: Cheyenne Miller | H12: =IF(ISERROR(VLOOKUP(F12,Bowler_Name,1,FALSE)),"",INDIRECT("'Individual Scores'!"&ADDRESS(MATCH(F12,'Individual Scores'!$D$2:$D$169,0)+1,2))) -> 15 & < | I12: =IF(ISERROR(VLOOKUP(F12,Bowler_Name,1,FALSE)),"",INDIRECT("'Individual Scores'!"&ADDRESS(MATCH(F12,'Individual Scores'!$D$2:$D$169,0)+1,3))) -> F | J12: 169 | K12: 159 | L12: 156 | N12: 146 | O12: 136 | P12: 132 | Q12: 484 | R12: 414 | S12: 898 | U12: 149.6666667
A13: 1 | B13: Georgia | C13: 15 & < | D13: F | E13: 6 | F13: Emily Rettig | H13: =IF(ISERROR(VLOOKUP(F13,Bowler_Name,1,FALSE)),"",INDIRECT("'Individual Scores'!"&ADDRESS(MATCH(F13,'Individual Scores'!$D$2:$D$169,0)+1,2))) -> 15 & < | I13: =IF(ISERROR(VLOOKUP(F13,Bowler_Name,1,FALSE)),"",INDIRECT("'Individual Scores'!"&ADDRESS(MATCH(F13,'Individual Scores'!$D$2:$D$169,0)+1,3))) -> F | J13: 135 | K13: 128 | L13: 127 | N13: 148 | O13: 137 | P13: 167 | Q13: 390 | R13: 452 | S13: 842 | U13: 140.3333333
A14: 1 | B14: Georgia | C14: 15 & < | D14: F | E14: 7 | F14: Faith Hardy | H14: =IF(ISERROR(VLOOKUP(F14,Bowler_Name,1,FALSE)),"",INDIRECT("'Individual Scores'!"&ADDRESS(MATCH(F14,'Individual Scores'!$D$2:$D$169,0)+1,2))) -> 15 & < | I14: =IF(ISERROR(VLOOKUP(F14,Bowler_Name,1,FALSE)),"",INDIRECT("'Individual Scores'!"&ADDRESS(MATCH(F14,'Individual Scores'!$D$2:$D$169,0)+1,3))) -> F | J14: 123 | K14: 142 | L14: 128 | N14: 148 | O14: 166 | P14: 151 | Q14: 393 | R14: 465 | S14: 858 | U14: 143
A15: 1 | B15: Georgia | C15: 15 & < | D15: F | E15: 8 | F15: Ivyana Hurey Scott | H15: =IF(ISERROR(VLOOKUP(F15,Bowler_Name,1,FALSE)),"",INDIRECT("'Individual Scores'!"&ADDRESS(MATCH(F15,'Individual Scores'!$D$2:$D$169,0)+1,2))) -> 15 & < | I15: =IF(ISERROR(VLOOKUP(F15,Bowler_Name,1,FALSE)),"",INDIRECT("'Individual Scores'!"&ADDRESS(MATCH(F15,'Individual Scores'!$D$2:$D$169,0)+1,3))) -> F | J15: 153 | K15: 141 | L15: 191 | N15: 160 | O15: 141 | P15: 159 | Q15: 485 | R15: 460 | S15: 945 | U15: 157.5
A16: 1 | B16: Georgia | C16: 15 & < | D16: F | E16: 9 | F16: Kathleen Elder | H16: =IF(ISERROR(VLOOKUP(F16,Bowler_Name,1,FALSE)),"",INDIRECT("'Individual Scores'!"&ADDRESS(MATCH(F16,'Individual Scores'!$D$2:$D$169,0)+1,2))) -> 15 & < | I16: =IF(ISERROR(VLOOKUP(F16,Bowler_Name,1,FALSE)),"",INDIRECT("'Individual Scores'!"&ADDRESS(MATCH(F16,'Individual Scores'!$D$2:$D$169,0)+1,3))) -> F | J16: 124 | K16: 108 | L16: 105 | N16: 128 | O16: 126 | P16: 138 | Q16: 337 | R16: 392 | S16: 729 | U16: 121.5
A17: 1 | B17: Georgia | C17: 15 & < | D17: F | E17: 10 | F17: Savanna Campbell | H17: =IF(ISERROR(VLOOKUP(F17,Bowler_Name,1,FALSE)),"",INDIRECT("'Individual Scores'!"&ADDRESS(MATCH(F17,'Individual Scores'!$D$2:$D$169,0)+1,2))) -> 15 & < | I17: =IF(ISERROR(VLOOKUP(F17,Bowler_Name,1,FALSE)),"",INDIRECT("'Individual Scores'!"&ADDRESS(MATCH(F17,'Individual Scores'!$D$2:$D$169,0)+1,3))) -> F | J17: 166 | K17: 141 | L17: 185 | N17: 144 | O17: 168 | P17: 192 | Q17: 492 | R17: 504 | S17: 996 | U17: 166
A18: 1 | B18: Georgia | C18: 15 & < | D18: F | E18: 11 | F18: Glory Harmon | H18: =IF(ISERROR(VLOOKUP(F18,Bowler_Name,1,FALSE)),"",INDIRECT("'Individual Scores'!"&ADDRESS(MATCH(F18,'Individual Scores'!$D$2:$D$169,0)+1,2))) -> 15 & < | I18: =IF(ISERROR(VLOOKUP(F18,Bowler_Name,1,FALSE)),"",INDIRECT("'Individual Scores'!"&ADDRESS(MATCH(F18,'Individual Scores'!$D$2:$D$169,0)+1,3))) -> F | J18: 158 | K18: 143 | L18: 170 | N18: 113 | O18: 117 | P18: 147 | Q18: 471 | R18: 377 | S18: 848 | U18: 141.3333333
A19: 1 | B19: Georgia | C19: 15 & < | D19: F
A20: 1 | B20: Georgia | C20: 15 & < | D20: F | F20: =DGET(Constants!$C$1:$D$4,1,E4:E5)&" "&G5&" "&F5 -> GA F 15 & < | J20: =SUM(J7:J19)-MIN(J7:J19) -> 1477 | K20: 1485 | L20: 1617 | N20: 1582 | O20: 1471 | P20: 1588 | Q20: =SUM(J20:L20) -> 4579 | R20: =SUM(N20:P20) -> 4641 | S20: =SUM(Q20:R20) -> 9220
A21: 1 | F21: Warning Row: should be hidden | J21: =IF(COUNT(J7:J19)=0,"",IF(COUNT(J7:J19)<ROWS(J7:J19)-2,1,"")) -> 
A22: 1
A23: =H26 -> 1 | B23: =E26 -> Georgia | C23: =F26 -> 15 & < | D23: =G26 -> M | E23: Tournament | F23: =DGET('Tournament Locations'!$B$1:$C$4,"Location",Scores!$H$4:$H$5) -> Gold Cup Russell Pkwy, Warner Robins, GA
A24: =A23 -> 1 | B24: =B23 -> Georgia | C24: =C23 -> 15 & < | D24: =D23 -> M | L24: High Game | N24: =MAX(J29:P40) -> 245 | P24: =IF(SUM(J42:P42)>0,"Warning: Not enough scores to drop lowest score. Be sure zeros are entered for any vacant bowler","") -> 
A25: =A24 -> 1 | B25: Georgia | C25: 15 & < | D25: M | E25: State | F25: Age | G25: Gender | H25: Tournament | L25: High Series | N25: =MAX(Q29:R40) -> 639
A26: 1 | B26: Georgia | C26: 15 & < | D26: M | E26: =E5 -> Georgia | F26: =F5 -> 15 & < | G26: M | H26: =H5 -> 1 | L26: High Pins | N26: =MAX(S29:S40) -> 1226
A27: 1 | B27: Georgia | C27: 15 & < | D27: M
A28: 1 | B28: Georgia | C28: 15 & < | D28: M | E28: Player Number | F28: Full Name | G28: Flag | H28: Actual Age | I28: Gender | J28: Game 1 | K28: Game 2 | L28: Game 3 | N28: Game 4 | O28: Game 5 | P28: Game 6 | Q28: Series 1 | R28: Series 2 | S28: Total
A29: 1 | B29: Georgia | C29: 15 & < | D29: M | E29: 1 | F29: Brandon Campbell | G29: =IF(ISERROR(VLOOKUP(F29,Bowler_Name,1,FALSE)),"Not Entered",IF(H29>F$26,"Too Old",IF(I29<>G$26,"Wrong Gender",""))) ->  | H29: =IF(ISERROR(VLOOKUP(F29,Bowler_Name,1,FALSE)),"",INDIRECT("'Individual Scores'!"&ADDRESS(MATCH(F29,'Individual Scores'!$D$2:$D$169,0)+1,2))) -> 15 & < | I29: =IF(ISERROR(VLOOKUP(F29,Bowler_Name,1,FALSE)),"",INDIRECT("'Individual Scores'!"&ADDRESS(MATCH(F29,'Individual Scores'!$D$2:$D$169,0)+1,3))) -> M | J29: 176 | K29: 189 | L29: 188 | N29: 205 | O29: 209 | P29: 222 | Q29: =SUM(J29:L29) -> 553 | R29: =SUM(N29:P29) -> 636 | S29: =SUM(Q29:R29) -> 1189 | U29: =S29/6 -> 198.1666667
A30: 1 | B30: Georgia | C30: 15 & < | D30: M | E30: =E29+1 -> 2 | F30: Dakota Starling | H30: =IF(ISERROR(VLOOKUP(F30,Bowler_Name,1,FALSE)),"",INDIRECT("'Individual Scores'!"&ADDRESS(MATCH(F30,'Individual Scores'!$D$2:$D$169,0)+1,2))) -> 15 & < | I30: =IF(ISERROR(VLOOKUP(F30,Bowler_Name,1,FALSE)),"",INDIRECT("'Individual Scores'!"&ADDRESS(MATCH(F30,'Individual Scores'!$D$2:$D$169,0)+1,3))) -> M | J30: 190 | K30: 211 | L30: 196 | N30: 158 | O30: 118 | P30: 183 | Q30: =SUM(J30:L30) -> 597 | R30: =SUM(N30:P30) -> 459 | S30: =SUM(Q30:R30) -> 1056 | U30: =S30/6 -> 176
A31: 1 | B31: Georgia | C31: 15 & < | D31: M | E31: 3 | F31: Isaiah Tukes | H31: =IF(ISERROR(VLOOKUP(F31,Bowler_Name,1,FALSE)),"",INDIRECT("'Individual Scores'!"&ADDRESS(MATCH(F31,'Individual Scores'!$D$2:$D$169,0)+1,2))) -> 15 & < | I31: =IF(ISERROR(VLOOKUP(F31,Bowler_Name,1,FALSE)),"",INDIRECT("'Individual Scores'!"&ADDRESS(MATCH(F31,'Individual Scores'!$D$2:$D$169,0)+1,3))) -> M | J31: 136 | K31: 168 | L31: 151 | N31: 148 | O31: 149 | P31: 173 | Q31: 455 | R31: 470 | S31: 925 | U31: 154.1666667
A32: 1 | B32: Georgia | C32: 15 & < | D32: M | E32: 4 | F32: Josh Monroe | H32: =IF(ISERROR(VLOOKUP(F32,Bowler_Name,1,FALSE)),"",INDIRECT("'Individual Scores'!"&ADDRESS(MATCH(F32,'Individual Scores'!$D$2:$D$169,0)+1,2))) -> 15 & < | I32: =IF(ISERROR(VLOOKUP(F32,Bowler_Name,1,FALSE)),"",INDIRECT("'Individual Scores'!"&ADDRESS(MATCH(F32,'Individual Scores'!$D$2:$D$169,0)+1,3))) -> M | J32: 174 | K32: 140 | L32: 152 | N32: 143 | O32: 244 | P32: 184 | Q32: 466 | R32: 571 | S32: 1037 | U32: 172.8333333
A33: 1 | B33: Georgia | C33: 15 & < | D33: M | E33: 5 | F33: Justin Riley | H33: =IF(ISERROR(VLOOKUP(F33,Bowler_Name,1,FALSE)),"",INDIRECT("'Individual Scores'!"&ADDRESS(MATCH(F33,'Individual Scores'!$D$2:$D$169,0)+1,2))) -> 15 & < | I33: =IF(ISERROR(VLOOKUP(F33,Bowler_Name,1,FALSE)),"",INDIRECT("'Individual Scores'!"&ADDRESS(MATCH(F33,'Individual Scores'!$D$2:$D$169,0)+1,3))) -> M | J33: 226 | K33: 201 | L33: 149 | N33: 174 | O33: 146 | P33: 149 | Q33: 576 | R33: 469 | S33: 1045 | U33: 174.1666667
A34: 1 | B34: Georgia | C34: 15 & < | D34: M | E34: 6 | F34: Vacant-GA_B_U15 | H34: =IF(ISERROR(VLOOKUP(F34,Bowler_Name,1,FALSE)),"",INDIRECT("'Individual Scores'!"&ADDRESS(MATCH(F34,'Individual Scores'!$D$2:$D$169,0)+1,2))) -> 15 & < | I34: =IF(ISERROR(VLOOKUP(F34,Bowler_Name,1,FALSE)),"",INDIRECT("'Individual Scores'!"&ADDRESS(MATCH(F34,'Individual Scores'!$D$2:$D$169,0)+1,3))) -> M | J34: 0 | K34: 0 | L34: 0 | N34: 0 | O34: 0 | P34: 0 | Q34: 0 | R34: 0 | S34: 0 | U34: 0
A35: 1 | B35: Georgia | C35: 15 & < | D35: M | E35: 7 | F35: Logan Mathis | H35: =IF(ISERROR(VLOOKUP(F35,Bowler_Name,1,FALSE)),"",INDIRECT("'Individual Scores'!"&ADDRESS(MATCH(F35,'Individual Scores'!$D$2:$D$169,0)+1,2))) -> 15 & < | I35: =IF(ISERROR(VLOOKUP(F35,Bowler_Name,1,FALSE)),"",INDIRECT("'Individual Scores'!"&ADDRESS(MATCH(F35,'Individual Scores'!$D$2:$D$169,0)+1,3))) -> M | J35: 133 | K35: 133 | L35: 132 | N35: 156 | O35: 157 | P35: 145 | Q35: 398 | R35: 458 | S35: 856 | U35: 142.6666667
A36: 1 | B36: Georgia | C36: 15 & < | D36: M | E36: 8 | F36: Matthew Hickey | H36: =IF(ISERROR(VLOOKUP(F36,Bowler_Name,1,FALSE)),"",INDIRECT("'Individual Scores'!"&ADDRESS(MATCH(F36,'Individual Scores'!$D$2:$D$169,0)+1,2))) -> 15 & < | I36: =IF(ISERROR(VLOOKUP(F36,Bowler_Name,1,FALSE)),"",INDIRECT("'Individual Scores'!"&ADDRESS(MATCH(F36,'Individual Scores'!$D$2:$D$169,0)+1,3))) -> M | J36: 211 | K36: 153 | L36: 163 | N36: 137 | O36: 185 | P36: 144 | Q36: 527 | R36: 466 | S36: 993 | U36: 165.5
A37: 1 | B37: Georgia | C37: 15 & < | D37: M | E37: 9 | F37: Paris Swinson | H37: =IF(ISERROR(VLOOKUP(F37,Bowler_Name,1,FALSE)),"",INDIRECT("'Individual Scores'!"&ADDRESS(MATCH(F37,'Individual Scores'!$D$2:$D$169,0)+1,2))) -> 15 & < | I37: =IF(ISERROR(VLOOKUP(F37,Bowler_Name,1,FALSE)),"",INDIRECT("'Individual Scores'!"&ADDRESS(MATCH(F37,'Individual Scores'!$D$2:$D$169,0)+1,3))) -> M | J37: 214 | K37: 141 | L37: 178 | N37: 141 | O37: 146 | P37: 176 | Q37: 533 | R37: 463 | S37: 996 | U37: 166
A38: 1 | B38: Georgia | C38: 15 & < | D38: M | E38: 10 | F38: Sean Espey | H38: =IF(ISERROR(VLOOKUP(F38,Bowler_Name,1,FALSE)),"",INDIRECT("'Individual Scores'!"&ADDRESS(MATCH(F38,'Individual Scores'!$D$2:$D$169,0)+1,2))) -> 15 & < | I38: =IF(ISERROR(VLOOKUP(F38,Bowler_Name,1,FALSE)),"",INDIRECT("'Individual Scores'!"&ADDRESS(MATCH(F38,'Individual Scores'!$D$2:$D$169,0)+1,3))) -> M | J38: 206 | K38: 188 | L38: 245 | N38: 179 | O38: 205 | P38: 203 | Q38: 639 | R38: 587 | S38: 1226 | U38: 204.3333333
A39: 1 | B39: Georgia | C39: 15 & < | D39: M | E39: 11 | F39: Tyrell Ingalls | H39: =IF(ISERROR(VLOOKUP(F39,Bowler_Name,1,FALSE)),"",INDIRECT("'Individual Scores'!"&ADDRESS(MATCH(F39,'Individual Scores'!$D$2:$D$169,0)+1,2))) -> 15 & < | I39: =IF(ISERROR(VLOOKUP(F39,Bowler_Name,1,FALSE)),"",INDIRECT("'Individual Scores'!"&ADDRESS(MATCH(F39,'Individual Scores'!$D$2:$D$169,0)+1,3))) -> M | J39: 167 | K39: 151 | L39: 162 | N39: 142 | O39: 213 | P39: 220 | Q39: 480 | R39: 575 | S39: 1055 | U39: 175.8333333
A40: 1 | B40: Georgia | C40: 15 & < | D40: M
A41: 1 | B41: Georgia | C41: 15 & < | D41: M | F41: =DGET(Constants!$C$1:$D$4,1,E25:E26)&" "&G26&" "&F26 -> GA M 15 & < | J41: =SUM(J28:J40)-MIN(J28:J40) -> 1833 | K41: 1675 | L41: 1716 | N41: 1583 | O41: 1772 | P41: 1799 | Q41: =SUM(J41:L41) -> 5224 | R41: =SUM(N41:P41) -> 5154 | S41: =SUM(Q41:R41) -> 10378
A42: 1 | F42: Warning Row: should be hidden | J42: =IF(COUNT(J28:J40)=0,"",IF(COUNT(J28:J40)<ROWS(J28:J40)-2,1,"")) -> 
A43: 1
A44: =H47 -> 1 | B44: =E47 -> Georgia | C44: =F47 -> 16-20 | D44: =G47 -> F | E44: Tournament | F44: =DGET('Tournament Locations'!$B$1:$C$4,"Location",Scores!$H$4:$H$5) -> Gold Cup Russell Pkwy, Warner Robins, GA
A45: =A44 -> 1 | B45: =B44 -> Georgia | C45: =C44 -> 16-20 | D45: =D44 -> F | L45: High Game | N45: =MAX(J50:P60) -> 245 | P45: =IF(SUM(J63:P63)>0,"Warning: Not enough scores to drop lowest score. Be sure zeros are entered for any vacant bowler","") -> 
A46: =A45 -> 1 | B46: Georgia | C46: 16-20 | D46: F | E46: State | F46: Age | G46: Gender | H46: Tournament | L46: High Series | N46: =MAX(Q50:R60) -> 612
A47: 1 | B47: Georgia | C47: 16-20 | D47: F | E47: =E5 -> Georgia | F47: 16-20 | G47: F | H47: =H5 -> 1 | L47: High Pins | N47: =MAX(S50:S60) -> 1164
A48: 1 | B48: Georgia | C48: 16-20 | D48: F
A49: 1 | B49: Georgia | C49: 16-20 | D49: F | E49: Player Number | F49: Full Name | G49: Flag | H49: Actual Age | I49: Gender | J49: Game 1 | K49: Game 2 | L49: Game 3 | N49: Game 4 | O49: Game 5 | P49: Game 6 | Q49: Series 1 | R49: Series 2 | S49: Total
A50: 1 | B50: Georgia | C50: 16-20 | D50: F | E50: 1 | F50: Amber Beene | G50: =IF(ISERROR(VLOOKUP(F50,Bowler_Name,1,FALSE)),"Not Entered",IF(H50>F$47,"Too Old",IF(I50<>G$47,"Wrong Gender",""))) ->  | H50: =IF(ISERROR(VLOOKUP(F50,Bowler_Name,1,FALSE)),"",INDIRECT("'Individual Scores'!"&ADDRESS(MATCH(F50,'Individual Scores'!$D$2:$D$169,0)+1,2))) -> 16-20 | I50: =IF(ISERROR(VLOOKUP(F50,Bowler_Name,1,FALSE)),"",INDIRECT("'Individual Scores'!"&ADDRESS(MATCH(F50,'Individual Scores'!$D$2:$D$169,0)+1,3))) -> F | J50: 185 | K50: 205 | L50: 214 | N50: 193 | O50: 186 | P50: 170 | Q50: =SUM(J50:L50) -> 604 | R50: =SUM(N50:P50) -> 549 | S50: =SUM(Q50:R50) -> 1153 | U50: =S50/6 -> 192.1666667
A51: 1 | B51: Georgia | C51: 16-20 | D51: F | E51: =E50+1 -> 2 | F51: Crystal Fox | H51: =IF(ISERROR(VLOOKUP(F51,Bowler_Name,1,FALSE)),"",INDIRECT("'Individual Scores'!"&ADDRESS(MATCH(F51,'Individual Scores'!$D$2:$D$169,0)+1,2))) -> 16-20 | I51: =IF(ISERROR(VLOOKUP(F51,Bowler_Name,1,FALSE)),"",INDIRECT("'Individual Scores'!"&ADDRESS(MATCH(F51,'Individual Scores'!$D$2:$D$169,0)+1,3))) -> F | J51: 245 | K51: 179 | L51: 169 | N51: 159 | O51: 212 | P51: 200 | Q51: =SUM(J51:L51) -> 593 | R51: =SUM(N51:P51) -> 571 | S51: =SUM(Q51:R51) -> 1164 | U51: =S51/6 -> 194
A52: 1 | B52: Georgia | C52: 16-20 | D52: F | E52: 3 | F52: Gabriela Ramkhelawan | H52: =IF(ISERROR(VLOOKUP(F52,Bowler_Name,1,FALSE)),"",INDIRECT("'Individual Scores'!"&ADDRESS(MATCH(F52,'Individual Scores'!$D$2:$D$169,0)+1,2))) -> 15 & < | I52: =IF(ISERROR(VLOOKUP(F52,Bowler_Name,1,FALSE)),"",INDIRECT("'Individual Scores'!"&ADDRESS(MATCH(F52,'Individual Scores'!$D$2:$D$169,0)+1,3))) -> F | J52: 212 | K52: 159 | L52: 186 | N52: 156 | O52: 164 | P52: 140 | Q52: 557 | R52: 460 | S52: 1017 | U52: 169.5
A53: 1 | B53: Georgia | C53: 16-20 | D53: F | E53: 4 | F53: Jasmine Nash | H53: =IF(ISERROR(VLOOKUP(F53,Bowler_Name,1,FALSE)),"",INDIRECT("'Individual Scores'!"&ADDRESS(MATCH(F53,'Individual Scores'!$D$2:$D$169,0)+1,2))) -> 16-20 | I53: =IF(ISERROR(VLOOKUP(F53,Bowler_Name,1,FALSE)),"",INDIRECT("'Individual Scores'!"&ADDRESS(MATCH(F53,'Individual Scores'!$D$2:$D$169,0)+1,3))) -> F | J53: 202 | K53: 180 | L53: 177 | N53: 153 | O53: 170 | P53: 186 | Q53: 559 | R53: 509 | S53: 1068 | U53: 178
A54: 1 | B54: Georgia | C54: 16-20 | D54: F | E54: 5 | F54: Makayla Spears | H54: =IF(ISERROR(VLOOKUP(F54,Bowler_Name,1,FALSE)),"",INDIRECT("'Individual Scores'!"&ADDRESS(MATCH(F54,'Individual Scores'!$D$2:$D$169,0)+1,2))) -> 16-20 | I54: =IF(ISERROR(VLOOKUP(F54,Bowler_Name,1,FALSE)),"",INDIRECT("'Individual Scores'!"&ADDRESS(MATCH(F54,'Individual Scores'!$D$2:$D$169,0)+1,3))) -> F | J54: 189 | K54: 156 | L54: 169 | N54: 125 | O54: 143 | P54: 155 | Q54: 514 | R54: 423 | S54: 937 | U54: 156.1666667
A55: 1 | B55: Georgia | C55: 16-20 | D55: F | E55: 6 | F55: Mikayla Davis | H55: =IF(ISERROR(VLOOKUP(F55,Bowler_Name,1,FALSE)),"",INDIRECT("'Individual Scores'!"&ADDRESS(MATCH(F55,'Individual Scores'!$D$2:$D$169,0)+1,2))) -> 16-20 | I55: =IF(ISERROR(VLOOKUP(F55,Bowler_Name,1,FALSE)),"",INDIRECT("'Individual Scores'!"&ADDRESS(MATCH(F55,'Individual Scores'!$D$2:$D$169,0)+1,3))) -> F | J55: 170 | K55: 189 | L55: 196 | N55: 182 | O55: 154 | P55: 145 | Q55: 555 | R55: 481 | S55: 1036 | U55: 172.6666667
A56: 1 | B56: Georgia | C56: 16-20 | D56: F | E56: 7 | F56: Nia McConico | H56: =IF(ISERROR(VLOOKUP(F56,Bowler_Name,1,FALSE)),"",INDIRECT("'Individual Scores'!"&ADDRESS(MATCH(F56,'Individual Scores'!$D$2:$D$169,0)+1,2))) -> 16-20 | I56: =IF(ISERROR(VLOOKUP(F56,Bowler_Name,1,FALSE)),"",INDIRECT("'Individual Scores'!"&ADDRESS(MATCH(F56,'Individual Scores'!$D$2:$D$169,0)+1,3))) -> F | J56: 201 | K56: 167 | L56: 225 | N56: 155 | O56: 223 | P56: 146 | Q56: 593 | R56: 524 | S56: 1117 | U56: 186.1666667
A57: 1 | B57: Georgia | C57: 16-20 | D57: F | E57: 8 | F57: Toni McQuerry | H57: =IF(ISERROR(VLOOKUP(F57,Bowler_Name,1,FALSE)),"",INDIRECT("'Individual Scores'!"&ADDRESS(MATCH(F57,'Individual Scores'!$D$2:$D$169,0)+1,2))) -> 16-20 | I57: =IF(ISERROR(VLOOKUP(F57,Bowler_Name,1,FALSE)),"",INDIRECT("'Individual Scores'!"&ADDRESS(MATCH(F57,'Individual Scores'!$D$2:$D$169,0)+1,3))) -> F | J57: 191 | K57: 155 | L57: 222 | N57: 183 | O57: 167 | P57: 170 | Q57: 568 | R57: 520 | S57: 1088 | U57: 181.3333333
A58: 1 | B58: Georgia | C58: 16-20 | D58: F | E58: 9 | F58: Violet Armendariz | H58: =IF(ISERROR(VLOOKUP(F58,Bowler_Name,1,FALSE)),"",INDIRECT("'Individual Scores'!"&ADDRESS(MATCH(F58,'Individual Scores'!$D$2:$D$169,0)+1,2))) -> 16-20 | I58: =IF(ISERROR(VLOOKUP(F58,Bowler_Name,1,FALSE)),"",INDIRECT("'Individual Scores'!"&ADDRESS(MATCH(F58,'Individual Scores'!$D$2:$D$169,0)+1,3))) -> F | J58: 150 | K58: 183 | L58: 132 | N58: 211 | O58: 147 | P58: 140 | Q58: 465 | R58: 498 | S58: 963 | U58: 160.5
A59: 1 | B59: Georgia | C59: 16-20 | D59: F | E59: 10 | F59: Mikala Higgins | H59: =IF(ISERROR(VLOOKUP(F59,Bowler_Name,1,FALSE)),"",INDIRECT("'Individual Scores'!"&ADDRESS(MATCH(F59,'Individual Scores'!$D$2:$D$169,0)+1,2))) -> 15 & < | I59: =IF(ISERROR(VLOOKUP(F59,Bowler_Name,1,FALSE)),"",INDIRECT("'Individual Scores'!"&ADDRESS(MATCH(F59,'Individual Scores'!$D$2:$D$169,0)+1,3))) -> F | J59: 200 | K59: 179 | L59: 233 | N59: 146 | O59: 156 | P59: 161 | Q59: 612 | R59: 463 | S59: 1075 | U59: 179.1666667
A60: 1 | B60: Georgia | C60: 16-20 | D60: F | E60: 11 | F60: Vacant-GA_G_U20 | H60: =IF(ISERROR(VLOOKUP(F60,Bowler_Name,1,FALSE)),"",INDIRECT("'Individual Scores'!"&ADDRESS(MATCH(F60,'Individual Scores'!$D$2:$D$169,0)+1,2))) -> 16-20 | I60: =IF(ISERROR(VLOOKUP(F60,Bowler_Name,1,FALSE)),"",INDIRECT("'Individual Scores'!"&ADDRESS(MATCH(F60,'Individual Scores'!$D$2:$D$169,0)+1,3))) -> F | J60: 0 | K60: 0 | L60: 0 | N60: 0 | O60: 0 | P60: 0 | Q60: 0 | R60: 0 | S60: 0 | U60: 0
A61: 1 | B61: Georgia | C61: 16-20 | D61: F
A62: 1 | B62: Georgia | C62: 16-20 | D62: F | F62: =DGET(Constants!$C$1:$D$4,1,E46:E47)&" "&G47&" "&F47 -> GA F 16-20 | J62: =SUM(J49:J61)-MIN(J49:J61) -> 1945 | K62: 1752 | L62: 1923 | N62: 1663 | O62: 1722 | P62: 1613 | Q62: =SUM(J62:L62) -> 5620 | R62: =SUM(N62:P62) -> 4998 | S62: =SUM(Q62:R62) -> 10618
A63: 1 | F63: Warning Row: should be hidden | J63: =IF(COUNT(J49:J61)=0,"",IF(COUNT(J49:J61)<ROWS(J49:J61)-2,1,"")) -> 
A64: 1
A65: =H68 -> 1 | B65: =E68 -> Georgia | C65: =F68 -> 16-20 | D65: =G68 -> M | E65: Tournament | F65: =DGET('Tournament Locations'!$B$1:$C$4,"Location",Scores!$H$4:$H$5) -> Gold Cup Russell Pkwy, Warner Robins, GA
A66: =A65 -> 1 | B66: =B65 -> Georgia | C66: =C65 -> 16-20 | D66: =D65 -> M | L66: High Game | N66: =MAX(J71:P81) -> 268 | P66: =IF(SUM(J84:P84)>0,"Warning: Not enough scores to drop lowest score. Be sure zeros are entered for any vacant bowler","") -> 
A67: =A66 -> 1 | B67: Georgia | C67: 16-20 | D67: M | E67: State | F67: Age | G67: Gender | H67: Tournament | L67: High Series | N67: =MAX(Q71:R81) -> 723
A68: 1 | B68: Georgia | C68: 16-20 | D68: M | E68: =E5 -> Georgia | F68: =F47 -> 16-20 | G68: M | H68: =H5 -> 1 | L68: High Pins | N68: =MAX(S71:S81) -> 1341
A69: 1 | B69: Georgia | C69: 16-20 | D69: M
A70: 1 | B70: Georgia | C70: 16-20 | D70: M | E70: Player Number | F70: Full Name | G70: Flag | H70: Actual Age | I70: Gender | J70: Game 1 | K70: Game 2 | L70: Game 3 | N70: Game 4 | O70: Game 5 | P70: Game 6 | Q70: Series 1 | R70: Series 2 | S70: Total
A71: 1 | B71: Georgia | C71: 16-20 | D71: M | E71: 1 | F71: Alex Heeger | G71: =IF(ISERROR(VLOOKUP(F71,Bowler_Name,1,FALSE)),"Not Entered",IF(H71>F$68,"Too Old",IF(I71<>G$68,"Wrong Gender",""))) ->  | H71: =IF(ISERROR(VLOOKUP(F71,Bowler_Name,1,FALSE)),"",INDIRECT("'Individual Scores'!"&ADDRESS(MATCH(F71,'Individual Scores'!$D$2:$D$169,0)+1,2))) -> 16-20 | I71: =IF(ISERROR(VLOOKUP(F71,Bowler_Name,1,FALSE)),"",INDIRECT("'Individual Scores'!"&ADDRESS(MATCH(F71,'Individual Scores'!$D$2:$D$169,0)+1,3))) -> M | J71: 152 | K71: 171 | L71: 147 | N71: 157 | O71: 168 | P71: 159 | Q71: =SUM(J71:L71) -> 470 | R71: =SUM(N71:P71) -> 484 | S71: =SUM(Q71:R71) -> 954 | U71: =S71/6 -> 159
A72: 1 | B72: Georgia | C72: 16-20 | D72: M | E72: =E71+1 -> 2 | F72: Casey Lambert | H72: =IF(ISERROR(VLOOKUP(F72,Bowler_Name,1,FALSE)),"",INDIRECT("'Individual Scores'!"&ADDRESS(MATCH(F72,'Individual Scores'!$D$2:$D$169,0)+1,2))) -> 16-20 | I72: =IF(ISERROR(VLOOKUP(F72,Bowler_Name,1,FALSE)),"",INDIRECT("'Individual Scores'!"&ADDRESS(MATCH(F72,'Individual Scores'!$D$2:$D$169,0)+1,3))) -> M | J72: 194 | K72: 218 | L72: 243 | N72: 236 | O72: 203 | P72: 155 | Q72: =SUM(J72:L72) -> 655 | R72: =SUM(N72:P72) -> 594 | S72: =SUM(Q72:R72) -> 1249 | U72: =S72/6 -> 208.1666667
A73: 1 | B73: Georgia | C73: 16-20 | D73: M | E73: 3 | F73: Demetrius Wilcox | H73: =IF(ISERROR(VLOOKUP(F73,Bowler_Name,1,FALSE)),"",INDIRECT("'Individual Scores'!"&ADDRESS(MATCH(F73,'Individual Scores'!$D$2:$D$169,0)+1,2))) -> 16-20 | I73: =IF(ISERROR(VLOOKUP(F73,Bowler_Name,1,FALSE)),"",INDIRECT("'Individual Scores'!"&ADDRESS(MATCH(F73,'Individual Scores'!$D$2:$D$169,0)+1,3))) -> M | J73: 182 | K73: 173 | L73: 268 | N73: 253 | O73: 169 | P73: 238 | Q73: 623 | R73: 660 | S73: 1283 | U73: 213.8333333
A74: 1 | B74: Georgia | C74: 16-20 | D74: M | E74: 4 | F74: Jacob Gard | H74: =IF(ISERROR(VLOOKUP(F74,Bowler_Name,1,FALSE)),"",INDIRECT("'Individual Scores'!"&ADDRESS(MATCH(F74,'Individual Scores'!$D$2:$D$169,0)+1,2))) -> 16-20 | I74: =IF(ISERROR(VLOOKUP(F74,Bowler_Name,1,FALSE)),"",INDIRECT("'Individual Scores'!"&ADDRESS(MATCH(F74,'Individual Scores'!$D$2:$D$169,0)+1,3))) -> M | J74: 213 | K74: 169 | L74: 212 | N74: 205 | O74: 231 | P74: 217 | Q74: 594 | R74: 653 | S74: 1247 | U74: 207.8333333
A75: 1 | B75: Georgia | C75: 16-20 | D75: M | E75: 5 | F75: Josh Rondino | H75: =IF(ISERROR(VLOOKUP(F75,Bowler_Name,1,FALSE)),"",INDIRECT("'Individual Scores'!"&ADDRESS(MATCH(F75,'Individual Scores'!$D$2:$D$169,0)+1,2))) -> 16-20 | I75: =IF(ISERROR(VLOOKUP(F75,Bowler_Name,1,FALSE)),"",INDIRECT("'Individual Scores'!"&ADDRESS(MATCH(F75,'Individual Scores'!$D$2:$D$169,0)+1,3))) -> M | J75: 195 | K75: 202 | L75: 236 | N75: 217 | O75: 191 | P75: 254 | Q75: 633 | R75: 662 | S75: 1295 | U75: 215.8333333
A76: 1 | B76: Georgia | C76: 16-20 | D76: M | E76: 6 | F76: Matthew Lovell | H76: =IF(ISERROR(VLOOKUP(F76,Bowler_Name,1,FALSE)),"",INDIRECT("'Individual Scores'!"&ADDRESS(MATCH(F76,'Individual Scores'!$D$2:$D$169,0)+1,2))) -> 16-20 | I76: =IF(ISERROR(VLOOKUP(F76,Bowler_Name,1,FALSE)),"",INDIRECT("'Individual Scores'!"&ADDRESS(MATCH(F76,'Individual Scores'!$D$2:$D$169,0)+1,3))) -> M | J76: 181 | K76: 153 | L76: 195 | N76: 175 | O76: 177 | P76: 166 | Q76: 529 | R76: 518 | S76: 1047 | U76: 174.5
A77: 1 | B77: Georgia | C77: 16-20 | D77: M | E77: 7 | F77: Micah Spears | H77: =IF(ISERROR(VLOOKUP(F77,Bowler_Name,1,FALSE)),"",INDIRECT("'Individual Scores'!"&ADDRESS(MATCH(F77,'Individual Scores'!$D$2:$D$169,0)+1,2))) -> 16-20 | I77: =IF(ISERROR(VLOOKUP(F77,Bowler_Name,1,FALSE)),"",INDIRECT("'Individual Scores'!"&ADDRESS(MATCH(F77,'Individual Scores'!$D$2:$D$169,0)+1,3))) -> M | J77: 179 | K77: 164 | L77: 159 | N77: 169 | O77: 172 | P77: 145 | Q77: 502 | R77: 486 | S77: 988 | U77: 164.6666667
A78: 1 | B78: Georgia | C78: 16-20 | D78: M | E78: 8 | F78: Oscar Byrd | H78: =IF(ISERROR(VLOOKUP(F78,Bowler_Name,1,FALSE)),"",INDIRECT("'Individual Scores'!"&ADDRESS(MATCH(F78,'Individual Scores'!$D$2:$D$169,0)+1,2))) -> 16-20 | I78: =IF(ISERROR(VLOOKUP(F78,Bowler_Name,1,FALSE)),"",INDIRECT("'Individual Scores'!"&ADDRESS(MATCH(F78,'Individual Scores'!$D$2:$D$169,0)+1,3))) -> M | J78: 200 | K78: 160 | L78: 169 | N78: 149 | O78: 154 | P78: 186 | Q78: 529 | R78: 489 | S78: 1018 | U78: 169.6666667
A79: 1 | B79: Georgia | C79: 16-20 | D79: M | E79: 9 | F79: Peyton Smith | H79: =IF(ISERROR(VLOOKUP(F79,Bowler_Name,1,FALSE)),"",INDIRECT("'Individual Scores'!"&ADDRESS(MATCH(F79,'Individual Scores'!$D$2:$D$169,0)+1,2))) -> 15 & < | I79: =IF(ISERROR(VLOOKUP(F79,Bowler_Name,1,FALSE)),"",INDIRECT("'Individual Scores'!"&ADDRESS(MATCH(F79,'Individual Scores'!$D$2:$D$169,0)+1,3))) -> M | J79: 220 | K79: 260 | L79: 243 | N79: 242 | O79: 165 | P79: 211 | Q79: 723 | R79: 618 | S79: 1341 | U79: 223.5
A80: 1 | B80: Georgia | C80: 16-20 | D80: M | E80: 10 | F80: Phillip Jacques | H80: =IF(ISERROR(VLOOKUP(F80,Bowler_Name,1,FALSE)),"",INDIRECT("'Individual Scores'!"&ADDRESS(MATCH(F80,'Individual Scores'!$D$2:$D$169,0)+1,2))) -> 16-20 | I80: =IF(ISERROR(VLOOKUP(F80,Bowler_Name,1,FALSE)),"",INDIRECT("'Individual Scores'!"&ADDRESS(MATCH(F80,'Individual Scores'!$D$2:$D$169,0)+1,3))) -> M | J80: 169 | K80: 172 | L80: 191 | N80: 215 | O80: 181 | P80: 172 | Q80: 532 | R80: 568 | S80: 1100 | U80: 183.3333333
A81: 1 | B81: Georgia | C81: 16-20 | D81: M | E81: 11 | F81: Scott Landeck | H81: =IF(ISERROR(VLOOKUP(F81,Bowler_Name,1,FALSE)),"",INDIRECT("'Individual Scores'!"&ADDRESS(MATCH(F81,'Individual Scores'!$D$2:$D$169,0)+1,2))) -> 16-20 | I81: =IF(ISERROR(VLOOKUP(F81,Bowler_Name,1,FALSE)),"",INDIRECT("'Individual Scores'!"&ADDRESS(MATCH(F81,'Individual Scores'!$D$2:$D$169,0)+1,3))) -> M | J81: 176 | K81: 176 | L81: 170 | N81: 153 | O81: 125 | P81: 171 | Q81: 522 | R81: 449 | S81: 971 | U81: 161.8333333
A82: 1 | B82: Georgia | C82: 16-20 | D82: M
A83: 1 | B83: Georgia | C83: 16-20 | D83: M | F83: =DGET(Constants!$C$1:$D$4,1,E67:E68)&" "&G68&" "&F68 -> GA M 16-20 | J83: =SUM(J70:J82)-MIN(J70:J82) -> 1909 | K83: 1865 | L83: 2086 | N83: 2022 | O83: 1811 | P83: 1929 | Q83: =SUM(J83:L83) -> 5860 | R83: =SUM(N83:P83) -> 5762 | S83: =SUM(Q83:R83) -> 11622
A84: 1 | F84: Warning Row: should be hidden | J84: =IF(COUNT(J70:J82)=0,"",IF(COUNT(J70:J82)<ROWS(J70:J82)-2,1,"")) -> 
A85: 1
A86: =H89 -> 1 | B86: =E89 -> North Carolina | C86: =F89 -> 15 & < | D86: =G89 -> F | E86: Tournament | F86: =DGET('Tournament Locations'!$B$1:$C$4,"Location",Scores!$H$4:$H$5) -> Gold Cup Russell Pkwy, Warner Robins, GA
A87: =A86 -> 1 | B87: =B86 -> North Carolina | C87: =C86 -> 15 & < | D87: =D86 -> F | L87: High Game | N87: =MAX(J92:P103) -> 258 | P87: =IF(SUM(J105:P105)>0,"Warning: Not enough scores to drop lowest score. Be sure zeros are entered for any vacant bowler","") -> 
A88: =A87 -> 1 | B88: North Carolina | C88: 15 & < | D88: F | E88: State | F88: Age | G88: Gender | H88: Tournament | L88: High Series | N88: =MAX(Q92:R103) -> 646
A89: 1 | B89: North Carolina | C89: 15 & < | D89: F | E89: North Carolina | F89: 15 & < | G89: F | H89: =H5 -> 1 | L89: High Pins | N89: =MAX(S92:S103) -> 1253
A90: 1 | B90: North Carolina | C90: 15 & < | D90: F
A91: 1 | B91: North Carolina | C91: 15 & < | D91: F | E91: Player Number | F91: Full Name | G91: Flag | H91: Actual Age | I91: Gender | J91: Game 1 | K91: Game 2 | L91: Game 3 | N91: Game 4 | O91: Game 5 | P91: Game 6 | Q91: Series 1 | R91: Series 2 | S91: Total
A92: 1 | B92: North Carolina | C92: 15 & < | D92: F | E92: 1 | F92: Maranda Marcum | G92: =IF(ISERROR(VLOOKUP(F92,Bowler_Name,1,FALSE)),"Not Entered",IF(H92>F$89,"Too Old",IF(I92<>G$89,"Wrong Gender",""))) ->  | H92: =IF(ISERROR(VLOOKUP(F92,Bowler_Name,1,FALSE)),"",INDIRECT("'Individual Scores'!"&ADDRESS(MATCH(F92,'Individual Scores'!$D$2:$D$169,0)+1,2))) -> 15 & < | I92: =IF(ISERROR(VLOOKUP(F92,Bowler_Name,1,FALSE)),"",INDIRECT("'Individual Scores'!"&ADDRESS(MATCH(F92,'Individual Scores'!$D$2:$D$169,0)+1,3))) -> F | J92: 143 | K92: 150 | L92: 151 | N92: 201 | O92: 179 | P92: 159 | Q92: =SUM(J92:L92) -> 444 | R92: =SUM(N92:P92) -> 539 | S92: =SUM(Q92:R92) -> 983 | U92: =S92/6 -> 163.8333333
A93: 1 | B93: North Carolina | C93: 15 & < | D93: F | E93: =E92+1 -> 2 | F93: Aubrey Shipman | H93: =IF(ISERROR(VLOOKUP(F93,Bowler_Name,1,FALSE)),"",INDIRECT("'Individual Scores'!"&ADDRESS(MATCH(F93,'Individual Scores'!$D$2:$D$169,0)+1,2))) -> 15 & < | I93: =IF(ISERROR(VLOOKUP(F93,Bowler_Name,1,FALSE)),"",INDIRECT("'Individual Scores'!"&ADDRESS(MATCH(F93,'Individual Scores'!$D$2:$D$169,0)+1,3))) -> F | J93: 156 | K93: 183 | L93: 147 | N93: 147 | O93: 168 | P93: 155 | Q93: =SUM(J93:L93) -> 486 | R93: =SUM(N93:P93) -> 470 | S93: =SUM(Q93:R93) -> 956 | U93: =S93/6 -> 159.3333333
A94: 1 | B94: North Carolina | C94: 15 & < | D94: F | E94: 3 | F94: Megan McWhirter | H94: =IF(ISERROR(VLOOKUP(F94,Bowler_Name,1,FALSE)),"",INDIRECT("'Individual Scores'!"&ADDRESS(MATCH(F94,'Individual Scores'!$D$2:$D$169,0)+1,2))) -> 15 & < | I94: =IF(ISERROR(VLOOKUP(F94,Bowler_Name,1,FALSE)),"",INDIRECT("'Individual Scores'!"&ADDRESS(MATCH(F94,'Individual Scores'!$D$2:$D$169,0)+1,3))) -> F | J94: 173 | K94: 128 | L94: 178 | N94: 135 | O94: 171 | P94: 144 | Q94: 479 | R94: 450 | S94: 929 | U94: 154.8333333
A95: 1 | B95: North Carolina | C95: 15 & < | D95: F | E95: 4 | F95: Makayla Lucas | H95: =IF(ISERROR(VLOOKUP(F95,Bowler_Name,1,FALSE)),"",INDIRECT("'Individual Scores'!"&ADDRESS(MATCH(F95,'Individual Scores'!$D$2:$D$169,0)+1,2))) -> 15 & < | I95: =IF(ISERROR(VLOOKUP(F95,Bowler_Name,1,FALSE)),"",INDIRECT("'Individual Scores'!"&ADDRESS(MATCH(F95,'Individual Scores'!$D$2:$D$169,0)+1,3))) -> F | J95: 184 | K95: 182 | L95: 151 | N95: 183 | O95: 158 | P95: 167 | Q95: 517 | R95: 508 | S95: 1025 | U95: 170.8333333
A96: 1 | B96: North Carolina | C96: 15 & < | D96: F | E96: 5 | F96: Kristina Catoe | H96: =IF(ISERROR(VLOOKUP(F96,Bowler_Name,1,FALSE)),"",INDIRECT("'Individual Scores'!"&ADDRESS(MATCH(F96,'Individual Scores'!$D$2:$D$169,0)+1,2))) -> 15 & < | I96: =IF(ISERROR(VLOOKUP(F96,Bowler_Name,1,FALSE)),"",INDIRECT("'Individual Scores'!"&ADDRESS(MATCH(F96,'Individual Scores'!$D$2:$D$169,0)+1,3))) -> F | J96: 158 | K96: 155 | L96: 190 | N96: 161 | O96: 155 | P96: 141 | Q96: =SUM(J96:L96) -> 503 | R96: 457 | S96: 960 | U96: 160
A97: 1 | B97: North Carolina | C97: 15 & < | D97: F | E97: 6 | F97: Meranda Edmonds | H97: =IF(ISERROR(VLOOKUP(F97,Bowler_Name,1,FALSE)),"",INDIRECT("'Individual Scores'!"&ADDRESS(MATCH(F97,'Individual Scores'!$D$2:$D$169,0)+1,2))) -> 15 & < | I97: =IF(ISERROR(VLOOKUP(F97,Bowler_Name,1,FALSE)),"",INDIRECT("'Individual Scores'!"&ADDRESS(MATCH(F97,'Individual Scores'!$D$2:$D$169,0)+1,3))) -> F | J97: 165 | K97: 149 | L97: 165 | N97: 150 | O97: 159 | P97: 169 | Q97: 479 | R97: 478 | S97: 957 | U97: 159.5
A98: 1 | B98: North Carolina | C98: 15 & < | D98: F | E98: 7 | F98: Kalia Patterson | H98: =IF(ISERROR(VLOOKUP(F98,Bowler_Name,1,FALSE)),"",INDIRECT("'Individual Scores'!"&ADDRESS(MATCH(F98,'Individual Scores'!$D$2:$D$169,0)+1,2))) -> 15 & < | I98: =IF(ISERROR(VLOOKUP(F98,Bowler_Name,1,FALSE)),"",INDIRECT("'Individual Scores'!"&ADDRESS(MATCH(F98,'Individual Scores'!$D$2:$D$169,0)+1,3))) -> F | J98: 158 | K98: 171 | L98: 160 | N98: 134 | O98: 116 | P98: 169 | Q98: 489 | R98: 419 | S98: 908 | U98: 151.3333333
A99: 1 | B99: North Carolina | C99: 15 & < | D99: F | E99: 8 | F99: Emily Wyant | H99: =IF(ISERROR(VLOOKUP(F99,Bowler_Name,1,FALSE)),"",INDIRECT("'Individual Scores'!"&ADDRESS(MATCH(F99,'Individual Scores'!$D$2:$D$169,0)+1,2))) -> 15 & < | I99: =IF(ISERROR(VLOOKUP(F99,Bowler_Name,1,FALSE)),"",INDIRECT("'Individual Scores'!"&ADDRESS(MATCH(F99,'Individual Scores'!$D$2:$D$169,0)+1,3))) -> F | J99: 149 | K99: 167 | L99: 136 | N99: 192 | O99: 152 | P99: 183 | Q99: 452 | R99: 527 | S99: 979 | U99: 163.1666667
A100: 1 | B100: North Carolina | C100: 15 & < | D100: F | E100: 9 | F100: Cameron Strombeck | H100: =IF(ISERROR(VLOOKUP(F100,Bowler_Name,1,FALSE)),"",INDIRECT("'Individual Scores'!"&ADDRESS(MATCH(F100,'Individual Scores'!$D$2:$D$169,0)+1,2))) -> 15 & < | I100: =IF(ISERROR(VLOOKUP(F100,Bowler_Name,1,FALSE)),"",INDIRECT("'Individual Scores'!"&ADDRESS(MATCH(F100,'Individual Scores'!$D$2:$D$169,0)+1,3))) -> F | J100: 164 | K100: 243 | L100: 200 | N100: 175 | O100: 258 | P100: 213 | Q100: 607 | R100: 646 | S100: 1253 | U100: 208.8333333
A101: 1 | B101: North Carolina | C101: 15 & < | D101: F | E101: 10 | F101: Casey Mann | H101: =IF(ISERROR(VLOOKUP(F101,Bowler_Name,1,FALSE)),"",INDIRECT("'Individual Scores'!"&ADDRESS(MATCH(F101,'Individual Scores'!$D$2:$D$169,0)+1,2))) -> 15 & < | I101: =IF(ISERROR(VLOOKUP(F101,Bowler_Name,1,FALSE)),"",INDIRECT("'Individual Scores'!"&ADDRESS(MATCH(F101,'Individual Scores'!$D$2:$D$169,0)+1,3))) -> F | J101: 161 | K101: 174 | L101: 181 | N101: 153 | O101: 184 | P101: 143 | Q101: 516 | R101: 480 | S101: 996 | U101: 166
A102: 1 | B102: North Carolina | C102: 15 & < | D102: F | E102: 11 | F102: Lara Kurt | H102: =IF(ISERROR(VLOOKUP(F102,Bowler_Name,1,FALSE)),"",INDIRECT("'Individual Scores'!"&ADDRESS(MATCH(F102,'Individual Scores'!$D$2:$D$169,0)+1,2))) -> 15 & < | I102: =IF(ISERROR(VLOOKUP(F102,Bowler_Name,1,FALSE)),"",INDIRECT("'Individual Scores'!"&ADDRESS(MATCH(F102,'Individual Scores'!$D$2:$D$169,0)+1,3))) -> F | J102: 139 | K102: 144 | L102: 145 | N102: 140 | O102: 125 | P102: 191 | Q102: 428 | R102: 456 | S102: 884 | U102: 147.3333333
A103: 1 | B103: North Carolina | C103: 15 & < | D103: F
A104: 1 | B104: North Carolina | C104: 15 & < | D104: F | F104: =DGET(Constants!$C$1:$D$4,1,E88:E89)&" "&G89&" "&F89 -> NC F 15 & < | J104: =SUM(J91:J103)-MIN(J91:J103) -> 1611 | K104: 1718 | L104: 1668 | N104: 1637 | O104: 1709 | P104: 1693 | Q104: =SUM(J104:L104) -> 4997 | R104: =SUM(N104:P104) -> 5039 | S104: =SUM(Q104:R104) -> 10036
A105: 1 | F105: Warning Row: should be hidden | J105: =IF(COUNT(J91:J103)=0,"",IF(COUNT(J91:J103)<ROWS(J91:J103)-2,1,"")) -> 
A106: 1
A107: =H110 -> 1 | B107: =E110 -> North Carolina | C107: =F110 -> 15 & < | D107: =G110 -> M | E107: Tournament | F107: =DGET('Tournament Locations'!$B$1:$C$4,"Location",Scores!$H$4:$H$5) -> Gold Cup Russell Pkwy, Warner Robins, GA
A108: =A107 -> 1 | B108: =B107 -> North Carolina | C108: =C107 -> 15 & < | D108: =D107 -> M | L108: High Game | N108: =MAX(J113:P124) -> 245 | P108: =IF(SUM(J126:P126)>0,"Warning: Not enough scores to drop lowest score. Be sure zeros are entered for any vacant bowler","") -> 
A109: =A108 -> 1 | B109: North Carolina | C109: 15 & < | D109: M | E109: State | F109: Age | G109: Gender | H109: Tournament | L109: High Series | N109: =MAX(Q113:R124) -> 652
A110: 1 | B110: North Carolina | C110: 15 & < | D110: M | E110: =E89 -> North Carolina | F110: =F89 -> 15 & < | G110: M | H110: =H5 -> 1 | L110: High Pins | N110: =MAX(S113:S124) -> 1254
A111: 1 | B111: North Carolina | C111: 15 & < | D111: M
A112: 1 | B112: North Carolina | C112: 15 & < | D112: M | E112: Player Number | F112: Full Name | G112: Flag | H112: Actual Age | I112: Gender | J112: Game 1 | K112: Game 2 | L112: Game 3 | N112: Game 4 | O112: Game 5 | P112: Game 6 | Q112: Series 1 | R112: Series 2 | S112: Total
A113: 1 | B113: North Carolina | C113: 15 & < | D113: M | E113: 1 | F113: Chad Severt | G113: =IF(ISERROR(VLOOKUP(F113,Bowler_Name,1,FALSE)),"Not Entered",IF(H113>F$110,"Too Old",IF(I113<>G$110,"Wrong Gender",""))) ->  | H113: =IF(ISERROR(VLOOKUP(F113,Bowler_Name,1,FALSE)),"",INDIRECT("'Individual Scores'!"&ADDRESS(MATCH(F113,'Individual Scores'!$D$2:$D$169,0)+1,2))) -> 15 & < | I113: =IF(ISERROR(VLOOKUP(F113,Bowler_Name,1,FALSE)),"",INDIRECT("'Individual Scores'!"&ADDRESS(MATCH(F113,'Individual Scores'!$D$2:$D$169,0)+1,3))) -> M | J113: 235 | K113: 179 | L113: 172 | N113: 204 | O113: 202 | P113: 164 | Q113: =SUM(J113:L113) -> 586 | R113: =SUM(N113:P113) -> 570 | S113: =SUM(Q113:R113) -> 1156 | U113: =S113/6 -> 192.6666667
A114: 1 | B114: North Carolina | C114: 15 & < | D114: M | E114: =E113+1 -> 2 | F114: Caleb Wallace | H114: =IF(ISERROR(VLOOKUP(F114,Bowler_Name,1,FALSE)),"",INDIRECT("'Individual Scores'!"&ADDRESS(MATCH(F114,'Individual Scores'!$D$2:$D$169,0)+1,2))) -> 15 & < | I114: =IF(ISERROR(VLOOKUP(F114,Bowler_Name,1,FALSE)),"",INDIRECT("'Individual Scores'!"&ADDRESS(MATCH(F114,'Individual Scores'!$D$2:$D$169,0)+1,3))) -> M | J114: 174 | K114: 181 | L114: 186 | N114: 155 | O114: 180 | P114: 129 | Q114: =SUM(J114:L114) -> 541 | R114: =SUM(N114:P114) -> 464 | S114: =SUM(Q114:R114) -> 1005 | U114: =S114/6 -> 167.5
A115: 1 | B115: North Carolina | C115: 15 & < | D115: M | E115: 3 | F115: Patrick Chan | H115: =IF(ISERROR(VLOOKUP(F115,Bowler_Name,1,FALSE)),"",INDIRECT("'Individual Scores'!"&ADDRESS(MATCH(F115,'Individual Scores'!$D$2:$D$169,0)+1,2))) -> 15 & < | I115: =IF(ISERROR(VLOOKUP(F115,Bowler_Name,1,FALSE)),"",INDIRECT("'Individual Scores'!"&ADDRESS(MATCH(F115,'Individual Scores'!$D$2:$D$169,0)+1,3))) -> M | J115: 193 | K115: 168 | L115: 193 | N115: 185 | O115: 187 | P115: 201 | Q115: 554 | R115: 573 | S115: 1127 | U115: 187.8333333
A116: 1 | B116: North Carolina | C116: 15 & < | D116: M | E116: 4 | F116: Thomas Perkins | H116: =IF(ISERROR(VLOOKUP(F116,Bowler_Name,1,FALSE)),"",INDIRECT("'Individual Scores'!"&ADDRESS(MATCH(F116,'Individual Scores'!$D$2:$D$169,0)+1,2))) -> 15 & < | I116: =IF(ISERROR(VLOOKUP(F116,Bowler_Name,1,FALSE)),"",INDIRECT("'Individual Scores'!"&ADDRESS(MATCH(F116,'Individual Scores'!$D$2:$D$169,0)+1,3))) -> M | J116: 151 | K116: 147 | L116: 129 | N116: 107 | O116: 175 | P116: 171 | Q116: 427 | R116: 453 | S116: 880 | U116: 146.6666667
A117: 1 | B117: North Carolina | C117: 15 & < | D117: M | E117: 5 | F117: Steven Faulkner | H117: =IF(ISERROR(VLOOKUP(F117,Bowler_Name,1,FALSE)),"",INDIRECT("'Individual Scores'!"&ADDRESS(MATCH(F117,'Individual Scores'!$D$2:$D$169,0)+1,2))) -> 15 & < | I117: =IF(ISERROR(VLOOKUP(F117,Bowler_Name,1,FALSE)),"",INDIRECT("'Individual Scores'!"&ADDRESS(MATCH(F117,'Individual Scores'!$D$2:$D$169,0)+1,3))) -> M | J117: 245 | K117: 212 | L117: 181 | N117: 190 | O117: 177 | P117: 154 | Q117: 638 | R117: 521 | S117: 1159 | U117: 193.1666667
A118: 1 | B118: North Carolina | C118: 15 & < | D118: M | E118: 6 | F118: James Goodine Jr | H118: =IF(ISERROR(VLOOKUP(F118,Bowler_Name,1,FALSE)),"",INDIRECT("'Individual Scores'!"&ADDRESS(MATCH(F118,'Individual Scores'!$D$2:$D$169,0)+1,2))) -> 15 & < | I118: =IF(ISERROR(VLOOKUP(F118,Bowler_Name,1,FALSE)),"",INDIRECT("'Individual Scores'!"&ADDRESS(MATCH(F118,'Individual Scores'!$D$2:$D$169,0)+1,3))) -> M | J118: 211 | K118: 171 | L118: 159 | N118: 137 | O118: 167 | P118: 128 | Q118: 541 | R118: 432 | S118: 973 | U118: 162.1666667
A119: 1 | B119: North Carolina | C119: 15 & < | D119: M | E119: 7 | F119: Aaron Jones | H119: =IF(ISERROR(VLOOKUP(F119,Bowler_Name,1,FALSE)),"",INDIRECT("'Individual Scores'!"&ADDRESS(MATCH(F119,'Individual Scores'!$D$2:$D$169,0)+1,2))) -> 15 & < | I119: =IF(ISERROR(VLOOKUP(F119,Bowler_Name,1,FALSE)),"",INDIRECT("'Individual Scores'!"&ADDRESS(MATCH(F119,'Individual Scores'!$D$2:$D$169,0)+1,3))) -> M | J119: 138 | K119: 135 | L119: 165 | N119: 150 | O119: 98 | P119: 146 | Q119: 438 | R119: 394 | S119: 832 | U119: 138.6666667
A120: 1 | B120: North Carolina | C120: 15 & < | D120: M | E120: 8 | F120: Matthew Staunton | H120: =IF(ISERROR(VLOOKUP(F120,Bowler_Name,1,FALSE)),"",INDIRECT("'Individual Scores'!"&ADDRESS(MATCH(F120,'Individual Scores'!$D$2:$D$169,0)+1,2))) -> 15 & < | I120: =IF(ISERROR(VLOOKUP(F120,Bowler_Name,1,FALSE)),"",INDIRECT("'Individual Scores'!"&ADDRESS(MATCH(F120,'Individual Scores'!$D$2:$D$169,0)+1,3))) -> M | J120: 149 | K120: 186 | L120: 245 | N120: 145 | O120: 164 | P120: 143 | Q120: 580 | R120: 452 | S120: 1032 | U120: 172
A121: 1 | B121: North Carolina | C121: 15 & < | D121: M | E121: 9 | F121: Spencer Gutowsky | H121: =IF(ISERROR(VLOOKUP(F121,Bowler_Name,1,FALSE)),"",INDIRECT("'Individual Scores'!"&ADDRESS(MATCH(F121,'Individual Scores'!$D$2:$D$169,0)+1,2))) -> 15 & < | I121: =IF(ISERROR(VLOOKUP(F121,Bowler_Name,1,FALSE)),"",INDIRECT("'Individual Scores'!"&ADDRESS(MATCH(F121,'Individual Scores'!$D$2:$D$169,0)+1,3))) -> M | J121: 245 | K121: 221 | L121: 186 | N121: 225 | O121: 157 | P121: 220 | Q121: 652 | R121: 602 | S121: 1254 | U121: 209
A122: 1 | B122: North Carolina | C122: 15 & < | D122: M | E122: 10 | F122: Kaan Kurt | H122: =IF(ISERROR(VLOOKUP(F122,Bowler_Name,1,FALSE)),"",INDIRECT("'Individual Scores'!"&ADDRESS(MATCH(F122,'Individual Scores'!$D$2:$D$169,0)+1,2))) -> 15 & < | I122: =IF(ISERROR(VLOOKUP(F122,Bowler_Name,1,FALSE)),"",INDIRECT("'Individual Scores'!"&ADDRESS(MATCH(F122,'Individual Scores'!$D$2:$D$169,0)+1,3))) -> M | J122: 148 | K122: 210 | L122: 156 | N122: 179 | O122: 180 | P122: 161 | Q122: 514 | R122: 520 | S122: 1034 | U122: 172.3333333
A123: 1 | B123: North Carolina | C123: 15 & < | D123: M | E123: 11 | F123: Vacant-NC_B_U15 | H123: =IF(ISERROR(VLOOKUP(F123,Bowler_Name,1,FALSE)),"",INDIRECT("'Individual Scores'!"&ADDRESS(MATCH(F123,'Individual Scores'!$D$2:$D$169,0)+1,2))) -> 15 & < | I123: =IF(ISERROR(VLOOKUP(F123,Bowler_Name,1,FALSE)),"",INDIRECT("'Individual Scores'!"&ADDRESS(MATCH(F123,'Individual Scores'!$D$2:$D$169,0)+1,3))) -> M | J123: 0 | K123: 0 | L123: 0 | N123: 0 | O123: 0 | P123: 0 | Q123: 0 | R123: 0 | S123: 0 | U123: 0
A124: 1 | B124: North Carolina | C124: 15 & < | D124: M
A125: 1 | B125: North Carolina | C125: 15 & < | D125: M | F125: =DGET(Constants!$C$1:$D$4,1,E109:E110)&" "&G110&" "&F110 -> NC M 15 & < | J125: =SUM(J112:J124)-MIN(J112:J124) -> 1889 | K125: 1810 | L125: 1772 | N125: 1677 | O125: 1687 | P125: 1617 | Q125: =SUM(J125:L125) -> 5471 | R125: =SUM(N125:P125) -> 4981 | S125: =SUM(Q125:R125) -> 10452
A126: 1 | F126: Warning Row: should be hidden | J126: =IF(COUNT(J112:J124)=0,"",IF(COUNT(J112:J124)<ROWS(J112:J124)-2,1,"")) -> 
A127: 1
A128: =H131 -> 1 | B128: =E131 -> North Carolina | C128: =F131 -> 16-20 | D128: =G131 -> F | E128: Tournament | F128: =DGET('Tournament Locations'!$B$1:$C$4,"Location",Scores!$H$4:$H$5) -> Gold Cup Russell Pkwy, Warner Robins, GA
A129: =A128 -> 1 | B129: =B128 -> North Carolina | C129: =C128 -> 16-20 | D129: =D128 -> F | L129: High Game | N129: =MAX(J134:P144) -> 268 | P129: =IF(SUM(J147:P147)>0,"Warning: Not enough scores to drop lowest score. Be sure zeros are entered for any vacant bowler","") -> 
A130: =A129 -> 1 | B130: North Carolina | C130: 16-20 | D130: F | E130: State | F130: Age | G130: Gender | H130: Tournament | L130: High Series | N130: =MAX(Q134:R144) -> 640
A131: 1 | B131: North Carolina | C131: 16-20 | D131: F | E131: =E89 -> North Carolina | F131: 16-20 | G131: F | H131: =H5 -> 1 | L131: High Pins | N131: =MAX(S134:S144) -> 1208
A132: 1 | B132: North Carolina | C132: 16-20 | D132: F
A133: 1 | B133: North Carolina | C133: 16-20 | D133: F | E133: Player Number | F133: Full Name | G133: Flag | H133: Actual Age | I133: Gender | J133: Game 1 | K133: Game 2 | L133: Game 3 | N133: Game 4 | O133: Game 5 | P133: Game 6 | Q133: Series 1 | R133: Series 2 | S133: Total
A134: 1 | B134: North Carolina | C134: 16-20 | D134: F | E134: 1 | F134: Breanna Clemmer | G134: =IF(ISERROR(VLOOKUP(F134,Bowler_Name,1,FALSE)),"Not Entered",IF(H134>F$131,"Too Old",IF(I134<>G$131,"Wrong Gender",""))) ->  | H134: =IF(ISERROR(VLOOKUP(F134,Bowler_Name,1,FALSE)),"",INDIRECT("'Individual Scores'!"&ADDRESS(MATCH(F134,'Individual Scores'!$D$2:$D$169,0)+1,2))) -> 16-20 | I134: =IF(ISERROR(VLOOKUP(F134,Bowler_Name,1,FALSE)),"",INDIRECT("'Individual Scores'!"&ADDRESS(MATCH(F134,'Individual Scores'!$D$2:$D$169,0)+1,3))) -> F | J134: 190 | K134: 188 | L134: 190 | N134: 201 | O134: 171 | P134: 268 | Q134: =SUM(J134:L134) -> 568 | R134: =SUM(N134:P134) -> 640 | S134: =SUM(Q134:R134) -> 1208 | U134: =S134/6 -> 201.3333333
A135: 1 | B135: North Carolina | C135: 16-20 | D135: F | E135: =E134+1 -> 2 | F135: Madysen Keller | H135: =IF(ISERROR(VLOOKUP(F135,Bowler_Name,1,FALSE)),"",INDIRECT("'Individual Scores'!"&ADDRESS(MATCH(F135,'Individual Scores'!$D$2:$D$169,0)+1,2))) -> 16-20 | I135: =IF(ISERROR(VLOOKUP(F135,Bowler_Name,1,FALSE)),"",INDIRECT("'Individual Scores'!"&ADDRESS(MATCH(F135,'Individual Scores'!$D$2:$D$169,0)+1,3))) -> F | J135: 181 | K135: 189 | L135: 204 | N135: 157 | O135: 203 | P135: 188 | Q135: =SUM(J135:L135) -> 574 | R135: =SUM(N135:P135) -> 548 | S135: =SUM(Q135:R135) -> 1122 | U135: =S135/6 -> 187
A136: 1 | B136: North Carolina | C136: 16-20 | D136: F | E136: =E135+1 -> 3 | F136: Ashton Harnage | H136: =IF(ISERROR(VLOOKUP(F136,Bowler_Name,1,FALSE)),"",INDIRECT("'Individual Scores'!"&ADDRESS(MATCH(F136,'Individual Scores'!$D$2:$D$169,0)+1,2))) -> 16-20 | I136: =IF(ISERROR(VLOOKUP(F136,Bowler_Name,1,FALSE)),"",INDIRECT("'Individual Scores'!"&ADDRESS(MATCH(F136,'Individual Scores'!$D$2:$D$169,0)+1,3))) -> F | J136: 214 | K136: 168 | L136: 148 | N136: 218 | O136: 186 | P136: 185 | Q136: 530 | R136: 589 | S136: 1119 | U136: 186.5
A137: 1 | B137: North Carolina | C137: 16-20 | D137: F | E137: 4 | F137: Sydney Johnson | H137: =IF(ISERROR(VLOOKUP(F137,Bowler_Name,1,FALSE)),"",INDIRECT("'Individual Scores'!"&ADDRESS(MATCH(F137,'Individual Scores'!$D$2:$D$169,0)+1,2))) -> 16-20 | I137: =IF(ISERROR(VLOOKUP(F137,Bowler_Name,1,FALSE)),"",INDIRECT("'Individual Scores'!"&ADDRESS(MATCH(F137,'Individual Scores'!$D$2:$D$169,0)+1,3))) -> F | J137: 158 | K137: 166 | L137: 200 | N137: 182 | O137: 206 | P137: 201 | Q137: 524 | R137: 589 | S137: 1113 | U137: 185.5
A138: 1 | B138: North Carolina | C138: 16-20 | D138: F | E138: 5 | F138: Brandi Barefoot | H138: =IF(ISERROR(VLOOKUP(F138,Bowler_Name,1,FALSE)),"",INDIRECT("'Individual Scores'!"&ADDRESS(MATCH(F138,'Individual Scores'!$D$2:$D$169,0)+1,2))) -> 16-20 | I138: =IF(ISERROR(VLOOKUP(F138,Bowler_Name,1,FALSE)),"",INDIRECT("'Individual Scores'!"&ADDRESS(MATCH(F138,'Individual Scores'!$D$2:$D$169,0)+1,3))) -> F | J138: 142 | K138: 105 | L138: 130 | N138: 233 | O138: 182 | P138: 203 | Q138: 377 | R138: 618 | S138: 995 | U138: 165.8333333
A139: 1 | B139: North Carolina | C139: 16-20 | D139: F | E139: 6 | F139: Rachel Parsons | H139: =IF(ISERROR(VLOOKUP(F139,Bowler_Name,1,FALSE)),"",INDIRECT("'Individual Scores'!"&ADDRESS(MATCH(F139,'Individual Scores'!$D$2:$D$169,0)+1,2))) -> 16-20 | I139: =IF(ISERROR(VLOOKUP(F139,Bowler_Name,1,FALSE)),"",INDIRECT("'Individual Scores'!"&ADDRESS(MATCH(F139,'Individual Scores'!$D$2:$D$169,0)+1,3))) -> F | J139: 148 | K139: 148 | L139: 128 | N139: 171 | O139: 112 | P139: 119 | Q139: 424 | R139: 402 | S139: 826 | U139: 137.6666667
A140: 1 | B140: North Carolina | C140: 16-20 | D140: F | E140: 7 | F140: Alisha Horne | H140: =IF(ISERROR(VLOOKUP(F140,Bowler_Name,1,FALSE)),"",INDIRECT("'Individual Scores'!"&ADDRESS(MATCH(F140,'Individual Scores'!$D$2:$D$169,0)+1,2))) -> 16-20 | I140: =IF(ISERROR(VLOOKUP(F140,Bowler_Name,1,FALSE)),"",INDIRECT("'Individual Scores'!"&ADDRESS(MATCH(F140,'Individual Scores'!$D$2:$D$169,0)+1,3))) -> F | J140: 224 | K140: 201 | L140: 167 | N140: 144 | O140: 190 | P140: 190 | Q140: 592 | R140: 524 | S140: 1116 | U140: 186
A141: 1 | B141: North Carolina | C141: 16-20 | D141: F | E141: 8 | F141: Lakota Waters | H141: =IF(ISERROR(VLOOKUP(F141,Bowler_Name,1,FALSE)),"",INDIRECT("'Individual Scores'!"&ADDRESS(MATCH(F141,'Individual Scores'!$D$2:$D$169,0)+1,2))) -> 16-20 | I141: =IF(ISERROR(VLOOKUP(F141,Bowler_Name,1,FALSE)),"",INDIRECT("'Individual Scores'!"&ADDRESS(MATCH(F141,'Individual Scores'!$D$2:$D$169,0)+1,3))) -> F | J141: 223 | K141: 136 | L141: 177 | N141: 168 | O141: 184 | P141: 191 | Q141: 536 | R141: 543 | S141: 1079 | U141: 179.8333333
A142: 1 | B142: North Carolina | C142: 16-20 | D142: F | E142: 9 | F142: Maria Freeman | H142: =IF(ISERROR(VLOOKUP(F142,Bowler_Name,1,FALSE)),"",INDIRECT("'Individual Scores'!"&ADDRESS(MATCH(F142,'Individual Scores'!$D$2:$D$169,0)+1,2))) -> 16-20 | I142: =IF(ISERROR(VLOOKUP(F142,Bowler_Name,1,FALSE)),"",INDIRECT("'Individual Scores'!"&ADDRESS(MATCH(F142,'Individual Scores'!$D$2:$D$169,0)+1,3))) -> F | J142: 142 | K142: 148 | L142: 77 | N142: 117 | O142: 99 | P142: 127 | Q142: 367 | R142: 343 | S142: 710 | U142: 118.3333333
A143: 1 | B143: North Carolina | C143: 16-20 | D143: F | E143: 10 | F143: Hailey Wall | H143: =IF(ISERROR(VLOOKUP(F143,Bowler_Name,1,FALSE)),"",INDIRECT("'Individual Scores'!"&ADDRESS(MATCH(F143,'Individual Scores'!$D$2:$D$169,0)+1,2))) -> 15 & < | I143: =IF(ISERROR(VLOOKUP(F143,Bowler_Name,1,FALSE)),"",INDIRECT("'Individual Scores'!"&ADDRESS(MATCH(F143,'Individual Scores'!$D$2:$D$169,0)+1,3))) -> F | J143: 156 | K143: 172 | L143: 155 | N143: 181 | O143: 126 | P143: 170 | Q143: 483 | R143: 477 | S143: 960 | U143: 160
A144: 1 | B144: North Carolina | C144: 16-20 | D144: F | E144: 11 | F144: Nara Seymour | H144: =IF(ISERROR(VLOOKUP(F144,Bowler_Name,1,FALSE)),"",INDIRECT("'Individual Scores'!"&ADDRESS(MATCH(F144,'Individual Scores'!$D$2:$D$169,0)+1,2))) -> 16-20 | I144: =IF(ISERROR(VLOOKUP(F144,Bowler_Name,1,FALSE)),"",INDIRECT("'Individual Scores'!"&ADDRESS(MATCH(F144,'Individual Scores'!$D$2:$D$169,0)+1,3))) -> F | J144: 176 | K144: 153 | L144: 155 | N144: 126 | O144: 153 | P144: 119 | Q144: 484 | R144: 398 | S144: 882 | U144: 147
A145: 1 | B145: North Carolina | C145: 16-20 | D145: F
A146: 1 | B146: North Carolina | C146: 16-20 | D146: F | F146: =DGET(Constants!$C$1:$D$4,1,E130:E131)&" "&G131&" "&F131 -> NC F 16-20 | J146: =SUM(J133:J145)-MIN(J133:J145) -> 1812 | K146: 1669 | L146: 1654 | N146: 1781 | O146: 1713 | P146: 1842 | Q146: =SUM(J146:L146) -> 5135 | R146: =SUM(N146:P146) -> 5336 | S146: =SUM(Q146:R146) -> 10471
A147: 1 | F147: Warning Row: should be hidden | J147: =IF(COUNT(J133:J145)=0,"",IF(COUNT(J133:J145)<ROWS(J133:J145)-2,1,"")) -> 
A148: 1
A149: =H152 -> 1 | B149: =E152 -> North Carolina | C149: =F152 -> 16-20 | D149: =G152 -> M | E149: Tournament | F149: =DGET('Tournament Locations'!$B$1:$C$4,"Location",Scores!$H$4:$H$5) -> Gold Cup Russell Pkwy, Warner Robins, GA
A150: =A149 -> 1 | B150: =B149 -> North Carolina | C150: =C149 -> 16-20 | D150: =D149 -> M | L150: High Game | N150: =MAX(J155:P165) -> 268 | P150: =IF(SUM(J168:P168)>0,"Warning: Not enough scores to drop lowest score. Be sure zeros are entered for any vacant bowler","") -> 
A151: =A150 -> 1 | B151: North Carolina | C151: 16-20 | D151: M | E151: State | F151: Age | G151: Gender | H151: Tournament | L151: High Series | N151: =MAX(Q155:R165) -> 681
A152: 1 | B152: North Carolina | C152: 16-20 | D152: M | E152: =E89 -> North Carolina | F152: =F131 -> 16-20 | G152: M | H152: =H5 -> 1 | L152: High Pins | N152: =MAX(S155:S165) -> 1268
A153: 1 | B153: North Carolina | C153: 16-20 | D153: M
A154: 1 | B154: North Carolina | C154: 16-20 | D154: M | E154: Player Number | F154: Full Name | G154: Flag | H154: Actual Age | I154: Gender | J154: Game 1 | K154: Game 2 | L154: Game 3 | N154: Game 4 | O154: Game 5 | P154: Game 6 | Q154: Series 1 | R154: Series 2 | S154: Total
A155: 1 | B155: North Carolina | C155: 16-20 | D155: M | E155: 1 | F155: Jay Hargrove | G155: =IF(ISERROR(VLOOKUP(F155,Bowler_Name,1,FALSE)),"Not Entered",IF(H155>F$152,"Too Old",IF(I155<>G$152,"Wrong Gender",""))) ->  | H155: =IF(ISERROR(VLOOKUP(F155,Bowler_Name,1,FALSE)),"",INDIRECT("'Individual Scores'!"&ADDRESS(MATCH(F155,'Individual Scores'!$D$2:$D$169,0)+1,2))) -> 16-20 | I155: =IF(ISERROR(VLOOKUP(F155,Bowler_Name,1,FALSE)),"",INDIRECT("'Individual Scores'!"&ADDRESS(MATCH(F155,'Individual Scores'!$D$2:$D$169,0)+1,3))) -> M | J155: 248 | K155: 220 | L155: 213 | N155: 160 | O155: 179 | P155: 187 | Q155: =SUM(J155:L155) -> 681 | R155: =SUM(N155:P155) -> 526 | S155: =SUM(Q155:R155) -> 1207 | U155: =S155/6 -> 201.1666667
A156: 1 | B156: North Carolina | C156: 16-20 | D156: M | E156: =E155+1 -> 2 | F156: Trevor Cross | H156: =IF(ISERROR(VLOOKUP(F156,Bowler_Name,1,FALSE)),"",INDIRECT("'Individual Scores'!"&ADDRESS(MATCH(F156,'Individual Scores'!$D$2:$D$169,0)+1,2))) -> 16-20 | I156: =IF(ISERROR(VLOOKUP(F156,Bowler_Name,1,FALSE)),"",INDIRECT("'Individual Scores'!"&ADDRESS(MATCH(F156,'Individual Scores'!$D$2:$D$169,0)+1,3))) -> M | J156: 196 | K156: 185 | L156: 212 | N156: 172 | O156: 170 | P156: 218 | Q156: =SUM(J156:L156) -> 593 | R156: =SUM(N156:P156) -> 560 | S156: =SUM(Q156:R156) -> 1153 | U156: =S156/6 -> 192.1666667
A157: 1 | B157: North Carolina | C157: 16-20 | D157: M | E157: =E156+1 -> 3 | F157: Troy White | H157: =IF(ISERROR(VLOOKUP(F157,Bowler_Name,1,FALSE)),"",INDIRECT("'Individual Scores'!"&ADDRESS(MATCH(F157,'Individual Scores'!$D$2:$D$169,0)+1,2))) -> 16-20 | I157: =IF(ISERROR(VLOOKUP(F157,Bowler_Name,1,FALSE)),"",INDIRECT("'Individual Scores'!"&ADDRESS(MATCH(F157,'Individual Scores'!$D$2:$D$169,0)+1,3))) -> M | J157: 193 | K157: 224 | L157: 210 | N157: 126 | O157: 194 | P157: 191 | Q157: 627 | R157: 511 | S157: 1138 | U157: 189.6666667
A158: 1 | B158: North Carolina | C158: 16-20 | D158: M | E158: 4 | F158: Taylor Butgereit | H158: =IF(ISERROR(VLOOKUP(F158,Bowler_Name,1,FALSE)),"",INDIRECT("'Individual Scores'!"&ADDRESS(MATCH(F158,'Individual Scores'!$D$2:$D$169,0)+1,2))) -> 16-20 | I158: =IF(ISERROR(VLOOKUP(F158,Bowler_Name,1,FALSE)),"",INDIRECT("'Individual Scores'!"&ADDRESS(MATCH(F158,'Individual Scores'!$D$2:$D$169,0)+1,3))) -> M | J158: 180 | K158: 199 | L158: 181 | N158: 179 | O158: 225 | P158: 202 | Q158: 560 | R158: 606 | S158: 1166 | U158: 194.3333333
A159: 1 | B159: North Carolina | C159: 16-20 | D159: M | E159: 5 | F159: Zac Ludwig | H159: =IF(ISERROR(VLOOKUP(F159,Bowler_Name,1,FALSE)),"",INDIRECT("'Individual Scores'!"&ADDRESS(MATCH(F159,'Individual Scores'!$D$2:$D$169,0)+1,2))) -> 16-20 | I159: =IF(ISERROR(VLOOKUP(F159,Bowler_Name,1,FALSE)),"",INDIRECT("'Individual Scores'!"&ADDRESS(MATCH(F159,'Individual Scores'!$D$2:$D$169,0)+1,3))) -> M | J159: 189 | K159: 153 | L159: 268 | N159: 199 | O159: 174 | P159: 151 | Q159: 610 | R159: 524 | S159: 1134 | U159: 189
A160: 1 | B160: North Carolina | C160: 16-20 | D160: M | E160: 6 | F160: Matt Wyant | H160: =IF(ISERROR(VLOOKUP(F160,Bowler_Name,1,FALSE)),"",INDIRECT("'Individual Scores'!"&ADDRESS(MATCH(F160,'Individual Scores'!$D$2:$D$169,0)+1,2))) -> 16-20 | I160: =IF(ISERROR(VLOOKUP(F160,Bowler_Name,1,FALSE)),"",INDIRECT("'Individual Scores'!"&ADDRESS(MATCH(F160,'Individual Scores'!$D$2:$D$169,0)+1,3))) -> M | J160: 181 | K160: 167 | L160: 211 | N160: 192 | O160: 178 | P160: 159 | Q160: 559 | R160: 529 | S160: 1088 | U160: 181.3333333
A161: 1 | B161: North Carolina | C161: 16-20 | D161: M | E161: 7 | F161: Jacob Horne | H161: =IF(ISERROR(VLOOKUP(F161,Bowler_Name,1,FALSE)),"",INDIRECT("'Individual Scores'!"&ADDRESS(MATCH(F161,'Individual Scores'!$D$2:$D$169,0)+1,2))) -> 16-20 | I161: =IF(ISERROR(VLOOKUP(F161,Bowler_Name,1,FALSE)),"",INDIRECT("'Individual Scores'!"&ADDRESS(MATCH(F161,'Individual Scores'!$D$2:$D$169,0)+1,3))) -> M | J161: 157 | K161: 223 | L161: 205 | N161: 180 | O161: 221 | P161: 265 | Q161: 585 | R161: 666 | S161: 1251 | U161: 208.5
A162: 1 | B162: North Carolina | C162: 16-20 | D162: M | E162: 8 | F162: Alex Scott | H162: =IF(ISERROR(VLOOKUP(F162,Bowler_Name,1,FALSE)),"",INDIRECT("'Individual Scores'!"&ADDRESS(MATCH(F162,'Individual Scores'!$D$2:$D$169,0)+1,2))) -> 16-20 | I162: =IF(ISERROR(VLOOKUP(F162,Bowler_Name,1,FALSE)),"",INDIRECT("'Individual Scores'!"&ADDRESS(MATCH(F162,'Individual Scores'!$D$2:$D$169,0)+1,3))) -> M | J162: 257 | K162: 163 | L162: 209 | N162: 196 | O162: 177 | P162: 200 | Q162: 629 | R162: 573 | S162: 1202 | U162: 200.3333333
A163: 1 | B163: North Carolina | C163: 16-20 | D163: M | E163: 9 | F163: Quan Bethea | H163: =IF(ISERROR(VLOOKUP(F163,Bowler_Name,1,FALSE)),"",INDIRECT("'Individual Scores'!"&ADDRESS(MATCH(F163,'Individual Scores'!$D$2:$D$169,0)+1,2))) -> 16-20 | I163: =IF(ISERROR(VLOOKUP(F163,Bowler_Name,1,FALSE)),"",INDIRECT("'Individual Scores'!"&ADDRESS(MATCH(F163,'Individual Scores'!$D$2:$D$169,0)+1,3))) -> M | J163: 202 | K163: 159 | L163: 179 | N163: 0 | O163: 0 | P163: 0 | Q163: 540 | R163: 0 | S163: 540 | U163: 90
A164: 1 | B164: North Carolina | C164: 16-20 | D164: M | E164: 10 | F164: Ben Estes | H164: =IF(ISERROR(VLOOKUP(F164,Bowler_Name,1,FALSE)),"",INDIRECT("'Individual Scores'!"&ADDRESS(MATCH(F164,'Individual Scores'!$D$2:$D$169,0)+1,2))) -> 16-20 | I164: =IF(ISERROR(VLOOKUP(F164,Bowler_Name,1,FALSE)),"",INDIRECT("'Individual Scores'!"&ADDRESS(MATCH(F164,'Individual Scores'!$D$2:$D$169,0)+1,3))) -> M | J164: 208 | K164: 201 | L164: 202 | N164: 236 | O164: 233 | P164: 188 | Q164: 611 | R164: 657 | S164: 1268 | U164: 211.3333333
A165: 1 | B165: North Carolina | C165: 16-20 | D165: M | E165: 11 | F165: Nahshon Bennett | H165: =IF(ISERROR(VLOOKUP(F165,Bowler_Name,1,FALSE)),"",INDIRECT("'Individual Scores'!"&ADDRESS(MATCH(F165,'Individual Scores'!$D$2:$D$169,0)+1,2))) -> 16-20 | I165: =IF(ISERROR(VLOOKUP(F165,Bowler_Name,1,FALSE)),"",INDIRECT("'Individual Scores'!"&ADDRESS(MATCH(F165,'Individual Scores'!$D$2:$D$169,0)+1,3))) -> M | J165: 181 | K165: 173 | L165: 219 | N165: 197 | O165: 234 | P165: 235 | Q165: 573 | R165: 666 | S165: 1239 | U165: 206.5
A166: 1 | B166: North Carolina | C166: 16-20 | D166: M
A167: 1 | B167: North Carolina | C167: 16-20 | D167: M | F167: =DGET(Constants!$C$1:$D$4,1,E151:E152)&" "&G152&" "&F152 -> NC M 16-20 | J167: =SUM(J154:J166)-MIN(J154:J166) -> 2035 | K167: 1914 | L167: 2130 | N167: 1837 | O167: 1985 | P167: 1996 | Q167: =SUM(J167:L167) -> 6079 | R167: =SUM(N167:P167) -> 5818 | S167: =SUM(Q167:R167) -> 11897
A168: 1 | F168: Warning Row: should be hidden | J168: =IF(COUNT(J154:J166)=0,"",IF(COUNT(J154:J166)<ROWS(J154:J166)-2,1,"")) -> 
A169: 1
A170: =H173 -> 1 | B170: =E173 -> South Carolina | C170: =F173 -> 15 & < | D170: =G173 -> F | E170: Tournament | F170: =DGET('Tournament Locations'!$B$1:$C$4,"Location",Scores!$H$4:$H$5) -> Gold Cup Russell Pkwy, Warner Robins, GA
A171: =A170 -> 1 | B171: =B170 -> South Carolina | C171: =C170 -> 15 & < | D171: =D170 -> F | L171: High Game | N171: =MAX(J176:P187) -> 236 | P171: =IF(SUM(J189:P189)>0,"Warning: Not enough scores to drop lowest score. Be sure zeros are entered for any vacant bowler","") -> 
A172: =A171 -> 1 | B172: South Carolina | C172: 15 & < | D172: F | E172: State | F172: Age | G172: Gender | H172: Tournament | L172: High Series | N172: =MAX(Q176:R187) -> 628
A173: 1 | B173: South Carolina | C173: 15 & < | D173: F | E173: South Carolina | F173: 15 & < | G173: F | H173: =H5 -> 1 | L173: High Pins | N173: =MAX(S176:S187) -> 1246
A174: 1 | B174: South Carolina | C174: 15 & < | D174: F
A175: 1 | B175: South Carolina | C175: 15 & < | D175: F | E175: Player Number | F175: Full Name | G175: Flag | H175: Actual Age | I175: Gender | J175: Game 1 | K175: Game 2 | L175: Game 3 | N175: Game 4 | O175: Game 5 | P175: Game 6 | Q175: Series 1 | R175: Series 2 | S175: Total
A176: 1 | B176: South Carolina | C176: 15 & < | D176: F | E176: 1 | F176: Claire Marshall | G176: =IF(ISERROR(VLOOKUP(F176,Bowler_Name,1,FALSE)),"Not Entered",IF(H176>F$173,"Too Old",IF(I176<>G$173,"Wrong Gender",""))) ->  | H176: =IF(ISERROR(VLOOKUP(F176,Bowler_Name,1,FALSE)),"",INDIRECT("'Individual Scores'!"&ADDRESS(MATCH(F176,'Individual Scores'!$D$2:$D$169,0)+1,2))) -> 15 & < | I176: =IF(ISERROR(VLOOKUP(F176,Bowler_Name,1,FALSE)),"",INDIRECT("'Individual Scores'!"&ADDRESS(MATCH(F176,'Individual Scores'!$D$2:$D$169,0)+1,3))) -> F | J176: 207 | K176: 174 | L176: 166 | N176: 187 | O176: 159 | P176: 146 | Q176: =SUM(J176:L176) -> 547 | R176: =SUM(N176:P176) -> 492 | S176: =SUM(Q176:R176) -> 1039
A177: 1 | B177: South Carolina | C177: 15 & < | D177: F | E177: =E176+1 -> 2 | F177: Madison Janack | H177: =IF(ISERROR(VLOOKUP(F177,Bowler_Name,1,FALSE)),"",INDIRECT("'Individual Scores'!"&ADDRESS(MATCH(F177,'Individual Scores'!$D$2:$D$169,0)+1,2))) -> 15 & < | I177: =IF(ISERROR(VLOOKUP(F177,Bowler_Name,1,FALSE)),"",INDIRECT("'Individual Scores'!"&ADDRESS(MATCH(F177,'Individual Scores'!$D$2:$D$169,0)+1,3))) -> F | J177: 222 | K177: 194 | L177: 212 | N177: 193 | O177: 197 | P177: 228 | Q177: =SUM(J177:L177) -> 628 | R177: =SUM(N177:P177) -> 618 | S177: =SUM(Q177:R177) -> 1246
A178: 1 | B178: South Carolina | C178: 15 & < | D178: F | E178: 3 | F178: Stephanie Murphy | H178: =IF(ISERROR(VLOOKUP(F178,Bowler_Name,1,FALSE)),"",INDIRECT("'Individual Scores'!"&ADDRESS(MATCH(F178,'Individual Scores'!$D$2:$D$169,0)+1,2))) -> 15 & < | I178: =IF(ISERROR(VLOOKUP(F178,Bowler_Name,1,FALSE)),"",INDIRECT("'Individual Scores'!"&ADDRESS(MATCH(F178,'Individual Scores'!$D$2:$D$169,0)+1,3))) -> F | J178: 137 | K178: 149 | L178: 172 | N178: 116 | O178: 136 | P178: 168 | Q178: 458 | R178: 420 | S178: 878
A179: 1 | B179: South Carolina | C179: 15 & < | D179: F | E179: 4 | F179: Sharlie Walker | H179: =IF(ISERROR(VLOOKUP(F179,Bowler_Name,1,FALSE)),"",INDIRECT("'Individual Scores'!"&ADDRESS(MATCH(F179,'Individual Scores'!$D$2:$D$169,0)+1,2))) -> 15 & < | I179: =IF(ISERROR(VLOOKUP(F179,Bowler_Name,1,FALSE)),"",INDIRECT("'Individual Scores'!"&ADDRESS(MATCH(F179,'Individual Scores'!$D$2:$D$169,0)+1,3))) -> F | J179: 128 | K179: 107 | L179: 119 | N179: 165 | O179: 155 | P179: 141 | Q179: 354 | R179: 461 | S179: 815
A180: 1 | B180: South Carolina | C180: 15 & < | D180: F | E180: 5 | F180: Jaycee McCarthy | H180: =IF(ISERROR(VLOOKUP(F180,Bowler_Name,1,FALSE)),"",INDIRECT("'Individual Scores'!"&ADDRESS(MATCH(F180,'Individual Scores'!$D$2:$D$169,0)+1,2))) -> 15 & < | I180: =IF(ISERROR(VLOOKUP(F180,Bowler_Name,1,FALSE)),"",INDIRECT("'Individual Scores'!"&ADDRESS(MATCH(F180,'Individual Scores'!$D$2:$D$169,0)+1,3))) -> F | J180: 114 | K180: 161 | L180: 136 | N180: 212 | O180: 146 | P180: 144 | Q180: 411 | R180: 502 | S180: 913
A181: 1 | B181: South Carolina | C181: 15 & < | D181: F | E181: 6 | F181: Kaylin Hurayt | H181: =IF(ISERROR(VLOOKUP(F181,Bowler_Name,1,FALSE)),"",INDIRECT("'Individual Scores'!"&ADDRESS(MATCH(F181,'Individual Scores'!$D$2:$D$169,0)+1,2))) -> 15 & < | I181: =IF(ISERROR(VLOOKUP(F181,Bowler_Name,1,FALSE)),"",INDIRECT("'Individual Scores'!"&ADDRESS(MATCH(F181,'Individual Scores'!$D$2:$D$169,0)+1,3))) -> F | J181: 135 | K181: 131 | L181: 106 | N181: 111 | O181: 178 | P181: 139 | Q181: 372 | R181: 428 | S181: 800
A182: 1 | B182: South Carolina | C182: 15 & < | D182: F | E182: 7 | F182: Danielle Lane | H182: =IF(ISERROR(VLOOKUP(F182,Bowler_Name,1,FALSE)),"",INDIRECT("'Individual Scores'!"&ADDRESS(MATCH(F182,'Individual Scores'!$D$2:$D$169,0)+1,2))) -> 15 & < | I182: =IF(ISERROR(VLOOKUP(F182,Bowler_Name,1,FALSE)),"",INDIRECT("'Individual Scores'!"&ADDRESS(MATCH(F182,'Individual Scores'!$D$2:$D$169,0)+1,3))) -> F | J182: 192 | K182: 236 | L182: 194 | N182: 165 | O182: 176 | P182: 225 | Q182: 622 | R182: 566 | S182: 1188
A183: 1 | B183: South Carolina | C183: 15 & < | D183: F | E183: 8 | F183: Hailee Shields | H183: =IF(ISERROR(VLOOKUP(F183,Bowler_Name,1,FALSE)),"",INDIRECT("'Individual Scores'!"&ADDRESS(MATCH(F183,'Individual Scores'!$D$2:$D$169,0)+1,2))) -> 15 & < | I183: =IF(ISERROR(VLOOKUP(F183,Bowler_Name,1,FALSE)),"",INDIRECT("'Individual Scores'!"&ADDRESS(MATCH(F183,'Individual Scores'!$D$2:$D$169,0)+1,3))) -> F | J183: 223 | K183: 163 | L183: 203 | N183: 159 | O183: 141 | P183: 146 | Q183: 589 | R183: 446 | S183: 1035
A184: 1 | B184: South Carolina | C184: 15 & < | D184: F | E184: 9 | F184: Hannah Simmons | H184: =IF(ISERROR(VLOOKUP(F184,Bowler_Name,1,FALSE)),"",INDIRECT("'Individual Scores'!"&ADDRESS(MATCH(F184,'Individual Scores'!$D$2:$D$169,0)+1,2))) -> 15 & < | I184: =IF(ISERROR(VLOOKUP(F184,Bowler_Name,1,FALSE)),"",INDIRECT("'Individual Scores'!"&ADDRESS(MATCH(F184,'Individual Scores'!$D$2:$D$169,0)+1,3))) -> F | J184: 114 | K184: 135 | L184: 97 | N184: 129 | O184: 127 | P184: 118 | Q184: 346 | R184: 374 | S184: 720
A185: 1 | B185: South Carolina | C185: 15 & < | D185: F | E185: 10 | F185: Torie Libby | H185: =IF(ISERROR(VLOOKUP(F185,Bowler_Name,1,FALSE)),"",INDIRECT("'Individual Scores'!"&ADDRESS(MATCH(F185,'Individual Scores'!$D$2:$D$169,0)+1,2))) -> 15 & < | I185: =IF(ISERROR(VLOOKUP(F185,Bowler_Name,1,FALSE)),"",INDIRECT("'Individual Scores'!"&ADDRESS(MATCH(F185,'Individual Scores'!$D$2:$D$169,0)+1,3))) -> F | J185: 160 | K185: 182 | L185: 189 | N185: 152 | O185: 134 | P185: 155 | Q185: 531 | R185: 441 | S185: 972
A186: 1 | B186: South Carolina | C186: 15 & < | D186: F | E186: 11 | F186: April Anne Calatrava | H186: =IF(ISERROR(VLOOKUP(F186,Bowler_Name,1,FALSE)),"",INDIRECT("'Individual Scores'!"&ADDRESS(MATCH(F186,'Individual Scores'!$D$2:$D$169,0)+1,2))) -> 15 & < | I186: =IF(ISERROR(VLOOKUP(F186,Bowler_Name,1,FALSE)),"",INDIRECT("'Individual Scores'!"&ADDRESS(MATCH(F186,'Individual Scores'!$D$2:$D$169,0)+1,3))) -> F | J186: 127 | K186: 181 | L186: 149 | N186: 143 | O186: 128 | P186: 146 | Q186: 457 | R186: 417 | S186: 874
A187: 1 | B187: South Carolina | C187: 15 & < | D187: F
A188: 1 | B188: South Carolina | C188: 15 & < | D188: F | F188: =DGET(Constants!$C$1:$D$4,1,E172:E173)&" "&G173&" "&F173 -> SC F 15 & < | J188: =SUM(J175:J187)-MIN(J175:J187) -> 1645 | K188: 1706 | L188: 1646 | N188: 1621 | O188: 1550 | P188: 1638 | Q188: =SUM(J188:L188) -> 4997 | R188: =SUM(N188:P188) -> 4809 | S188: =SUM(Q188:R188) -> 9806
A189: 1 | F189: Warning Row: should be hidden | J189: =IF(COUNT(J175:J187)=0,"",IF(COUNT(J175:J187)<ROWS(J175:J187)-2,1,"")) -> 
A190: 1
A191: =H194 -> 1 | B191: =E194 -> South Carolina | C191: =F194 -> 15 & < | D191: =G194 -> M | E191: Tournament | F191: =DGET('Tournament Locations'!$B$1:$C$4,"Location",Scores!$H$4:$H$5) -> Gold Cup Russell Pkwy, Warner Robins, GA
A192: =A191 -> 1 | B192: =B191 -> South Carolina | C192: =C191 -> 15 & < | D192: =D191 -> M | L192: High Game | N192: =MAX(J197:P208) -> 265 | P192: =IF(SUM(J210:P210)>0,"Warning: Not enough scores to drop lowest score. Be sure zeros are entered for any vacant bowler","") -> 
A193: =A192 -> 1 | B193: South Carolina | C193: 15 & < | D193: M | E193: State | F193: Age | G193: Gender | H193: Tournament | L193: High Series | N193: =MAX(Q197:R208) -> 721
A194: 1 | B194: South Carolina | C194: 15 & < | D194: M | E194: =E173 -> South Carolina | F194: =F173 -> 15 & < | G194: M | H194: =H5 -> 1 | L194: High Pins | N194: =MAX(S197:S208) -> 1290
A195: 1 | B195: South Carolina | C195: 15 & < | D195: M
A196: 1 | B196: South Carolina | C196: 15 & < | D196: M | E196: Player Number | F196: Full Name | G196: Flag | H196: Actual Age | I196: Gender | J196: Game 1 | K196: Game 2 | L196: Game 3 | N196: Game 4 | O196: Game 5 | P196: Game 6 | Q196: Series 1 | R196: Series 2 | S196: Total
A197: 1 | B197: South Carolina | C197: 15 & < | D197: M | E197: 1 | F197: Blake Kempfer | G197: =IF(ISERROR(VLOOKUP(F197,Bowler_Name,1,FALSE)),"Not Entered",IF(H197>F$194,"Too Old",IF(I197<>G$194,"Wrong Gender",""))) ->  | H197: =IF(ISERROR(VLOOKUP(F197,Bowler_Name,1,FALSE)),"",INDIRECT("'Individual Scores'!"&ADDRESS(MATCH(F197,'Individual Scores'!$D$2:$D$169,0)+1,2))) -> 15 & < | I197: =IF(ISERROR(VLOOKUP(F197,Bowler_Name,1,FALSE)),"",INDIRECT("'Individual Scores'!"&ADDRESS(MATCH(F197,'Individual Scores'!$D$2:$D$169,0)+1,3))) -> M | J197: 219 | K197: 183 | L197: 218 | N197: 140 | O197: 173 | P197: 155 | Q197: =SUM(J197:L197) -> 620 | R197: =SUM(N197:P197) -> 468 | S197: =SUM(Q197:R197) -> 1088
A198: 1 | B198: South Carolina | C198: 15 & < | D198: M | E198: =E197+1 -> 2 | F198: Ryan Lapano | H198: =IF(ISERROR(VLOOKUP(F198,Bowler_Name,1,FALSE)),"",INDIRECT("'Individual Scores'!"&ADDRESS(MATCH(F198,'Individual Scores'!$D$2:$D$169,0)+1,2))) -> 15 & < | I198: =IF(ISERROR(VLOOKUP(F198,Bowler_Name,1,FALSE)),"",INDIRECT("'Individual Scores'!"&ADDRESS(MATCH(F198,'Individual Scores'!$D$2:$D$169,0)+1,3))) -> M | J198: 181 | K198: 224 | L198: 193 | N198: 200 | O198: 164 | P198: 152 | Q198: =SUM(J198:L198) -> 598 | R198: =SUM(N198:P198) -> 516 | S198: =SUM(Q198:R198) -> 1114
A199: 1 | B199: South Carolina | C199: 15 & < | D199: M | E199: 3 | F199: Jonathan Lovett | H199: =IF(ISERROR(VLOOKUP(F199,Bowler_Name,1,FALSE)),"",INDIRECT("'Individual Scores'!"&ADDRESS(MATCH(F199,'Individual Scores'!$D$2:$D$169,0)+1,2))) -> 15 & < | I199: =IF(ISERROR(VLOOKUP(F199,Bowler_Name,1,FALSE)),"",INDIRECT("'Individual Scores'!"&ADDRESS(MATCH(F199,'Individual Scores'!$D$2:$D$169,0)+1,3))) -> M | J199: 256 | K199: 178 | L199: 185 | N199: 185 | O199: 160 | P199: 174 | Q199: 619 | R199: 519 | S199: 1138
A200: 1 | B200: South Carolina | C200: 15 & < | D200: M | E200: 4 | F200: David Root | H200: =IF(ISERROR(VLOOKUP(F200,Bowler_Name,1,FALSE)),"",INDIRECT("'Individual Scores'!"&ADDRESS(MATCH(F200,'Individual Scores'!$D$2:$D$169,0)+1,2))) -> 15 & < | I200: =IF(ISERROR(VLOOKUP(F200,Bowler_Name,1,FALSE)),"",INDIRECT("'Individual Scores'!"&ADDRESS(MATCH(F200,'Individual Scores'!$D$2:$D$169,0)+1,3))) -> M | J200: 189 | K200: 189 | L200: 185 | N200: 210 | O200: 192 | P200: 190 | Q200: 563 | R200: 592 | S200: 1155
A201: 1 | B201: South Carolina | C201: 15 & < | D201: M | E201: 5 | F201: Zack Wofford | H201: =IF(ISERROR(VLOOKUP(F201,Bowler_Name,1,FALSE)),"",INDIRECT("'Individual Scores'!"&ADDRESS(MATCH(F201,'Individual Scores'!$D$2:$D$169,0)+1,2))) -> 15 & < | I201: =IF(ISERROR(VLOOKUP(F201,Bowler_Name,1,FALSE)),"",INDIRECT("'Individual Scores'!"&ADDRESS(MATCH(F201,'Individual Scores'!$D$2:$D$169,0)+1,3))) -> M | J201: 165 | K201: 157 | L201: 167 | N201: 164 | O201: 155 | P201: 130 | Q201: 489 | R201: 449 | S201: 938
... 556 more rows

Sheet Low Scores (hidden)
A1: Low Scores | D1: Note: SMALL returns the 2nd smallest number in the array
E2: This is suppose to count for the 0 if you got one but doesn't take into account
E3: if there are two low numbers with one smaller than the other
B7: Age | C7: Gender | D7: Game 1 | E7: Game 2 | F7: Game 3 | G7: Game 4 | H7: Game 5 | I7: Game 6
A8: =Scores!A8 -> 1 | B8: =Scores!C8 -> 15 & < | C8: =Scores!I8 -> F | D8: =MIN(SMALL(Scores!J8:J18,2),SMALL(Scores!J92:J102,2),SMALL(Scores!J176:J186,2)) -> 114 | E8: =MIN(SMALL(Scores!K8:K18,2),SMALL(Scores!K92:K102,2),SMALL(Scores!K176:K186,2)) -> 124 | F8: =MIN(SMALL(Scores!L8:L18,2),SMALL(Scores!L92:L102,2),SMALL(Scores!L176:L186,2)) -> 106 | G8: =MIN(SMALL(Scores!N8:N18,2),SMALL(Scores!N92:N102,2),SMALL(Scores!N176:N186,2)) -> 116 | H8: =MIN(SMALL(Scores!O8:O18,2),SMALL(Scores!O92:O102,2),SMALL(Scores!O176:O186,2)) -> 117 | I8: =MIN(SMALL(Scores!P8:P18,2),SMALL(Scores!P92:P102,2),SMALL(Scores!P176:P186,2)) -> 138
A9: =Scores!A29 -> 1 | B9: =Scores!C29 -> 15 & < | C9: =Scores!I29 -> M | D9: =MIN(SMALL(Scores!J29:J39,2),SMALL(Scores!J113:J123,2),SMALL(Scores!J197:J207,2)) -> 122 | E9: =MIN(SMALL(Scores!K29:K39,2),SMALL(Scores!K113:K123,2),SMALL(Scores!K197:K207,2)) -> 114 | F9: =MIN(SMALL(Scores!L29:L39,2),SMALL(Scores!L113:L123,2),SMALL(Scores!L197:L207,2)) -> 113 | G9: =MIN(SMALL(Scores!N29:N39,2),SMALL(Scores!N113:N123,2),SMALL(Scores!N197:N207,2)) -> 107 | H9: =MIN(SMALL(Scores!O29:O39,2),SMALL(Scores!O113:O123,2),SMALL(Scores!O197:O207,2)) -> 98 | I9: =MIN(SMALL(Scores!P29:P39,2),SMALL(Scores!P113:P123,2),SMALL(Scores!P197:P207,2)) -> 125
A10: =Scores!A50 -> 1 | B10: =Scores!C50 -> 16-20 | C10: =Scores!I50 -> F | D10: =MIN(SMALL(Scores!J50:J60,2),SMALL(Scores!J134:J144,2),SMALL(Scores!J218:J228,2)) -> 124 | E10: =MIN(SMALL(Scores!K50:K60,2),SMALL(Scores!K134:K144,2),SMALL(Scores!K218:K228,2)) -> 121 | F10: =MIN(SMALL(Scores!L50:L60,2),SMALL(Scores!L134:L144,2),SMALL(Scores!L218:L228,2)) -> 115 | G10: =MIN(SMALL(Scores!N50:N60,2),SMALL(Scores!N134:N144,2),SMALL(Scores!N218:N228,2)) -> 125 | H10: =MIN(SMALL(Scores!O50:O60,2),SMALL(Scores!O134:O144,2),SMALL(Scores!O218:O228,2)) -> 112 | I10: =MIN(SMALL(Scores!P50:P60,2),SMALL(Scores!P134:P144,2),SMALL(Scores!P218:P228,2)) -> 116
A11: =Scores!A71 -> 1 | B11: =Scores!C71 -> 16-20 | C11: =Scores!I71 -> M | D11: =MIN(SMALL(Scores!J71:J81,2),SMALL(Scores!J155:J165,2),SMALL(Scores!J239:J249,2)) -> 143 | E11: =MIN(SMALL(Scores!K71:K81,2),SMALL(Scores!K155:K165,2),SMALL(Scores!K239:K249,2)) -> 147 | F11: =MIN(SMALL(Scores!L71:L81,2),SMALL(Scores!L155:L165,2),SMALL(Scores!L239:L249,2)) -> 130 | G11: =MIN(SMALL(Scores!N71:N81,2),SMALL(Scores!N155:N165,2),SMALL(Scores!N239:N249,2)) -> 126 | H11: =MIN(SMALL(Scores!O71:O81,2),SMALL(Scores!O155:O165,2),SMALL(Scores!O239:O249,2)) -> 111 | I11: =MIN(SMALL(Scores!P71:P81,2),SMALL(Scores!P155:P165,2),SMALL(Scores!P239:P249,2)) -> 150
A13: =Scores!A260 -> 2 | B13: =Scores!C260 -> 15 & < | C13: =Scores!I260 -> F | D13: =MIN(SMALL(Scores!J260:J270,2),SMALL(Scores!J344:J354,2),SMALL(Scores!J428:J438,2)) -> 113 | E13: =MIN(SMALL(Scores!K260:K270,2),SMALL(Scores!K344:K354,2),SMALL(Scores!K428:K438,2)) -> 120 | F13: =MIN(SMALL(Scores!L260:L270,2),SMALL(Scores!L344:L354,2),SMALL(Scores!L428:L438,2)) -> 113 | G13: =MIN(SMALL(Scores!N260:N270,2),SMALL(Scores!N344:N354,2),SMALL(Scores!N428:N438,2)) -> 124 | H13: =MIN(SMALL(Scores!O260:O270,2),SMALL(Scores!O344:O354,2),SMALL(Scores!O428:O438,2)) -> 111 | I13: =MIN(SMALL(Scores!P260:P270,2),SMALL(Scores!P344:P354,2),SMALL(Scores!P428:P438,2)) -> 119
A14: =Scores!A281 -> 2 | B14: =Scores!C281 -> 15 & < | C14: =Scores!I281 -> M | D14: =MIN(SMALL(Scores!J281:J291,2),SMALL(Scores!J365:J375,2),SMALL(Scores!J449:J459,2)) -> 158 | E14: =MIN(SMALL(Scores!K281:K291,2),SMALL(Scores!K365:K375,2),SMALL(Scores!K449:K459,2)) -> 156 | F14: =MIN(SMALL(Scores!L281:L291,2),SMALL(Scores!L365:L375,2),SMALL(Scores!L449:L459,2)) -> 147 | G14: =MIN(SMALL(Scores!N281:N291,2),SMALL(Scores!N365:N375,2),SMALL(Scores!N449:N459,2)) -> 153 | H14: =MIN(SMALL(Scores!O281:O291,2),SMALL(Scores!O365:O375,2),SMALL(Scores!O449:O459,2)) -> 158 | I14: =MIN(SMALL(Scores!P281:P291,2),SMALL(Scores!P365:P375,2),SMALL(Scores!P449:P459,2)) -> 150
A15: =Scores!A302 -> 2 | B15: =Scores!C302 -> 16-20 | C15: =Scores!I302 -> F | D15: =MIN(SMALL(Scores!J302:J312,2),SMALL(Scores!J386:J396,2),SMALL(Scores!J470:J480,2)) -> 132 | E15: =MIN(SMALL(Scores!K302:K312,2),SMALL(Scores!K386:K396,2),SMALL(Scores!K470:K480,2)) -> 132 | F15: =MIN(SMALL(Scores!L302:L312,2),SMALL(Scores!L386:L396,2),SMALL(Scores!L470:L480,2)) -> 139 | G15: =MIN(SMALL(Scores!N302:N312,2),SMALL(Scores!N386:N396,2),SMALL(Scores!N470:N479,2)) -> 127 | H15: =MIN(SMALL(Scores!O302:O312,2),SMALL(Scores!O386:O396,2),SMALL(Scores!O470:O480,2)) -> 133 | I15: =MIN(SMALL(Scores!P302:P312,2),SMALL(Scores!P386:P396,2),SMALL(Scores!P470:P480,2)) -> 134
A16: =Scores!A323 -> 2 | B16: =Scores!C323 -> 16-20 | C16: =Scores!I323 -> M | D16: =MIN(SMALL(Scores!J323:J333,2),SMALL(Scores!J407:J417,2),SMALL(Scores!J491:J501,2)) -> 133 | E16: =MIN(SMALL(Scores!K323:K333,2),SMALL(Scores!K407:K417,2),SMALL(Scores!K491:K501,2)) -> 147 | F16: =MIN(SMALL(Scores!L323:L333,2),SMALL(Scores!L407:L417,2),SMALL(Scores!L491:L501,2)) -> 165 | G16: =MIN(SMALL(Scores!N323:N333,2),SMALL(Scores!N407:N417,2),SMALL(Scores!N491:N501,2)) -> 147 | H16: =MIN(SMALL(Scores!O323:O333,2),SMALL(Scores!O407:O417,2),SMALL(Scores!O491:O501,2)) -> 156 | I16: =MIN(SMALL(Scores!P323:P333,2),SMALL(Scores!P407:P417,2),SMALL(Scores!P491:P501,2)) -> 162
A18: =Scores!A512 -> 3 | B18: =Scores!C512 -> 15 & < | C18: =Scores!I512 ->  | D18: =MIN(SMALL(Scores!J512:J522,2),SMALL(Scores!J596:J606,2),SMALL(Scores!J680:J690,2)) ->  | E18: =MIN(SMALL(Scores!K512:K522,2),SMALL(Scores!K596:K606,2),SMALL(Scores!K680:K690,2)) ->  | F18: =MIN(SMALL(Scores!L512:L522,2),SMALL(Scores!L596:L606,2),SMALL(Scores!L680:L690,2)) ->  | G18: =MIN(SMALL(Scores!N512:N522,2),SMALL(Scores!N596:N606,2),SMALL(Scores!N680:N690,2)) ->  | H18: =MIN(SMALL(Scores!O512:O522,2),SMALL(Scores!O596:O606,2),SMALL(Scores!O680:O690,2)) ->  | I18: =MIN(SMALL(Scores!P512:P522,2),SMALL(Scores!P596:P606,2),SMALL(Scores!P680:P690,2)) -> 
A19: =Scores!A533 -> 3 | B19: =Scores!C533 -> 15 & < | C19: =Scores!I533 ->  | D19: =MIN(SMALL(Scores!J533:J543,2),SMALL(Scores!J617:J627,2),SMALL(Scores!J701:J711,2)) ->  | E19: =MIN(SMALL(Scores!K533:K543,2),SMALL(Scores!K617:K627,2),SMALL(Scores!K701:K711,2)) ->  | F19: =MIN(SMALL(Scores!L533:L543,2),SMALL(Scores!L617:L627,2),SMALL(Scores!L701:L711,2)) ->  | G19: =MIN(SMALL(Scores!N533:N543,2),SMALL(Scores!N617:N627,2),SMALL(Scores!N701:N711,2)) ->  | H19: =MIN(SMALL(Scores!O533:O543,2),SMALL(Scores!O617:O627,2),SMALL(Scores!O701:O711,2)) ->  | I19: =MIN(SMALL(Scores!P533:P543,2),SMALL(Scores!P617:P627,2),SMALL(Scores!P701:P711,2)) -> 
A20: =Scores!A554 -> 3 | B20: =Scores!C554 -> 16-20 | C20: =Scores!I554 ->  | D20: =MIN(SMALL(Scores!J554:J564,2),SMALL(Scores!J638:J648,2),SMALL(Scores!J722:J732,2)) ->  | E20: =MIN(SMALL(Scores!K554:K564,2),SMALL(Scores!K638:K648,2),SMALL(Scores!K722:K732,2)) ->  | F20: =MIN(SMALL(Scores!L554:L564,2),SMALL(Scores!L638:L648,2),SMALL(Scores!L722:L732,2)) ->  | G20: =MIN(SMALL(Scores!N554:N564,2),SMALL(Scores!N638:N648,2),SMALL(Scores!N722:N732,2)) ->  | H20: =MIN(SMALL(Scores!O554:O564,2),SMALL(Scores!O638:O648,2),SMALL(Scores!O722:O732,2)) ->  | I20: =MIN(SMALL(Scores!P554:P564,2),SMALL(Scores!P638:P648,2),SMALL(Scores!P722:P732,2)) -> 
A21: =Scores!A575 -> 3 | B21: =Scores!C575 -> 16-20 | C21: =Scores!I575 ->  | D21: =MIN(SMALL(Scores!J575:J585,2),SMALL(Scores!J659:J669,2),SMALL(Scores!J743:J753,2)) ->  | E21: =MIN(SMALL(Scores!K575:K585,2),SMALL(Scores!K659:K669,2),SMALL(Scores!K743:K753,2)) ->  | F21: =MIN(SMALL(Scores!L575:L585,2),SMALL(Scores!L659:L669,2),SMALL(Scores!L743:L753,2)) ->  | G21: =MIN(SMALL(Scores!N575:N585,2),SMALL(Scores!N659:N669,2),SMALL(Scores!N743:N753,2)) ->  | H21: =MIN(SMALL(Scores!O575:O585,2),SMALL(Scores!O659:O669,2),SMALL(Scores!O743:O753,2)) ->  | I21: =MIN(SMALL(Scores!P575:P585,2),SMALL(Scores!P659:P669,2),SMALL(Scores!P743:P753,2)) -> 

Sheet Tournament 2 Histogram Data (hidden)
B2: ='Individual Scores'!$B$1 -> Age Group | C2: ='Individual Scores'!$C$1 -> Gender | D2: ='Individual Scores'!$F$1 -> Tournament 2 | E2: =D2 -> Tournament 2 | H2: Scores | I2: =B3&" "&C3 -> 15 & < F | K2: ='Individual Scores'!$B$1 -> Age Group | L2: ='Individual Scores'!$C$1 -> Gender | M2: =D2 -> Tournament 2 | N2: =M2 -> Tournament 2 | Q2: Scores | R2: =K3&" "&L3 -> 16-20 F
B3: =Constants!B2 -> 15 & < | C3: F | D3: ="1-"&G3 -> 1-900 | G3: 900 | H3: =D3 -> 1-900 | I3: =DCOUNT(Individual_Scores,D2,B2:D3) -> 0 | K3: =Constants!B3 -> 16-20 | L3: =C3 -> F | M3: =D3 -> 1-900 | P3: 900 | Q3: =M3 -> 1-900 | R3: =DCOUNT(Individual_Scores,M2,K2:M3) -> 0
B4: =B2 -> Age Group | C4: Gender | D4: Tournament 2 | E4: =D4 -> Tournament 2 | G4: =G3+50 -> 950 | H4: =G3&"-"&G4 -> 900-950 | I4: =DCOUNT(Individual_Scores,D4,B4:E5) -> 8 | K4: =K2 -> Age Group | L4: Gender | M4: Tournament 2 | N4: =M4 -> Tournament 2 | P4: =P3+50 -> 950 | Q4: =P3&"-"&P4-1 -> 900-949 | R4: =DCOUNT(Individual_Scores,M4,K4:N5) -> 2
B5: 15 & < | C5: F | D5: =">="&G3 -> >=900 | E5: ="<"&G4 -> <950 | G5: 1000 | H5: =G4&"-"&G5 -> 950-1000 | I5: =DCOUNT(Individual_Scores,D6,B6:E7) -> 6 | K5: 16-20 | L5: F | M5: =">="&P3 -> >=900 | N5: ="<"&P4 -> <950 | P5: 1000 | Q5: 950-999 | R5: =DCOUNT(Individual_Scores,M6,K6:N7) -> 7
B6: Age Group | C6: Gender | D6: Tournament 2 | E6: =D6 -> Tournament 2 | G6: 1050 | H6: 1000-1050 | I6: =DCOUNT(Individual_Scores,D8,B8:E9) -> 7 | K6: Age Group | L6: Gender | M6: Tournament 2 | N6: =M6 -> Tournament 2 | P6: 1050 | Q6: 1000-1049 | R6: =DCOUNT(Individual_Scores,M8,K8:N9) -> 8
B7: 15 & < | C7: F | D7: =">="&G4 -> >=950 | E7: ="<"&G5 -> <1000 | G7: 1100 | H7: 1050-1100 | I7: =DCOUNT(Individual_Scores,D10,B10:E11) -> 3 | K7: 16-20 | L7: F | M7: =">="&P4 -> >=950 | N7: ="<"&P5 -> <1000 | P7: 1100 | Q7: 1050-1099 | R7: =DCOUNT(Individual_Scores,M10,K10:N11) -> 2
B8: Age Group | C8: Gender | D8: Tournament 2 | E8: =D8 -> Tournament 2 | G8: 1150 | H8: 1100-1150 | I8: =DCOUNT(Individual_Scores,D12,B12:E13) -> 3 | K8: Age Group | L8: Gender | M8: Tournament 2 | N8: =M8 -> Tournament 2 | P8: 1150 | Q8: 1100-1149 | R8: =DCOUNT(Individual_Scores,M12,K12:N13) -> 4
B9: 15 & < | C9: F | D9: =">="&G5 -> >=1000 | E9: ="<"&G6 -> <1050 | G9: 1200 | H9: 1150-1200 | I9: =DCOUNT(Individual_Scores,D14,B14:E15) -> 3 | K9: 16-20 | L9: F | M9: =">="&P5 -> >=1000 | N9: ="<"&P6 -> <1050 | P9: 1200 | Q9: 1150-1199 | R9: =DCOUNT(Individual_Scores,M14,K14:N15) -> 1
B10: Age Group | C10: Gender | D10: Tournament 2 | E10: =D10 -> Tournament 2 | G10: 1250 | H10: 1200-1250 | I10: =DCOUNT(Individual_Scores,D16,B16:E17) -> 0 | K10: Age Group | L10: Gender | M10: Tournament 2 | N10: =M10 -> Tournament 2 | P10: 1250 | Q10: 1200-1249 | R10: =DCOUNT(Individual_Scores,M16,K16:N17) -> 3
B11: 15 & < | C11: F | D11: =">="&G6 -> >=1050 | E11: ="<"&G7 -> <1100 | G11: 1300 | H11: 1250-1300 | I11: =DCOUNT(Individual_Scores,D18,B18:E19) -> 0 | K11: 16-20 | L11: F | M11: =">="&P6 -> >=1050 | N11: ="<"&P7 -> <1100 | P11: 1300 | Q11: 1250-1299 | R11: =DCOUNT(Individual_Scores,M18,K18:N19) -> 0
B12: Age Group | C12: Gender | D12: Tournament 2 | E12: =D12 -> Tournament 2 | G12: 1350 | H12: =">1300" -> >1300 | I12: =DCOUNT(Individual_Scores,D20,B20:E21) -> 0 | K12: Age Group | L12: Gender | M12: Tournament 2 | N12: =M12 -> Tournament 2 | P12: 1350 | Q12: =">=1300" -> >=1300 | R12: =DCOUNT(Individual_Scores,M20,K20:N21) -> 0
B13: 15 & < | C13: F | D13: =">="&G7 -> >=1100 | E13: ="<"&G8 -> <1150 | K13: 16-20 | L13: F | M13: =">="&P7 -> >=1100 | N13: ="<"&P8 -> <1150
B14: Age Group | C14: Gender | D14: Tournament 2 | E14: =D14 -> Tournament 2 | K14: Age Group | L14: Gender | M14: Tournament 2 | N14: =M14 -> Tournament 2
B15: 15 & < | C15: F | D15: =">="&G8 -> >=1150 | E15: ="<"&G9 -> <1200 | K15: 16-20 | L15: F | M15: =">="&P8 -> >=1150 | N15: ="<"&P9 -> <1200
B16: Age Group | C16: Gender | D16: Tournament 2 | E16: =D16 -> Tournament 2 | K16: Age Group | L16: Gender | M16: Tournament 2 | N16: =M16 -> Tournament 2
B17: 15 & < | C17: F | D17: =">="&G9 -> >=1200 | E17: ="<"&G10 -> <1250 | K17: 16-20 | L17: F | M17: =">="&P9 -> >=1200 | N17: ="<"&P10 -> <1250
B18: Age Group | C18: Gender | D18: Tournament 2 | E18: =D18 -> Tournament 2 | K18: Age Group | L18: Gender | M18: Tournament 2 | N18: =M18 -> Tournament 2
B19: 15 & < | C19: F | D19: =">="&G10 -> >=1250 | E19: ="<"&G11 -> <1300 | K19: 16-20 | L19: F | M19: =">="&P10 -> >=1250 | N19: ="<"&P11 -> <1300
B20: =B18 -> Age Group | C20: Gender | D20: Tournament 2 | K20: =K18 -> Age Group | L20: Gender | M20: Tournament 2
B21: 15 & < | C21: F | D21: =">="&G11 -> >=1300 | K21: 16-20 | L21: F | M21: =">="&P11 -> >=1300
B23: ='Individual Scores'!$B$1 -> Age Group | C23: ='Individual Scores'!$C$1 -> Gender | D23: =D2 -> Tournament 2 | E23: =D23 -> Tournament 2 | H23: Scores | I23: =B24&" "&C24 -> 15 & < M | K23: ='Individual Scores'!$B$1 -> Age Group | L23: ='Individual Scores'!$C$1 -> Gender | M23: =D23 -> Tournament 2 | N23: =M23 -> Tournament 2 | Q23: Scores | R23: =K24&" "&L24 -> 16-20 M
B24: =B3 -> 15 & < | C24: M | D24: ="1-"&G24 -> 1-900 | G24: 900 | H24: =D24 -> 1-900 | I24: =DCOUNT(Individual_Scores,D23,B23:D24) -> 0 | K24: =K3 -> 16-20 | L24: =C24 -> M | M24: =D24 -> 1-900 | P24: 900 | Q24: =M24 -> 1-900 | R24: =DCOUNT(Individual_Scores,M23,K23:M24) -> 0
B25: =B23 -> Age Group | C25: Gender | D25: Tournament 2 | E25: =D25 -> Tournament 2 | G25: =G24+50 -> 950 | H25: =G24&"-"&G25 -> 900-950 | I25: =DCOUNT(Individual_Scores,D25,B25:E26) -> 1 | K25: =K23 -> Age Group | L25: Gender | M25: Tournament 2 | N25: =M25 -> Tournament 2 | P25: =P24+50 -> 950 | Q25: =P24&"-"&P25 -> 900-950 | R25: =DCOUNT(Individual_Scores,M25,K25:N26) -> 0
B26: 15 & < | C26: M | D26: =">="&G24 -> >=900 | E26: ="<"&G25 -> <950 | G26: 1000 | H26: =G25&"-"&G26 -> 950-1000 | I26: =DCOUNT(Individual_Scores,D27,B27:E28) -> 2 | K26: 16-20 | L26: M | M26: =">="&P24 -> >=900 | N26: ="<"&P25 -> <950 | P26: 1000 | Q26: =P25&"-"&P26 -> 950-1000 | R26: =DCOUNT(Individual_Scores,M27,K27:N28) -> 1
B27: Age Group | C27: Gender | D27: Tournament 2 | E27: =D27 -> Tournament 2 | G27: 1050 | H27: 1000-1050 | I27: =DCOUNT(Individual_Scores,D29,B29:E30) -> 3 | K27: Age Group | L27: Gender | M27: Tournament 2 | N27: =M27 -> Tournament 2 | P27: 1050 | Q27: 1000-1050 | R27: =DCOUNT(Individual_Scores,M29,K29:N30) -> 3
B28: 15 & < | C28: M | D28: =">="&G25 -> >=950 | E28: ="<"&G26 -> <1000 | G28: 1100 | H28: 1050-1100 | I28: =DCOUNT(Individual_Scores,D31,B31:E32) -> 6 | K28: 16-20 | L28: M | M28: =">="&P25 -> >=950 | N28: ="<"&P26 -> <1000 | P28: 1100 | Q28: 1050-1100 | R28: =DCOUNT(Individual_Scores,M31,K31:N32) -> 1
B29: Age Group | C29: Gender | D29: Tournament 2 | E29: =D29 -> Tournament 2 | G29: 1150 | H29: 1100-1150 | I29: =DCOUNT(Individual_Scores,D33,B33:E34) -> 10 | K29: Age Group | L29: Gender | M29: Tournament 2 | N29: =M29 -> Tournament 2 | P29: 1150 | Q29: 1100-1150 | R29: =DCOUNT(Individual_Scores,M33,K33:N34) -> 5
B30: 15 & < | C30: M | D30: =">="&G26 -> >=1000 | E30: ="<"&G27 -> <1050 | G30: 1200 | H30: 1150-1200 | I30: =DCOUNT(Individual_Scores,D35,B35:E36) -> 4 | K30: 16-20 | L30: M | M30: =">="&P26 -> >=1000 | N30: ="<"&P27 -> <1050 | P30: 1200 | Q30: 1150-1200 | R30: =DCOUNT(Individual_Scores,M35,K35:N36) -> 5
B31: Age Group | C31: Gender | D31: Tournament 2 | E31: =D31 -> Tournament 2 | G31: 1250 | H31: 1200-1250 | I31: =DCOUNT(Individual_Scores,D37,B37:E38) -> 5 | K31: Age Group | L31: Gender | M31: Tournament 2 | N31: =M31 -> Tournament 2 | P31: 1250 | Q31: 1200-1250 | R31: =DCOUNT(Individual_Scores,M37,K37:N38) -> 6
B32: 15 & < | C32: M | D32: =">="&G27 -> >=1050 | E32: ="<"&G28 -> <1100 | G32: 1300 | H32: 1250-1300 | I32: =DCOUNT(Individual_Scores,D39,B39:E40) -> 3 | K32: 16-20 | L32: M | M32: =">="&P27 -> >=1050 | N32: ="<"&P28 -> <1100 | P32: 1300 | Q32: 1250-1300 | R32: =DCOUNT(Individual_Scores,M39,K39:N40) -> 4
B33: Age Group | C33: Gender | D33: Tournament 2 | E33: =D33 -> Tournament 2 | G33: 1350 | H33: =">1300" -> >1300 | I33: =DCOUNT(Individual_Scores,D41,B41:E42) -> 0 | K33: Age Group | L33: Gender | M33: Tournament 2 | N33: =M33 -> Tournament 2 | P33: 1350 | Q33: =">1300" -> >1300 | R33: =DCOUNT(Individual_Scores,M41,K41:N42) -> 5
B34: 15 & < | C34: M | D34: =">="&G28 -> >=1100 | E34: ="<"&G29 -> <1150 | K34: 16-20 | L34: M | M34: =">="&P28 -> >=1100 | N34: ="<"&P29 -> <1150
B35: Age Group | C35: Gender | D35: Tournament 2 | E35: =D35 -> Tournament 2 | K35: Age Group | L35: Gender | M35: Tournament 2 | N35: =M35 -> Tournament 2
B36: 15 & < | C36: M | D36: =">="&G29 -> >=1150 | E36: ="<"&G30 -> <1200 | K36: 16-20 | L36: M | M36: =">="&P29 -> >=1150 | N36: ="<"&P30 -> <1200
B37: Age Group | C37: Gender | D37: Tournament 2 | E37: =D37 -> Tournament 2 | K37: Age Group | L37: Gender | M37: Tournament 2 | N37: =M37 -> Tournament 2
B38: 15 & < | C38: M | D38: =">="&G30 -> >=1200 | E38: ="<"&G31 -> <1250 | K38: 16-20 | L38: M | M38: =">="&P30 -> >=1200 | N38: ="<"&P31 -> <1250
B39: Age Group | C39: Gender | D39: Tournament 2 | E39: =D39 -> Tournament 2 | K39: Age Group | L39: Gender | M39: Tournament 2 | N39: =M39 -> Tournament 2
B40: 15 & < | C40: M | D40: =">="&G31 -> >=1250 | E40: ="<"&G32 -> <1300 | K40: 16-20 | L40: M | M40: =">="&P31 -> >=1250 | N40: ="<"&P32 -> <1300
B41: =B39 -> Age Group | C41: Gender | D41: Tournament 2 | K41: =K39 -> Age Group | L41: Gender | M41: Tournament 2
B42: 15 & < | C42: M | D42: =">="&G32 -> >=1300 | K42: 16-20 | L42: M | M42: =">="&P32 -> >=1300

Sheet All Events Div Histogram Data (hidden)
C2: ='Individual Scores'!$C$1 -> Gender | D2: ='Individual Scores'!$L$1 -> Average | E2: =D2 -> Average | H2: Scores | I2: =B3&" "&C3 -> F | L2: ='Individual Scores'!$C$1 -> Gender | M2: =D2 -> Average | N2: =M2 -> Average | Q2: Scores | R2: =K3&" "&L3 -> F | U2: ='Individual Scores'!$C$1 -> Gender | V2: =M2 -> Average | W2: =V2 -> Average | Z2: Scores | AA2: =T3&" "&U3 -> F
C3: F | D3: ="<"&G3 -> <130 | G3: =130 -> 130 | H3: =D3 -> <130 | I3: =DCOUNT(Individual_Scores,D2,B2:D3) -> 2 | L3: =C3 -> F | M3: ="<"&P3 -> <130 | P3: =G3 -> 130 | Q3: =M3 -> <130 | R3: =DCOUNT(Individual_Scores,M2,K2:M3) -> 2 | U3: =L3 -> F | V3: ="<"&Y3 -> <130 | Y3: =P3 -> 130 | Z3: =V3 -> <130 | AA3: =DCOUNT(Individual_Scores,V2,T2:V3) -> 2
C4: =C2 -> Gender | D4: Average | E4: =D4 -> Average | G4: =G3+10 -> 140 | H4: =G3&"-"&G4 -> 130-140 | I4: =DCOUNT(Individual_Scores,D4,B4:E5) -> 3 | L4: =L2 -> Gender | M4: Average | N4: =M4 -> Average | P4: =G4 -> 140 | Q4: =P3&"-"&P4-1 -> 130-139 | R4: =DCOUNT(Individual_Scores,M4,K4:N5) -> 3 | U4: =U2 -> Gender | V4: Average | W4: =V4 -> Average | Y4: =P4 -> 140 | Z4: =Y3&"-"&Y4 -> 130-140 | AA4: =DCOUNT(Individual_Scores,V4,T4:W5) -> 3
C5: F | D5: =">="&G3 -> >=130 | E5: ="<"&G4 -> <140 | G5: =G4+10 -> 150 | H5: =G4&"-"&G5 -> 140-150 | I5: =DCOUNT(Individual_Scores,D6,B6:E7) -> 6 | L5: F | M5: =">="&P3 -> >=130 | N5: ="<"&P4 -> <140 | P5: 150 | Q5: 140-149 | R5: =DCOUNT(Individual_Scores,M6,K6:N7) -> 6 | U5: F | V5: =">="&Y3 -> >=130 | W5: ="<"&Y4 -> <140 | Y5: 150 | Z5: =Y4&"-"&Y5 -> 140-150 | AA5: =DCOUNT(Individual_Scores,V6,T6:W7) -> 6
C6: Gender | D6: Average | E6: =D6 -> Average | G6: 160 | H6: 150-160 | I6: =DCOUNT(Individual_Scores,D8,B8:E9) -> 10 | L6: Gender | M6: Average | N6: =M6 -> Average | P6: 160 | Q6: 150-159 | R6: =DCOUNT(Individual_Scores,M8,K8:N9) -> 10 | U6: Gender | V6: Average | W6: =V6 -> Average | Y6: 160 | Z6: 150-160 | AA6: =DCOUNT(Individual_Scores,V8,T8:W9) -> 10
C7: F | D7: =">="&G4 -> >=140 | E7: ="<"&G5 -> <150 | G7: 170 | H7: 160-170 | I7: =DCOUNT(Individual_Scores,D10,B10:E11) -> 19 | L7: F | M7: =">="&P4 -> >=140 | N7: ="<"&P5 -> <150 | P7: 170 | Q7: 160-169 | R7: =DCOUNT(Individual_Scores,M10,K10:N11) -> 19 | U7: F | V7: =">="&Y4 -> >=140 | W7: ="<"&Y5 -> <150 | Y7: 170 | Z7: 160-170 | AA7: =DCOUNT(Individual_Scores,V10,T10:W11) -> 19
C8: Gender | D8: Average | E8: =D8 -> Average | G8: 180 | H8: 170-180 | I8: =DCOUNT(Individual_Scores,D12,B12:E13) -> 14 | L8: Gender | M8: Average | N8: =M8 -> Average | P8: 180 | Q8: 170-179 | R8: =DCOUNT(Individual_Scores,M12,K12:N13) -> 14 | U8: Gender | V8: Average | W8: =V8 -> Average | Y8: 180 | Z8: 170-180 | AA8: =DCOUNT(Individual_Scores,V12,T12:W13) -> 14
C9: F | D9: =">="&G5 -> >=150 | E9: ="<"&G6 -> <160 | G9: 190 | H9: 180-190 | I9: =DCOUNT(Individual_Scores,D14,B14:E15) -> 6 | L9: F | M9: =">="&P5 -> >=150 | N9: ="<"&P6 -> <160 | P9: 190 | Q9: 180-189 | R9: =DCOUNT(Individual_Scores,M14,K14:N15) -> 6 | U9: F | V9: =">="&Y5 -> >=150 | W9: ="<"&Y6 -> <160 | Y9: 190 | Z9: 180-190 | AA9: =DCOUNT(Individual_Scores,V14,T14:W15) -> 6
C10: Gender | D10: Average | E10: =D10 -> Average | G10: 200 | H10: 190-200 | I10: =DCOUNT(Individual_Scores,D16,B16:E17) -> 2 | L10: Gender | M10: Average | N10: =M10 -> Average | P10: 200 | Q10: 190-199 | R10: =DCOUNT(Individual_Scores,M16,K16:N17) -> 2 | U10: Gender | V10: Average | W10: =V10 -> Average | Y10: 200 | Z10: 190-200 | AA10: =DCOUNT(Individual_Scores,V16,T16:W17) -> 2
C11: F | D11: =">="&G6 -> >=160 | E11: ="<"&G7 -> <170 | G11: 210 | H11: 200-210 | I11: =DCOUNT(Individual_Scores,D18,B18:E19) -> 4 | L11: F | M11: =">="&P6 -> >=160 | N11: ="<"&P7 -> <170 | P11: 210 | Q11: 200-209 | R11: =DCOUNT(Individual_Scores,M18,K18:N19) -> 4 | U11: F | V11: =">="&Y6 -> >=160 | W11: ="<"&Y7 -> <170 | Y11: 210 | Z11: 200-210 | AA11: =DCOUNT(Individual_Scores,V18,T18:W19) -> 4
C12: Gender | D12: Average | E12: =D12 -> Average | G12: 220 | H12: =">1300" -> >1300 | I12: =DCOUNT(Individual_Scores,D20,B20:E21) -> 0 | L12: Gender | M12: Average | N12: =M12 -> Average | P12: 220 | Q12: =">="&P11 -> >=210 | R12: =DCOUNT(Individual_Scores,M20,K20:N21) -> 0 | U12: Gender | V12: Average | W12: =V12 -> Average | Y12: 220 | Z12: =">1300" -> >1300 | AA12: =DCOUNT(Individual_Scores,V20,T20:W21) -> 0
C13: F | D13: =">="&G7 -> >=170 | E13: ="<"&G8 -> <180 | L13: F | M13: =">="&P7 -> >=170 | N13: ="<"&P8 -> <180 | U13: F | V13: =">="&Y7 -> >=170 | W13: ="<"&Y8 -> <180
C14: Gender | D14: Average | E14: =D14 -> Average | L14: Gender | M14: Average | N14: =M14 -> Average | U14: Gender | V14: Average | W14: =V14 -> Average
C15: F | D15: =">="&G8 -> >=180 | E15: ="<"&G9 -> <190 | L15: F | M15: =">="&P8 -> >=180 | N15: ="<"&P9 -> <190 | U15: F | V15: =">="&Y8 -> >=180 | W15: ="<"&Y9 -> <190
C16: Gender | D16: Average | E16: =D16 -> Average | L16: Gender | M16: Average | N16: =M16 -> Average | U16: Gender | V16: Average | W16: =V16 -> Average
C17: F | D17: =">="&G9 -> >=190 | E17: ="<"&G10 -> <200 | L17: F | M17: =">="&P9 -> >=190 | N17: ="<"&P10 -> <200 | U17: F | V17: =">="&Y9 -> >=190 | W17: ="<"&Y10 -> <200
C18: Gender | D18: Average | E18: =D18 -> Average | L18: Gender | M18: Average | N18: =M18 -> Average | U18: Gender | V18: Average | W18: =V18 -> Average
C19: F | D19: =">="&G10 -> >=200 | E19: ="<"&G11 -> <210 | L19: F | M19: =">="&P10 -> >=200 | N19: ="<"&P11 -> <210 | U19: F | V19: =">="&Y10 -> >=200 | W19: ="<"&Y11 -> <210
C20: =C18 -> Gender | D20: =D18 -> Average | L20: =L18 -> Gender | M20: =M18 -> Average | U20: =U18 -> Gender | V20: =V18 -> Average
C21: =C19 -> F | D21: =">="&G11 -> >=210 | L21: =L19 -> F | M21: =">="&P11 -> >=210 | U21: =U19 -> F | V21: =">="&Y11 -> >=210
C23: ='Individual Scores'!$C$1 -> Gender | D23: =D2 -> Average | E23: =D23 -> Average | H23: Scores | I23: =B24&" "&C24 -> M | L23: ='Individual Scores'!$C$1 -> Gender | M23: =D23 -> Average | N23: =M23 -> Average | Q23: Scores | R23: =K24&" "&L24 -> M | U23: ='Individual Scores'!$C$1 -> Gender | V23: =V2 -> Average | W23: =V23 -> Average | Z23: Scores | AA23: =T24&" "&U24 -> M
C24: M | D24: ="<"&G24 -> <130 | G24: =G3 -> 130 | H24: =D24 -> <130 | I24: =DCOUNT(Individual_Scores,D23,B23:D24) -> 1 | L24: =C24 -> M | M24: ="<"&P24 -> <130 | P24: =G24 -> 130 | Q24: =M24 -> <130 | R24: =DCOUNT(Individual_Scores,M23,K23:M24) -> 1 | U24: =L24 -> M | V24: ="<"&Y24 -> <130 | Y24: =P24 -> 130 | Z24: =V24 -> <130 | AA24: =DCOUNT(Individual_Scores,V23,T23:V24) -> 1
C25: =C23 -> Gender | D25: Average | E25: =D25 -> Average | G25: =G4 -> 140 | H25: =G24&"-"&G25 -> 130-140 | I25: =DCOUNT(Individual_Scores,D25,B25:E26) -> 1 | L25: =L23 -> Gender | M25: Average | N25: =M25 -> Average | P25: =G25 -> 140 | Q25: =P24&"-"&P25 -> 130-140 | R25: =DCOUNT(Individual_Scores,M25,K25:N26) -> 1 | U25: =U23 -> Gender | V25: Average | W25: =V25 -> Average | Y25: =P25 -> 140 | Z25: =Y24&"-"&Y25 -> 130-140 | AA25: =DCOUNT(Individual_Scores,V25,T25:W26) -> 1
C26: M | D26: =">="&G24 -> >=130 | E26: ="<"&G25 -> <140 | G26: 150 | H26: =G25&"-"&G26 -> 140-150 | I26: =DCOUNT(Individual_Scores,D27,B27:E28) -> 0 | L26: M | M26: =">="&P24 -> >=130 | N26: ="<"&P25 -> <140 | P26: 150 | Q26: =P25&"-"&P26 -> 140-150 | R26: =DCOUNT(Individual_Scores,M27,K27:N28) -> 0 | U26: M | V26: =">="&Y24 -> >=130 | W26: ="<"&Y25 -> <140 | Y26: 150 | Z26: =Y25&"-"&Y26 -> 140-150 | AA26: =DCOUNT(Individual_Scores,V27,T27:W28) -> 0
C27: Gender | D27: Average | E27: =D27 -> Average | G27: 160 | H27: 150-160 | I27: =DCOUNT(Individual_Scores,D29,B29:E30) -> 1 | L27: Gender | M27: Average | N27: =M27 -> Average | P27: 160 | Q27: 150-160 | R27: =DCOUNT(Individual_Scores,M29,K29:N30) -> 1 | U27: Gender | V27: Average | W27: =V27 -> Average | Y27: 160 | Z27: 150-160 | AA27: =DCOUNT(Individual_Scores,V29,T29:W30) -> 1
C28: M | D28: =">="&G25 -> >=140 | E28: ="<"&G26 -> <150 | G28: 170 | H28: 160-170 | I28: =DCOUNT(Individual_Scores,D31,B31:E32) -> 9 | L28: M | M28: =">="&P25 -> >=140 | N28: ="<"&P26 -> <150 | P28: 170 | Q28: 160-170 | R28: =DCOUNT(Individual_Scores,M31,K31:N32) -> 9 | U28: M | V28: =">="&Y25 -> >=140 | W28: ="<"&Y26 -> <150 | Y28: 170 | Z28: 160-170 | AA28: =DCOUNT(Individual_Scores,V31,T31:W32) -> 9
C29: Gender | D29: Average | E29: =D29 -> Average | G29: 180 | H29: 170-180 | I29: =DCOUNT(Individual_Scores,D33,B33:E34) -> 10 | L29: Gender | M29: Average | N29: =M29 -> Average | P29: 180 | Q29: 170-180 | R29: =DCOUNT(Individual_Scores,M33,K33:N34) -> 10 | U29: Gender | V29: Average | W29: =V29 -> Average | Y29: 180 | Z29: 170-180 | AA29: =DCOUNT(Individual_Scores,V33,T33:W34) -> 10
C30: M | D30: =">="&G26 -> >=150 | E30: ="<"&G27 -> <160 | G30: 190 | H30: 180-190 | I30: =DCOUNT(Individual_Scores,D35,B35:E36) -> 15 | L30: M | M30: =">="&P26 -> >=150 | N30: ="<"&P27 -> <160 | P30: 190 | Q30: 180-190 | R30: =DCOUNT(Individual_Scores,M35,K35:N36) -> 15 | U30: M | V30: =">="&Y26 -> >=150 | W30: ="<"&Y27 -> <160 | Y30: 190 | Z30: 180-190 | AA30: =DCOUNT(Individual_Scores,V35,T35:W36) -> 15
C31: Gender | D31: Average | E31: =D31 -> Average | G31: 200 | H31: 190-200 | I31: =DCOUNT(Individual_Scores,D37,B37:E38) -> 11 | L31: Gender | M31: Average | N31: =M31 -> Average | P31: 200 | Q31: 190-200 | R31: =DCOUNT(Individual_Scores,M37,K37:N38) -> 11 | U31: Gender | V31: Average | W31: =V31 -> Average | Y31: 200 | Z31: 190-200 | AA31: =DCOUNT(Individual_Scores,V37,T37:W38) -> 11
C32: M | D32: =">="&G27 -> >=160 | E32: ="<"&G28 -> <170 | G32: 210 | H32: 200-210 | I32: =DCOUNT(Individual_Scores,D39,B39:E40) -> 8 | L32: M | M32: =">="&P27 -> >=160 | N32: ="<"&P28 -> <170 | P32: 210 | Q32: 200-210 | R32: =DCOUNT(Individual_Scores,M39,K39:N40) -> 8 | U32: M | V32: =">="&Y27 -> >=160 | W32: ="<"&Y28 -> <170 | Y32: 210 | Z32: 200-210 | AA32: =DCOUNT(Individual_Scores,V39,T39:W40) -> 8
C33: Gender | D33: Average | E33: =D33 -> Average | G33: 220 | H33: =">1300" -> >1300 | I33: =DCOUNT(Individual_Scores,D41,B41:E42) -> 9 | L33: Gender | M33: Average | N33: =M33 -> Average | P33: 220 | Q33: =">1300" -> >1300 | R33: =DCOUNT(Individual_Scores,M41,K41:N42) -> 9 | U33: Gender | V33: Average | W33: =V33 -> Average | Y33: 220 | Z33: =">1300" -> >1300 | AA33: =DCOUNT(Individual_Scores,V41,T41:W42) -> 9
C34: M | D34: =">="&G28 -> >=170 | E34: ="<"&G29 -> <180 | L34: M | M34: =">="&P28 -> >=170 | N34: ="<"&P29 -> <180 | U34: M | V34: =">="&Y28 -> >=170 | W34: ="<"&Y29 -> <180
C35: Gender | D35: Average | E35: =D35 -> Average | L35: Gender | M35: Average | N35: =M35 -> Average | U35: Gender | V35: Average | W35: =V35 -> Average
C36: M | D36: =">="&G29 -> >=180 | E36: ="<"&G30 -> <190 | L36: M | M36: =">="&P29 -> >=180 | N36: ="<"&P30 -> <190 | U36: M | V36: =">="&Y29 -> >=180 | W36: ="<"&Y30 -> <190
C37: Gender | D37: Average | E37: =D37 -> Average | L37: Gender | M37: Average | N37: =M37 -> Average | U37: Gender | V37: Average | W37: =V37 -> Average
C38: M | D38: =">="&G30 -> >=190 | E38: ="<"&G31 -> <200 | L38: M | M38: =">="&P30 -> >=190 | N38: ="<"&P31 -> <200 | U38: M | V38: =">="&Y30 -> >=190 | W38: ="<"&Y31 -> <200
C39: Gender | D39: Average | E39: =D39 -> Average | L39: Gender | M39: Average | N39: =M39 -> Average | U39: Gender | V39: Average | W39: =V39 -> Average
C40: M | D40: =">="&G31 -> >=200 | E40: ="<"&G32 -> <210 | L40: M | M40: =">="&P31 -> >=200 | N40: ="<"&P32 -> <210 | U40: M | V40: =">="&Y31 -> >=200 | W40: ="<"&Y32 -> <210
C41: =C39 -> Gender | D41: =D39 -> Average | L41: =L39 -> Gender | M41: =M39 -> Average | U41: =U39 -> Gender | V41: =V39 -> Average
C42: =C40 -> M | D42: =">="&G32 -> >=210 | L42: =L40 -> M | M42: =">="&P32 -> >=210 | U42: =U40 -> M | V42: =">="&Y32 -> >=210

Sheet All Events Histogram Data (hidden)
B2: ='Individual Scores'!$B$1 -> Age Group | C2: ='Individual Scores'!$C$1 -> Gender | D2: ='Individual Scores'!$L$1 -> Average | E2: =D2 -> Average | H2: Scores | I2: =B3&" "&C3 -> 15 & < F | K2: ='Individual Scores'!$B$1 -> Age Group | L2: ='Individual Scores'!$C$1 -> Gender | M2: =D2 -> Average | N2: =M2 -> Average | Q2: Scores | R2: =K3&" "&L3 -> 16-20 F
B3: =Constants!B2 -> 15 & < | C3: F | D3: ="<"&G3 -> <130 | G3: =130 -> 130 | H3: =D3 -> <130 | I3: =DCOUNT(Individual_Scores,D2,B2:D3) -> 1 | K3: =Constants!B3 -> 16-20 | L3: =C3 -> F | M3: ="<"&P3 -> <130 | P3: =G3 -> 130 | Q3: =M3 -> <130 | R3: =DCOUNT(Individual_Scores,M2,K2:M3) -> 1
B4: =B2 -> Age Group | C4: Gender | D4: Average | E4: =D4 -> Average | G4: =G3+10 -> 140 | H4: =G3&"-"&G4 -> 130-140 | I4: =DCOUNT(Individual_Scores,D4,B4:E5) -> 3 | K4: =K2 -> Age Group | L4: Gender | M4: Average | N4: =M4 -> Average | P4: =G4 -> 140 | Q4: =P3&"-"&P4-1 -> 130-139 | R4: =DCOUNT(Individual_Scores,M4,K4:N5) -> 0
B5: 15 & < | C5: F | D5: =">="&G3 -> >=130 | E5: ="<"&G4 -> <140 | G5: =G4+10 -> 150 | H5: =G4&"-"&G5 -> 140-150 | I5: =DCOUNT(Individual_Scores,D6,B6:E7) -> 5 | K5: 16-20 | L5: F | M5: =">="&P3 -> >=130 | N5: ="<"&P4 -> <140 | P5: 150 | Q5: 140-149 | R5: =DCOUNT(Individual_Scores,M6,K6:N7) -> 1
B6: Age Group | C6: Gender | D6: Average | E6: =D6 -> Average | G6: 160 | H6: 150-160 | I6: =DCOUNT(Individual_Scores,D8,B8:E9) -> 6 | K6: Age Group | L6: Gender | M6: Average | N6: =M6 -> Average | P6: 160 | Q6: 150-159 | R6: =DCOUNT(Individual_Scores,M8,K8:N9) -> 4
B7: 15 & < | C7: F | D7: =">="&G4 -> >=140 | E7: ="<"&G5 -> <150 | G7: 170 | H7: 160-170 | I7: =DCOUNT(Individual_Scores,D10,B10:E11) -> 11 | K7: 16-20 | L7: F | M7: =">="&P4 -> >=140 | N7: ="<"&P5 -> <150 | P7: 170 | Q7: 160-169 | R7: =DCOUNT(Individual_Scores,M10,K10:N11) -> 8
B8: Age Group | C8: Gender | D8: Average | E8: =D8 -> Average | G8: 180 | H8: 170-180 | I8: =DCOUNT(Individual_Scores,D12,B12:E13) -> 6 | K8: Age Group | L8: Gender | M8: Average | N8: =M8 -> Average | P8: 180 | Q8: 170-179 | R8: =DCOUNT(Individual_Scores,M12,K12:N13) -> 8
B9: 15 & < | C9: F | D9: =">="&G5 -> >=150 | E9: ="<"&G6 -> <160 | G9: 190 | H9: 180-190 | I9: =DCOUNT(Individual_Scores,D14,B14:E15) -> 1 | K9: 16-20 | L9: F | M9: =">="&P5 -> >=150 | N9: ="<"&P6 -> <160 | P9: 190 | Q9: 180-189 | R9: =DCOUNT(Individual_Scores,M14,K14:N15) -> 5
B10: Age Group | C10: Gender | D10: Average | E10: =D10 -> Average | G10: 200 | H10: 190-200 | I10: =DCOUNT(Individual_Scores,D16,B16:E17) -> 1 | K10: Age Group | L10: Gender | M10: Average | N10: =M10 -> Average | P10: 200 | Q10: 190-199 | R10: =DCOUNT(Individual_Scores,M16,K16:N17) -> 1
B11: 15 & < | C11: F | D11: =">="&G6 -> >=160 | E11: ="<"&G7 -> <170 | G11: 210 | H11: 200-210 | I11: =DCOUNT(Individual_Scores,D18,B18:E19) -> 2 | K11: 16-20 | L11: F | M11: =">="&P6 -> >=160 | N11: ="<"&P7 -> <170 | P11: 210 | Q11: 200-209 | R11: =DCOUNT(Individual_Scores,M18,K18:N19) -> 2
B12: Age Group | C12: Gender | D12: Average | E12: =D12 -> Average | G12: 220 | H12: =">1300" -> >1300 | I12: =DCOUNT(Individual_Scores,D20,B20:E21) -> 0 | K12: Age Group | L12: Gender | M12: Average | N12: =M12 -> Average | P12: 220 | Q12: =">="&P11 -> >=210 | R12: =DCOUNT(Individual_Scores,M20,K20:N21) -> 0
B13: 15 & < | C13: F | D13: =">="&G7 -> >=170 | E13: ="<"&G8 -> <180 | K13: 16-20 | L13: F | M13: =">="&P7 -> >=170 | N13: ="<"&P8 -> <180
B14: Age Group | C14: Gender | D14: Average | E14: =D14 -> Average | K14: Age Group | L14: Gender | M14: Average | N14: =M14 -> Average
B15: 15 & < | C15: F | D15: =">="&G8 -> >=180 | E15: ="<"&G9 -> <190 | K15: 16-20 | L15: F | M15: =">="&P8 -> >=180 | N15: ="<"&P9 -> <190
B16: Age Group | C16: Gender | D16: Average | E16: =D16 -> Average | K16: Age Group | L16: Gender | M16: Average | N16: =M16 -> Average
B17: 15 & < | C17: F | D17: =">="&G9 -> >=190 | E17: ="<"&G10 -> <200 | K17: 16-20 | L17: F | M17: =">="&P9 -> >=190 | N17: ="<"&P10 -> <200
B18: Age Group | C18: Gender | D18: Average | E18: =D18 -> Average | K18: Age Group | L18: Gender | M18: Average | N18: =M18 -> Average
B19: 15 & < | C19: F | D19: =">="&G10 -> >=200 | E19: ="<"&G11 -> <210 | K19: 16-20 | L19: F | M19: =">="&P10 -> >=200 | N19: ="<"&P11 -> <210
B20: =B18 -> Age Group | C20: Gender | D20: Average | K20: =K18 -> Age Group | L20: Gender | M20: Average
B21: 15 & < | C21: F | D21: =">="&G11 -> >=210 | K21: 16-20 | L21: F | M21: =">="&P11 -> >=210
B23: ='Individual Scores'!$B$1 -> Age Group | C23: ='Individual Scores'!$C$1 -> Gender | D23: =D2 -> Average | E23: =D23 -> Average | H23: Scores | I23: =B24&" "&C24 -> 15 & < M | K23: ='Individual Scores'!$B$1 -> Age Group | L23: ='Individual Scores'!$C$1 -> Gender | M23: =D23 -> Average | N23: =M23 -> Average | Q23: Scores | R23: =K24&" "&L24 -> 16-20 M
B24: =B3 -> 15 & < | C24: M | D24: ="<"&G24 -> <130 | G24: =G3 -> 130 | H24: =D24 -> <130 | I24: =DCOUNT(Individual_Scores,D23,B23:D24) -> 0 | K24: =K3 -> 16-20 | L24: =C24 -> M | M24: ="<"&P24 -> <130 | P24: =G24 -> 130 | Q24: =M24 -> <130 | R24: =DCOUNT(Individual_Scores,M23,K23:M24) -> 1
B25: =B23 -> Age Group | C25: Gender | D25: Average | E25: =D25 -> Average | G25: =G4 -> 140 | H25: =G24&"-"&G25 -> 130-140 | I25: =DCOUNT(Individual_Scores,D25,B25:E26) -> 1 | K25: =K23 -> Age Group | L25: Gender | M25: Average | N25: =M25 -> Average | P25: =G25 -> 140 | Q25: =P24&"-"&P25 -> 130-140 | R25: =DCOUNT(Individual_Scores,M25,K25:N26) -> 0
B26: 15 & < | C26: M | D26: =">="&G24 -> >=130 | E26: ="<"&G25 -> <140 | G26: 150 | H26: =G25&"-"&G26 -> 140-150 | I26: =DCOUNT(Individual_Scores,D27,B27:E28) -> 0 | K26: 16-20 | L26: M | M26: =">="&P24 -> >=130 | N26: ="<"&P25 -> <140 | P26: 150 | Q26: =P25&"-"&P26 -> 140-150 | R26: =DCOUNT(Individual_Scores,M27,K27:N28) -> 0
B27: Age Group | C27: Gender | D27: Average | E27: =D27 -> Average | G27: 160 | H27: 150-160 | I27: =DCOUNT(Individual_Scores,D29,B29:E30) -> 0 | K27: Age Group | L27: Gender | M27: Average | N27: =M27 -> Average | P27: 160 | Q27: 150-160 | R27: =DCOUNT(Individual_Scores,M29,K29:N30) -> 1
B28: 15 & < | C28: M | D28: =">="&G25 -> >=140 | E28: ="<"&G26 -> <150 | G28: 170 | H28: 160-170 | I28: =DCOUNT(Individual_Scores,D31,B31:E32) -> 6 | K28: 16-20 | L28: M | M28: =">="&P25 -> >=140 | N28: ="<"&P26 -> <150 | P28: 170 | Q28: 160-170 | R28: =DCOUNT(Individual_Scores,M31,K31:N32) -> 3
B29: Age Group | C29: Gender | D29: Average | E29: =D29 -> Average | G29: 180 | H29: 170-180 | I29: =DCOUNT(Individual_Scores,D33,B33:E34) -> 7 | K29: Age Group | L29: Gender | M29: Average | N29: =M29 -> Average | P29: 180 | Q29: 170-180 | R29: =DCOUNT(Individual_Scores,M33,K33:N34) -> 3
B30: 15 & < | C30: M | D30: =">="&G26 -> >=150 | E30: ="<"&G27 -> <160 | G30: 190 | H30: 180-190 | I30: =DCOUNT(Individual_Scores,D35,B35:E36) -> 10 | K30: 16-20 | L30: M | M30: =">="&P26 -> >=150 | N30: ="<"&P27 -> <160 | P30: 190 | Q30: 180-190 | R30: =DCOUNT(Individual_Scores,M35,K35:N36) -> 5
B31: Age Group | C31: Gender | D31: Average | E31: =D31 -> Average | G31: 200 | H31: 190-200 | I31: =DCOUNT(Individual_Scores,D37,B37:E38) -> 5 | K31: Age Group | L31: Gender | M31: Average | N31: =M31 -> Average | P31: 200 | Q31: 190-200 | R31: =DCOUNT(Individual_Scores,M37,K37:N38) -> 6
B32: 15 & < | C32: M | D32: =">="&G27 -> >=160 | E32: ="<"&G28 -> <170 | G32: 210 | H32: 200-210 | I32: =DCOUNT(Individual_Scores,D39,B39:E40) -> 3 | K32: 16-20 | L32: M | M32: =">="&P27 -> >=160 | N32: ="<"&P28 -> <170 | P32: 210 | Q32: 200-210 | R32: =DCOUNT(Individual_Scores,M39,K39:N40) -> 5
B33: Age Group | C33: Gender | D33: Average | E33: =D33 -> Average | G33: 220 | H33: =">1300" -> >1300 | I33: =DCOUNT(Individual_Scores,D41,B41:E42) -> 2 | K33: Age Group | L33: Gender | M33: Average | N33: =M33 -> Average | P33: 220 | Q33: =">1300" -> >1300 | R33: =DCOUNT(Individual_Scores,M41,K41:N42) -> 7
B34: 15 & < | C34: M | D34: =">="&G28 -> >=170 | E34: ="<"&G29 -> <180 | K34: 16-20 | L34: M | M34: =">="&P28 -> >=170 | N34: ="<"&P29 -> <180
B35: Age Group | C35: Gender | D35: Average | E35: =D35 -> Average | K35: Age Group | L35: Gender | M35: Average | N35: =M35 -> Average
B36: 15 & < | C36: M | D36: =">="&G29 -> >=180 | E36: ="<"&G30 -> <190 | K36: 16-20 | L36: M | M36: =">="&P29 -> >=180 | N36: ="<"&P30 -> <190
B37: Age Group | C37: Gender | D37: Average | E37: =D37 -> Average | K37: Age Group | L37: Gender | M37: Average | N37: =M37 -> Average
B38: 15 & < | C38: M | D38: =">="&G30 -> >=190 | E38: ="<"&G31 -> <200 | K38: 16-20 | L38: M | M38: =">="&P30 -> >=190 | N38: ="<"&P31 -> <200
B39: Age Group | C39: Gender | D39: Average | E39: =D39 -> Average | K39: Age Group | L39: Gender | M39: Average | N39: =M39 -> Average
B40: 15 & < | C40: M | D40: =">="&G31 -> >=200 | E40: ="<"&G32 -> <210 | K40: 16-20 | L40: M | M40: =">="&P31 -> >=200 | N40: ="<"&P32 -> <210
B41: =B39 -> Age Group | C41: Gender | D41: Average | K41: =K39 -> Age Group | L41: Gender | M41: Average
B42: 15 & < | C42: M | D42: =">="&G32 -> >=210 | K42: 16-20 | L42: M | M42: =">="&P32 -> >=210

Sheet Tournament 3 Histogram Data (hidden)
B2: ='Individual Scores'!$B$1 -> Age Group | C2: ='Individual Scores'!$C$1 -> Gender | D2: ='Individual Scores'!$G$1 -> Tournament 3 | E2: =D2 -> Tournament 3 | H2: Scores | I2: =B3&" "&C3 -> 15 & < F | K2: ='Individual Scores'!$B$1 -> Age Group | L2: ='Individual Scores'!$C$1 -> Gender | M2: =D2 -> Tournament 3 | N2: =M2 -> Tournament 3 | Q2: Scores | R2: =K3&" "&L3 -> 16-20 F
B3: =Constants!B2 -> 15 & < | C3: F | D3: ="1-"&G3 -> 1-900 | G3: 900 | H3: =D3 -> 1-900 | I3: =DCOUNT(Individual_Scores,D2,B2:D3) -> 0 | K3: =Constants!B3 -> 16-20 | L3: =C3 -> F | M3: ="1-"&P3 -> 1-900 | P3: 900 | Q3: =M3 -> 1-900 | R3: =DCOUNT(Individual_Scores,M2,K2:M3) -> 0
B4: =B2 -> Age Group | C4: Gender | D4: Tournament 3 | E4: =D4 -> Tournament 3 | G4: =G3+50 -> 950 | H4: =G3&"-"&G4 -> 900-950 | I4: =DCOUNT(Individual_Scores,D4,B4:E5) -> 0 | K4: =K2 -> Age Group | L4: Gender | M4: Tournament 3 | N4: =M4 -> Tournament 3 | P4: =P3+50 -> 950 | Q4: =P3&"-"&P4-1 -> 900-949 | R4: =DCOUNT(Individual_Scores,M4,K4:N5) -> 0
B5: 15 & < | C5: F | D5: =">="&G3 -> >=900 | E5: ="<"&G4 -> <950 | G5: 1000 | H5: =G4&"-"&G5 -> 950-1000 | I5: =DCOUNT(Individual_Scores,D6,B6:E7) -> 0 | K5: 16-20 | L5: F | M5: =">="&P3 -> >=900 | N5: ="<"&P4 -> <950 | P5: 1000 | Q5: 950-999 | R5: =DCOUNT(Individual_Scores,M6,K6:N7) -> 0
B6: Age Group | C6: Gender | D6: Tournament 3 | E6: =D6 -> Tournament 3 | G6: 1050 | H6: 1000-1050 | I6: =DCOUNT(Individual_Scores,D8,B8:E9) -> 0 | K6: Age Group | L6: Gender | M6: Tournament 3 | N6: =M6 -> Tournament 3 | P6: 1050 | Q6: 1000-1049 | R6: =DCOUNT(Individual_Scores,M8,K8:N9) -> 0
B7: 15 & < | C7: F | D7: =">="&G4 -> >=950 | E7: ="<"&G5 -> <1000 | G7: 1100 | H7: 1050-1100 | I7: =DCOUNT(Individual_Scores,D10,B10:E11) -> 0 | K7: 16-20 | L7: F | M7: =">="&P4 -> >=950 | N7: ="<"&P5 -> <1000 | P7: 1100 | Q7: 1050-1099 | R7: =DCOUNT(Individual_Scores,M10,K10:N11) -> 0
B8: Age Group | C8: Gender | D8: Tournament 3 | E8: =D8 -> Tournament 3 | G8: 1150 | H8: 1100-1150 | I8: =DCOUNT(Individual_Scores,D12,B12:E13) -> 0 | K8: Age Group | L8: Gender | M8: Tournament 3 | N8: =M8 -> Tournament 3 | P8: 1150 | Q8: 1100-1149 | R8: =DCOUNT(Individual_Scores,M12,K12:N13) -> 0
B9: 15 & < | C9: F | D9: =">="&G5 -> >=1000 | E9: ="<"&G6 -> <1050 | G9: 1200 | H9: 1150-1200 | I9: =DCOUNT(Individual_Scores,D14,B14:E15) -> 0 | K9: 16-20 | L9: F | M9: =">="&P5 -> >=1000 | N9: ="<"&P6 -> <1050 | P9: 1200 | Q9: 1150-1199 | R9: =DCOUNT(Individual_Scores,M14,K14:N15) -> 0
B10: Age Group | C10: Gender | D10: Tournament 3 | E10: =D10 -> Tournament 3 | G10: 1250 | H10: 1200-1250 | I10: =DCOUNT(Individual_Scores,D16,B16:E17) -> 0 | K10: Age Group | L10: Gender | M10: Tournament 3 | N10: =M10 -> Tournament 3 | P10: 1250 | Q10: 1200-1249 | R10: =DCOUNT(Individual_Scores,M16,K16:N17) -> 0
B11: 15 & < | C11: F | D11: =">="&G6 -> >=1050 | E11: ="<"&G7 -> <1100 | G11: 1300 | H11: 1250-1300 | I11: =DCOUNT(Individual_Scores,D18,B18:E19) -> 0 | K11: 16-20 | L11: F | M11: =">="&P6 -> >=1050 | N11: ="<"&P7 -> <1100 | P11: 1300 | Q11: 1250-1299 | R11: =DCOUNT(Individual_Scores,M18,K18:N19) -> 0
B12: Age Group | C12: Gender | D12: Tournament 3 | E12: =D12 -> Tournament 3 | G12: 1350 | H12: =">1300" -> >1300 | I12: =DCOUNT(Individual_Scores,D20,B20:E21) -> 0 | K12: Age Group | L12: Gender | M12: Tournament 3 | N12: =M12 -> Tournament 3 | P12: 1350 | Q12: =">=1300" -> >=1300 | R12: =DCOUNT(Individual_Scores,M20,K20:N21) -> 0
B13: 15 & < | C13: F | D13: =">="&G7 -> >=1100 | E13: ="<"&G8 -> <1150 | K13: 16-20 | L13: F | M13: =">="&P7 -> >=1100 | N13: ="<"&P8 -> <1150
B14: Age Group | C14: Gender | D14: Tournament 3 | E14: =D14 -> Tournament 3 | K14: Age Group | L14: Gender | M14: Tournament 3 | N14: =M14 -> Tournament 3
B15: 15 & < | C15: F | D15: =">="&G8 -> >=1150 | E15: ="<"&G9 -> <1200 | K15: 16-20 | L15: F | M15: =">="&P8 -> >=1150 | N15: ="<"&P9 -> <1200
B16: Age Group | C16: Gender | D16: Tournament 3 | E16: =D16 -> Tournament 3 | K16: Age Group | L16: Gender | M16: Tournament 3 | N16: =M16 -> Tournament 3
B17: 15 & < | C17: F | D17: =">="&G9 -> >=1200 | E17: ="<"&G10 -> <1250 | K17: 16-20 | L17: F | M17: =">="&P9 -> >=1200 | N17: ="<"&P10 -> <1250
B18: Age Group | C18: Gender | D18: Tournament 3 | E18: =D18 -> Tournament 3 | K18: Age Group | L18: Gender | M18: Tournament 3 | N18: =M18 -> Tournament 3
B19: 15 & < | C19: F | D19: =">="&G10 -> >=1250 | E19: ="<"&G11 -> <1300 | K19: 16-20 | L19: F | M19: =">="&P10 -> >=1250 | N19: ="<"&P11 -> <1300
B20: =B18 -> Age Group | C20: Gender | D20: Tournament 3 | K20: =K18 -> Age Group | L20: Gender | M20: Tournament 3
B21: 15 & < | C21: F | D21: =">="&G11 -> >=1300 | K21: 16-20 | L21: F | M21: =">="&P11 -> >=1300
B23: ='Individual Scores'!$B$1 -> Age Group | C23: ='Individual Scores'!$C$1 -> Gender | D23: =D2 -> Tournament 3 | E23: =D23 -> Tournament 3 | H23: Scores | I23: =B24&" "&C24 -> 15 & < M | K23: ='Individual Scores'!$B$1 -> Age Group | L23: ='Individual Scores'!$C$1 -> Gender | M23: =D23 -> Tournament 3 | N23: =M23 -> Tournament 3 | Q23: Scores | R23: =K24&" "&L24 -> 16-20 M
B24: =B3 -> 15 & < | C24: M | D24: =D3 -> 1-900 | G24: 900 | H24: =D24 -> 1-900 | I24: =DCOUNT(Individual_Scores,D23,B23:D24) -> 0 | K24: =K3 -> 16-20 | L24: =C24 -> M | M24: =M3 -> 1-900 | P24: 900 | Q24: =M24 -> 1-900 | R24: =DCOUNT(Individual_Scores,M23,K23:M24) -> 0
B25: =B23 -> Age Group | C25: Gender | D25: Tournament 3 | E25: =D25 -> Tournament 3 | G25: =G24+50 -> 950 | H25: =G24&"-"&G25 -> 900-950 | I25: =DCOUNT(Individual_Scores,D25,B25:E26) -> 0 | K25: =K23 -> Age Group | L25: Gender | M25: Tournament 3 | N25: =M25 -> Tournament 3 | P25: =P24+50 -> 950 | Q25: =P24&"-"&P25 -> 900-950 | R25: =DCOUNT(Individual_Scores,M25,K25:N26) -> 0
B26: 15 & < | C26: M | D26: =">="&G24 -> >=900 | E26: ="<"&G25 -> <950 | G26: 1000 | H26: =G25&"-"&G26 -> 950-1000 | I26: =DCOUNT(Individual_Scores,D27,B27:E28) -> 0 | K26: 16-20 | L26: M | M26: =">="&P24 -> >=900 | N26: ="<"&P25 -> <950 | P26: 1000 | Q26: =P25&"-"&P26 -> 950-1000 | R26: =DCOUNT(Individual_Scores,M27,K27:N28) -> 0
B27: Age Group | C27: Gender | D27: Tournament 3 | E27: =D27 -> Tournament 3 | G27: 1050 | H27: 1000-1050 | I27: =DCOUNT(Individual_Scores,D29,B29:E30) -> 0 | K27: Age Group | L27: Gender | M27: Tournament 3 | N27: =M27 -> Tournament 3 | P27: 1050 | Q27: 1000-1050 | R27: =DCOUNT(Individual_Scores,M29,K29:N30) -> 0
B28: 15 & < | C28: M | D28: =">="&G25 -> >=950 | E28: ="<"&G26 -> <1000 | G28: 1100 | H28: 1050-1100 | I28: =DCOUNT(Individual_Scores,D31,B31:E32) -> 0 | K28: 16-20 | L28: M | M28: =">="&P25 -> >=950 | N28: ="<"&P26 -> <1000 | P28: 1100 | Q28: 1050-1100 | R28: =DCOUNT(Individual_Scores,M31,K31:N32) -> 0
B29: Age Group | C29: Gender | D29: Tournament 3 | E29: =D29 -> Tournament 3 | G29: 1150 | H29: 1100-1150 | I29: =DCOUNT(Individual_Scores,D33,B33:E34) -> 0 | K29: Age Group | L29: Gender | M29: Tournament 3 | N29: =M29 -> Tournament 3 | P29: 1150 | Q29: 1100-1150 | R29: =DCOUNT(Individual_Scores,M33,K33:N34) -> 0
B30: 15 & < | C30: M | D30: =">="&G26 -> >=1000 | E30: ="<"&G27 -> <1050 | G30: 1200 | H30: 1150-1200 | I30: =DCOUNT(Individual_Scores,D35,B35:E36) -> 0 | K30: 16-20 | L30: M | M30: =">="&P26 -> >=1000 | N30: ="<"&P27 -> <1050 | P30: 1200 | Q30: 1150-1200 | R30: =DCOUNT(Individual_Scores,M35,K35:N36) -> 0
B31: Age Group | C31: Gender | D31: Tournament 3 | E31: =D31 -> Tournament 3 | G31: 1250 | H31: 1200-1250 | I31: =DCOUNT(Individual_Scores,D37,B37:E38) -> 0 | K31: Age Group | L31: Gender | M31: Tournament 3 | N31: =M31 -> Tournament 3 | P31: 1250 | Q31: 1200-1250 | R31: =DCOUNT(Individual_Scores,M37,K37:N38) -> 0
B32: 15 & < | C32: M | D32: =">="&G27 -> >=1050 | E32: ="<"&G28 -> <1100 | G32: 1300 | H32: 1250-1300 | I32: =DCOUNT(Individual_Scores,D39,B39:E40) -> 0 | K32: 16-20 | L32: M | M32: =">="&P27 -> >=1050 | N32: ="<"&P28 -> <1100 | P32: 1300 | Q32: 1250-1300 | R32: =DCOUNT(Individual_Scores,M39,K39:N40) -> 0
B33: Age Group | C33: Gender | D33: Tournament 3 | E33: =D33 -> Tournament 3 | G33: 1350 | H33: =">1300" -> >1300 | I33: =DCOUNT(Individual_Scores,D41,B41:E42) -> 0 | K33: Age Group | L33: Gender | M33: Tournament 3 | N33: =M33 -> Tournament 3 | P33: 1350 | Q33: =">1300" -> >1300 | R33: =DCOUNT(Individual_Scores,M41,K41:N42) -> 0
B34: 15 & < | C34: M | D34: =">="&G28 -> >=1100 | E34: ="<"&G29 -> <1150 | K34: 16-20 | L34: M | M34: =">="&P28 -> >=1100 | N34: ="<"&P29 -> <1150
B35: Age Group | C35: Gender | D35: Tournament 3 | E35: =D35 -> Tournament 3 | K35: Age Group | L35: Gender | M35: Tournament 3 | N35: =M35 -> Tournament 3
B36: 15 & < | C36: M | D36: =">="&G29 -> >=1150 | E36: ="<"&G30 -> <1200 | K36: 16-20 | L36: M | M36: =">="&P29 -> >=1150 | N36: ="<"&P30 -> <1200
B37: Age Group | C37: Gender | D37: Tournament 3 | E37: =D37 -> Tournament 3 | K37: Age Group | L37: Gender | M37: Tournament 3 | N37: =M37 -> Tournament 3
B38: 15 & < | C38: M | D38: =">="&G30 -> >=1200 | E38: ="<"&G31 -> <1250 | K38: 16-20 | L38: M | M38: =">="&P30 -> >=1200 | N38: ="<"&P31 -> <1250
B39: Age Group | C39: Gender | D39: Tournament 3 | E39: =D39 -> Tournament 3 | K39: Age Group | L39: Gender | M39: Tournament 3 | N39: =M39 -> Tournament 3
B40: 15 & < | C40: M | D40: =">="&G31 -> >=1250 | E40: ="<"&G32 -> <1300 | K40: 16-20 | L40: M | M40: =">="&P31 -> >=1250 | N40: ="<"&P32 -> <1300
B41: =B39 -> Age Group | C41: Gender | D41: Tournament 3 | K41: =K39 -> Age Group | L41: Gender | M41: Tournament 3
B42: 15 & < | C42: M | D42: =">="&G32 -> >=1300 | K42: 16-20 | L42: M | M42: =">="&P32 -> >=1300

Sheet Rpt Tourn 1
C2: ='Team Scores'!C2 -> Regulation | D2: ='Team Scores'!D2 -> Baker | E2: ='Team Scores'!E2 -> Total | H2: ='Individual Awards'!A2 -> Individual High Scores -- Tournament | L2: ='Individual Awards'!E2 -> Name | M2: ='Individual Awards'!F2 -> Score
A3: ='Team Scores'!A3 -> All Divisions | H3: ='Individual Awards'!A3 -> High Game | J3: ='Individual Awards'!C3 -> F | K3: ='Individual Awards'!D3 -> 15 & < | L3: ='Individual Awards'!E3 -> Danielle Lane (SC) | M3: ='Individual Awards'!F3 -> 236
A4: ='Team Scores'!A4 -> Georgia | C4: ='Team Scores'!C4 -> 41838 | D4: ='Team Scores'!D4 -> 16240 | E4: ='Team Scores'!E4 -> 58078 | F4: ='Team Scores'!F4 -> -2045 | K4: ='Individual Awards'!D4 -> 16-20 | L4: ='Individual Awards'!E4 -> Breanna Clemmer (NC) | M4: ='Individual Awards'!F4 -> 268
A5: ='Team Scores'!A5 -> North Carolina | C5: ='Team Scores'!C5 -> 42856 | D5: ='Team Scores'!D5 -> 17267 | E5: ='Team Scores'!E5 -> 60123 | F5: ='Team Scores'!F5 -> 0 | J5: ='Individual Awards'!C5 -> M | K5: ='Individual Awards'!D5 -> 15 & < | L5: ='Individual Awards'!E5 -> Brandon Magennis (SC) | M5: ='Individual Awards'!F5 -> 265
A6: ='Team Scores'!A6 -> South Carolina | C6: ='Team Scores'!C6 -> 41425 | D6: ='Team Scores'!D6 -> 16496 | E6: ='Team Scores'!E6 -> 57921 | F6: ='Team Scores'!F6 -> -2202 | K6: ='Individual Awards'!D6 -> 16-20 | L6: ='Individual Awards'!E6 -> TIE | M6: ='Individual Awards'!F6 -> 268
H7: ='Individual Awards'!A7 -> High Series | J7: ='Individual Awards'!C7 -> F | K7: ='Individual Awards'!D7 -> 15 & < | L7: ='Individual Awards'!E7 -> Cameron Strombeck (NC) | M7: ='Individual Awards'!F7 -> 646
A8: ='Team Scores'!A8 -> Age 15 & < Girls | K8: ='Individual Awards'!D8 -> 16-20 | L8: ='Individual Awards'!E8 -> Kasey Smith (SC) | M8: ='Individual Awards'!F8 -> 656
A9: ='Team Scores'!A9 -> Georgia | C9: ='Team Scores'!C9 -> 9220 | D9: ='Team Scores'!D9 -> 3974 | E9: ='Team Scores'!E9 -> 13194 | F9: ='Team Scores'!F9 -> -839 | J9: ='Individual Awards'!C9 -> M | K9: ='Individual Awards'!D9 -> 15 & < | L9: ='Individual Awards'!E9 -> Peyton Smith (GA) | M9: ='Individual Awards'!F9 -> 723
A10: ='Team Scores'!A10 -> North Carolina | C10: ='Team Scores'!C10 -> 10036 | D10: ='Team Scores'!D10 -> 3997 | E10: ='Team Scores'!E10 -> 14033 | F10: ='Team Scores'!F10 -> 0 | K10: ='Individual Awards'!D10 -> 16-20 | L10: ='Individual Awards'!E10 -> Christian Gurney (SC) | M10: ='Individual Awards'!F10 -> 686
A11: ='Team Scores'!A11 -> South Carolina | C11: ='Team Scores'!C11 -> 9806 | D11: ='Team Scores'!D11 -> 3747 | E11: ='Team Scores'!E11 -> 13553 | F11: ='Team Scores'!F11 -> -480 | H11: ='Individual Awards'!A11 -> Bowler of the Year | J11: ='Individual Awards'!C11 -> F | K11: ='Individual Awards'!D11 -> 15 & < | L11: ='Individual Awards'!E11 -> Cameron Strombeck (NC) | M11: ='Individual Awards'!F11 -> 2413
K12: ='Individual Awards'!D12 -> 16-20 | L12: ='Individual Awards'!E12 -> Breanna Clemmer (NC) | M12: ='Individual Awards'!F12 -> 2446
A13: ='Team Scores'!A13 -> Age 15 & < Boys | J13: ='Individual Awards'!C13 -> M | K13: ='Individual Awards'!D13 -> 15 & < | L13: ='Individual Awards'!E13 -> Peyton Smith (GA) | M13: ='Individual Awards'!F13 -> 2629
A14: ='Team Scores'!A14 -> Georgia | C14: ='Team Scores'!C14 -> 10378 | D14: ='Team Scores'!D14 -> 4100 | E14: ='Team Scores'!E14 -> 14478 | F14: ='Team Scores'!F14 -> -437 | K14: ='Individual Awards'!D14 -> 16-20 | L14: ='Individual Awards'!E14 -> Troy White (NC) | M14: ='Individual Awards'!F14 -> 2670
A15: ='Team Scores'!A15 -> North Carolina | C15: ='Team Scores'!C15 -> 10452 | D15: ='Team Scores'!D15 -> 4463 | E15: ='Team Scores'!E15 -> 14915 | F15: ='Team Scores'!F15 -> 0 | H15: ='Individual Awards'!A15 -> High Total Pins This Tournament | J15: ='Individual Awards'!C15 -> F | K15: ='Individual Awards'!D15 -> 15 & < | L15: ='Individual Awards'!E15 -> Cameron Strombeck (NC) | M15: ='Individual Awards'!F15 -> 1253
A16: ='Team Scores'!A16 -> South Carolina | C16: ='Team Scores'!C16 -> 10597 | D16: ='Team Scores'!D16 -> 4269 | E16: ='Team Scores'!E16 -> 14866 | F16: ='Team Scores'!F16 -> -49 | K16: ='Individual Awards'!D16 -> 16-20 | L16: ='Individual Awards'!E16 -> Breanna Clemmer (NC) | M16: ='Individual Awards'!F16 -> 1208
J17: ='Individual Awards'!C17 -> M | K17: ='Individual Awards'!D17 -> 15 & < | L17: ='Individual Awards'!E17 -> Peyton Smith (GA) | M17: ='Individual Awards'!F17 -> 1341
A18: ='Team Scores'!A18 -> Age 16-20 Girls | K18: ='Individual Awards'!D18 -> 16-20 | L18: ='Individual Awards'!E18 -> Josh Rondino (GA) | M18: ='Individual Awards'!F18 -> 1295
A19: ='Team Scores'!A19 -> Georgia | C19: ='Team Scores'!C19 -> 10618 | D19: ='Team Scores'!D19 -> 4008 | E19: ='Team Scores'!E19 -> 14626 | F19: ='Team Scores'!F19 -> 0
A20: ='Team Scores'!A20 -> North Carolina | C20: ='Team Scores'!C20 -> 10471 | D20: ='Team Scores'!D20 -> 4056 | E20: ='Team Scores'!E20 -> 14527 | F20: ='Team Scores'!F20 -> -99
A21: ='Team Scores'!A21 -> South Carolina | C21: ='Team Scores'!C21 -> 9963 | D21: ='Team Scores'!D21 -> 3984 | E21: ='Team Scores'!E21 -> 13947 | F21: ='Team Scores'!F21 -> -679
A23: ='Team Scores'!A23 -> Age 16-20 Boys | H23: ='Individual Awards'!E1 -> Gold Cup Russell Pkwy, Warner Robins, GA
A24: ='Team Scores'!A24 -> Georgia | C24: ='Team Scores'!C24 -> 11622 | D24: ='Team Scores'!D24 -> 4158 | E24: ='Team Scores'!E24 -> 15780 | F24: ='Team Scores'!F24 -> -868
A25: ='Team Scores'!A25 -> North Carolina | C25: ='Team Scores'!C25 -> 11897 | D25: ='Team Scores'!D25 -> 4751 | E25: ='Team Scores'!E25 -> 16648 | F25: ='Team Scores'!F25 -> 0
A26: ='Team Scores'!A26 -> South Carolina | C26: ='Team Scores'!C26 -> 11059 | D26: ='Team Scores'!D26 -> 4496 | E26: ='Team Scores'!E26 -> 15555 | F26: ='Team Scores'!F26 -> -1093

Sheet Individual Scores
A1: State | B1: Age Group | C1: Gender | D1: Full Name | E1: Tournament 1 | F1: Tournament 2 | G1: Tournament 3 | H1: All Events Total | I1: Bowler of Year Pins Back | J1: High Game | K1: High Series | L1: Average | M1: Consistency (Avg Deviation from Average) | N1: Avg Range (avg +/- Avg Deviation) | O1: counter | Q1: T1 Game 1 | R1: T1 Game 2 | S1: T1 Game 3 | T1: T1 Game 4 | U1: T1 Game 5 | V1: T1 Game 6 | W1: T1 Tournament Total | X1: T1 High Game | Y1: T1 High Series | AA1: T2 Game 1 | AB1: T2 Game 2 | AC1: T2 Game 3 | AD1: T2 Game 4 | AE1: T2 Game 5 | AF1: T2 Game 6 | AG1: T2 Tournament Total | AH1: T2 High Game | AI1: T2 High Series | AK1: T3 Game 1 | AL1: T3 Game 2 | AM1: T3 Game 3 | AN1: T3 Game 4 | AO1: T3 Game 5 | AP1: T3 Game 6 | AQ1: T3 Tournament Total | AR1: T3 High Game | AS1: T3 High Series
A2: GA | I2: =IF(COUNT(Q2:V2,AA2:AF2,AK2:AP2)>=18/3*'Team Scores'!$Z$1,IF(H2-VLOOKUP(B2&C2,'Individual Awards Computations'!$AY$54:$AZ$58,2,FALSE)=0,"Leader "&C2&":"&B2,H2-VLOOKUP(B2&C2,'Individual Awards Computations'!$AY$54:$AZ$58,2,FALSE)),"") ->  | J2: =IF(H2=0,"",MAX(Q2:V2,AA2:AF2,AK2:AP2)) ->  | K2: =IF(H2=0,"",MAX(SUM(Q2:S2),SUM(T2:V2),SUM(AA2:AC2),SUM(AD2:AF2),SUM(AK2:AM2),SUM(AN2:AP2))) ->  | L2: =IF(H2=0,"",AVERAGE(Q2:V2,AA2:AF2,AK2:AP2)) ->  | M2: =IF(H2=0,"",AVEDEV(Q2:V2,AA2:AF2,AK2:AP2)) ->  | N2: =IF(H2=0,"",ROUND(L2-M2,0)&"-"&ROUND(L2+M2,0)) ->  | O2: =COUNTIF($D$3:$D$169,D2) -> 0
A3: GA | B3: 15 & < | C3: F | D3: Anita Li | E3: =W3 -> 994 | F3: =AG3 -> 944 | G3: =AQ3 ->  | H3: =SUM(AQ3,AG3,W3) -> 1938 | I3: =IF(COUNT(Q3:V3,AA3:AF3,AK3:AP3)>=18/3*'Team Scores'!$Z$1,IF(H3-VLOOKUP(B3&C3,'Individual Awards Computations'!$AY$54:$AZ$58,2,FALSE)=0,"Leader "&C3&":"&B3,H3-VLOOKUP(B3&C3,'Individual Awards Computations'!$AY$54:$AZ$58,2,FALSE)),"") -> -475 | J3: 183 | K3: 509 | L3: 161.5 | M3: 12.58333333 | N3: 149-174 | O3: 1 | Q3: =IF(ISERROR(MATCH('Individual Scores'!$D3,Scores!$F$1:$F$253,0)),"",INDIRECT("Scores!"&"R"&MATCH('Individual Scores'!$D3,Scores!$F$1:$F$253,0)&"C"&COLUMN(Scores!J$1),FALSE)) -> 135 | R3: =IF(ISERROR(MATCH('Individual Scores'!$D3,Scores!$F$1:$F$253,0)),"",INDIRECT("Scores!"&"R"&MATCH('Individual Scores'!$D3,Scores!$F$1:$F$253,0)&"C"&COLUMN(Scores!K$1),FALSE)) -> 180 | S3: =IF(ISERROR(MATCH('Individual Scores'!$D3,Scores!$F$1:$F$253,0)),"",INDIRECT("Scores!"&"R"&MATCH('Individual Scores'!$D3,Scores!$F$1:$F$253,0)&"C"&COLUMN(Scores!L$1),FALSE)) -> 170 | T3: =IF(ISERROR(MATCH('Individual Scores'!$D3,Scores!$F$1:$F$253,0)),"",INDIRECT("Scores!"&"R"&MATCH('Individual Scores'!$D3,Scores!$F$1:$F$253,0)&"C"&COLUMN(Scores!N$1),FALSE)) -> 166 | U3: =IF(ISERROR(MATCH('Individual Scores'!$D3,Scores!$F$1:$F$253,0)),"",INDIRECT("Scores!"&"R"&MATCH('Individual Scores'!$D3,Scores!$F$1:$F$253,0)&"C"&COLUMN(Scores!O$1),FALSE)) -> 183 | V3: =IF(ISERROR(MATCH('Individual Scores'!$D3,Scores!$F$1:$F$253,0)),"",INDIRECT("Scores!"&"R"&MATCH('Individual Scores'!$D3,Scores!$F$1:$F$253,0)&"C"&COLUMN(Scores!P$1),FALSE)) -> 160 | W3: =IF(ISERROR(MATCH('Individual Scores'!$D3,Scores!$F$1:$F$253,0)),"",INDIRECT("Scores!"&"R"&MATCH('Individual Scores'!$D3,Scores!$F$1:$F$253,0)&"C"&COLUMN(Scores!S$1),FALSE)) -> 994 | X3: =IF(MAX('Individual Scores'!Q3:V3)>0,MAX('Individual Scores'!Q3:V3),"") -> 183 | Y3: =IF(MAX(SUM('Individual Scores'!Q3:S3),SUM('Individual Scores'!T3:V3))>0,MAX(SUM('Individual Scores'!Q3:S3),SUM('Individual Scores'!T3:V3)),"") -> 509 | AA3: =IF('Team Scores'!$Z$1<2,"",IF(ISERROR(MATCH('Individual Scores'!$D3,Scores!$F$253:$F$506,0)),"",INDIRECT("Scores!"&"R"&(ROW(Scores!$253:$253)-1+MATCH('Individual Scores'!$D3,Scores!$F$253:$F$505,0))&"C"&COLUMN(Scores!J$1),FALSE))) -> 165 | AB3: =IF('Team Scores'!$Z$1<2,"",IF(ISERROR(MATCH('Individual Scores'!$D3,Scores!$F$253:$F$506,0)),"",INDIRECT("Scores!"&"R"&(ROW(Scores!$253:$253)-1+MATCH('Individual Scores'!$D3,Scores!$F$253:$F$505,0))&"C"&COLUMN(Scores!K$1),FALSE))) -> 150 | AC3: =IF('Team Scores'!$Z$1<2,"",IF(ISERROR(MATCH('Individual Scores'!$D3,Scores!$F$253:$F$506,0)),"",INDIRECT("Scores!"&"R"&(ROW(Scores!$253:$253)-1+MATCH('Individual Scores'!$D3,Scores!$F$253:$F$505,0))&"C"&COLUMN(Scores!L$1),FALSE))) -> 172 | AD3: =IF('Team Scores'!$Z$1<2,"",IF(ISERROR(MATCH('Individual Scores'!$D3,Scores!$F$253:$F$506,0)),"",INDIRECT("Scores!"&"R"&(ROW(Scores!$253:$253)-1+MATCH('Individual Scores'!$D3,Scores!$F$253:$F$505,0))&"C"&COLUMN(Scores!N$1),FALSE))) -> 154 | AE3: =IF('Team Scores'!$Z$1<2,"",IF(ISERROR(MATCH('Individual Scores'!$D3,Scores!$F$253:$F$506,0)),"",INDIRECT("Scores!"&"R"&(ROW(Scores!$253:$253)-1+MATCH('Individual Scores'!$D3,Scores!$F$253:$F$505,0))&"C"&COLUMN(Scores!O$1),FALSE))) -> 170 | AF3: =IF('Team Scores'!$Z$1<2,"",IF(ISERROR(MATCH('Individual Scores'!$D3,Scores!$F$253:$F$506,0)),"",INDIRECT("Scores!"&"R"&(ROW(Scores!$253:$253)-1+MATCH('Individual Scores'!$D3,Scores!$F$253:$F$505,0))&"C"&COLUMN(Scores!P$1),FALSE))) -> 133 | AG3: =IF('Team Scores'!$Z$1<2,"",IF(ISERROR(MATCH('Individual Scores'!$D3,Scores!$F$253:$F$506,0)),"",INDIRECT("Scores!"&"R"&(ROW(Scores!$253:$253)-1+MATCH('Individual Scores'!$D3,Scores!$F$253:$F$505,0))&"C"&COLUMN(Scores!S$1),FALSE))) -> 944 | AH3: =IF(MAX(AA3:AF3)>0,MAX(AA3:AF3),"") -> 172 | AI3: =IF(MAX(SUM(AA3:AC3),SUM(AD3:AF3))>0,MAX(SUM(AA3:AC3),SUM(AD3:AF3)),"") -> 487 | AK3: =IF('Team Scores'!$Z$1<3,"",IF(ISERROR(MATCH('Individual Scores'!$D3,Scores!$F$506:$F$759,0)),"",INDIRECT("Scores!"&"R"&(ROW(Scores!$F$506:$F$759)-1+MATCH('Individual Scores'!$D3,Scores!$F$506:$F$759,0))&"C"&COLUMN(Scores!J$1),FALSE))) ->  | AL3: =IF('Team Scores'!$Z$1<3,"",IF(ISERROR(MATCH('Individual Scores'!$D3,Scores!$F$506:$F$759,0)),"",INDIRECT("Scores!"&"R"&(ROW(Scores!$F$506:$F$759)-1+MATCH('Individual Scores'!$D3,Scores!$F$506:$F$759,0))&"C"&COLUMN(Scores!K$1),FALSE))) ->  | AM3: =IF('Team Scores'!$Z$1<3,"",IF(ISERROR(MATCH('Individual Scores'!$D3,Scores!$F$506:$F$759,0)),"",INDIRECT("Scores!"&"R"&(ROW(Scores!$F$506:$F$759)-1+MATCH('Individual Scores'!$D3,Scores!$F$506:$F$759,0))&"C"&COLUMN(Scores!L$1),FALSE))) ->  | AN3: =IF('Team Scores'!$Z$1<3,"",IF(ISERROR(MATCH('Individual Scores'!$D3,Scores!$F$506:$F$759,0)),"",INDIRECT("Scores!"&"R"&(ROW(Scores!$F$506:$F$759)-1+MATCH('Individual Scores'!$D3,Scores!$F$506:$F$759,0))&"C"&COLUMN(Scores!N$1),FALSE))) ->  | AO3: =IF('Team Scores'!$Z$1<3,"",IF(ISERROR(MATCH('Individual Scores'!$D3,Scores!$F$506:$F$759,0)),"",INDIRECT("Scores!"&"R"&(ROW(Scores!$F$506:$F$759)-1+MATCH('Individual Scores'!$D3,Scores!$F$506:$F$759,0))&"C"&COLUMN(Scores!O$1),FALSE))) ->  | AP3: =IF('Team Scores'!$Z$1<3,"",IF(ISERROR(MATCH('Individual Scores'!$D3,Scores!$F$506:$F$759,0)),"",INDIRECT("Scores!"&"R"&(ROW(Scores!$F$506:$F$759)-1+MATCH('Individual Scores'!$D3,Scores!$F$506:$F$759,0))&"C"&COLUMN(Scores!P$1),FALSE))) ->  | AQ3: =IF('Team Scores'!$Z$1<3,"",IF(ISERROR(MATCH('Individual Scores'!$D3,Scores!$F$506:$F$759,0)),"",INDIRECT("Scores!"&"R"&(ROW(Scores!$F$506:$F$759)-1+MATCH('Individual Scores'!$D3,Scores!$F$506:$F$759,0))&"C"&COLUMN(Scores!S$1),FALSE))) ->  | AR3: =IF(MAX(AK3:AP3)>0,MAX(AK3:AP3),"") ->  | AS3: =IF(MAX(SUM(AK3:AM3),SUM(AN3:AP3))>0,MAX(SUM(AK3:AM3),SUM(AN3:AP3)),"") -> 
A4: GA | B4: 15 & < | C4: F | D4: Annalise O'Bryant | E4: 1012 | F4: 1136 | H4: 2148 | I4: =IF(COUNT(Q4:V4,AA4:AF4,AK4:AP4)>=18/3*'Team Scores'!$Z$1,IF(H4-VLOOKUP(B4&C4,'Individual Awards Computations'!$AY$54:$AZ$58,2,FALSE)=0,"Leader "&C4&":"&B4,H4-VLOOKUP(B4&C4,'Individual Awards Computations'!$AY$54:$AZ$58,2,FALSE)),"") -> -265 | J4: =IF(H4=0,"",MAX(Q4:V4,AA4:AF4,AK4:AP4)) -> 212 | K4: =IF(H4=0,"",MAX(SUM(Q4:S4),SUM(T4:V4),SUM(AA4:AC4),SUM(AD4:AF4),SUM(AK4:AM4),SUM(AN4:AP4))) -> 576 | L4: =IF(H4=0,"",AVERAGE(Q4:V4,AA4:AF4,AK4:AP4)) -> 179 | M4: =IF(H4=0,"",AVEDEV(Q4:V4,AA4:AF4,AK4:AP4)) -> 17 | N4: =IF(H4=0,"",ROUND(L4-M4,0)&"-"&ROUND(L4+M4,0)) -> 162-196 | O4: 1 | Q4: =IF(ISERROR(MATCH('Individual Scores'!$D4,Scores!$F$1:$F$253,0)),"",INDIRECT("Scores!"&"R"&MATCH('Individual Scores'!$D4,Scores!$F$1:$F$253,0)&"C"&COLUMN(Scores!J$1),FALSE)) -> 164 | R4: =IF(ISERROR(MATCH('Individual Scores'!$D4,Scores!$F$1:$F$253,0)),"",INDIRECT("Scores!"&"R"&MATCH('Individual Scores'!$D4,Scores!$F$1:$F$253,0)&"C"&COLUMN(Scores!K$1),FALSE)) -> 168 | S4: =IF(ISERROR(MATCH('Individual Scores'!$D4,Scores!$F$1:$F$253,0)),"",INDIRECT("Scores!"&"R"&MATCH('Individual Scores'!$D4,Scores!$F$1:$F$253,0)&"C"&COLUMN(Scores!L$1),FALSE)) -> 170 | T4: =IF(ISERROR(MATCH('Individual Scores'!$D4,Scores!$F$1:$F$253,0)),"",INDIRECT("Scores!"&"R"&MATCH('Individual Scores'!$D4,Scores!$F$1:$F$253,0)&"C"&COLUMN(Scores!N$1),FALSE)) -> 193 | U4: =IF(ISERROR(MATCH('Individual Scores'!$D4,Scores!$F$1:$F$253,0)),"",INDIRECT("Scores!"&"R"&MATCH('Individual Scores'!$D4,Scores!$F$1:$F$253,0)&"C"&COLUMN(Scores!O$1),FALSE)) -> 152 | V4: =IF(ISERROR(MATCH('Individual Scores'!$D4,Scores!$F$1:$F$253,0)),"",INDIRECT("Scores!"&"R"&MATCH('Individual Scores'!$D4,Scores!$F$1:$F$253,0)&"C"&COLUMN(Scores!P$1),FALSE)) -> 165 | W4: =IF(ISERROR(MATCH('Individual Scores'!$D4,Scores!$F$1:$F$253,0)),"",INDIRECT("Scores!"&"R"&MATCH('Individual Scores'!$D4,Scores!$F$1:$F$253,0)&"C"&COLUMN(Scores!S$1),FALSE)) -> 1012 | X4: =IF(MAX('Individual Scores'!Q4:V4)>0,MAX('Individual Scores'!Q4:V4),"") -> 193 | Y4: =IF(MAX(SUM('Individual Scores'!Q4:S4),SUM('Individual Scores'!T4:V4))>0,MAX(SUM('Individual Scores'!Q4:S4),SUM('Individual Scores'!T4:V4)),"") -> 510 | AA4: =IF('Team Scores'!$Z$1<2,"",IF(ISERROR(MATCH('Individual Scores'!$D4,Scores!$F$253:$F$506,0)),"",INDIRECT("Scores!"&"R"&(ROW(Scores!$253:$253)-1+MATCH('Individual Scores'!$D4,Scores!$F$253:$F$505,0))&"C"&COLUMN(Scores!J$1),FALSE))) -> 194 | AB4: =IF('Team Scores'!$Z$1<2,"",IF(ISERROR(MATCH('Individual Scores'!$D4,Scores!$F$253:$F$506,0)),"",INDIRECT("Scores!"&"R"&(ROW(Scores!$253:$253)-1+MATCH('Individual Scores'!$D4,Scores!$F$253:$F$505,0))&"C"&COLUMN(Scores!K$1),FALSE))) -> 194 | AC4: =IF('Team Scores'!$Z$1<2,"",IF(ISERROR(MATCH('Individual Scores'!$D4,Scores!$F$253:$F$506,0)),"",INDIRECT("Scores!"&"R"&(ROW(Scores!$253:$253)-1+MATCH('Individual Scores'!$D4,Scores!$F$253:$F$505,0))&"C"&COLUMN(Scores!L$1),FALSE))) -> 172 | AD4: =IF('Team Scores'!$Z$1<2,"",IF(ISERROR(MATCH('Individual Scores'!$D4,Scores!$F$253:$F$506,0)),"",INDIRECT("Scores!"&"R"&(ROW(Scores!$253:$253)-1+MATCH('Individual Scores'!$D4,Scores!$F$253:$F$505,0))&"C"&COLUMN(Scores!N$1),FALSE))) -> 212 | AE4: =IF('Team Scores'!$Z$1<2,"",IF(ISERROR(MATCH('Individual Scores'!$D4,Scores!$F$253:$F$506,0)),"",INDIRECT("Scores!"&"R"&(ROW(Scores!$253:$253)-1+MATCH('Individual Scores'!$D4,Scores!$F$253:$F$505,0))&"C"&COLUMN(Scores!O$1),FALSE))) -> 204 | AF4: =IF('Team Scores'!$Z$1<2,"",IF(ISERROR(MATCH('Individual Scores'!$D4,Scores!$F$253:$F$506,0)),"",INDIRECT("Scores!"&"R"&(ROW(Scores!$253:$253)-1+MATCH('Individual Scores'!$D4,Scores!$F$253:$F$505,0))&"C"&COLUMN(Scores!P$1),FALSE))) -> 160 | AG4: =IF('Team Scores'!$Z$1<2,"",IF(ISERROR(MATCH('Individual Scores'!$D4,Scores!$F$253:$F$506,0)),"",INDIRECT("Scores!"&"R"&(ROW(Scores!$253:$253)-1+MATCH('Individual Scores'!$D4,Scores!$F$253:$F$505,0))&"C"&COLUMN(Scores!S$1),FALSE))) -> 1136 | AH4: 212 | AI4: 576 | AK4: =IF('Team Scores'!$Z$1<3,"",IF(ISERROR(MATCH('Individual Scores'!$D4,Scores!$F$506:$F$759,0)),"",INDIRECT("Scores!"&"R"&(ROW(Scores!$F$506:$F$759)-1+MATCH('Individual Scores'!$D4,Scores!$F$506:$F$759,0))&"C"&COLUMN(Scores!J$1),FALSE))) ->  | AL4: =IF('Team Scores'!$Z$1<3,"",IF(ISERROR(MATCH('Individual Scores'!$D4,Scores!$F$506:$F$759,0)),"",INDIRECT("Scores!"&"R"&(ROW(Scores!$F$506:$F$759)-1+MATCH('Individual Scores'!$D4,Scores!$F$506:$F$759,0))&"C"&COLUMN(Scores!K$1),FALSE))) ->  | AM4: =IF('Team Scores'!$Z$1<3,"",IF(ISERROR(MATCH('Individual Scores'!$D4,Scores!$F$506:$F$759,0)),"",INDIRECT("Scores!"&"R"&(ROW(Scores!$F$506:$F$759)-1+MATCH('Individual Scores'!$D4,Scores!$F$506:$F$759,0))&"C"&COLUMN(Scores!L$1),FALSE))) ->  | AN4: =IF('Team Scores'!$Z$1<3,"",IF(ISERROR(MATCH('Individual Scores'!$D4,Scores!$F$506:$F$759,0)),"",INDIRECT("Scores!"&"R"&(ROW(Scores!$F$506:$F$759)-1+MATCH('Individual Scores'!$D4,Scores!$F$506:$F$759,0))&"C"&COLUMN(Scores!N$1),FALSE))) ->  | AO4: =IF('Team Scores'!$Z$1<3,"",IF(ISERROR(MATCH('Individual Scores'!$D4,Scores!$F$506:$F$759,0)),"",INDIRECT("Scores!"&"R"&(ROW(Scores!$F$506:$F$759)-1+MATCH('Individual Scores'!$D4,Scores!$F$506:$F$759,0))&"C"&COLUMN(Scores!O$1),FALSE))) ->  | AP4: =IF('Team Scores'!$Z$1<3,"",IF(ISERROR(MATCH('Individual Scores'!$D4,Scores!$F$506:$F$759,0)),"",INDIRECT("Scores!"&"R"&(ROW(Scores!$F$506:$F$759)-1+MATCH('Individual Scores'!$D4,Scores!$F$506:$F$759,0))&"C"&COLUMN(Scores!P$1),FALSE))) ->  | AQ4: =IF('Team Scores'!$Z$1<3,"",IF(ISERROR(MATCH('Individual Scores'!$D4,Scores!$F$506:$F$759,0)),"",INDIRECT("Scores!"&"R"&(ROW(Scores!$F$506:$F$759)-1+MATCH('Individual Scores'!$D4,Scores!$F$506:$F$759,0))&"C"&COLUMN(Scores!S$1),FALSE))) ->  | AR4: =IF(MAX(AK4:AP4)>0,MAX(AK4:AP4),"") ->  | AS4: =IF(MAX(SUM(AK4:AM4),SUM(AN4:AP4))>0,MAX(SUM(AK4:AM4),SUM(AN4:AP4)),"") -> 
A5: GA | B5: 15 & < | C5: F | D5: Bethany Noel | E5: 959 | F5: 962 | H5: 1921 | I5: =IF(COUNT(Q5:V5,AA5:AF5,AK5:AP5)>=18/3*'Team Scores'!$Z$1,IF(H5-VLOOKUP(B5&C5,'Individual Awards Computations'!$AY$54:$AZ$58,2,FALSE)=0,"Leader "&C5&":"&B5,H5-VLOOKUP(B5&C5,'Individual Awards Computations'!$AY$54:$AZ$58,2,FALSE)),"") -> -492 | J5: 181 | K5: 490 | L5: 160.0833333 | M5: 10.58333333 | N5: 150-171 | O5: 1 | Q5: =IF(ISERROR(MATCH('Individual Scores'!$D5,Scores!$F$1:$F$253,0)),"",INDIRECT("Scores!"&"R"&MATCH('Individual Scores'!$D5,Scores!$F$1:$F$253,0)&"C"&COLUMN(Scores!J$1),FALSE)) -> 137 | R5: =IF(ISERROR(MATCH('Individual Scores'!$D5,Scores!$F$1:$F$253,0)),"",INDIRECT("Scores!"&"R"&MATCH('Individual Scores'!$D5,Scores!$F$1:$F$253,0)&"C"&COLUMN(Scores!K$1),FALSE)) -> 159 | S5: =IF(ISERROR(MATCH('Individual Scores'!$D5,Scores!$F$1:$F$253,0)),"",INDIRECT("Scores!"&"R"&MATCH('Individual Scores'!$D5,Scores!$F$1:$F$253,0)&"C"&COLUMN(Scores!L$1),FALSE)) -> 176 | T5: =IF(ISERROR(MATCH('Individual Scores'!$D5,Scores!$F$1:$F$253,0)),"",INDIRECT("Scores!"&"R"&MATCH('Individual Scores'!$D5,Scores!$F$1:$F$253,0)&"C"&COLUMN(Scores!N$1),FALSE)) -> 181 | U5: =IF(ISERROR(MATCH('Individual Scores'!$D5,Scores!$F$1:$F$253,0)),"",INDIRECT("Scores!"&"R"&MATCH('Individual Scores'!$D5,Scores!$F$1:$F$253,0)&"C"&COLUMN(Scores!O$1),FALSE)) -> 145 | V5: =IF(ISERROR(MATCH('Individual Scores'!$D5,Scores!$F$1:$F$253,0)),"",INDIRECT("Scores!"&"R"&MATCH('Individual Scores'!$D5,Scores!$F$1:$F$253,0)&"C"&COLUMN(Scores!P$1),FALSE)) -> 161 | W5: =IF(ISERROR(MATCH('Individual Scores'!$D5,Scores!$F$1:$F$253,0)),"",INDIRECT("Scores!"&"R"&MATCH('Individual Scores'!$D5,Scores!$F$1:$F$253,0)&"C"&COLUMN(Scores!S$1),FALSE)) -> 959 | X5: =IF(MAX('Individual Scores'!Q5:V5)>0,MAX('Individual Scores'!Q5:V5),"") -> 181 | Y5: =IF(MAX(SUM('Individual Scores'!Q5:S5),SUM('Individual Scores'!T5:V5))>0,MAX(SUM('Individual Scores'!Q5:S5),SUM('Individual Scores'!T5:V5)),"") -> 487 | AA5: =IF('Team Scores'!$Z$1<2,"",IF(ISERROR(MATCH('Individual Scores'!$D5,Scores!$F$253:$F$506,0)),"",INDIRECT("Scores!"&"R"&(ROW(Scores!$253:$253)-1+MATCH('Individual Scores'!$D5,Scores!$F$253:$F$505,0))&"C"&COLUMN(Scores!J$1),FALSE))) -> 169 | AB5: =IF('Team Scores'!$Z$1<2,"",IF(ISERROR(MATCH('Individual Scores'!$D5,Scores!$F$253:$F$506,0)),"",INDIRECT("Scores!"&"R"&(ROW(Scores!$253:$253)-1+MATCH('Individual Scores'!$D5,Scores!$F$253:$F$505,0))&"C"&COLUMN(Scores!K$1),FALSE))) -> 173 | AC5: =IF('Team Scores'!$Z$1<2,"",IF(ISERROR(MATCH('Individual Scores'!$D5,Scores!$F$253:$F$506,0)),"",INDIRECT("Scores!"&"R"&(ROW(Scores!$253:$253)-1+MATCH('Individual Scores'!$D5,Scores!$F$253:$F$505,0))&"C"&COLUMN(Scores!L$1),FALSE))) -> 148 | AD5: =IF('Team Scores'!$Z$1<2,"",IF(ISERROR(MATCH('Individual Scores'!$D5,Scores!$F$253:$F$506,0)),"",INDIRECT("Scores!"&"R"&(ROW(Scores!$253:$253)-1+MATCH('Individual Scores'!$D5,Scores!$F$253:$F$505,0))&"C"&COLUMN(Scores!N$1),FALSE))) -> 160 | AE5: =IF('Team Scores'!$Z$1<2,"",IF(ISERROR(MATCH('Individual Scores'!$D5,Scores!$F$253:$F$506,0)),"",INDIRECT("Scores!"&"R"&(ROW(Scores!$253:$253)-1+MATCH('Individual Scores'!$D5,Scores!$F$253:$F$505,0))&"C"&COLUMN(Scores!O$1),FALSE))) -> 148 | AF5: =IF('Team Scores'!$Z$1<2,"",IF(ISERROR(MATCH('Individual Scores'!$D5,Scores!$F$253:$F$506,0)),"",INDIRECT("Scores!"&"R"&(ROW(Scores!$253:$253)-1+MATCH('Individual Scores'!$D5,Scores!$F$253:$F$505,0))&"C"&COLUMN(Scores!P$1),FALSE))) -> 164 | AG5: =IF('Team Scores'!$Z$1<2,"",IF(ISERROR(MATCH('Individual Scores'!$D5,Scores!$F$253:$F$506,0)),"",INDIRECT("Scores!"&"R"&(ROW(Scores!$253:$253)-1+MATCH('Individual Scores'!$D5,Scores!$F$253:$F$505,0))&"C"&COLUMN(Scores!S$1),FALSE))) -> 962 | AH5: 173 | AI5: 490 | AK5: =IF('Team Scores'!$Z$1<3,"",IF(ISERROR(MATCH('Individual Scores'!$D5,Scores!$F$506:$F$759,0)),"",INDIRECT("Scores!"&"R"&(ROW(Scores!$F$506:$F$759)-1+MATCH('Individual Scores'!$D5,Scores!$F$506:$F$759,0))&"C"&COLUMN(Scores!J$1),FALSE))) ->  | AL5: =IF('Team Scores'!$Z$1<3,"",IF(ISERROR(MATCH('Individual Scores'!$D5,Scores!$F$506:$F$759,0)),"",INDIRECT("Scores!"&"R"&(ROW(Scores!$F$506:$F$759)-1+MATCH('Individual Scores'!$D5,Scores!$F$506:$F$759,0))&"C"&COLUMN(Scores!K$1),FALSE))) ->  | AM5: =IF('Team Scores'!$Z$1<3,"",IF(ISERROR(MATCH('Individual Scores'!$D5,Scores!$F$506:$F$759,0)),"",INDIRECT("Scores!"&"R"&(ROW(Scores!$F$506:$F$759)-1+MATCH('Individual Scores'!$D5,Scores!$F$506:$F$759,0))&"C"&COLUMN(Scores!L$1),FALSE))) ->  | AN5: =IF('Team Scores'!$Z$1<3,"",IF(ISERROR(MATCH('Individual Scores'!$D5,Scores!$F$506:$F$759,0)),"",INDIRECT("Scores!"&"R"&(ROW(Scores!$F$506:$F$759)-1+MATCH('Individual Scores'!$D5,Scores!$F$506:$F$759,0))&"C"&COLUMN(Scores!N$1),FALSE))) ->  | AO5: =IF('Team Scores'!$Z$1<3,"",IF(ISERROR(MATCH('Individual Scores'!$D5,Scores!$F$506:$F$759,0)),"",INDIRECT("Scores!"&"R"&(ROW(Scores!$F$506:$F$759)-1+MATCH('Individual Scores'!$D5,Scores!$F$506:$F$759,0))&"C"&COLUMN(Scores!O$1),FALSE))) ->  | AP5: =IF('Team Scores'!$Z$1<3,"",IF(ISERROR(MATCH('Individual Scores'!$D5,Scores!$F$506:$F$759,0)),"",INDIRECT("Scores!"&"R"&(ROW(Scores!$F$506:$F$759)-1+MATCH('Individual Scores'!$D5,Scores!$F$506:$F$759,0))&"C"&COLUMN(Scores!P$1),FALSE))) ->  | AQ5: =IF('Team Scores'!$Z$1<3,"",IF(ISERROR(MATCH('Individual Scores'!$D5,Scores!$F$506:$F$759,0)),"",INDIRECT("Scores!"&"R"&(ROW(Scores!$F$506:$F$759)-1+MATCH('Individual Scores'!$D5,Scores!$F$506:$F$759,0))&"C"&COLUMN(Scores!S$1),FALSE))) ->  | AR5: =IF(MAX(AK5:AP5)>0,MAX(AK5:AP5),"") ->  | AS5: =IF(MAX(SUM(AK5:AM5),SUM(AN5:AP5))>0,MAX(SUM(AK5:AM5),SUM(AN5:AP5)),"") -> 
A6: GA | B6: 15 & < | C6: F | D6: Catherine Friess | E6: 824 | F6: 936 | H6: 1760 | I6: =IF(COUNT(Q6:V6,AA6:AF6,AK6:AP6)>=18/3*'Team Scores'!$Z$1,IF(H6-VLOOKUP(B6&C6,'Individual Awards Computations'!$AY$54:$AZ$58,2,FALSE)=0,"Leader "&C6&":"&B6,H6-VLOOKUP(B6&C6,'Individual Awards Computations'!$AY$54:$AZ$58,2,FALSE)),"") -> -653 | J6: 189 | K6: 502 | L6: 146.6666667 | M6: 22.44444444 | N6: 124-169 | O6: 1 | Q6: =IF(ISERROR(MATCH('Individual Scores'!$D6,Scores!$F$1:$F$253,0)),"",INDIRECT("Scores!"&"R"&MATCH('Individual Scores'!$D6,Scores!$F$1:$F$253,0)&"C"&COLUMN(Scores!J$1),FALSE)) -> 136 | R6: =IF(ISERROR(MATCH('Individual Scores'!$D6,Scores!$F$1:$F$253,0)),"",INDIRECT("Scores!"&"R"&MATCH('Individual Scores'!$D6,Scores!$F$1:$F$253,0)&"C"&COLUMN(Scores!K$1),FALSE)) -> 124 | S6: =IF(ISERROR(MATCH('Individual Scores'!$D6,Scores!$F$1:$F$253,0)),"",INDIRECT("Scores!"&"R"&MATCH('Individual Scores'!$D6,Scores!$F$1:$F$253,0)&"C"&COLUMN(Scores!L$1),FALSE)) -> 144 | T6: =IF(ISERROR(MATCH('Individual Scores'!$D6,Scores!$F$1:$F$253,0)),"",INDIRECT("Scores!"&"R"&MATCH('Individual Scores'!$D6,Scores!$F$1:$F$253,0)&"C"&COLUMN(Scores!N$1),FALSE)) -> 168 | U6: =IF(ISERROR(MATCH('Individual Scores'!$D6,Scores!$F$1:$F$253,0)),"",INDIRECT("Scores!"&"R"&MATCH('Individual Scores'!$D6,Scores!$F$1:$F$253,0)&"C"&COLUMN(Scores!O$1),FALSE)) -> 104 | V6: =IF(ISERROR(MATCH('Individual Scores'!$D6,Scores!$F$1:$F$253,0)),"",INDIRECT("Scores!"&"R"&MATCH('Individual Scores'!$D6,Scores!$F$1:$F$253,0)&"C"&COLUMN(Scores!P$1),FALSE)) -> 148 | W6: =IF(ISERROR(MATCH('Individual Scores'!$D6,Scores!$F$1:$F$253,0)),"",INDIRECT("Scores!"&"R"&MATCH('Individual Scores'!$D6,Scores!$F$1:$F$253,0)&"C"&COLUMN(Scores!S$1),FALSE)) -> 824 | X6: =IF(MAX('Individual Scores'!Q6:V6)>0,MAX('Individual Scores'!Q6:V6),"") -> 168 | Y6: =IF(MAX(SUM('Individual Scores'!Q6:S6),SUM('Individual Scores'!T6:V6))>0,MAX(SUM('Individual Scores'!Q6:S6),SUM('Individual Scores'!T6:V6)),"") -> 420 | AA6: =IF('Team Scores'!$Z$1<2,"",IF(ISERROR(MATCH('Individual Scores'!$D6,Scores!$F$253:$F$506,0)),"",INDIRECT("Scores!"&"R"&(ROW(Scores!$253:$253)-1+MATCH('Individual Scores'!$D6,Scores!$F$253:$F$505,0))&"C"&COLUMN(Scores!J$1),FALSE))) -> 176 | AB6: =IF('Team Scores'!$Z$1<2,"",IF(ISERROR(MATCH('Individual Scores'!$D6,Scores!$F$253:$F$506,0)),"",INDIRECT("Scores!"&"R"&(ROW(Scores!$253:$253)-1+MATCH('Individual Scores'!$D6,Scores!$F$253:$F$505,0))&"C"&COLUMN(Scores!K$1),FALSE))) -> 115 | AC6: =IF('Team Scores'!$Z$1<2,"",IF(ISERROR(MATCH('Individual Scores'!$D6,Scores!$F$253:$F$506,0)),"",INDIRECT("Scores!"&"R"&(ROW(Scores!$253:$253)-1+MATCH('Individual Scores'!$D6,Scores!$F$253:$F$505,0))&"C"&COLUMN(Scores!L$1),FALSE))) -> 143 | AD6: =IF('Team Scores'!$Z$1<2,"",IF(ISERROR(MATCH('Individual Scores'!$D6,Scores!$F$253:$F$506,0)),"",INDIRECT("Scores!"&"R"&(ROW(Scores!$253:$253)-1+MATCH('Individual Scores'!$D6,Scores!$F$253:$F$505,0))&"C"&COLUMN(Scores!N$1),FALSE))) -> 126 | AE6: =IF('Team Scores'!$Z$1<2,"",IF(ISERROR(MATCH('Individual Scores'!$D6,Scores!$F$253:$F$506,0)),"",INDIRECT("Scores!"&"R"&(ROW(Scores!$253:$253)-1+MATCH('Individual Scores'!$D6,Scores!$F$253:$F$505,0))&"C"&COLUMN(Scores!O$1),FALSE))) -> 187 | AF6: =IF('Team Scores'!$Z$1<2,"",IF(ISERROR(MATCH('Individual Scores'!$D6,Scores!$F$253:$F$506,0)),"",INDIRECT("Scores!"&"R"&(ROW(Scores!$253:$253)-1+MATCH('Individual Scores'!$D6,Scores!$F$253:$F$505,0))&"C"&COLUMN(Scores!P$1),FALSE))) -> 189 | AG6: =IF('Team Scores'!$Z$1<2,"",IF(ISERROR(MATCH('Individual Scores'!$D6,Scores!$F$253:$F$506,0)),"",INDIRECT("Scores!"&"R"&(ROW(Scores!$253:$253)-1+MATCH('Individual Scores'!$D6,Scores!$F$253:$F$505,0))&"C"&COLUMN(Scores!S$1),FALSE))) -> 936 | AH6: 189 | AI6: 502 | AK6: =IF('Team Scores'!$Z$1<3,"",IF(ISERROR(MATCH('Individual Scores'!$D6,Scores!$F$506:$F$759,0)),"",INDIRECT("Scores!"&"R"&(ROW(Scores!$F$506:$F$759)-1+MATCH('Individual Scores'!$D6,Scores!$F$506:$F$759,0))&"C"&COLUMN(Scores!J$1),FALSE))) ->  | AL6: =IF('Team Scores'!$Z$1<3,"",IF(ISERROR(MATCH('Individual Scores'!$D6,Scores!$F$506:$F$759,0)),"",INDIRECT("Scores!"&"R"&(ROW(Scores!$F$506:$F$759)-1+MATCH('Individual Scores'!$D6,Scores!$F$506:$F$759,0))&"C"&COLUMN(Scores!K$1),FALSE))) ->  | AM6: =IF('Team Scores'!$Z$1<3,"",IF(ISERROR(MATCH('Individual Scores'!$D6,Scores!$F$506:$F$759,0)),"",INDIRECT("Scores!"&"R"&(ROW(Scores!$F$506:$F$759)-1+MATCH('Individual Scores'!$D6,Scores!$F$506:$F$759,0))&"C"&COLUMN(Scores!L$1),FALSE))) ->  | AN6: =IF('Team Scores'!$Z$1<3,"",IF(ISERROR(MATCH('Individual Scores'!$D6,Scores!$F$506:$F$759,0)),"",INDIRECT("Scores!"&"R"&(ROW(Scores!$F$506:$F$759)-1+MATCH('Individual Scores'!$D6,Scores!$F$506:$F$759,0))&"C"&COLUMN(Scores!N$1),FALSE))) ->  | AO6: =IF('Team Scores'!$Z$1<3,"",IF(ISERROR(MATCH('Individual Scores'!$D6,Scores!$F$506:$F$759,0)),"",INDIRECT("Scores!"&"R"&(ROW(Scores!$F$506:$F$759)-1+MATCH('Individual Scores'!$D6,Scores!$F$506:$F$759,0))&"C"&COLUMN(Scores!O$1),FALSE))) ->  | AP6: =IF('Team Scores'!$Z$1<3,"",IF(ISERROR(MATCH('Individual Scores'!$D6,Scores!$F$506:$F$759,0)),"",INDIRECT("Scores!"&"R"&(ROW(Scores!$F$506:$F$759)-1+MATCH('Individual Scores'!$D6,Scores!$F$506:$F$759,0))&"C"&COLUMN(Scores!P$1),FALSE))) ->  | AQ6: =IF('Team Scores'!$Z$1<3,"",IF(ISERROR(MATCH('Individual Scores'!$D6,Scores!$F$506:$F$759,0)),"",INDIRECT("Scores!"&"R"&(ROW(Scores!$F$506:$F$759)-1+MATCH('Individual Scores'!$D6,Scores!$F$506:$F$759,0))&"C"&COLUMN(Scores!S$1),FALSE))) -> 
A7: GA | B7: 15 & < | C7: F | D7: Cheyenne Miller | E7: 898 | F7: 964 | H7: 1862 | I7: =IF(COUNT(Q7:V7,AA7:AF7,AK7:AP7)>=18/3*'Team Scores'!$Z$1,IF(H7-VLOOKUP(B7&C7,'Individual Awards Computations'!$AY$54:$AZ$58,2,FALSE)=0,"Leader "&C7&":"&B7,H7-VLOOKUP(B7&C7,'Individual Awards Computations'!$AY$54:$AZ$58,2,FALSE)),"") -> -551 | J7: 191 | K7: 486 | L7: 155.1666667 | M7: 11.13888889 | N7: 144-166 | O7: 1 | Q7: =IF(ISERROR(MATCH('Individual Scores'!$D7,Scores!$F$1:$F$253,0)),"",INDIRECT("Scores!"&"R"&MATCH('Individual Scores'!$D7,Scores!$F$1:$F$253,0)&"C"&COLUMN(Scores!J$1),FALSE)) -> 169 | R7: =IF(ISERROR(MATCH('Individual Scores'!$D7,Scores!$F$1:$F$253,0)),"",INDIRECT("Scores!"&"R"&MATCH('Individual Scores'!$D7,Scores!$F$1:$F$253,0)&"C"&COLUMN(Scores!K$1),FALSE)) -> 159 | S7: =IF(ISERROR(MATCH('Individual Scores'!$D7,Scores!$F$1:$F$253,0)),"",INDIRECT("Scores!"&"R"&MATCH('Individual Scores'!$D7,Scores!$F$1:$F$253,0)&"C"&COLUMN(Scores!L$1),FALSE)) -> 156 | T7: =IF(ISERROR(MATCH('Individual Scores'!$D7,Scores!$F$1:$F$253,0)),"",INDIRECT("Scores!"&"R"&MATCH('Individual Scores'!$D7,Scores!$F$1:$F$253,0)&"C"&COLUMN(Scores!N$1),FALSE)) -> 146 | U7: =IF(ISERROR(MATCH('Individual Scores'!$D7,Scores!$F$1:$F$253,0)),"",INDIRECT("Scores!"&"R"&MATCH('Individual Scores'!$D7,Scores!$F$1:$F$253,0)&"C"&COLUMN(Scores!O$1),FALSE)) -> 136 | V7: =IF(ISERROR(MATCH('Individual Scores'!$D7,Scores!$F$1:$F$253,0)),"",INDIRECT("Scores!"&"R"&MATCH('Individual Scores'!$D7,Scores!$F$1:$F$253,0)&"C"&COLUMN(Scores!P$1),FALSE)) -> 132 | W7: =IF(ISERROR(MATCH('Individual Scores'!$D7,Scores!$F$1:$F$253,0)),"",INDIRECT("Scores!"&"R"&MATCH('Individual Scores'!$D7,Scores!$F$1:$F$253,0)&"C"&COLUMN(Scores!S$1),FALSE)) -> 898 | X7: =IF(MAX('Individual Scores'!Q7:V7)>0,MAX('Individual Scores'!Q7:V7),"") -> 169 | Y7: =IF(MAX(SUM('Individual Scores'!Q7:S7),SUM('Individual Scores'!T7:V7))>0,MAX(SUM('Individual Scores'!Q7:S7),SUM('Individual Scores'!T7:V7)),"") -> 484 | AA7: =IF('Team Scores'!$Z$1<2,"",IF(ISERROR(MATCH('Individual Scores'!$D7,Scores!$F$253:$F$506,0)),"",INDIRECT("Scores!"&"R"&(ROW(Scores!$253:$253)-1+MATCH('Individual Scores'!$D7,Scores!$F$253:$F$505,0))&"C"&COLUMN(Scores!J$1),FALSE))) -> 146 | AB7: =IF('Team Scores'!$Z$1<2,"",IF(ISERROR(MATCH('Individual Scores'!$D7,Scores!$F$253:$F$506,0)),"",INDIRECT("Scores!"&"R"&(ROW(Scores!$253:$253)-1+MATCH('Individual Scores'!$D7,Scores!$F$253:$F$505,0))&"C"&COLUMN(Scores!K$1),FALSE))) -> 149 | AC7: =IF('Team Scores'!$Z$1<2,"",IF(ISERROR(MATCH('Individual Scores'!$D7,Scores!$F$253:$F$506,0)),"",INDIRECT("Scores!"&"R"&(ROW(Scores!$253:$253)-1+MATCH('Individual Scores'!$D7,Scores!$F$253:$F$505,0))&"C"&COLUMN(Scores!L$1),FALSE))) -> 191 | AD7: =IF('Team Scores'!$Z$1<2,"",IF(ISERROR(MATCH('Individual Scores'!$D7,Scores!$F$253:$F$506,0)),"",INDIRECT("Scores!"&"R"&(ROW(Scores!$253:$253)-1+MATCH('Individual Scores'!$D7,Scores!$F$253:$F$505,0))&"C"&COLUMN(Scores!N$1),FALSE))) -> 156 | AE7: =IF('Team Scores'!$Z$1<2,"",IF(ISERROR(MATCH('Individual Scores'!$D7,Scores!$F$253:$F$506,0)),"",INDIRECT("Scores!"&"R"&(ROW(Scores!$253:$253)-1+MATCH('Individual Scores'!$D7,Scores!$F$253:$F$505,0))&"C"&COLUMN(Scores!O$1),FALSE))) -> 160 | AF7: =IF('Team Scores'!$Z$1<2,"",IF(ISERROR(MATCH('Individual Scores'!$D7,Scores!$F$253:$F$506,0)),"",INDIRECT("Scores!"&"R"&(ROW(Scores!$253:$253)-1+MATCH('Individual Scores'!$D7,Scores!$F$253:$F$505,0))&"C"&COLUMN(Scores!P$1),FALSE))) -> 162 | AG7: =IF('Team Scores'!$Z$1<2,"",IF(ISERROR(MATCH('Individual Scores'!$D7,Scores!$F$253:$F$506,0)),"",INDIRECT("Scores!"&"R"&(ROW(Scores!$253:$253)-1+MATCH('Individual Scores'!$D7,Scores!$F$253:$F$505,0))&"C"&COLUMN(Scores!S$1),FALSE))) -> 964 | AH7: 191 | AI7: 486 | AK7: =IF('Team Scores'!$Z$1<3,"",IF(ISERROR(MATCH('Individual Scores'!$D7,Scores!$F$506:$F$759,0)),"",INDIRECT("Scores!"&"R"&(ROW(Scores!$F$506:$F$759)-1+MATCH('Individual Scores'!$D7,Scores!$F$506:$F$759,0))&"C"&COLUMN(Scores!J$1),FALSE))) ->  | AL7: =IF('Team Scores'!$Z$1<3,"",IF(ISERROR(MATCH('Individual Scores'!$D7,Scores!$F$506:$F$759,0)),"",INDIRECT("Scores!"&"R"&(ROW(Scores!$F$506:$F$759)-1+MATCH('Individual Scores'!$D7,Scores!$F$506:$F$759,0))&"C"&COLUMN(Scores!K$1),FALSE))) ->  | AM7: =IF('Team Scores'!$Z$1<3,"",IF(ISERROR(MATCH('Individual Scores'!$D7,Scores!$F$506:$F$759,0)),"",INDIRECT("Scores!"&"R"&(ROW(Scores!$F$506:$F$759)-1+MATCH('Individual Scores'!$D7,Scores!$F$506:$F$759,0))&"C"&COLUMN(Scores!L$1),FALSE))) ->  | AN7: =IF('Team Scores'!$Z$1<3,"",IF(ISERROR(MATCH('Individual Scores'!$D7,Scores!$F$506:$F$759,0)),"",INDIRECT("Scores!"&"R"&(ROW(Scores!$F$506:$F$759)-1+MATCH('Individual Scores'!$D7,Scores!$F$506:$F$759,0))&"C"&COLUMN(Scores!N$1),FALSE))) ->  | AO7: =IF('Team Scores'!$Z$1<3,"",IF(ISERROR(MATCH('Individual Scores'!$D7,Scores!$F$506:$F$759,0)),"",INDIRECT("Scores!"&"R"&(ROW(Scores!$F$506:$F$759)-1+MATCH('Individual Scores'!$D7,Scores!$F$506:$F$759,0))&"C"&COLUMN(Scores!O$1),FALSE))) ->  | AP7: =IF('Team Scores'!$Z$1<3,"",IF(ISERROR(MATCH('Individual Scores'!$D7,Scores!$F$506:$F$759,0)),"",INDIRECT("Scores!"&"R"&(ROW(Scores!$F$506:$F$759)-1+MATCH('Individual Scores'!$D7,Scores!$F$506:$F$759,0))&"C"&COLUMN(Scores!P$1),FALSE))) ->  | AQ7: =IF('Team Scores'!$Z$1<3,"",IF(ISERROR(MATCH('Individual Scores'!$D7,Scores!$F$506:$F$759,0)),"",INDIRECT("Scores!"&"R"&(ROW(Scores!$F$506:$F$759)-1+MATCH('Individual Scores'!$D7,Scores!$F$506:$F$759,0))&"C"&COLUMN(Scores!S$1),FALSE))) -> 
A8: GA | B8: 15 & < | C8: F | D8: Emily Rettig | E8: 842 | F8: 1018 | H8: 1860 | I8: =IF(COUNT(Q8:V8,AA8:AF8,AK8:AP8)>=18/3*'Team Scores'!$Z$1,IF(H8-VLOOKUP(B8&C8,'Individual Awards Computations'!$AY$54:$AZ$58,2,FALSE)=0,"Leader "&C8&":"&B8,H8-VLOOKUP(B8&C8,'Individual Awards Computations'!$AY$54:$AZ$58,2,FALSE)),"") -> -553 | J8: 216 | K8: 516 | L8: 155 | M8: 21.5 | N8: 134-177 | O8: 1 | Q8: =IF(ISERROR(MATCH('Individual Scores'!$D8,Scores!$F$1:$F$253,0)),"",INDIRECT("Scores!"&"R"&MATCH('Individual Scores'!$D8,Scores!$F$1:$F$253,0)&"C"&COLUMN(Scores!J$1),FALSE)) -> 135 | R8: =IF(ISERROR(MATCH('Individual Scores'!$D8,Scores!$F$1:$F$253,0)),"",INDIRECT("Scores!"&"R"&MATCH('Individual Scores'!$D8,Scores!$F$1:$F$253,0)&"C"&COLUMN(Scores!K$1),FALSE)) -> 128 | S8: =IF(ISERROR(MATCH('Individual Scores'!$D8,Scores!$F$1:$F$253,0)),"",INDIRECT("Scores!"&"R"&MATCH('Individual Scores'!$D8,Scores!$F$1:$F$253,0)&"C"&COLUMN(Scores!L$1),FALSE)) -> 127 | T8: =IF(ISERROR(MATCH('Individual Scores'!$D8,Scores!$F$1:$F$253,0)),"",INDIRECT("Scores!"&"R"&MATCH('Individual Scores'!$D8,Scores!$F$1:$F$253,0)&"C"&COLUMN(Scores!N$1),FALSE)) -> 148 | U8: =IF(ISERROR(MATCH('Individual Scores'!$D8,Scores!$F$1:$F$253,0)),"",INDIRECT("Scores!"&"R"&MATCH('Individual Scores'!$D8,Scores!$F$1:$F$253,0)&"C"&COLUMN(Scores!O$1),FALSE)) -> 137 | V8: =IF(ISERROR(MATCH('Individual Scores'!$D8,Scores!$F$1:$F$253,0)),"",INDIRECT("Scores!"&"R"&MATCH('Individual Scores'!$D8,Scores!$F$1:$F$253,0)&"C"&COLUMN(Scores!P$1),FALSE)) -> 167 | W8: =IF(ISERROR(MATCH('Individual Scores'!$D8,Scores!$F$1:$F$253,0)),"",INDIRECT("Scores!"&"R"&MATCH('Individual Scores'!$D8,Scores!$F$1:$F$253,0)&"C"&COLUMN(Scores!S$1),FALSE)) -> 842 | X8: =IF(MAX('Individual Scores'!Q8:V8)>0,MAX('Individual Scores'!Q8:V8),"") -> 167 | Y8: =IF(MAX(SUM('Individual Scores'!Q8:S8),SUM('Individual Scores'!T8:V8))>0,MAX(SUM('Individual Scores'!Q8:S8),SUM('Individual Scores'!T8:V8)),"") -> 452 | AA8: =IF('Team Scores'!$Z$1<2,"",IF(ISERROR(MATCH('Individual Scores'!$D8,Scores!$F$253:$F$506,0)),"",INDIRECT("Scores!"&"R"&(ROW(Scores!$253:$253)-1+MATCH('Individual Scores'!$D8,Scores!$F$253:$F$505,0))&"C"&COLUMN(Scores!J$1),FALSE))) -> 216 | AB8: =IF('Team Scores'!$Z$1<2,"",IF(ISERROR(MATCH('Individual Scores'!$D8,Scores!$F$253:$F$506,0)),"",INDIRECT("Scores!"&"R"&(ROW(Scores!$253:$253)-1+MATCH('Individual Scores'!$D8,Scores!$F$253:$F$505,0))&"C"&COLUMN(Scores!K$1),FALSE))) -> 135 | AC8: =IF('Team Scores'!$Z$1<2,"",IF(ISERROR(MATCH('Individual Scores'!$D8,Scores!$F$253:$F$506,0)),"",INDIRECT("Scores!"&"R"&(ROW(Scores!$253:$253)-1+MATCH('Individual Scores'!$D8,Scores!$F$253:$F$505,0))&"C"&COLUMN(Scores!L$1),FALSE))) -> 165 | AD8: =IF('Team Scores'!$Z$1<2,"",IF(ISERROR(MATCH('Individual Scores'!$D8,Scores!$F$253:$F$506,0)),"",INDIRECT("Scores!"&"R"&(ROW(Scores!$253:$253)-1+MATCH('Individual Scores'!$D8,Scores!$F$253:$F$505,0))&"C"&COLUMN(Scores!N$1),FALSE))) -> 176 | AE8: =IF('Team Scores'!$Z$1<2,"",IF(ISERROR(MATCH('Individual Scores'!$D8,Scores!$F$253:$F$506,0)),"",INDIRECT("Scores!"&"R"&(ROW(Scores!$253:$253)-1+MATCH('Individual Scores'!$D8,Scores!$F$253:$F$505,0))&"C"&COLUMN(Scores!O$1),FALSE))) -> 146 | AF8: =IF('Team Scores'!$Z$1<2,"",IF(ISERROR(MATCH('Individual Scores'!$D8,Scores!$F$253:$F$506,0)),"",INDIRECT("Scores!"&"R"&(ROW(Scores!$253:$253)-1+MATCH('Individual Scores'!$D8,Scores!$F$253:$F$505,0))&"C"&COLUMN(Scores!P$1),FALSE))) -> 180 | AG8: =IF('Team Scores'!$Z$1<2,"",IF(ISERROR(MATCH('Individual Scores'!$D8,Scores!$F$253:$F$506,0)),"",INDIRECT("Scores!"&"R"&(ROW(Scores!$253:$253)-1+MATCH('Individual Scores'!$D8,Scores!$F$253:$F$505,0))&"C"&COLUMN(Scores!S$1),FALSE))) -> 1018 | AH8: 216 | AI8: 516 | AK8: =IF('Team Scores'!$Z$1<3,"",IF(ISERROR(MATCH('Individual Scores'!$D8,Scores!$F$506:$F$759,0)),"",INDIRECT("Scores!"&"R"&(ROW(Scores!$F$506:$F$759)-1+MATCH('Individual Scores'!$D8,Scores!$F$506:$F$759,0))&"C"&COLUMN(Scores!J$1),FALSE))) ->  | AL8: =IF('Team Scores'!$Z$1<3,"",IF(ISERROR(MATCH('Individual Scores'!$D8,Scores!$F$506:$F$759,0)),"",INDIRECT("Scores!"&"R"&(ROW(Scores!$F$506:$F$759)-1+MATCH('Individual Scores'!$D8,Scores!$F$506:$F$759,0))&"C"&COLUMN(Scores!K$1),FALSE))) ->  | AM8: =IF('Team Scores'!$Z$1<3,"",IF(ISERROR(MATCH('Individual Scores'!$D8,Scores!$F$506:$F$759,0)),"",INDIRECT("Scores!"&"R"&(ROW(Scores!$F$506:$F$759)-1+MATCH('Individual Scores'!$D8,Scores!$F$506:$F$759,0))&"C"&COLUMN(Scores!L$1),FALSE))) ->  | AN8: =IF('Team Scores'!$Z$1<3,"",IF(ISERROR(MATCH('Individual Scores'!$D8,Scores!$F$506:$F$759,0)),"",INDIRECT("Scores!"&"R"&(ROW(Scores!$F$506:$F$759)-1+MATCH('Individual Scores'!$D8,Scores!$F$506:$F$759,0))&"C"&COLUMN(Scores!N$1),FALSE))) ->  | AO8: =IF('Team Scores'!$Z$1<3,"",IF(ISERROR(MATCH('Individual Scores'!$D8,Scores!$F$506:$F$759,0)),"",INDIRECT("Scores!"&"R"&(ROW(Scores!$F$506:$F$759)-1+MATCH('Individual Scores'!$D8,Scores!$F$506:$F$759,0))&"C"&COLUMN(Scores!O$1),FALSE))) ->  | AP8: =IF('Team Scores'!$Z$1<3,"",IF(ISERROR(MATCH('Individual Scores'!$D8,Scores!$F$506:$F$759,0)),"",INDIRECT("Scores!"&"R"&(ROW(Scores!$F$506:$F$759)-1+MATCH('Individual Scores'!$D8,Scores!$F$506:$F$759,0))&"C"&COLUMN(Scores!P$1),FALSE))) ->  | AQ8: =IF('Team Scores'!$Z$1<3,"",IF(ISERROR(MATCH('Individual Scores'!$D8,Scores!$F$506:$F$759,0)),"",INDIRECT("Scores!"&"R"&(ROW(Scores!$F$506:$F$759)-1+MATCH('Individual Scores'!$D8,Scores!$F$506:$F$759,0))&"C"&COLUMN(Scores!S$1),FALSE))) -> 
A9: GA | B9: 15 & < | C9: F | D9: Faith Hardy | E9: 858 | F9: 968 | H9: 1826 | I9: =IF(COUNT(Q9:V9,AA9:AF9,AK9:AP9)>=18/3*'Team Scores'!$Z$1,IF(H9-VLOOKUP(B9&C9,'Individual Awards Computations'!$AY$54:$AZ$58,2,FALSE)=0,"Leader "&C9&":"&B9,H9-VLOOKUP(B9&C9,'Individual Awards Computations'!$AY$54:$AZ$58,2,FALSE)),"") -> -587 | J9: 204 | K9: 546 | L9: 152.1666667 | M9: 17.52777778 | N9: 135-170 | O9: 1 | Q9: =IF(ISERROR(MATCH('Individual Scores'!$D9,Scores!$F$1:$F$253,0)),"",INDIRECT("Scores!"&"R"&MATCH('Individual Scores'!$D9,Scores!$F$1:$F$253,0)&"C"&COLUMN(Scores!J$1),FALSE)) -> 123 | R9: =IF(ISERROR(MATCH('Individual Scores'!$D9,Scores!$F$1:$F$253,0)),"",INDIRECT("Scores!"&"R"&MATCH('Individual Scores'!$D9,Scores!$F$1:$F$253,0)&"C"&COLUMN(Scores!K$1),FALSE)) -> 142 | S9: =IF(ISERROR(MATCH('Individual Scores'!$D9,Scores!$F$1:$F$253,0)),"",INDIRECT("Scores!"&"R"&MATCH('Individual Scores'!$D9,Scores!$F$1:$F$253,0)&"C"&COLUMN(Scores!L$1),FALSE)) -> 128 | T9: =IF(ISERROR(MATCH('Individual Scores'!$D9,Scores!$F$1:$F$253,0)),"",INDIRECT("Scores!"&"R"&MATCH('Individual Scores'!$D9,Scores!$F$1:$F$253,0)&"C"&COLUMN(Scores!N$1),FALSE)) -> 148 | U9: =IF(ISERROR(MATCH('Individual Scores'!$D9,Scores!$F$1:$F$253,0)),"",INDIRECT("Scores!"&"R"&MATCH('Individual Scores'!$D9,Scores!$F$1:$F$253,0)&"C"&COLUMN(Scores!O$1),FALSE)) -> 166 | V9: =IF(ISERROR(MATCH('Individual Scores'!$D9,Scores!$F$1:$F$253,0)),"",INDIRECT("Scores!"&"R"&MATCH('Individual Scores'!$D9,Scores!$F$1:$F$253,0)&"C"&COLUMN(Scores!P$1),FALSE)) -> 151 | W9: =IF(ISERROR(MATCH('Individual Scores'!$D9,Scores!$F$1:$F$253,0)),"",INDIRECT("Scores!"&"R"&MATCH('Individual Scores'!$D9,Scores!$F$1:$F$253,0)&"C"&COLUMN(Scores!S$1),FALSE)) -> 858 | X9: =IF(MAX('Individual Scores'!Q9:V9)>0,MAX('Individual Scores'!Q9:V9),"") -> 166 | Y9: =IF(MAX(SUM('Individual Scores'!Q9:S9),SUM('Individual Scores'!T9:V9))>0,MAX(SUM('Individual Scores'!Q9:S9),SUM('Individual Scores'!T9:V9)),"") -> 465 | AA9: =IF('Team Scores'!$Z$1<2,"",IF(ISERROR(MATCH('Individual Scores'!$D9,Scores!$F$253:$F$506,0)),"",INDIRECT("Scores!"&"R"&(ROW(Scores!$253:$253)-1+MATCH('Individual Scores'!$D9,Scores!$F$253:$F$505,0))&"C"&COLUMN(Scores!J$1),FALSE))) -> 204 | AB9: =IF('Team Scores'!$Z$1<2,"",IF(ISERROR(MATCH('Individual Scores'!$D9,Scores!$F$253:$F$506,0)),"",INDIRECT("Scores!"&"R"&(ROW(Scores!$253:$253)-1+MATCH('Individual Scores'!$D9,Scores!$F$253:$F$505,0))&"C"&COLUMN(Scores!K$1),FALSE))) -> 165 | AC9: =IF('Team Scores'!$Z$1<2,"",IF(ISERROR(MATCH('Individual Scores'!$D9,Scores!$F$253:$F$506,0)),"",INDIRECT("Scores!"&"R"&(ROW(Scores!$253:$253)-1+MATCH('Individual Scores'!$D9,Scores!$F$253:$F$505,0))&"C"&COLUMN(Scores!L$1),FALSE))) -> 177 | AD9: =IF('Team Scores'!$Z$1<2,"",IF(ISERROR(MATCH('Individual Scores'!$D9,Scores!$F$253:$F$506,0)),"",INDIRECT("Scores!"&"R"&(ROW(Scores!$253:$253)-1+MATCH('Individual Scores'!$D9,Scores!$F$253:$F$505,0))&"C"&COLUMN(Scores!N$1),FALSE))) -> 154 | AE9: =IF('Team Scores'!$Z$1<2,"",IF(ISERROR(MATCH('Individual Scores'!$D9,Scores!$F$253:$F$506,0)),"",INDIRECT("Scores!"&"R"&(ROW(Scores!$253:$253)-1+MATCH('Individual Scores'!$D9,Scores!$F$253:$F$505,0))&"C"&COLUMN(Scores!O$1),FALSE))) -> 131 | AF9: =IF('Team Scores'!$Z$1<2,"",IF(ISERROR(MATCH('Individual Scores'!$D9,Scores!$F$253:$F$506,0)),"",INDIRECT("Scores!"&"R"&(ROW(Scores!$253:$253)-1+MATCH('Individual Scores'!$D9,Scores!$F$253:$F$505,0))&"C"&COLUMN(Scores!P$1),FALSE))) -> 137 | AG9: =IF('Team Scores'!$Z$1<2,"",IF(ISERROR(MATCH('Individual Scores'!$D9,Scores!$F$253:$F$506,0)),"",INDIRECT("Scores!"&"R"&(ROW(Scores!$253:$253)-1+MATCH('Individual Scores'!$D9,Scores!$F$253:$F$505,0))&"C"&COLUMN(Scores!S$1),FALSE))) -> 968 | AH9: =IF(MAX(AA9:AF9)>0,MAX(AA9:AF9),"") -> 204 | AI9: =IF(MAX(SUM(AA9:AC9),SUM(AD9:AF9))>0,MAX(SUM(AA9:AC9),SUM(AD9:AF9)),"") -> 546 | AK9: =IF('Team Scores'!$Z$1<3,"",IF(ISERROR(MATCH('Individual Scores'!$D9,Scores!$F$506:$F$759,0)),"",INDIRECT("Scores!"&"R"&(ROW(Scores!$F$506:$F$759)-1+MATCH('Individual Scores'!$D9,Scores!$F$506:$F$759,0))&"C"&COLUMN(Scores!J$1),FALSE))) ->  | AL9: =IF('Team Scores'!$Z$1<3,"",IF(ISERROR(MATCH('Individual Scores'!$D9,Scores!$F$506:$F$759,0)),"",INDIRECT("Scores!"&"R"&(ROW(Scores!$F$506:$F$759)-1+MATCH('Individual Scores'!$D9,Scores!$F$506:$F$759,0))&"C"&COLUMN(Scores!K$1),FALSE))) ->  | AM9: =IF('Team Scores'!$Z$1<3,"",IF(ISERROR(MATCH('Individual Scores'!$D9,Scores!$F$506:$F$759,0)),"",INDIRECT("Scores!"&"R"&(ROW(Scores!$F$506:$F$759)-1+MATCH('Individual Scores'!$D9,Scores!$F$506:$F$759,0))&"C"&COLUMN(Scores!L$1),FALSE))) ->  | AN9: =IF('Team Scores'!$Z$1<3,"",IF(ISERROR(MATCH('Individual Scores'!$D9,Scores!$F$506:$F$759,0)),"",INDIRECT("Scores!"&"R"&(ROW(Scores!$F$506:$F$759)-1+MATCH('Individual Scores'!$D9,Scores!$F$506:$F$759,0))&"C"&COLUMN(Scores!N$1),FALSE))) ->  | AO9: =IF('Team Scores'!$Z$1<3,"",IF(ISERROR(MATCH('Individual Scores'!$D9,Scores!$F$506:$F$759,0)),"",INDIRECT("Scores!"&"R"&(ROW(Scores!$F$506:$F$759)-1+MATCH('Individual Scores'!$D9,Scores!$F$506:$F$759,0))&"C"&COLUMN(Scores!O$1),FALSE))) ->  | AP9: =IF('Team Scores'!$Z$1<3,"",IF(ISERROR(MATCH('Individual Scores'!$D9,Scores!$F$506:$F$759,0)),"",INDIRECT("Scores!"&"R"&(ROW(Scores!$F$506:$F$759)-1+MATCH('Individual Scores'!$D9,Scores!$F$506:$F$759,0))&"C"&COLUMN(Scores!P$1),FALSE))) ->  | AQ9: =IF('Team Scores'!$Z$1<3,"",IF(ISERROR(MATCH('Individual Scores'!$D9,Scores!$F$506:$F$759,0)),"",INDIRECT("Scores!"&"R"&(ROW(Scores!$F$506:$F$759)-1+MATCH('Individual Scores'!$D9,Scores!$F$506:$F$759,0))&"C"&COLUMN(Scores!S$1),FALSE))) -> 
A10: GA | B10: 15 & < | C10: F | D10: Ivyana Hurey Scott | E10: 945 | F10: 1036 | H10: 1981 | I10: =IF(COUNT(Q10:V10,AA10:AF10,AK10:AP10)>=18/3*'Team Scores'!$Z$1,IF(H10-VLOOKUP(B10&C10,'Individual Awards Computations'!$AY$54:$AZ$58,2,FALSE)=0,"Leader "&C10&":"&B10,H10-VLOOKUP(B10&C10,'Individual Awards Computations'!$AY$54:$AZ$58,2,FALSE)),"") -> -432 | J10: 201 | K10: 558 | L10: 165.0833333 | M10: 16.59722222 | N10: 148-182 | O10: 1 | Q10: =IF(ISERROR(MATCH('Individual Scores'!$D10,Scores!$F$1:$F$253,0)),"",INDIRECT("Scores!"&"R"&MATCH('Individual Scores'!$D10,Scores!$F$1:$F$253,0)&"C"&COLUMN(Scores!J$1),FALSE)) -> 153 | R10: =IF(ISERROR(MATCH('Individual Scores'!$D10,Scores!$F$1:$F$253,0)),"",INDIRECT("Scores!"&"R"&MATCH('Individual Scores'!$D10,Scores!$F$1:$F$253,0)&"C"&COLUMN(Scores!K$1),FALSE)) -> 141 | S10: =IF(ISERROR(MATCH('Individual Scores'!$D10,Scores!$F$1:$F$253,0)),"",INDIRECT("Scores!"&"R"&MATCH('Individual Scores'!$D10,Scores!$F$1:$F$253,0)&"C"&COLUMN(Scores!L$1),FALSE)) -> 191 | T10: =IF(ISERROR(MATCH('Individual Scores'!$D10,Scores!$F$1:$F$253,0)),"",INDIRECT("Scores!"&"R"&MATCH('Individual Scores'!$D10,Scores!$F$1:$F$253,0)&"C"&COLUMN(Scores!N$1),FALSE)) -> 160 | U10: =IF(ISERROR(MATCH('Individual Scores'!$D10,Scores!$F$1:$F$253,0)),"",INDIRECT("Scores!"&"R"&MATCH('Individual Scores'!$D10,Scores!$F$1:$F$253,0)&"C"&COLUMN(Scores!O$1),FALSE)) -> 141 | V10: =IF(ISERROR(MATCH('Individual Scores'!$D10,Scores!$F$1:$F$253,0)),"",INDIRECT("Scores!"&"R"&MATCH('Individual Scores'!$D10,Scores!$F$1:$F$253,0)&"C"&COLUMN(Scores!P$1),FALSE)) -> 159 | W10: =IF(ISERROR(MATCH('Individual Scores'!$D10,Scores!$F$1:$F$253,0)),"",INDIRECT("Scores!"&"R"&MATCH('Individual Scores'!$D10,Scores!$F$1:$F$253,0)&"C"&COLUMN(Scores!S$1),FALSE)) -> 945 | X10: =IF(MAX('Individual Scores'!Q10:V10)>0,MAX('Individual Scores'!Q10:V10),"") -> 191 | Y10: =IF(MAX(SUM('Individual Scores'!Q10:S10),SUM('Individual Scores'!T10:V10))>0,MAX(SUM('Individual Scores'!Q10:S10),SUM('Individual Scores'!T10:V10)),"") -> 485 | AA10: =IF('Team Scores'!$Z$1<2,"",IF(ISERROR(MATCH('Individual Scores'!$D10,Scores!$F$253:$F$506,0)),"",INDIRECT("Scores!"&"R"&(ROW(Scores!$253:$253)-1+MATCH('Individual Scores'!$D10,Scores!$F$253:$F$505,0))&"C"&COLUMN(Scores!J$1),FALSE))) -> 176 | AB10: =IF('Team Scores'!$Z$1<2,"",IF(ISERROR(MATCH('Individual Scores'!$D10,Scores!$F$253:$F$506,0)),"",INDIRECT("Scores!"&"R"&(ROW(Scores!$253:$253)-1+MATCH('Individual Scores'!$D10,Scores!$F$253:$F$505,0))&"C"&COLUMN(Scores!K$1),FALSE))) -> 145 | AC10: =IF('Team Scores'!$Z$1<2,"",IF(ISERROR(MATCH('Individual Scores'!$D10,Scores!$F$253:$F$506,0)),"",INDIRECT("Scores!"&"R"&(ROW(Scores!$253:$253)-1+MATCH('Individual Scores'!$D10,Scores!$F$253:$F$505,0))&"C"&COLUMN(Scores!L$1),FALSE))) -> 157 | AD10: =IF('Team Scores'!$Z$1<2,"",IF(ISERROR(MATCH('Individual Scores'!$D10,Scores!$F$253:$F$506,0)),"",INDIRECT("Scores!"&"R"&(ROW(Scores!$253:$253)-1+MATCH('Individual Scores'!$D10,Scores!$F$253:$F$505,0))&"C"&COLUMN(Scores!N$1),FALSE))) -> 169 | AE10: =IF('Team Scores'!$Z$1<2,"",IF(ISERROR(MATCH('Individual Scores'!$D10,Scores!$F$253:$F$506,0)),"",INDIRECT("Scores!"&"R"&(ROW(Scores!$253:$253)-1+MATCH('Individual Scores'!$D10,Scores!$F$253:$F$505,0))&"C"&COLUMN(Scores!O$1),FALSE))) -> 201 | AF10: =IF('Team Scores'!$Z$1<2,"",IF(ISERROR(MATCH('Individual Scores'!$D10,Scores!$F$253:$F$506,0)),"",INDIRECT("Scores!"&"R"&(ROW(Scores!$253:$253)-1+MATCH('Individual Scores'!$D10,Scores!$F$253:$F$505,0))&"C"&COLUMN(Scores!P$1),FALSE))) -> 188 | AG10: =IF('Team Scores'!$Z$1<2,"",IF(ISERROR(MATCH('Individual Scores'!$D10,Scores!$F$253:$F$506,0)),"",INDIRECT("Scores!"&"R"&(ROW(Scores!$253:$253)-1+MATCH('Individual Scores'!$D10,Scores!$F$253:$F$505,0))&"C"&COLUMN(Scores!S$1),FALSE))) -> 1036 | AH10: 201 | AI10: 558 | AK10: =IF('Team Scores'!$Z$1<3,"",IF(ISERROR(MATCH('Individual Scores'!$D10,Scores!$F$506:$F$759,0)),"",INDIRECT("Scores!"&"R"&(ROW(Scores!$F$506:$F$759)-1+MATCH('Individual Scores'!$D10,Scores!$F$506:$F$759,0))&"C"&COLUMN(Scores!J$1),FALSE))) ->  | AL10: =IF('Team Scores'!$Z$1<3,"",IF(ISERROR(MATCH('Individual Scores'!$D10,Scores!$F$506:$F$759,0)),"",INDIRECT("Scores!"&"R"&(ROW(Scores!$F$506:$F$759)-1+MATCH('Individual Scores'!$D10,Scores!$F$506:$F$759,0))&"C"&COLUMN(Scores!K$1),FALSE))) ->  | AM10: =IF('Team Scores'!$Z$1<3,"",IF(ISERROR(MATCH('Individual Scores'!$D10,Scores!$F$506:$F$759,0)),"",INDIRECT("Scores!"&"R"&(ROW(Scores!$F$506:$F$759)-1+MATCH('Individual Scores'!$D10,Scores!$F$506:$F$759,0))&"C"&COLUMN(Scores!L$1),FALSE))) ->  | AN10: =IF('Team Scores'!$Z$1<3,"",IF(ISERROR(MATCH('Individual Scores'!$D10,Scores!$F$506:$F$759,0)),"",INDIRECT("Scores!"&"R"&(ROW(Scores!$F$506:$F$759)-1+MATCH('Individual Scores'!$D10,Scores!$F$506:$F$759,0))&"C"&COLUMN(Scores!N$1),FALSE))) ->  | AO10: =IF('Team Scores'!$Z$1<3,"",IF(ISERROR(MATCH('Individual Scores'!$D10,Scores!$F$506:$F$759,0)),"",INDIRECT("Scores!"&"R"&(ROW(Scores!$F$506:$F$759)-1+MATCH('Individual Scores'!$D10,Scores!$F$506:$F$759,0))&"C"&COLUMN(Scores!O$1),FALSE))) ->  | AP10: =IF('Team Scores'!$Z$1<3,"",IF(ISERROR(MATCH('Individual Scores'!$D10,Scores!$F$506:$F$759,0)),"",INDIRECT("Scores!"&"R"&(ROW(Scores!$F$506:$F$759)-1+MATCH('Individual Scores'!$D10,Scores!$F$506:$F$759,0))&"C"&COLUMN(Scores!P$1),FALSE))) ->  | AQ10: =IF('Team Scores'!$Z$1<3,"",IF(ISERROR(MATCH('Individual Scores'!$D10,Scores!$F$506:$F$759,0)),"",INDIRECT("Scores!"&"R"&(ROW(Scores!$F$506:$F$759)-1+MATCH('Individual Scores'!$D10,Scores!$F$506:$F$759,0))&"C"&COLUMN(Scores!S$1),FALSE))) -> 
A11: GA | B11: 15 & < | C11: F | D11: Kathleen Elder | E11: 729 | F11: 906 | H11: 1635 | I11: =IF(COUNT(Q11:V11,AA11:AF11,AK11:AP11)>=18/3*'Team Scores'!$Z$1,IF(H11-VLOOKUP(B11&C11,'Individual Awards Computations'!$AY$54:$AZ$58,2,FALSE)=0,"Leader "&C11&":"&B11,H11-VLOOKUP(B11&C11,'Individual Awards Computations'!$AY$54:$AZ$58,2,FALSE)),"") -> -778 | J11: 181 | K11: 460 | L11: 136.25 | M11: 17.25 | N11: 119-154 | O11: 1 | Q11: =IF(ISERROR(MATCH('Individual Scores'!$D11,Scores!$F$1:$F$253,0)),"",INDIRECT("Scores!"&"R"&MATCH('Individual Scores'!$D11,Scores!$F$1:$F$253,0)&"C"&COLUMN(Scores!J$1),FALSE)) -> 124 | R11: =IF(ISERROR(MATCH('Individual Scores'!$D11,Scores!$F$1:$F$253,0)),"",INDIRECT("Scores!"&"R"&MATCH('Individual Scores'!$D11,Scores!$F$1:$F$253,0)&"C"&COLUMN(Scores!K$1),FALSE)) -> 108 | S11: =IF(ISERROR(MATCH('Individual Scores'!$D11,Scores!$F$1:$F$253,0)),"",INDIRECT("Scores!"&"R"&MATCH('Individual Scores'!$D11,Scores!$F$1:$F$253,0)&"C"&COLUMN(Scores!L$1),FALSE)) -> 105 | T11: =IF(ISERROR(MATCH('Individual Scores'!$D11,Scores!$F$1:$F$253,0)),"",INDIRECT("Scores!"&"R"&MATCH('Individual Scores'!$D11,Scores!$F$1:$F$253,0)&"C"&COLUMN(Scores!N$1),FALSE)) -> 128 | U11: =IF(ISERROR(MATCH('Individual Scores'!$D11,Scores!$F$1:$F$253,0)),"",INDIRECT("Scores!"&"R"&MATCH('Individual Scores'!$D11,Scores!$F$1:$F$253,0)&"C"&COLUMN(Scores!O$1),FALSE)) -> 126 | V11: =IF(ISERROR(MATCH('Individual Scores'!$D11,Scores!$F$1:$F$253,0)),"",INDIRECT("Scores!"&"R"&MATCH('Individual Scores'!$D11,Scores!$F$1:$F$253,0)&"C"&COLUMN(Scores!P$1),FALSE)) -> 138 | W11: =IF(ISERROR(MATCH('Individual Scores'!$D11,Scores!$F$1:$F$253,0)),"",INDIRECT("Scores!"&"R"&MATCH('Individual Scores'!$D11,Scores!$F$1:$F$253,0)&"C"&COLUMN(Scores!S$1),FALSE)) -> 729 | X11: =IF(MAX('Individual Scores'!Q11:V11)>0,MAX('Individual Scores'!Q11:V11),"") -> 138 | Y11: =IF(MAX(SUM('Individual Scores'!Q11:S11),SUM('Individual Scores'!T11:V11))>0,MAX(SUM('Individual Scores'!Q11:S11),SUM('Individual Scores'!T11:V11)),"") -> 392 | AA11: =IF('Team Scores'!$Z$1<2,"",IF(ISERROR(MATCH('Individual Scores'!$D11,Scores!$F$253:$F$506,0)),"",INDIRECT("Scores!"&"R"&(ROW(Scores!$253:$253)-1+MATCH('Individual Scores'!$D11,Scores!$F$253:$F$505,0))&"C"&COLUMN(Scores!J$1),FALSE))) -> 155 | AB11: =IF('Team Scores'!$Z$1<2,"",IF(ISERROR(MATCH('Individual Scores'!$D11,Scores!$F$253:$F$506,0)),"",INDIRECT("Scores!"&"R"&(ROW(Scores!$253:$253)-1+MATCH('Individual Scores'!$D11,Scores!$F$253:$F$505,0))&"C"&COLUMN(Scores!K$1),FALSE))) -> 159 | AC11: =IF('Team Scores'!$Z$1<2,"",IF(ISERROR(MATCH('Individual Scores'!$D11,Scores!$F$253:$F$506,0)),"",INDIRECT("Scores!"&"R"&(ROW(Scores!$253:$253)-1+MATCH('Individual Scores'!$D11,Scores!$F$253:$F$505,0))&"C"&COLUMN(Scores!L$1),FALSE))) -> 146 | AD11: =IF('Team Scores'!$Z$1<2,"",IF(ISERROR(MATCH('Individual Scores'!$D11,Scores!$F$253:$F$506,0)),"",INDIRECT("Scores!"&"R"&(ROW(Scores!$253:$253)-1+MATCH('Individual Scores'!$D11,Scores!$F$253:$F$505,0))&"C"&COLUMN(Scores!N$1),FALSE))) -> 142 | AE11: =IF('Team Scores'!$Z$1<2,"",IF(ISERROR(MATCH('Individual Scores'!$D11,Scores!$F$253:$F$506,0)),"",INDIRECT("Scores!"&"R"&(ROW(Scores!$253:$253)-1+MATCH('Individual Scores'!$D11,Scores!$F$253:$F$505,0))&"C"&COLUMN(Scores!O$1),FALSE))) -> 123 | AF11: =IF('Team Scores'!$Z$1<2,"",IF(ISERROR(MATCH('Individual Scores'!$D11,Scores!$F$253:$F$506,0)),"",INDIRECT("Scores!"&"R"&(ROW(Scores!$253:$253)-1+MATCH('Individual Scores'!$D11,Scores!$F$253:$F$505,0))&"C"&COLUMN(Scores!P$1),FALSE))) -> 181 | AG11: =IF('Team Scores'!$Z$1<2,"",IF(ISERROR(MATCH('Individual Scores'!$D11,Scores!$F$253:$F$506,0)),"",INDIRECT("Scores!"&"R"&(ROW(Scores!$253:$253)-1+MATCH('Individual Scores'!$D11,Scores!$F$253:$F$505,0))&"C"&COLUMN(Scores!S$1),FALSE))) -> 906 | AH11: 181 | AI11: 460 | AK11: =IF('Team Scores'!$Z$1<3,"",IF(ISERROR(MATCH('Individual Scores'!$D11,Scores!$F$506:$F$759,0)),"",INDIRECT("Scores!"&"R"&(ROW(Scores!$F$506:$F$759)-1+MATCH('Individual Scores'!$D11,Scores!$F$506:$F$759,0))&"C"&COLUMN(Scores!J$1),FALSE))) ->  | AL11: =IF('Team Scores'!$Z$1<3,"",IF(ISERROR(MATCH('Individual Scores'!$D11,Scores!$F$506:$F$759,0)),"",INDIRECT("Scores!"&"R"&(ROW(Scores!$F$506:$F$759)-1+MATCH('Individual Scores'!$D11,Scores!$F$506:$F$759,0))&"C"&COLUMN(Scores!K$1),FALSE))) ->  | AM11: =IF('Team Scores'!$Z$1<3,"",IF(ISERROR(MATCH('Individual Scores'!$D11,Scores!$F$506:$F$759,0)),"",INDIRECT("Scores!"&"R"&(ROW(Scores!$F$506:$F$759)-1+MATCH('Individual Scores'!$D11,Scores!$F$506:$F$759,0))&"C"&COLUMN(Scores!L$1),FALSE))) ->  | AN11: =IF('Team Scores'!$Z$1<3,"",IF(ISERROR(MATCH('Individual Scores'!$D11,Scores!$F$506:$F$759,0)),"",INDIRECT("Scores!"&"R"&(ROW(Scores!$F$506:$F$759)-1+MATCH('Individual Scores'!$D11,Scores!$F$506:$F$759,0))&"C"&COLUMN(Scores!N$1),FALSE))) ->  | AO11: =IF('Team Scores'!$Z$1<3,"",IF(ISERROR(MATCH('Individual Scores'!$D11,Scores!$F$506:$F$759,0)),"",INDIRECT("Scores!"&"R"&(ROW(Scores!$F$506:$F$759)-1+MATCH('Individual Scores'!$D11,Scores!$F$506:$F$759,0))&"C"&COLUMN(Scores!O$1),FALSE))) ->  | AP11: =IF('Team Scores'!$Z$1<3,"",IF(ISERROR(MATCH('Individual Scores'!$D11,Scores!$F$506:$F$759,0)),"",INDIRECT("Scores!"&"R"&(ROW(Scores!$F$506:$F$759)-1+MATCH('Individual Scores'!$D11,Scores!$F$506:$F$759,0))&"C"&COLUMN(Scores!P$1),FALSE))) ->  | AQ11: =IF('Team Scores'!$Z$1<3,"",IF(ISERROR(MATCH('Individual Scores'!$D11,Scores!$F$506:$F$759,0)),"",INDIRECT("Scores!"&"R"&(ROW(Scores!$F$506:$F$759)-1+MATCH('Individual Scores'!$D11,Scores!$F$506:$F$759,0))&"C"&COLUMN(Scores!S$1),FALSE))) -> 
A12: GA | B12: 15 & < | C12: F | D12: Savanna Campbell | E12: 996 | F12: 1004 | H12: 2000 | I12: =IF(COUNT(Q12:V12,AA12:AF12,AK12:AP12)>=18/3*'Team Scores'!$Z$1,IF(H12-VLOOKUP(B12&C12,'Individual Awards Computations'!$AY$54:$AZ$58,2,FALSE)=0,"Leader "&C12&":"&B12,H12-VLOOKUP(B12&C12,'Individual Awards Computations'!$AY$54:$AZ$58,2,FALSE)),"") -> -413 | J12: 216 | K12: 547 | L12: 166.6666667 | M12: 17.83333333 | N12: 149-185 | O12: 1 | Q12: =IF(ISERROR(MATCH('Individual Scores'!$D12,Scores!$F$1:$F$253,0)),"",INDIRECT("Scores!"&"R"&MATCH('Individual Scores'!$D12,Scores!$F$1:$F$253,0)&"C"&COLUMN(Scores!J$1),FALSE)) -> 166 | R12: =IF(ISERROR(MATCH('Individual Scores'!$D12,Scores!$F$1:$F$253,0)),"",INDIRECT("Scores!"&"R"&MATCH('Individual Scores'!$D12,Scores!$F$1:$F$253,0)&"C"&COLUMN(Scores!K$1),FALSE)) -> 141 | S12: =IF(ISERROR(MATCH('Individual Scores'!$D12,Scores!$F$1:$F$253,0)),"",INDIRECT("Scores!"&"R"&MATCH('Individual Scores'!$D12,Scores!$F$1:$F$253,0)&"C"&COLUMN(Scores!L$1),FALSE)) -> 185 | T12: =IF(ISERROR(MATCH('Individual Scores'!$D12,Scores!$F$1:$F$253,0)),"",INDIRECT("Scores!"&"R"&MATCH('Individual Scores'!$D12,Scores!$F$1:$F$253,0)&"C"&COLUMN(Scores!N$1),FALSE)) -> 144 | U12: =IF(ISERROR(MATCH('Individual Scores'!$D12,Scores!$F$1:$F$253,0)),"",INDIRECT("Scores!"&"R"&MATCH('Individual Scores'!$D12,Scores!$F$1:$F$253,0)&"C"&COLUMN(Scores!O$1),FALSE)) -> 168 | V12: =IF(ISERROR(MATCH('Individual Scores'!$D12,Scores!$F$1:$F$253,0)),"",INDIRECT("Scores!"&"R"&MATCH('Individual Scores'!$D12,Scores!$F$1:$F$253,0)&"C"&COLUMN(Scores!P$1),FALSE)) -> 192 | W12: =IF(ISERROR(MATCH('Individual Scores'!$D12,Scores!$F$1:$F$253,0)),"",INDIRECT("Scores!"&"R"&MATCH('Individual Scores'!$D12,Scores!$F$1:$F$253,0)&"C"&COLUMN(Scores!S$1),FALSE)) -> 996 | X12: =IF(MAX('Individual Scores'!Q12:V12)>0,MAX('Individual Scores'!Q12:V12),"") -> 192 | Y12: =IF(MAX(SUM('Individual Scores'!Q12:S12),SUM('Individual Scores'!T12:V12))>0,MAX(SUM('Individual Scores'!Q12:S12),SUM('Individual Scores'!T12:V12)),"") -> 504 | AA12: =IF('Team Scores'!$Z$1<2,"",IF(ISERROR(MATCH('Individual Scores'!$D12,Scores!$F$253:$F$506,0)),"",INDIRECT("Scores!"&"R"&(ROW(Scores!$253:$253)-1+MATCH('Individual Scores'!$D12,Scores!$F$253:$F$505,0))&"C"&COLUMN(Scores!J$1),FALSE))) -> 168 | AB12: =IF('Team Scores'!$Z$1<2,"",IF(ISERROR(MATCH('Individual Scores'!$D12,Scores!$F$253:$F$506,0)),"",INDIRECT("Scores!"&"R"&(ROW(Scores!$253:$253)-1+MATCH('Individual Scores'!$D12,Scores!$F$253:$F$505,0))&"C"&COLUMN(Scores!K$1),FALSE))) -> 216 | AC12: =IF('Team Scores'!$Z$1<2,"",IF(ISERROR(MATCH('Individual Scores'!$D12,Scores!$F$253:$F$506,0)),"",INDIRECT("Scores!"&"R"&(ROW(Scores!$253:$253)-1+MATCH('Individual Scores'!$D12,Scores!$F$253:$F$505,0))&"C"&COLUMN(Scores!L$1),FALSE))) -> 163 | AD12: =IF('Team Scores'!$Z$1<2,"",IF(ISERROR(MATCH('Individual Scores'!$D12,Scores!$F$253:$F$506,0)),"",INDIRECT("Scores!"&"R"&(ROW(Scores!$253:$253)-1+MATCH('Individual Scores'!$D12,Scores!$F$253:$F$505,0))&"C"&COLUMN(Scores!N$1),FALSE))) -> 178 | AE12: =IF('Team Scores'!$Z$1<2,"",IF(ISERROR(MATCH('Individual Scores'!$D12,Scores!$F$253:$F$506,0)),"",INDIRECT("Scores!"&"R"&(ROW(Scores!$253:$253)-1+MATCH('Individual Scores'!$D12,Scores!$F$253:$F$505,0))&"C"&COLUMN(Scores!O$1),FALSE))) -> 147 | AF12: =IF('Team Scores'!$Z$1<2,"",IF(ISERROR(MATCH('Individual Scores'!$D12,Scores!$F$253:$F$506,0)),"",INDIRECT("Scores!"&"R"&(ROW(Scores!$253:$253)-1+MATCH('Individual Scores'!$D12,Scores!$F$253:$F$505,0))&"C"&COLUMN(Scores!P$1),FALSE))) -> 132 | AG12: =IF('Team Scores'!$Z$1<2,"",IF(ISERROR(MATCH('Individual Scores'!$D12,Scores!$F$253:$F$506,0)),"",INDIRECT("Scores!"&"R"&(ROW(Scores!$253:$253)-1+MATCH('Individual Scores'!$D12,Scores!$F$253:$F$505,0))&"C"&COLUMN(Scores!S$1),FALSE))) -> 1004 | AH12: 216 | AI12: 547 | AK12: =IF('Team Scores'!$Z$1<3,"",IF(ISERROR(MATCH('Individual Scores'!$D12,Scores!$F$506:$F$759,0)),"",INDIRECT("Scores!"&"R"&(ROW(Scores!$F$506:$F$759)-1+MATCH('Individual Scores'!$D12,Scores!$F$506:$F$759,0))&"C"&COLUMN(Scores!J$1),FALSE))) ->  | AL12: =IF('Team Scores'!$Z$1<3,"",IF(ISERROR(MATCH('Individual Scores'!$D12,Scores!$F$506:$F$759,0)),"",INDIRECT("Scores!"&"R"&(ROW(Scores!$F$506:$F$759)-1+MATCH('Individual Scores'!$D12,Scores!$F$506:$F$759,0))&"C"&COLUMN(Scores!K$1),FALSE))) ->  | AM12: =IF('Team Scores'!$Z$1<3,"",IF(ISERROR(MATCH('Individual Scores'!$D12,Scores!$F$506:$F$759,0)),"",INDIRECT("Scores!"&"R"&(ROW(Scores!$F$506:$F$759)-1+MATCH('Individual Scores'!$D12,Scores!$F$506:$F$759,0))&"C"&COLUMN(Scores!L$1),FALSE))) ->  | AN12: =IF('Team Scores'!$Z$1<3,"",IF(ISERROR(MATCH('Individual Scores'!$D12,Scores!$F$506:$F$759,0)),"",INDIRECT("Scores!"&"R"&(ROW(Scores!$F$506:$F$759)-1+MATCH('Individual Scores'!$D12,Scores!$F$506:$F$759,0))&"C"&COLUMN(Scores!N$1),FALSE))) ->  | AO12: =IF('Team Scores'!$Z$1<3,"",IF(ISERROR(MATCH('Individual Scores'!$D12,Scores!$F$506:$F$759,0)),"",INDIRECT("Scores!"&"R"&(ROW(Scores!$F$506:$F$759)-1+MATCH('Individual Scores'!$D12,Scores!$F$506:$F$759,0))&"C"&COLUMN(Scores!O$1),FALSE))) ->  | AP12: =IF('Team Scores'!$Z$1<3,"",IF(ISERROR(MATCH('Individual Scores'!$D12,Scores!$F$506:$F$759,0)),"",INDIRECT("Scores!"&"R"&(ROW(Scores!$F$506:$F$759)-1+MATCH('Individual Scores'!$D12,Scores!$F$506:$F$759,0))&"C"&COLUMN(Scores!P$1),FALSE))) ->  | AQ12: =IF('Team Scores'!$Z$1<3,"",IF(ISERROR(MATCH('Individual Scores'!$D12,Scores!$F$506:$F$759,0)),"",INDIRECT("Scores!"&"R"&(ROW(Scores!$F$506:$F$759)-1+MATCH('Individual Scores'!$D12,Scores!$F$506:$F$759,0))&"C"&COLUMN(Scores!S$1),FALSE))) -> 
A13: GA | B13: 15 & < | C13: F | D13: Glory Harmon | E13: 848 | F13: 928 | H13: 1776 | I13: =IF(COUNT(Q13:V13,AA13:AF13,AK13:AP13)>=18/3*'Team Scores'!$Z$1,IF(H13-VLOOKUP(B13&C13,'Individual Awards Computations'!$AY$54:$AZ$58,2,FALSE)=0,"Leader "&C13&":"&B13,H13-VLOOKUP(B13&C13,'Individual Awards Computations'!$AY$54:$AZ$58,2,FALSE)),"") -> -637 | J13: 209 | K13: 527 | L13: 148 | M13: 19.16666667 | N13: 129-167 | O13: 1 | Q13: =IF(ISERROR(MATCH('Individual Scores'!$D13,Scores!$F$1:$F$253,0)),"",INDIRECT("Scores!"&"R"&MATCH('Individual Scores'!$D13,Scores!$F$1:$F$253,0)&"C"&COLUMN(Scores!J$1),FALSE)) -> 158 | R13: =IF(ISERROR(MATCH('Individual Scores'!$D13,Scores!$F$1:$F$253,0)),"",INDIRECT("Scores!"&"R"&MATCH('Individual Scores'!$D13,Scores!$F$1:$F$253,0)&"C"&COLUMN(Scores!K$1),FALSE)) -> 143 | S13: =IF(ISERROR(MATCH('Individual Scores'!$D13,Scores!$F$1:$F$253,0)),"",INDIRECT("Scores!"&"R"&MATCH('Individual Scores'!$D13,Scores!$F$1:$F$253,0)&"C"&COLUMN(Scores!L$1),FALSE)) -> 170 | T13: =IF(ISERROR(MATCH('Individual Scores'!$D13,Scores!$F$1:$F$253,0)),"",INDIRECT("Scores!"&"R"&MATCH('Individual Scores'!$D13,Scores!$F$1:$F$253,0)&"C"&COLUMN(Scores!N$1),FALSE)) -> 113 | U13: =IF(ISERROR(MATCH('Individual Scores'!$D13,Scores!$F$1:$F$253,0)),"",INDIRECT("Scores!"&"R"&MATCH('Individual Scores'!$D13,Scores!$F$1:$F$253,0)&"C"&COLUMN(Scores!O$1),FALSE)) -> 117 | V13: =IF(ISERROR(MATCH('Individual Scores'!$D13,Scores!$F$1:$F$253,0)),"",INDIRECT("Scores!"&"R"&MATCH('Individual Scores'!$D13,Scores!$F$1:$F$253,0)&"C"&COLUMN(Scores!P$1),FALSE)) -> 147 | W13: =IF(ISERROR(MATCH('Individual Scores'!$D13,Scores!$F$1:$F$253,0)),"",INDIRECT("Scores!"&"R"&MATCH('Individual Scores'!$D13,Scores!$F$1:$F$253,0)&"C"&COLUMN(Scores!S$1),FALSE)) -> 848 | X13: =IF(MAX('Individual Scores'!Q13:V13)>0,MAX('Individual Scores'!Q13:V13),"") -> 170 | Y13: =IF(MAX(SUM('Individual Scores'!Q13:S13),SUM('Individual Scores'!T13:V13))>0,MAX(SUM('Individual Scores'!Q13:S13),SUM('Individual Scores'!T13:V13)),"") -> 471 | AA13: =IF('Team Scores'!$Z$1<2,"",IF(ISERROR(MATCH('Individual Scores'!$D13,Scores!$F$253:$F$506,0)),"",INDIRECT("Scores!"&"R"&(ROW(Scores!$253:$253)-1+MATCH('Individual Scores'!$D13,Scores!$F$253:$F$505,0))&"C"&COLUMN(Scores!J$1),FALSE))) -> 209 | AB13: =IF('Team Scores'!$Z$1<2,"",IF(ISERROR(MATCH('Individual Scores'!$D13,Scores!$F$253:$F$506,0)),"",INDIRECT("Scores!"&"R"&(ROW(Scores!$253:$253)-1+MATCH('Individual Scores'!$D13,Scores!$F$253:$F$505,0))&"C"&COLUMN(Scores!K$1),FALSE))) -> 157 | AC13: =IF('Team Scores'!$Z$1<2,"",IF(ISERROR(MATCH('Individual Scores'!$D13,Scores!$F$253:$F$506,0)),"",INDIRECT("Scores!"&"R"&(ROW(Scores!$253:$253)-1+MATCH('Individual Scores'!$D13,Scores!$F$253:$F$505,0))&"C"&COLUMN(Scores!L$1),FALSE))) -> 161 | AD13: =IF('Team Scores'!$Z$1<2,"",IF(ISERROR(MATCH('Individual Scores'!$D13,Scores!$F$253:$F$506,0)),"",INDIRECT("Scores!"&"R"&(ROW(Scores!$253:$253)-1+MATCH('Individual Scores'!$D13,Scores!$F$253:$F$505,0))&"C"&COLUMN(Scores!N$1),FALSE))) -> 132 | AE13: =IF('Team Scores'!$Z$1<2,"",IF(ISERROR(MATCH('Individual Scores'!$D13,Scores!$F$253:$F$506,0)),"",INDIRECT("Scores!"&"R"&(ROW(Scores!$253:$253)-1+MATCH('Individual Scores'!$D13,Scores!$F$253:$F$505,0))&"C"&COLUMN(Scores!O$1),FALSE))) -> 145 | AF13: =IF('Team Scores'!$Z$1<2,"",IF(ISERROR(MATCH('Individual Scores'!$D13,Scores!$F$253:$F$506,0)),"",INDIRECT("Scores!"&"R"&(ROW(Scores!$253:$253)-1+MATCH('Individual Scores'!$D13,Scores!$F$253:$F$505,0))&"C"&COLUMN(Scores!P$1),FALSE))) -> 124 | AG13: =IF('Team Scores'!$Z$1<2,"",IF(ISERROR(MATCH('Individual Scores'!$D13,Scores!$F$253:$F$506,0)),"",INDIRECT("Scores!"&"R"&(ROW(Scores!$253:$253)-1+MATCH('Individual Scores'!$D13,Scores!$F$253:$F$505,0))&"C"&COLUMN(Scores!S$1),FALSE))) -> 928 | AH13: 209 | AI13: 527 | AK13: =IF('Team Scores'!$Z$1<3,"",IF(ISERROR(MATCH('Individual Scores'!$D13,Scores!$F$506:$F$759,0)),"",INDIRECT("Scores!"&"R"&(ROW(Scores!$F$506:$F$759)-1+MATCH('Individual Scores'!$D13,Scores!$F$506:$F$759,0))&"C"&COLUMN(Scores!J$1),FALSE))) ->  | AL13: =IF('Team Scores'!$Z$1<3,"",IF(ISERROR(MATCH('Individual Scores'!$D13,Scores!$F$506:$F$759,0)),"",INDIRECT("Scores!"&"R"&(ROW(Scores!$F$506:$F$759)-1+MATCH('Individual Scores'!$D13,Scores!$F$506:$F$759,0))&"C"&COLUMN(Scores!K$1),FALSE))) ->  | AM13: =IF('Team Scores'!$Z$1<3,"",IF(ISERROR(MATCH('Individual Scores'!$D13,Scores!$F$506:$F$759,0)),"",INDIRECT("Scores!"&"R"&(ROW(Scores!$F$506:$F$759)-1+MATCH('Individual Scores'!$D13,Scores!$F$506:$F$759,0))&"C"&COLUMN(Scores!L$1),FALSE))) ->  | AN13: =IF('Team Scores'!$Z$1<3,"",IF(ISERROR(MATCH('Individual Scores'!$D13,Scores!$F$506:$F$759,0)),"",INDIRECT("Scores!"&"R"&(ROW(Scores!$F$506:$F$759)-1+MATCH('Individual Scores'!$D13,Scores!$F$506:$F$759,0))&"C"&COLUMN(Scores!N$1),FALSE))) ->  | AO13: =IF('Team Scores'!$Z$1<3,"",IF(ISERROR(MATCH('Individual Scores'!$D13,Scores!$F$506:$F$759,0)),"",INDIRECT("Scores!"&"R"&(ROW(Scores!$F$506:$F$759)-1+MATCH('Individual Scores'!$D13,Scores!$F$506:$F$759,0))&"C"&COLUMN(Scores!O$1),FALSE))) ->  | AP13: =IF('Team Scores'!$Z$1<3,"",IF(ISERROR(MATCH('Individual Scores'!$D13,Scores!$F$506:$F$759,0)),"",INDIRECT("Scores!"&"R"&(ROW(Scores!$F$506:$F$759)-1+MATCH('Individual Scores'!$D13,Scores!$F$506:$F$759,0))&"C"&COLUMN(Scores!P$1),FALSE))) ->  | AQ13: =IF('Team Scores'!$Z$1<3,"",IF(ISERROR(MATCH('Individual Scores'!$D13,Scores!$F$506:$F$759,0)),"",INDIRECT("Scores!"&"R"&(ROW(Scores!$F$506:$F$759)-1+MATCH('Individual Scores'!$D13,Scores!$F$506:$F$759,0))&"C"&COLUMN(Scores!S$1),FALSE))) -> 
A14: GA | B14: 15 & < | C14: F | D14: Vacant-GA_G_U15 | H14: 0 | I14: =IF(COUNT(Q14:V14,AA14:AF14,AK14:AP14)>=18/3*'Team Scores'!$Z$1,IF(H14-VLOOKUP(B14&C14,'Individual Awards Computations'!$AY$54:$AZ$58,2,FALSE)=0,"Leader "&C14&":"&B14,H14-VLOOKUP(B14&C14,'Individual Awards Computations'!$AY$54:$AZ$58,2,FALSE)),"") ->  | O14: 1 | Q14: =IF(ISERROR(MATCH('Individual Scores'!$D14,Scores!$F$1:$F$253,0)),"",INDIRECT("Scores!"&"R"&MATCH('Individual Scores'!$D14,Scores!$F$1:$F$253,0)&"C"&COLUMN(Scores!J$1),FALSE)) ->  | R14: =IF(ISERROR(MATCH('Individual Scores'!$D14,Scores!$F$1:$F$253,0)),"",INDIRECT("Scores!"&"R"&MATCH('Individual Scores'!$D14,Scores!$F$1:$F$253,0)&"C"&COLUMN(Scores!K$1),FALSE)) ->  | S14: =IF(ISERROR(MATCH('Individual Scores'!$D14,Scores!$F$1:$F$253,0)),"",INDIRECT("Scores!"&"R"&MATCH('Individual Scores'!$D14,Scores!$F$1:$F$253,0)&"C"&COLUMN(Scores!L$1),FALSE)) ->  | T14: =IF(ISERROR(MATCH('Individual Scores'!$D14,Scores!$F$1:$F$253,0)),"",INDIRECT("Scores!"&"R"&MATCH('Individual Scores'!$D14,Scores!$F$1:$F$253,0)&"C"&COLUMN(Scores!N$1),FALSE)) ->  | U14: =IF(ISERROR(MATCH('Individual Scores'!$D14,Scores!$F$1:$F$253,0)),"",INDIRECT("Scores!"&"R"&MATCH('Individual Scores'!$D14,Scores!$F$1:$F$253,0)&"C"&COLUMN(Scores!O$1),FALSE)) ->  | V14: =IF(ISERROR(MATCH('Individual Scores'!$D14,Scores!$F$1:$F$253,0)),"",INDIRECT("Scores!"&"R"&MATCH('Individual Scores'!$D14,Scores!$F$1:$F$253,0)&"C"&COLUMN(Scores!P$1),FALSE)) ->  | W14: =IF(ISERROR(MATCH('Individual Scores'!$D14,Scores!$F$1:$F$253,0)),"",INDIRECT("Scores!"&"R"&MATCH('Individual Scores'!$D14,Scores!$F$1:$F$253,0)&"C"&COLUMN(Scores!S$1),FALSE)) ->  | X14: =IF(MAX('Individual Scores'!Q14:V14)>0,MAX('Individual Scores'!Q14:V14),"") ->  | Y14: =IF(MAX(SUM('Individual Scores'!Q14:S14),SUM('Individual Scores'!T14:V14))>0,MAX(SUM('Individual Scores'!Q14:S14),SUM('Individual Scores'!T14:V14)),"") ->  | AA14: =IF('Team Scores'!$Z$1<2,"",IF(ISERROR(MATCH('Individual Scores'!$D14,Scores!$F$253:$F$506,0)),"",INDIRECT("Scores!"&"R"&(ROW(Scores!$253:$253)-1+MATCH('Individual Scores'!$D14,Scores!$F$253:$F$505,0))&"C"&COLUMN(Scores!J$1),FALSE))) ->  | AB14: =IF('Team Scores'!$Z$1<2,"",IF(ISERROR(MATCH('Individual Scores'!$D14,Scores!$F$253:$F$506,0)),"",INDIRECT("Scores!"&"R"&(ROW(Scores!$253:$253)-1+MATCH('Individual Scores'!$D14,Scores!$F$253:$F$505,0))&"C"&COLUMN(Scores!K$1),FALSE))) ->  | AC14: =IF('Team Scores'!$Z$1<2,"",IF(ISERROR(MATCH('Individual Scores'!$D14,Scores!$F$253:$F$506,0)),"",INDIRECT("Scores!"&"R"&(ROW(Scores!$253:$253)-1+MATCH('Individual Scores'!$D14,Scores!$F$253:$F$505,0))&"C"&COLUMN(Scores!L$1),FALSE))) ->  | AD14: =IF('Team Scores'!$Z$1<2,"",IF(ISERROR(MATCH('Individual Scores'!$D14,Scores!$F$253:$F$506,0)),"",INDIRECT("Scores!"&"R"&(ROW(Scores!$253:$253)-1+MATCH('Individual Scores'!$D14,Scores!$F$253:$F$505,0))&"C"&COLUMN(Scores!N$1),FALSE))) ->  | AE14: =IF('Team Scores'!$Z$1<2,"",IF(ISERROR(MATCH('Individual Scores'!$D14,Scores!$F$253:$F$506,0)),"",INDIRECT("Scores!"&"R"&(ROW(Scores!$253:$253)-1+MATCH('Individual Scores'!$D14,Scores!$F$253:$F$505,0))&"C"&COLUMN(Scores!O$1),FALSE))) ->  | AF14: =IF('Team Scores'!$Z$1<2,"",IF(ISERROR(MATCH('Individual Scores'!$D14,Scores!$F$253:$F$506,0)),"",INDIRECT("Scores!"&"R"&(ROW(Scores!$253:$253)-1+MATCH('Individual Scores'!$D14,Scores!$F$253:$F$505,0))&"C"&COLUMN(Scores!P$1),FALSE))) ->  | AG14: =IF('Team Scores'!$Z$1<2,"",IF(ISERROR(MATCH('Individual Scores'!$D14,Scores!$F$253:$F$506,0)),"",INDIRECT("Scores!"&"R"&(ROW(Scores!$253:$253)-1+MATCH('Individual Scores'!$D14,Scores!$F$253:$F$505,0))&"C"&COLUMN(Scores!S$1),FALSE))) ->  | AK14: =IF('Team Scores'!$Z$1<3,"",IF(ISERROR(MATCH('Individual Scores'!$D14,Scores!$F$506:$F$759,0)),"",INDIRECT("Scores!"&"R"&(ROW(Scores!$F$506:$F$759)-1+MATCH('Individual Scores'!$D14,Scores!$F$506:$F$759,0))&"C"&COLUMN(Scores!J$1),FALSE))) ->  | AL14: =IF('Team Scores'!$Z$1<3,"",IF(ISERROR(MATCH('Individual Scores'!$D14,Scores!$F$506:$F$759,0)),"",INDIRECT("Scores!"&"R"&(ROW(Scores!$F$506:$F$759)-1+MATCH('Individual Scores'!$D14,Scores!$F$506:$F$759,0))&"C"&COLUMN(Scores!K$1),FALSE))) ->  | AM14: =IF('Team Scores'!$Z$1<3,"",IF(ISERROR(MATCH('Individual Scores'!$D14,Scores!$F$506:$F$759,0)),"",INDIRECT("Scores!"&"R"&(ROW(Scores!$F$506:$F$759)-1+MATCH('Individual Scores'!$D14,Scores!$F$506:$F$759,0))&"C"&COLUMN(Scores!L$1),FALSE))) ->  | AN14: =IF('Team Scores'!$Z$1<3,"",IF(ISERROR(MATCH('Individual Scores'!$D14,Scores!$F$506:$F$759,0)),"",INDIRECT("Scores!"&"R"&(ROW(Scores!$F$506:$F$759)-1+MATCH('Individual Scores'!$D14,Scores!$F$506:$F$759,0))&"C"&COLUMN(Scores!N$1),FALSE))) ->  | AO14: =IF('Team Scores'!$Z$1<3,"",IF(ISERROR(MATCH('Individual Scores'!$D14,Scores!$F$506:$F$759,0)),"",INDIRECT("Scores!"&"R"&(ROW(Scores!$F$506:$F$759)-1+MATCH('Individual Scores'!$D14,Scores!$F$506:$F$759,0))&"C"&COLUMN(Scores!O$1),FALSE))) ->  | AP14: =IF('Team Scores'!$Z$1<3,"",IF(ISERROR(MATCH('Individual Scores'!$D14,Scores!$F$506:$F$759,0)),"",INDIRECT("Scores!"&"R"&(ROW(Scores!$F$506:$F$759)-1+MATCH('Individual Scores'!$D14,Scores!$F$506:$F$759,0))&"C"&COLUMN(Scores!P$1),FALSE))) ->  | AQ14: =IF('Team Scores'!$Z$1<3,"",IF(ISERROR(MATCH('Individual Scores'!$D14,Scores!$F$506:$F$759,0)),"",INDIRECT("Scores!"&"R"&(ROW(Scores!$F$506:$F$759)-1+MATCH('Individual Scores'!$D14,Scores!$F$506:$F$759,0))&"C"&COLUMN(Scores!S$1),FALSE))) -> 
A15: GA | B15: 15 & < | C15: F | H15: 0 | I15: =IF(COUNT(Q15:V15,AA15:AF15,AK15:AP15)>=18/3*'Team Scores'!$Z$1,IF(H15-VLOOKUP(B15&C15,'Individual Awards Computations'!$AY$54:$AZ$58,2,FALSE)=0,"Leader "&C15&":"&B15,H15-VLOOKUP(B15&C15,'Individual Awards Computations'!$AY$54:$AZ$58,2,FALSE)),"") ->  | O15: 0 | Q15: =IF(ISERROR(MATCH('Individual Scores'!$D15,Scores!$F$1:$F$253,0)),"",INDIRECT("Scores!"&"R"&MATCH('Individual Scores'!$D15,Scores!$F$1:$F$253,0)&"C"&COLUMN(Scores!J$1),FALSE)) ->  | R15: =IF(ISERROR(MATCH('Individual Scores'!$D15,Scores!$F$1:$F$253,0)),"",INDIRECT("Scores!"&"R"&MATCH('Individual Scores'!$D15,Scores!$F$1:$F$253,0)&"C"&COLUMN(Scores!K$1),FALSE)) ->  | S15: =IF(ISERROR(MATCH('Individual Scores'!$D15,Scores!$F$1:$F$253,0)),"",INDIRECT("Scores!"&"R"&MATCH('Individual Scores'!$D15,Scores!$F$1:$F$253,0)&"C"&COLUMN(Scores!L$1),FALSE)) ->  | T15: =IF(ISERROR(MATCH('Individual Scores'!$D15,Scores!$F$1:$F$253,0)),"",INDIRECT("Scores!"&"R"&MATCH('Individual Scores'!$D15,Scores!$F$1:$F$253,0)&"C"&COLUMN(Scores!N$1),FALSE)) ->  | U15: =IF(ISERROR(MATCH('Individual Scores'!$D15,Scores!$F$1:$F$253,0)),"",INDIRECT("Scores!"&"R"&MATCH('Individual Scores'!$D15,Scores!$F$1:$F$253,0)&"C"&COLUMN(Scores!O$1),FALSE)) ->  | V15: =IF(ISERROR(MATCH('Individual Scores'!$D15,Scores!$F$1:$F$253,0)),"",INDIRECT("Scores!"&"R"&MATCH('Individual Scores'!$D15,Scores!$F$1:$F$253,0)&"C"&COLUMN(Scores!P$1),FALSE)) ->  | W15: =IF(ISERROR(MATCH('Individual Scores'!$D15,Scores!$F$1:$F$253,0)),"",INDIRECT("Scores!"&"R"&MATCH('Individual Scores'!$D15,Scores!$F$1:$F$253,0)&"C"&COLUMN(Scores!S$1),FALSE)) ->  | X15: =IF(MAX('Individual Scores'!Q15:V15)>0,MAX('Individual Scores'!Q15:V15),"") ->  | Y15: =IF(MAX(SUM('Individual Scores'!Q15:S15),SUM('Individual Scores'!T15:V15))>0,MAX(SUM('Individual Scores'!Q15:S15),SUM('Individual Scores'!T15:V15)),"") ->  | AA15: =IF('Team Scores'!$Z$1<2,"",IF(ISERROR(MATCH('Individual Scores'!$D15,Scores!$F$253:$F$506,0)),"",INDIRECT("Scores!"&"R"&(ROW(Scores!$253:$253)-1+MATCH('Individual Scores'!$D15,Scores!$F$253:$F$505,0))&"C"&COLUMN(Scores!J$1),FALSE))) ->  | AB15: =IF('Team Scores'!$Z$1<2,"",IF(ISERROR(MATCH('Individual Scores'!$D15,Scores!$F$253:$F$506,0)),"",INDIRECT("Scores!"&"R"&(ROW(Scores!$253:$253)-1+MATCH('Individual Scores'!$D15,Scores!$F$253:$F$505,0))&"C"&COLUMN(Scores!K$1),FALSE))) ->  | AC15: =IF('Team Scores'!$Z$1<2,"",IF(ISERROR(MATCH('Individual Scores'!$D15,Scores!$F$253:$F$506,0)),"",INDIRECT("Scores!"&"R"&(ROW(Scores!$253:$253)-1+MATCH('Individual Scores'!$D15,Scores!$F$253:$F$505,0))&"C"&COLUMN(Scores!L$1),FALSE))) ->  | AD15: =IF('Team Scores'!$Z$1<2,"",IF(ISERROR(MATCH('Individual Scores'!$D15,Scores!$F$253:$F$506,0)),"",INDIRECT("Scores!"&"R"&(ROW(Scores!$253:$253)-1+MATCH('Individual Scores'!$D15,Scores!$F$253:$F$505,0))&"C"&COLUMN(Scores!N$1),FALSE))) ->  | AE15: =IF('Team Scores'!$Z$1<2,"",IF(ISERROR(MATCH('Individual Scores'!$D15,Scores!$F$253:$F$506,0)),"",INDIRECT("Scores!"&"R"&(ROW(Scores!$253:$253)-1+MATCH('Individual Scores'!$D15,Scores!$F$253:$F$505,0))&"C"&COLUMN(Scores!O$1),FALSE))) ->  | AF15: =IF('Team Scores'!$Z$1<2,"",IF(ISERROR(MATCH('Individual Scores'!$D15,Scores!$F$253:$F$506,0)),"",INDIRECT("Scores!"&"R"&(ROW(Scores!$253:$253)-1+MATCH('Individual Scores'!$D15,Scores!$F$253:$F$505,0))&"C"&COLUMN(Scores!P$1),FALSE))) ->  | AG15: =IF('Team Scores'!$Z$1<2,"",IF(ISERROR(MATCH('Individual Scores'!$D15,Scores!$F$253:$F$506,0)),"",INDIRECT("Scores!"&"R"&(ROW(Scores!$253:$253)-1+MATCH('Individual Scores'!$D15,Scores!$F$253:$F$505,0))&"C"&COLUMN(Scores!S$1),FALSE))) ->  | AK15: =IF('Team Scores'!$Z$1<3,"",IF(ISERROR(MATCH('Individual Scores'!$D15,Scores!$F$506:$F$759,0)),"",INDIRECT("Scores!"&"R"&(ROW(Scores!$F$506:$F$759)-1+MATCH('Individual Scores'!$D15,Scores!$F$506:$F$759,0))&"C"&COLUMN(Scores!J$1),FALSE))) ->  | AL15: =IF('Team Scores'!$Z$1<3,"",IF(ISERROR(MATCH('Individual Scores'!$D15,Scores!$F$506:$F$759,0)),"",INDIRECT("Scores!"&"R"&(ROW(Scores!$F$506:$F$759)-1+MATCH('Individual Scores'!$D15,Scores!$F$506:$F$759,0))&"C"&COLUMN(Scores!K$1),FALSE))) ->  | AM15: =IF('Team Scores'!$Z$1<3,"",IF(ISERROR(MATCH('Individual Scores'!$D15,Scores!$F$506:$F$759,0)),"",INDIRECT("Scores!"&"R"&(ROW(Scores!$F$506:$F$759)-1+MATCH('Individual Scores'!$D15,Scores!$F$506:$F$759,0))&"C"&COLUMN(Scores!L$1),FALSE))) ->  | AN15: =IF('Team Scores'!$Z$1<3,"",IF(ISERROR(MATCH('Individual Scores'!$D15,Scores!$F$506:$F$759,0)),"",INDIRECT("Scores!"&"R"&(ROW(Scores!$F$506:$F$759)-1+MATCH('Individual Scores'!$D15,Scores!$F$506:$F$759,0))&"C"&COLUMN(Scores!N$1),FALSE))) ->  | AO15: =IF('Team Scores'!$Z$1<3,"",IF(ISERROR(MATCH('Individual Scores'!$D15,Scores!$F$506:$F$759,0)),"",INDIRECT("Scores!"&"R"&(ROW(Scores!$F$506:$F$759)-1+MATCH('Individual Scores'!$D15,Scores!$F$506:$F$759,0))&"C"&COLUMN(Scores!O$1),FALSE))) ->  | AP15: =IF('Team Scores'!$Z$1<3,"",IF(ISERROR(MATCH('Individual Scores'!$D15,Scores!$F$506:$F$759,0)),"",INDIRECT("Scores!"&"R"&(ROW(Scores!$F$506:$F$759)-1+MATCH('Individual Scores'!$D15,Scores!$F$506:$F$759,0))&"C"&COLUMN(Scores!P$1),FALSE))) ->  | AQ15: =IF('Team Scores'!$Z$1<3,"",IF(ISERROR(MATCH('Individual Scores'!$D15,Scores!$F$506:$F$759,0)),"",INDIRECT("Scores!"&"R"&(ROW(Scores!$F$506:$F$759)-1+MATCH('Individual Scores'!$D15,Scores!$F$506:$F$759,0))&"C"&COLUMN(Scores!S$1),FALSE))) -> 
A16: GA | B16: 15 & < | C16: M | D16: Brandon Campbell | E16: 1189 | F16: 1011 | H16: 2200 | I16: =IF(COUNT(Q16:V16,AA16:AF16,AK16:AP16)>=18/3*'Team Scores'!$Z$1,IF(H16-VLOOKUP(B16&C16,'Individual Awards Computations'!$AY$54:$AZ$58,2,FALSE)=0,"Leader "&C16&":"&B16,H16-VLOOKUP(B16&C16,'Individual Awards Computations'!$AY$54:$AZ$58,2,FALSE)),"") -> -429 | J16: 222 | K16: 636 | L16: 183.3333333 | M16: 16.16666667 | N16: 167-200 | O16: 1 | Q16: =IF(ISERROR(MATCH('Individual Scores'!$D16,Scores!$F$1:$F$253,0)),"",INDIRECT("Scores!"&"R"&MATCH('Individual Scores'!$D16,Scores!$F$1:$F$253,0)&"C"&COLUMN(Scores!J$1),FALSE)) -> 176 | R16: =IF(ISERROR(MATCH('Individual Scores'!$D16,Scores!$F$1:$F$253,0)),"",INDIRECT("Scores!"&"R"&MATCH('Individual Scores'!$D16,Scores!$F$1:$F$253,0)&"C"&COLUMN(Scores!K$1),FALSE)) -> 189 | S16: =IF(ISERROR(MATCH('Individual Scores'!$D16,Scores!$F$1:$F$253,0)),"",INDIRECT("Scores!"&"R"&MATCH('Individual Scores'!$D16,Scores!$F$1:$F$253,0)&"C"&COLUMN(Scores!L$1),FALSE)) -> 188 | T16: =IF(ISERROR(MATCH('Individual Scores'!$D16,Scores!$F$1:$F$253,0)),"",INDIRECT("Scores!"&"R"&MATCH('Individual Scores'!$D16,Scores!$F$1:$F$253,0)&"C"&COLUMN(Scores!N$1),FALSE)) -> 205 | U16: =IF(ISERROR(MATCH('Individual Scores'!$D16,Scores!$F$1:$F$253,0)),"",INDIRECT("Scores!"&"R"&MATCH('Individual Scores'!$D16,Scores!$F$1:$F$253,0)&"C"&COLUMN(Scores!O$1),FALSE)) -> 209 | V16: =IF(ISERROR(MATCH('Individual Scores'!$D16,Scores!$F$1:$F$253,0)),"",INDIRECT("Scores!"&"R"&MATCH('Individual Scores'!$D16,Scores!$F$1:$F$253,0)&"C"&COLUMN(Scores!P$1),FALSE)) -> 222 | W16: =IF(ISERROR(MATCH('Individual Scores'!$D16,Scores!$F$1:$F$253,0)),"",INDIRECT("Scores!"&"R"&MATCH('Individual Scores'!$D16,Scores!$F$1:$F$253,0)&"C"&COLUMN(Scores!S$1),FALSE)) -> 1189 | X16: =IF(MAX('Individual Scores'!Q16:V16)>0,MAX('Individual Scores'!Q16:V16),"") -> 222 | Y16: =IF(MAX(SUM('Individual Scores'!Q16:S16),SUM('Individual Scores'!T16:V16))>0,MAX(SUM('Individual Scores'!Q16:S16),SUM('Individual Scores'!T16:V16)),"") -> 636 | AA16: =IF('Team Scores'!$Z$1<2,"",IF(ISERROR(MATCH('Individual Scores'!$D16,Scores!$F$253:$F$506,0)),"",INDIRECT("Scores!"&"R"&(ROW(Scores!$253:$253)-1+MATCH('Individual Scores'!$D16,Scores!$F$253:$F$505,0))&"C"&COLUMN(Scores!J$1),FALSE))) -> 170 | AB16: =IF('Team Scores'!$Z$1<2,"",IF(ISERROR(MATCH('Individual Scores'!$D16,Scores!$F$253:$F$506,0)),"",INDIRECT("Scores!"&"R"&(ROW(Scores!$253:$253)-1+MATCH('Individual Scores'!$D16,Scores!$F$253:$F$505,0))&"C"&COLUMN(Scores!K$1),FALSE))) -> 157 | AC16: =IF('Team Scores'!$Z$1<2,"",IF(ISERROR(MATCH('Individual Scores'!$D16,Scores!$F$253:$F$506,0)),"",INDIRECT("Scores!"&"R"&(ROW(Scores!$253:$253)-1+MATCH('Individual Scores'!$D16,Scores!$F$253:$F$505,0))&"C"&COLUMN(Scores!L$1),FALSE))) -> 169 | AD16: =IF('Team Scores'!$Z$1<2,"",IF(ISERROR(MATCH('Individual Scores'!$D16,Scores!$F$253:$F$506,0)),"",INDIRECT("Scores!"&"R"&(ROW(Scores!$253:$253)-1+MATCH('Individual Scores'!$D16,Scores!$F$253:$F$505,0))&"C"&COLUMN(Scores!N$1),FALSE))) -> 155 | AE16: =IF('Team Scores'!$Z$1<2,"",IF(ISERROR(MATCH('Individual Scores'!$D16,Scores!$F$253:$F$506,0)),"",INDIRECT("Scores!"&"R"&(ROW(Scores!$253:$253)-1+MATCH('Individual Scores'!$D16,Scores!$F$253:$F$505,0))&"C"&COLUMN(Scores!O$1),FALSE))) -> 184 | AF16: =IF('Team Scores'!$Z$1<2,"",IF(ISERROR(MATCH('Individual Scores'!$D16,Scores!$F$253:$F$506,0)),"",INDIRECT("Scores!"&"R"&(ROW(Scores!$253:$253)-1+MATCH('Individual Scores'!$D16,Scores!$F$253:$F$505,0))&"C"&COLUMN(Scores!P$1),FALSE))) -> 176 | AG16: =IF('Team Scores'!$Z$1<2,"",IF(ISERROR(MATCH('Individual Scores'!$D16,Scores!$F$253:$F$506,0)),"",INDIRECT("Scores!"&"R"&(ROW(Scores!$253:$253)-1+MATCH('Individual Scores'!$D16,Scores!$F$253:$F$505,0))&"C"&COLUMN(Scores!S$1),FALSE))) -> 1011 | AH16: 184 | AI16: 515 | AK16: =IF('Team Scores'!$Z$1<3,"",IF(ISERROR(MATCH('Individual Scores'!$D16,Scores!$F$506:$F$759,0)),"",INDIRECT("Scores!"&"R"&(ROW(Scores!$F$506:$F$759)-1+MATCH('Individual Scores'!$D16,Scores!$F$506:$F$759,0))&"C"&COLUMN(Scores!J$1),FALSE))) ->  | AL16: =IF('Team Scores'!$Z$1<3,"",IF(ISERROR(MATCH('Individual Scores'!$D16,Scores!$F$506:$F$759,0)),"",INDIRECT("Scores!"&"R"&(ROW(Scores!$F$506:$F$759)-1+MATCH('Individual Scores'!$D16,Scores!$F$506:$F$759,0))&"C"&COLUMN(Scores!K$1),FALSE))) ->  | AM16: =IF('Team Scores'!$Z$1<3,"",IF(ISERROR(MATCH('Individual Scores'!$D16,Scores!$F$506:$F$759,0)),"",INDIRECT("Scores!"&"R"&(ROW(Scores!$F$506:$F$759)-1+MATCH('Individual Scores'!$D16,Scores!$F$506:$F$759,0))&"C"&COLUMN(Scores!L$1),FALSE))) ->  | AN16: =IF('Team Scores'!$Z$1<3,"",IF(ISERROR(MATCH('Individual Scores'!$D16,Scores!$F$506:$F$759,0)),"",INDIRECT("Scores!"&"R"&(ROW(Scores!$F$506:$F$759)-1+MATCH('Individual Scores'!$D16,Scores!$F$506:$F$759,0))&"C"&COLUMN(Scores!N$1),FALSE))) ->  | AO16: =IF('Team Scores'!$Z$1<3,"",IF(ISERROR(MATCH('Individual Scores'!$D16,Scores!$F$506:$F$759,0)),"",INDIRECT("Scores!"&"R"&(ROW(Scores!$F$506:$F$759)-1+MATCH('Individual Scores'!$D16,Scores!$F$506:$F$759,0))&"C"&COLUMN(Scores!O$1),FALSE))) ->  | AP16: =IF('Team Scores'!$Z$1<3,"",IF(ISERROR(MATCH('Individual Scores'!$D16,Scores!$F$506:$F$759,0)),"",INDIRECT("Scores!"&"R"&(ROW(Scores!$F$506:$F$759)-1+MATCH('Individual Scores'!$D16,Scores!$F$506:$F$759,0))&"C"&COLUMN(Scores!P$1),FALSE))) ->  | AQ16: =IF('Team Scores'!$Z$1<3,"",IF(ISERROR(MATCH('Individual Scores'!$D16,Scores!$F$506:$F$759,0)),"",INDIRECT("Scores!"&"R"&(ROW(Scores!$F$506:$F$759)-1+MATCH('Individual Scores'!$D16,Scores!$F$506:$F$759,0))&"C"&COLUMN(Scores!S$1),FALSE))) -> 
A17: GA | B17: 15 & < | C17: M | D17: Dakota Starling | E17: 1056 | F17: 1132 | H17: 2188 | I17: =IF(COUNT(Q17:V17,AA17:AF17,AK17:AP17)>=18/3*'Team Scores'!$Z$1,IF(H17-VLOOKUP(B17&C17,'Individual Awards Computations'!$AY$54:$AZ$58,2,FALSE)=0,"Leader "&C17&":"&B17,H17-VLOOKUP(B17&C17,'Individual Awards Computations'!$AY$54:$AZ$58,2,FALSE)),"") -> -441 | J17: 223 | K17: 597 | L17: 182.3333333 | M17: 23.61111111 | N17: 159-206 | O17: 1 | Q17: =IF(ISERROR(MATCH('Individual Scores'!$D17,Scores!$F$1:$F$253,0)),"",INDIRECT("Scores!"&"R"&MATCH('Individual Scores'!$D17,Scores!$F$1:$F$253,0)&"C"&COLUMN(Scores!J$1),FALSE)) -> 190 | R17: =IF(ISERROR(MATCH('Individual Scores'!$D17,Scores!$F$1:$F$253,0)),"",INDIRECT("Scores!"&"R"&MATCH('Individual Scores'!$D17,Scores!$F$1:$F$253,0)&"C"&COLUMN(Scores!K$1),FALSE)) -> 211 | S17: =IF(ISERROR(MATCH('Individual Scores'!$D17,Scores!$F$1:$F$253,0)),"",INDIRECT("Scores!"&"R"&MATCH('Individual Scores'!$D17,Scores!$F$1:$F$253,0)&"C"&COLUMN(Scores!L$1),FALSE)) -> 196 | T17: =IF(ISERROR(MATCH('Individual Scores'!$D17,Scores!$F$1:$F$253,0)),"",INDIRECT("Scores!"&"R"&MATCH('Individual Scores'!$D17,Scores!$F$1:$F$253,0)&"C"&COLUMN(Scores!N$1),FALSE)) -> 158 | U17: =IF(ISERROR(MATCH('Individual Scores'!$D17,Scores!$F$1:$F$253,0)),"",INDIRECT("Scores!"&"R"&MATCH('Individual Scores'!$D17,Scores!$F$1:$F$253,0)&"C"&COLUMN(Scores!O$1),FALSE)) -> 118 | V17: =IF(ISERROR(MATCH('Individual Scores'!$D17,Scores!$F$1:$F$253,0)),"",INDIRECT("Scores!"&"R"&MATCH('Individual Scores'!$D17,Scores!$F$1:$F$253,0)&"C"&COLUMN(Scores!P$1),FALSE)) -> 183 | W17: =IF(ISERROR(MATCH('Individual Scores'!$D17,Scores!$F$1:$F$253,0)),"",INDIRECT("Scores!"&"R"&MATCH('Individual Scores'!$D17,Scores!$F$1:$F$253,0)&"C"&COLUMN(Scores!S$1),FALSE)) -> 1056 | X17: =IF(MAX('Individual Scores'!Q17:V17)>0,MAX('Individual Scores'!Q17:V17),"") -> 211 | Y17: =IF(MAX(SUM('Individual Scores'!Q17:S17),SUM('Individual Scores'!T17:V17))>0,MAX(SUM('Individual Scores'!Q17:S17),SUM('Individual Scores'!T17:V17)),"") -> 597 | AA17: =IF('Team Scores'!$Z$1<2,"",IF(ISERROR(MATCH('Individual Scores'!$D17,Scores!$F$253:$F$506,0)),"",INDIRECT("Scores!"&"R"&(ROW(Scores!$253:$253)-1+MATCH('Individual Scores'!$D17,Scores!$F$253:$F$505,0))&"C"&COLUMN(Scores!J$1),FALSE))) -> 177 | AB17: =IF('Team Scores'!$Z$1<2,"",IF(ISERROR(MATCH('Individual Scores'!$D17,Scores!$F$253:$F$506,0)),"",INDIRECT("Scores!"&"R"&(ROW(Scores!$253:$253)-1+MATCH('Individual Scores'!$D17,Scores!$F$253:$F$505,0))&"C"&COLUMN(Scores!K$1),FALSE))) -> 222 | AC17: =IF('Team Scores'!$Z$1<2,"",IF(ISERROR(MATCH('Individual Scores'!$D17,Scores!$F$253:$F$506,0)),"",INDIRECT("Scores!"&"R"&(ROW(Scores!$253:$253)-1+MATCH('Individual Scores'!$D17,Scores!$F$253:$F$505,0))&"C"&COLUMN(Scores!L$1),FALSE))) -> 193 | AD17: =IF('Team Scores'!$Z$1<2,"",IF(ISERROR(MATCH('Individual Scores'!$D17,Scores!$F$253:$F$506,0)),"",INDIRECT("Scores!"&"R"&(ROW(Scores!$253:$253)-1+MATCH('Individual Scores'!$D17,Scores!$F$253:$F$505,0))&"C"&COLUMN(Scores!N$1),FALSE))) -> 160 | AE17: =IF('Team Scores'!$Z$1<2,"",IF(ISERROR(MATCH('Individual Scores'!$D17,Scores!$F$253:$F$506,0)),"",INDIRECT("Scores!"&"R"&(ROW(Scores!$253:$253)-1+MATCH('Individual Scores'!$D17,Scores!$F$253:$F$505,0))&"C"&COLUMN(Scores!O$1),FALSE))) -> 223 | AF17: =IF('Team Scores'!$Z$1<2,"",IF(ISERROR(MATCH('Individual Scores'!$D17,Scores!$F$253:$F$506,0)),"",INDIRECT("Scores!"&"R"&(ROW(Scores!$253:$253)-1+MATCH('Individual Scores'!$D17,Scores!$F$253:$F$505,0))&"C"&COLUMN(Scores!P$1),FALSE))) -> 157 | AG17: =IF('Team Scores'!$Z$1<2,"",IF(ISERROR(MATCH('Individual Scores'!$D17,Scores!$F$253:$F$506,0)),"",INDIRECT("Scores!"&"R"&(ROW(Scores!$253:$253)-1+MATCH('Individual Scores'!$D17,Scores!$F$253:$F$505,0))&"C"&COLUMN(Scores!S$1),FALSE))) -> 1132 | AH17: 223 | AI17: 592 | AK17: =IF('Team Scores'!$Z$1<3,"",IF(ISERROR(MATCH('Individual Scores'!$D17,Scores!$F$506:$F$759,0)),"",INDIRECT("Scores!"&"R"&(ROW(Scores!$F$506:$F$759)-1+MATCH('Individual Scores'!$D17,Scores!$F$506:$F$759,0))&"C"&COLUMN(Scores!J$1),FALSE))) ->  | AL17: =IF('Team Scores'!$Z$1<3,"",IF(ISERROR(MATCH('Individual Scores'!$D17,Scores!$F$506:$F$759,0)),"",INDIRECT("Scores!"&"R"&(ROW(Scores!$F$506:$F$759)-1+MATCH('Individual Scores'!$D17,Scores!$F$506:$F$759,0))&"C"&COLUMN(Scores!K$1),FALSE))) ->  | AM17: =IF('Team Scores'!$Z$1<3,"",IF(ISERROR(MATCH('Individual Scores'!$D17,Scores!$F$506:$F$759,0)),"",INDIRECT("Scores!"&"R"&(ROW(Scores!$F$506:$F$759)-1+MATCH('Individual Scores'!$D17,Scores!$F$506:$F$759,0))&"C"&COLUMN(Scores!L$1),FALSE))) ->  | AN17: =IF('Team Scores'!$Z$1<3,"",IF(ISERROR(MATCH('Individual Scores'!$D17,Scores!$F$506:$F$759,0)),"",INDIRECT("Scores!"&"R"&(ROW(Scores!$F$506:$F$759)-1+MATCH('Individual Scores'!$D17,Scores!$F$506:$F$759,0))&"C"&COLUMN(Scores!N$1),FALSE))) ->  | AO17: =IF('Team Scores'!$Z$1<3,"",IF(ISERROR(MATCH('Individual Scores'!$D17,Scores!$F$506:$F$759,0)),"",INDIRECT("Scores!"&"R"&(ROW(Scores!$F$506:$F$759)-1+MATCH('Individual Scores'!$D17,Scores!$F$506:$F$759,0))&"C"&COLUMN(Scores!O$1),FALSE))) ->  | AP17: =IF('Team Scores'!$Z$1<3,"",IF(ISERROR(MATCH('Individual Scores'!$D17,Scores!$F$506:$F$759,0)),"",INDIRECT("Scores!"&"R"&(ROW(Scores!$F$506:$F$759)-1+MATCH('Individual Scores'!$D17,Scores!$F$506:$F$759,0))&"C"&COLUMN(Scores!P$1),FALSE))) ->  | AQ17: =IF('Team Scores'!$Z$1<3,"",IF(ISERROR(MATCH('Individual Scores'!$D17,Scores!$F$506:$F$759,0)),"",INDIRECT("Scores!"&"R"&(ROW(Scores!$F$506:$F$759)-1+MATCH('Individual Scores'!$D17,Scores!$F$506:$F$759,0))&"C"&COLUMN(Scores!S$1),FALSE))) -> 
A18: GA | B18: 15 & < | C18: M | D18: Isaiah Tukes | E18: 925 | F18: 1123 | H18: 2048 | I18: =IF(COUNT(Q18:V18,AA18:AF18,AK18:AP18)>=18/3*'Team Scores'!$Z$1,IF(H18-VLOOKUP(B18&C18,'Individual Awards Computations'!$AY$54:$AZ$58,2,FALSE)=0,"Leader "&C18&":"&B18,H18-VLOOKUP(B18&C18,'Individual Awards Computations'!$AY$54:$AZ$58,2,FALSE)),"") -> -581 | J18: 213 | K18: 591 | L18: 170.6666667 | M18: 17.33333333 | N18: 153-188 | O18: 1 | Q18: =IF(ISERROR(MATCH('Individual Scores'!$D18,Scores!$F$1:$F$253,0)),"",INDIRECT("Scores!"&"R"&MATCH('Individual Scores'!$D18,Scores!$F$1:$F$253,0)&"C"&COLUMN(Scores!J$1),FALSE)) -> 136 | R18: =IF(ISERROR(MATCH('Individual Scores'!$D18,Scores!$F$1:$F$253,0)),"",INDIRECT("Scores!"&"R"&MATCH('Individual Scores'!$D18,Scores!$F$1:$F$253,0)&"C"&COLUMN(Scores!K$1),FALSE)) -> 168 | S18: =IF(ISERROR(MATCH('Individual Scores'!$D18,Scores!$F$1:$F$253,0)),"",INDIRECT("Scores!"&"R"&MATCH('Individual Scores'!$D18,Scores!$F$1:$F$253,0)&"C"&COLUMN(Scores!L$1),FALSE)) -> 151 | T18: =IF(ISERROR(MATCH('Individual Scores'!$D18,Scores!$F$1:$F$253,0)),"",INDIRECT("Scores!"&"R"&MATCH('Individual Scores'!$D18,Scores!$F$1:$F$253,0)&"C"&COLUMN(Scores!N$1),FALSE)) -> 148 | U18: =IF(ISERROR(MATCH('Individual Scores'!$D18,Scores!$F$1:$F$253,0)),"",INDIRECT("Scores!"&"R"&MATCH('Individual Scores'!$D18,Scores!$F$1:$F$253,0)&"C"&COLUMN(Scores!O$1),FALSE)) -> 149 | V18: =IF(ISERROR(MATCH('Individual Scores'!$D18,Scores!$F$1:$F$253,0)),"",INDIRECT("Scores!"&"R"&MATCH('Individual Scores'!$D18,Scores!$F$1:$F$253,0)&"C"&COLUMN(Scores!P$1),FALSE)) -> 173 | W18: =IF(ISERROR(MATCH('Individual Scores'!$D18,Scores!$F$1:$F$253,0)),"",INDIRECT("Scores!"&"R"&MATCH('Individual Scores'!$D18,Scores!$F$1:$F$253,0)&"C"&COLUMN(Scores!S$1),FALSE)) -> 925 | X18: =IF(MAX('Individual Scores'!Q18:V18)>0,MAX('Individual Scores'!Q18:V18),"") -> 173 | Y18: =IF(MAX(SUM('Individual Scores'!Q18:S18),SUM('Individual Scores'!T18:V18))>0,MAX(SUM('Individual Scores'!Q18:S18),SUM('Individual Scores'!T18:V18)),"") -> 470 | AA18: =IF('Team Scores'!$Z$1<2,"",IF(ISERROR(MATCH('Individual Scores'!$D18,Scores!$F$253:$F$506,0)),"",INDIRECT("Scores!"&"R"&(ROW(Scores!$253:$253)-1+MATCH('Individual Scores'!$D18,Scores!$F$253:$F$505,0))&"C"&COLUMN(Scores!J$1),FALSE))) -> 200 | AB18: =IF('Team Scores'!$Z$1<2,"",IF(ISERROR(MATCH('Individual Scores'!$D18,Scores!$F$253:$F$506,0)),"",INDIRECT("Scores!"&"R"&(ROW(Scores!$253:$253)-1+MATCH('Individual Scores'!$D18,Scores!$F$253:$F$505,0))&"C"&COLUMN(Scores!K$1),FALSE))) -> 213 | AC18: =IF('Team Scores'!$Z$1<2,"",IF(ISERROR(MATCH('Individual Scores'!$D18,Scores!$F$253:$F$506,0)),"",INDIRECT("Scores!"&"R"&(ROW(Scores!$253:$253)-1+MATCH('Individual Scores'!$D18,Scores!$F$253:$F$505,0))&"C"&COLUMN(Scores!L$1),FALSE))) -> 178 | AD18: =IF('Team Scores'!$Z$1<2,"",IF(ISERROR(MATCH('Individual Scores'!$D18,Scores!$F$253:$F$506,0)),"",INDIRECT("Scores!"&"R"&(ROW(Scores!$253:$253)-1+MATCH('Individual Scores'!$D18,Scores!$F$253:$F$505,0))&"C"&COLUMN(Scores!N$1),FALSE))) -> 174 | AE18: =IF('Team Scores'!$Z$1<2,"",IF(ISERROR(MATCH('Individual Scores'!$D18,Scores!$F$253:$F$506,0)),"",INDIRECT("Scores!"&"R"&(ROW(Scores!$253:$253)-1+MATCH('Individual Scores'!$D18,Scores!$F$253:$F$505,0))&"C"&COLUMN(Scores!O$1),FALSE))) -> 168 | AF18: =IF('Team Scores'!$Z$1<2,"",IF(ISERROR(MATCH('Individual Scores'!$D18,Scores!$F$253:$F$506,0)),"",INDIRECT("Scores!"&"R"&(ROW(Scores!$253:$253)-1+MATCH('Individual Scores'!$D18,Scores!$F$253:$F$505,0))&"C"&COLUMN(Scores!P$1),FALSE))) -> 190 | AG18: =IF('Team Scores'!$Z$1<2,"",IF(ISERROR(MATCH('Individual Scores'!$D18,Scores!$F$253:$F$506,0)),"",INDIRECT("Scores!"&"R"&(ROW(Scores!$253:$253)-1+MATCH('Individual Scores'!$D18,Scores!$F$253:$F$505,0))&"C"&COLUMN(Scores!S$1),FALSE))) -> 1123 | AH18: 213 | AI18: 591 | AK18: =IF('Team Scores'!$Z$1<3,"",IF(ISERROR(MATCH('Individual Scores'!$D18,Scores!$F$506:$F$759,0)),"",INDIRECT("Scores!"&"R"&(ROW(Scores!$F$506:$F$759)-1+MATCH('Individual Scores'!$D18,Scores!$F$506:$F$759,0))&"C"&COLUMN(Scores!J$1),FALSE))) ->  | AL18: =IF('Team Scores'!$Z$1<3,"",IF(ISERROR(MATCH('Individual Scores'!$D18,Scores!$F$506:$F$759,0)),"",INDIRECT("Scores!"&"R"&(ROW(Scores!$F$506:$F$759)-1+MATCH('Individual Scores'!$D18,Scores!$F$506:$F$759,0))&"C"&COLUMN(Scores!K$1),FALSE))) ->  | AM18: =IF('Team Scores'!$Z$1<3,"",IF(ISERROR(MATCH('Individual Scores'!$D18,Scores!$F$506:$F$759,0)),"",INDIRECT("Scores!"&"R"&(ROW(Scores!$F$506:$F$759)-1+MATCH('Individual Scores'!$D18,Scores!$F$506:$F$759,0))&"C"&COLUMN(Scores!L$1),FALSE))) ->  | AN18: =IF('Team Scores'!$Z$1<3,"",IF(ISERROR(MATCH('Individual Scores'!$D18,Scores!$F$506:$F$759,0)),"",INDIRECT("Scores!"&"R"&(ROW(Scores!$F$506:$F$759)-1+MATCH('Individual Scores'!$D18,Scores!$F$506:$F$759,0))&"C"&COLUMN(Scores!N$1),FALSE))) ->  | AO18: =IF('Team Scores'!$Z$1<3,"",IF(ISERROR(MATCH('Individual Scores'!$D18,Scores!$F$506:$F$759,0)),"",INDIRECT("Scores!"&"R"&(ROW(Scores!$F$506:$F$759)-1+MATCH('Individual Scores'!$D18,Scores!$F$506:$F$759,0))&"C"&COLUMN(Scores!O$1),FALSE))) ->  | AP18: =IF('Team Scores'!$Z$1<3,"",IF(ISERROR(MATCH('Individual Scores'!$D18,Scores!$F$506:$F$759,0)),"",INDIRECT("Scores!"&"R"&(ROW(Scores!$F$506:$F$759)-1+MATCH('Individual Scores'!$D18,Scores!$F$506:$F$759,0))&"C"&COLUMN(Scores!P$1),FALSE))) ->  | AQ18: =IF('Team Scores'!$Z$1<3,"",IF(ISERROR(MATCH('Individual Scores'!$D18,Scores!$F$506:$F$759,0)),"",INDIRECT("Scores!"&"R"&(ROW(Scores!$F$506:$F$759)-1+MATCH('Individual Scores'!$D18,Scores!$F$506:$F$759,0))&"C"&COLUMN(Scores!S$1),FALSE))) -> 
A19: GA | B19: 15 & < | C19: M | D19: Josh Monroe | E19: 1037 | F19: 1099 | H19: 2136 | I19: =IF(COUNT(Q19:V19,AA19:AF19,AK19:AP19)>=18/3*'Team Scores'!$Z$1,IF(H19-VLOOKUP(B19&C19,'Individual Awards Computations'!$AY$54:$AZ$58,2,FALSE)=0,"Leader "&C19&":"&B19,H19-VLOOKUP(B19&C19,'Individual Awards Computations'!$AY$54:$AZ$58,2,FALSE)),"") -> -493 | J19: 244 | K19: 571 | L19: 178 | M19: 24.83333333 | N19: 153-203 | O19: 1 | Q19: =IF(ISERROR(MATCH('Individual Scores'!$D19,Scores!$F$1:$F$253,0)),"",INDIRECT("Scores!"&"R"&MATCH('Individual Scores'!$D19,Scores!$F$1:$F$253,0)&"C"&COLUMN(Scores!J$1),FALSE)) -> 174 | R19: =IF(ISERROR(MATCH('Individual Scores'!$D19,Scores!$F$1:$F$253,0)),"",INDIRECT("Scores!"&"R"&MATCH('Individual Scores'!$D19,Scores!$F$1:$F$253,0)&"C"&COLUMN(Scores!K$1),FALSE)) -> 140 | S19: =IF(ISERROR(MATCH('Individual Scores'!$D19,Scores!$F$1:$F$253,0)),"",INDIRECT("Scores!"&"R"&MATCH('Individual Scores'!$D19,Scores!$F$1:$F$253,0)&"C"&COLUMN(Scores!L$1),FALSE)) -> 152 | T19: =IF(ISERROR(MATCH('Individual Scores'!$D19,Scores!$F$1:$F$253,0)),"",INDIRECT("Scores!"&"R"&MATCH('Individual Scores'!$D19,Scores!$F$1:$F$253,0)&"C"&COLUMN(Scores!N$1),FALSE)) -> 143 | U19: =IF(ISERROR(MATCH('Individual Scores'!$D19,Scores!$F$1:$F$253,0)),"",INDIRECT("Scores!"&"R"&MATCH('Individual Scores'!$D19,Scores!$F$1:$F$253,0)&"C"&COLUMN(Scores!O$1),FALSE)) -> 244 | V19: =IF(ISERROR(MATCH('Individual Scores'!$D19,Scores!$F$1:$F$253,0)),"",INDIRECT("Scores!"&"R"&MATCH('Individual Scores'!$D19,Scores!$F$1:$F$253,0)&"C"&COLUMN(Scores!P$1),FALSE)) -> 184 | W19: =IF(ISERROR(MATCH('Individual Scores'!$D19,Scores!$F$1:$F$253,0)),"",INDIRECT("Scores!"&"R"&MATCH('Individual Scores'!$D19,Scores!$F$1:$F$253,0)&"C"&COLUMN(Scores!S$1),FALSE)) -> 1037 | X19: =IF(MAX('Individual Scores'!Q19:V19)>0,MAX('Individual Scores'!Q19:V19),"") -> 244 | Y19: =IF(MAX(SUM('Individual Scores'!Q19:S19),SUM('Individual Scores'!T19:V19))>0,MAX(SUM('Individual Scores'!Q19:S19),SUM('Individual Scores'!T19:V19)),"") -> 571 | AA19: =IF('Team Scores'!$Z$1<2,"",IF(ISERROR(MATCH('Individual Scores'!$D19,Scores!$F$253:$F$506,0)),"",INDIRECT("Scores!"&"R"&(ROW(Scores!$253:$253)-1+MATCH('Individual Scores'!$D19,Scores!$F$253:$F$505,0))&"C"&COLUMN(Scores!J$1),FALSE))) -> 181 | AB19: =IF('Team Scores'!$Z$1<2,"",IF(ISERROR(MATCH('Individual Scores'!$D19,Scores!$F$253:$F$506,0)),"",INDIRECT("Scores!"&"R"&(ROW(Scores!$253:$253)-1+MATCH('Individual Scores'!$D19,Scores!$F$253:$F$505,0))&"C"&COLUMN(Scores!K$1),FALSE))) -> 163 | AC19: =IF('Team Scores'!$Z$1<2,"",IF(ISERROR(MATCH('Individual Scores'!$D19,Scores!$F$253:$F$506,0)),"",INDIRECT("Scores!"&"R"&(ROW(Scores!$253:$253)-1+MATCH('Individual Scores'!$D19,Scores!$F$253:$F$505,0))&"C"&COLUMN(Scores!L$1),FALSE))) -> 213 | AD19: =IF('Team Scores'!$Z$1<2,"",IF(ISERROR(MATCH('Individual Scores'!$D19,Scores!$F$253:$F$506,0)),"",INDIRECT("Scores!"&"R"&(ROW(Scores!$253:$253)-1+MATCH('Individual Scores'!$D19,Scores!$F$253:$F$505,0))&"C"&COLUMN(Scores!N$1),FALSE))) -> 164 | AE19: =IF('Team Scores'!$Z$1<2,"",IF(ISERROR(MATCH('Individual Scores'!$D19,Scores!$F$253:$F$506,0)),"",INDIRECT("Scores!"&"R"&(ROW(Scores!$253:$253)-1+MATCH('Individual Scores'!$D19,Scores!$F$253:$F$505,0))&"C"&COLUMN(Scores!O$1),FALSE))) -> 217 | AF19: =IF('Team Scores'!$Z$1<2,"",IF(ISERROR(MATCH('Individual Scores'!$D19,Scores!$F$253:$F$506,0)),"",INDIRECT("Scores!"&"R"&(ROW(Scores!$253:$253)-1+MATCH('Individual Scores'!$D19,Scores!$F$253:$F$505,0))&"C"&COLUMN(Scores!P$1),FALSE))) -> 161 | AG19: =IF('Team Scores'!$Z$1<2,"",IF(ISERROR(MATCH('Individual Scores'!$D19,Scores!$F$253:$F$506,0)),"",INDIRECT("Scores!"&"R"&(ROW(Scores!$253:$253)-1+MATCH('Individual Scores'!$D19,Scores!$F$253:$F$505,0))&"C"&COLUMN(Scores!S$1),FALSE))) -> 1099 | AH19: 217 | AI19: 557 | AK19: =IF('Team Scores'!$Z$1<3,"",IF(ISERROR(MATCH('Individual Scores'!$D19,Scores!$F$506:$F$759,0)),"",INDIRECT("Scores!"&"R"&(ROW(Scores!$F$506:$F$759)-1+MATCH('Individual Scores'!$D19,Scores!$F$506:$F$759,0))&"C"&COLUMN(Scores!J$1),FALSE))) ->  | AL19: =IF('Team Scores'!$Z$1<3,"",IF(ISERROR(MATCH('Individual Scores'!$D19,Scores!$F$506:$F$759,0)),"",INDIRECT("Scores!"&"R"&(ROW(Scores!$F$506:$F$759)-1+MATCH('Individual Scores'!$D19,Scores!$F$506:$F$759,0))&"C"&COLUMN(Scores!K$1),FALSE))) ->  | AM19: =IF('Team Scores'!$Z$1<3,"",IF(ISERROR(MATCH('Individual Scores'!$D19,Scores!$F$506:$F$759,0)),"",INDIRECT("Scores!"&"R"&(ROW(Scores!$F$506:$F$759)-1+MATCH('Individual Scores'!$D19,Scores!$F$506:$F$759,0))&"C"&COLUMN(Scores!L$1),FALSE))) ->  | AN19: =IF('Team Scores'!$Z$1<3,"",IF(ISERROR(MATCH('Individual Scores'!$D19,Scores!$F$506:$F$759,0)),"",INDIRECT("Scores!"&"R"&(ROW(Scores!$F$506:$F$759)-1+MATCH('Individual Scores'!$D19,Scores!$F$506:$F$759,0))&"C"&COLUMN(Scores!N$1),FALSE))) ->  | AO19: =IF('Team Scores'!$Z$1<3,"",IF(ISERROR(MATCH('Individual Scores'!$D19,Scores!$F$506:$F$759,0)),"",INDIRECT("Scores!"&"R"&(ROW(Scores!$F$506:$F$759)-1+MATCH('Individual Scores'!$D19,Scores!$F$506:$F$759,0))&"C"&COLUMN(Scores!O$1),FALSE))) ->  | AP19: =IF('Team Scores'!$Z$1<3,"",IF(ISERROR(MATCH('Individual Scores'!$D19,Scores!$F$506:$F$759,0)),"",INDIRECT("Scores!"&"R"&(ROW(Scores!$F$506:$F$759)-1+MATCH('Individual Scores'!$D19,Scores!$F$506:$F$759,0))&"C"&COLUMN(Scores!P$1),FALSE))) ->  | AQ19: =IF('Team Scores'!$Z$1<3,"",IF(ISERROR(MATCH('Individual Scores'!$D19,Scores!$F$506:$F$759,0)),"",INDIRECT("Scores!"&"R"&(ROW(Scores!$F$506:$F$759)-1+MATCH('Individual Scores'!$D19,Scores!$F$506:$F$759,0))&"C"&COLUMN(Scores!S$1),FALSE))) -> 
A20: GA | B20: 15 & < | C20: M | D20: Justin Riley | E20: 1045 | F20: 1170 | H20: 2215 | I20: =IF(COUNT(Q20:V20,AA20:AF20,AK20:AP20)>=18/3*'Team Scores'!$Z$1,IF(H20-VLOOKUP(B20&C20,'Individual Awards Computations'!$AY$54:$AZ$58,2,FALSE)=0,"Leader "&C20&":"&B20,H20-VLOOKUP(B20&C20,'Individual Awards Computations'!$AY$54:$AZ$58,2,FALSE)),"") -> -414 | J20: 226 | K20: 593 | L20: 184.5833333 | M20: 24.25 | N20: 160-209 | O20: 1 | Q20: =IF(ISERROR(MATCH('Individual Scores'!$D20,Scores!$F$1:$F$253,0)),"",INDIRECT("Scores!"&"R"&MATCH('Individual Scores'!$D20,Scores!$F$1:$F$253,0)&"C"&COLUMN(Scores!J$1),FALSE)) -> 226 | R20: =IF(ISERROR(MATCH('Individual Scores'!$D20,Scores!$F$1:$F$253,0)),"",INDIRECT("Scores!"&"R"&MATCH('Individual Scores'!$D20,Scores!$F$1:$F$253,0)&"C"&COLUMN(Scores!K$1),FALSE)) -> 201 | S20: =IF(ISERROR(MATCH('Individual Scores'!$D20,Scores!$F$1:$F$253,0)),"",INDIRECT("Scores!"&"R"&MATCH('Individual Scores'!$D20,Scores!$F$1:$F$253,0)&"C"&COLUMN(Scores!L$1),FALSE)) -> 149 | T20: =IF(ISERROR(MATCH('Individual Scores'!$D20,Scores!$F$1:$F$253,0)),"",INDIRECT("Scores!"&"R"&MATCH('Individual Scores'!$D20,Scores!$F$1:$F$253,0)&"C"&COLUMN(Scores!N$1),FALSE)) -> 174 | U20: =IF(ISERROR(MATCH('Individual Scores'!$D20,Scores!$F$1:$F$253,0)),"",INDIRECT("Scores!"&"R"&MATCH('Individual Scores'!$D20,Scores!$F$1:$F$253,0)&"C"&COLUMN(Scores!O$1),FALSE)) -> 146 | V20: =IF(ISERROR(MATCH('Individual Scores'!$D20,Scores!$F$1:$F$253,0)),"",INDIRECT("Scores!"&"R"&MATCH('Individual Scores'!$D20,Scores!$F$1:$F$253,0)&"C"&COLUMN(Scores!P$1),FALSE)) -> 149 | W20: =IF(ISERROR(MATCH('Individual Scores'!$D20,Scores!$F$1:$F$253,0)),"",INDIRECT("Scores!"&"R"&MATCH('Individual Scores'!$D20,Scores!$F$1:$F$253,0)&"C"&COLUMN(Scores!S$1),FALSE)) -> 1045 | X20: =IF(MAX('Individual Scores'!Q20:V20)>0,MAX('Individual Scores'!Q20:V20),"") -> 226 | Y20: =IF(MAX(SUM('Individual Scores'!Q20:S20),SUM('Individual Scores'!T20:V20))>0,MAX(SUM('Individual Scores'!Q20:S20),SUM('Individual Scores'!T20:V20)),"") -> 576 | AA20: =IF('Team Scores'!$Z$1<2,"",IF(ISERROR(MATCH('Individual Scores'!$D20,Scores!$F$253:$F$506,0)),"",INDIRECT("Scores!"&"R"&(ROW(Scores!$253:$253)-1+MATCH('Individual Scores'!$D20,Scores!$F$253:$F$505,0))&"C"&COLUMN(Scores!J$1),FALSE))) -> 213 | AB20: =IF('Team Scores'!$Z$1<2,"",IF(ISERROR(MATCH('Individual Scores'!$D20,Scores!$F$253:$F$506,0)),"",INDIRECT("Scores!"&"R"&(ROW(Scores!$253:$253)-1+MATCH('Individual Scores'!$D20,Scores!$F$253:$F$505,0))&"C"&COLUMN(Scores!K$1),FALSE))) -> 205 | AC20: =IF('Team Scores'!$Z$1<2,"",IF(ISERROR(MATCH('Individual Scores'!$D20,Scores!$F$253:$F$506,0)),"",INDIRECT("Scores!"&"R"&(ROW(Scores!$253:$253)-1+MATCH('Individual Scores'!$D20,Scores!$F$253:$F$505,0))&"C"&COLUMN(Scores!L$1),FALSE))) -> 175 | AD20: =IF('Team Scores'!$Z$1<2,"",IF(ISERROR(MATCH('Individual Scores'!$D20,Scores!$F$253:$F$506,0)),"",INDIRECT("Scores!"&"R"&(ROW(Scores!$253:$253)-1+MATCH('Individual Scores'!$D20,Scores!$F$253:$F$505,0))&"C"&COLUMN(Scores!N$1),FALSE))) -> 220 | AE20: =IF('Team Scores'!$Z$1<2,"",IF(ISERROR(MATCH('Individual Scores'!$D20,Scores!$F$253:$F$506,0)),"",INDIRECT("Scores!"&"R"&(ROW(Scores!$253:$253)-1+MATCH('Individual Scores'!$D20,Scores!$F$253:$F$505,0))&"C"&COLUMN(Scores!O$1),FALSE))) -> 169 | AF20: =IF('Team Scores'!$Z$1<2,"",IF(ISERROR(MATCH('Individual Scores'!$D20,Scores!$F$253:$F$506,0)),"",INDIRECT("Scores!"&"R"&(ROW(Scores!$253:$253)-1+MATCH('Individual Scores'!$D20,Scores!$F$253:$F$505,0))&"C"&COLUMN(Scores!P$1),FALSE))) -> 188 | AG20: =IF('Team Scores'!$Z$1<2,"",IF(ISERROR(MATCH('Individual Scores'!$D20,Scores!$F$253:$F$506,0)),"",INDIRECT("Scores!"&"R"&(ROW(Scores!$253:$253)-1+MATCH('Individual Scores'!$D20,Scores!$F$253:$F$505,0))&"C"&COLUMN(Scores!S$1),FALSE))) -> 1170 | AH20: 220 | AI20: 593 | AK20: =IF('Team Scores'!$Z$1<3,"",IF(ISERROR(MATCH('Individual Scores'!$D20,Scores!$F$506:$F$759,0)),"",INDIRECT("Scores!"&"R"&(ROW(Scores!$F$506:$F$759)-1+MATCH('Individual Scores'!$D20,Scores!$F$506:$F$759,0))&"C"&COLUMN(Scores!J$1),FALSE))) ->  | AL20: =IF('Team Scores'!$Z$1<3,"",IF(ISERROR(MATCH('Individual Scores'!$D20,Scores!$F$506:$F$759,0)),"",INDIRECT("Scores!"&"R"&(ROW(Scores!$F$506:$F$759)-1+MATCH('Individual Scores'!$D20,Scores!$F$506:$F$759,0))&"C"&COLUMN(Scores!K$1),FALSE))) ->  | AM20: =IF('Team Scores'!$Z$1<3,"",IF(ISERROR(MATCH('Individual Scores'!$D20,Scores!$F$506:$F$759,0)),"",INDIRECT("Scores!"&"R"&(ROW(Scores!$F$506:$F$759)-1+MATCH('Individual Scores'!$D20,Scores!$F$506:$F$759,0))&"C"&COLUMN(Scores!L$1),FALSE))) ->  | AN20: =IF('Team Scores'!$Z$1<3,"",IF(ISERROR(MATCH('Individual Scores'!$D20,Scores!$F$506:$F$759,0)),"",INDIRECT("Scores!"&"R"&(ROW(Scores!$F$506:$F$759)-1+MATCH('Individual Scores'!$D20,Scores!$F$506:$F$759,0))&"C"&COLUMN(Scores!N$1),FALSE))) ->  | AO20: =IF('Team Scores'!$Z$1<3,"",IF(ISERROR(MATCH('Individual Scores'!$D20,Scores!$F$506:$F$759,0)),"",INDIRECT("Scores!"&"R"&(ROW(Scores!$F$506:$F$759)-1+MATCH('Individual Scores'!$D20,Scores!$F$506:$F$759,0))&"C"&COLUMN(Scores!O$1),FALSE))) ->  | AP20: =IF('Team Scores'!$Z$1<3,"",IF(ISERROR(MATCH('Individual Scores'!$D20,Scores!$F$506:$F$759,0)),"",INDIRECT("Scores!"&"R"&(ROW(Scores!$F$506:$F$759)-1+MATCH('Individual Scores'!$D20,Scores!$F$506:$F$759,0))&"C"&COLUMN(Scores!P$1),FALSE))) ->  | AQ20: =IF('Team Scores'!$Z$1<3,"",IF(ISERROR(MATCH('Individual Scores'!$D20,Scores!$F$506:$F$759,0)),"",INDIRECT("Scores!"&"R"&(ROW(Scores!$F$506:$F$759)-1+MATCH('Individual Scores'!$D20,Scores!$F$506:$F$759,0))&"C"&COLUMN(Scores!S$1),FALSE))) -> 
A21: GA | B21: 15 & < | C21: M | D21: Leo Kooman | F21: 1102 | H21: 1102 | I21: =IF(COUNT(Q21:V21,AA21:AF21,AK21:AP21)>=18/3*'Team Scores'!$Z$1,IF(H21-VLOOKUP(B21&C21,'Individual Awards Computations'!$AY$54:$AZ$58,2,FALSE)=0,"Leader "&C21&":"&B21,H21-VLOOKUP(B21&C21,'Individual Awards Computations'!$AY$54:$AZ$58,2,FALSE)),"") ->  | J21: 209 | K21: 558 | L21: 183.6666667 | M21: 11.33333333 | N21: 172-195 | O21: 1 | Q21: =IF(ISERROR(MATCH('Individual Scores'!$D21,Scores!$F$1:$F$253,0)),"",INDIRECT("Scores!"&"R"&MATCH('Individual Scores'!$D21,Scores!$F$1:$F$253,0)&"C"&COLUMN(Scores!J$1),FALSE)) ->  | R21: =IF(ISERROR(MATCH('Individual Scores'!$D21,Scores!$F$1:$F$253,0)),"",INDIRECT("Scores!"&"R"&MATCH('Individual Scores'!$D21,Scores!$F$1:$F$253,0)&"C"&COLUMN(Scores!K$1),FALSE)) ->  | S21: =IF(ISERROR(MATCH('Individual Scores'!$D21,Scores!$F$1:$F$253,0)),"",INDIRECT("Scores!"&"R"&MATCH('Individual Scores'!$D21,Scores!$F$1:$F$253,0)&"C"&COLUMN(Scores!L$1),FALSE)) ->  | T21: =IF(ISERROR(MATCH('Individual Scores'!$D21,Scores!$F$1:$F$253,0)),"",INDIRECT("Scores!"&"R"&MATCH('Individual Scores'!$D21,Scores!$F$1:$F$253,0)&"C"&COLUMN(Scores!N$1),FALSE)) ->  | U21: =IF(ISERROR(MATCH('Individual Scores'!$D21,Scores!$F$1:$F$253,0)),"",INDIRECT("Scores!"&"R"&MATCH('Individual Scores'!$D21,Scores!$F$1:$F$253,0)&"C"&COLUMN(Scores!O$1),FALSE)) ->  | V21: =IF(ISERROR(MATCH('Individual Scores'!$D21,Scores!$F$1:$F$253,0)),"",INDIRECT("Scores!"&"R"&MATCH('Individual Scores'!$D21,Scores!$F$1:$F$253,0)&"C"&COLUMN(Scores!P$1),FALSE)) ->  | W21: =IF(ISERROR(MATCH('Individual Scores'!$D21,Scores!$F$1:$F$253,0)),"",INDIRECT("Scores!"&"R"&MATCH('Individual Scores'!$D21,Scores!$F$1:$F$253,0)&"C"&COLUMN(Scores!S$1),FALSE)) ->  | X21: =IF(MAX('Individual Scores'!Q21:V21)>0,MAX('Individual Scores'!Q21:V21),"") ->  | Y21: =IF(MAX(SUM('Individual Scores'!Q21:S21),SUM('Individual Scores'!T21:V21))>0,MAX(SUM('Individual Scores'!Q21:S21),SUM('Individual Scores'!T21:V21)),"") ->  | AA21: =IF('Team Scores'!$Z$1<2,"",IF(ISERROR(MATCH('Individual Scores'!$D21,Scores!$F$253:$F$506,0)),"",INDIRECT("Scores!"&"R"&(ROW(Scores!$253:$253)-1+MATCH('Individual Scores'!$D21,Scores!$F$253:$F$505,0))&"C"&COLUMN(Scores!J$1),FALSE))) -> 180 | AB21: =IF('Team Scores'!$Z$1<2,"",IF(ISERROR(MATCH('Individual Scores'!$D21,Scores!$F$253:$F$506,0)),"",INDIRECT("Scores!"&"R"&(ROW(Scores!$253:$253)-1+MATCH('Individual Scores'!$D21,Scores!$F$253:$F$505,0))&"C"&COLUMN(Scores!K$1),FALSE))) -> 191 | AC21: =IF('Team Scores'!$Z$1<2,"",IF(ISERROR(MATCH('Individual Scores'!$D21,Scores!$F$253:$F$506,0)),"",INDIRECT("Scores!"&"R"&(ROW(Scores!$253:$253)-1+MATCH('Individual Scores'!$D21,Scores!$F$253:$F$505,0))&"C"&COLUMN(Scores!L$1),FALSE))) -> 173 | AD21: =IF('Team Scores'!$Z$1<2,"",IF(ISERROR(MATCH('Individual Scores'!$D21,Scores!$F$253:$F$506,0)),"",INDIRECT("Scores!"&"R"&(ROW(Scores!$253:$253)-1+MATCH('Individual Scores'!$D21,Scores!$F$253:$F$505,0))&"C"&COLUMN(Scores!N$1),FALSE))) -> 164 | AE21: =IF('Team Scores'!$Z$1<2,"",IF(ISERROR(MATCH('Individual Scores'!$D21,Scores!$F$253:$F$506,0)),"",INDIRECT("Scores!"&"R"&(ROW(Scores!$253:$253)-1+MATCH('Individual Scores'!$D21,Scores!$F$253:$F$505,0))&"C"&COLUMN(Scores!O$1),FALSE))) -> 185 | AF21: =IF('Team Scores'!$Z$1<2,"",IF(ISERROR(MATCH('Individual Scores'!$D21,Scores!$F$253:$F$506,0)),"",INDIRECT("Scores!"&"R"&(ROW(Scores!$253:$253)-1+MATCH('Individual Scores'!$D21,Scores!$F$253:$F$505,0))&"C"&COLUMN(Scores!P$1),FALSE))) -> 209 | AG21: =IF('Team Scores'!$Z$1<2,"",IF(ISERROR(MATCH('Individual Scores'!$D21,Scores!$F$253:$F$506,0)),"",INDIRECT("Scores!"&"R"&(ROW(Scores!$253:$253)-1+MATCH('Individual Scores'!$D21,Scores!$F$253:$F$505,0))&"C"&COLUMN(Scores!S$1),FALSE))) -> 1102 | AH21: 209 | AI21: 558 | AK21: =IF('Team Scores'!$Z$1<3,"",IF(ISERROR(MATCH('Individual Scores'!$D21,Scores!$F$506:$F$759,0)),"",INDIRECT("Scores!"&"R"&(ROW(Scores!$F$506:$F$759)-1+MATCH('Individual Scores'!$D21,Scores!$F$506:$F$759,0))&"C"&COLUMN(Scores!J$1),FALSE))) ->  | AL21: =IF('Team Scores'!$Z$1<3,"",IF(ISERROR(MATCH('Individual Scores'!$D21,Scores!$F$506:$F$759,0)),"",INDIRECT("Scores!"&"R"&(ROW(Scores!$F$506:$F$759)-1+MATCH('Individual Scores'!$D21,Scores!$F$506:$F$759,0))&"C"&COLUMN(Scores!K$1),FALSE))) ->  | AM21: =IF('Team Scores'!$Z$1<3,"",IF(ISERROR(MATCH('Individual Scores'!$D21,Scores!$F$506:$F$759,0)),"",INDIRECT("Scores!"&"R"&(ROW(Scores!$F$506:$F$759)-1+MATCH('Individual Scores'!$D21,Scores!$F$506:$F$759,0))&"C"&COLUMN(Scores!L$1),FALSE))) ->  | AN21: =IF('Team Scores'!$Z$1<3,"",IF(ISERROR(MATCH('Individual Scores'!$D21,Scores!$F$506:$F$759,0)),"",INDIRECT("Scores!"&"R"&(ROW(Scores!$F$506:$F$759)-1+MATCH('Individual Scores'!$D21,Scores!$F$506:$F$759,0))&"C"&COLUMN(Scores!N$1),FALSE))) ->  | AO21: =IF('Team Scores'!$Z$1<3,"",IF(ISERROR(MATCH('Individual Scores'!$D21,Scores!$F$506:$F$759,0)),"",INDIRECT("Scores!"&"R"&(ROW(Scores!$F$506:$F$759)-1+MATCH('Individual Scores'!$D21,Scores!$F$506:$F$759,0))&"C"&COLUMN(Scores!O$1),FALSE))) ->  | AP21: =IF('Team Scores'!$Z$1<3,"",IF(ISERROR(MATCH('Individual Scores'!$D21,Scores!$F$506:$F$759,0)),"",INDIRECT("Scores!"&"R"&(ROW(Scores!$F$506:$F$759)-1+MATCH('Individual Scores'!$D21,Scores!$F$506:$F$759,0))&"C"&COLUMN(Scores!P$1),FALSE))) ->  | AQ21: =IF('Team Scores'!$Z$1<3,"",IF(ISERROR(MATCH('Individual Scores'!$D21,Scores!$F$506:$F$759,0)),"",INDIRECT("Scores!"&"R"&(ROW(Scores!$F$506:$F$759)-1+MATCH('Individual Scores'!$D21,Scores!$F$506:$F$759,0))&"C"&COLUMN(Scores!S$1),FALSE))) -> 
A22: GA | B22: 15 & < | C22: M | D22: Logan Mathis | E22: 856 | F22: 1130 | H22: 1986 | I22: =IF(COUNT(Q22:V22,AA22:AF22,AK22:AP22)>=18/3*'Team Scores'!$Z$1,IF(H22-VLOOKUP(B22&C22,'Individual Awards Computations'!$AY$54:$AZ$58,2,FALSE)=0,"Leader "&C22&":"&B22,H22-VLOOKUP(B22&C22,'Individual Awards Computations'!$AY$54:$AZ$58,2,FALSE)),"") -> -643 | J22: 232 | K22: 575 | L22: 165.5 | M22: 24 | N22: 142-190 | O22: 1 | Q22: =IF(ISERROR(MATCH('Individual Scores'!$D22,Scores!$F$1:$F$253,0)),"",INDIRECT("Scores!"&"R"&MATCH('Individual Scores'!$D22,Scores!$F$1:$F$253,0)&"C"&COLUMN(Scores!J$1),FALSE)) -> 133 | R22: =IF(ISERROR(MATCH('Individual Scores'!$D22,Scores!$F$1:$F$253,0)),"",INDIRECT("Scores!"&"R"&MATCH('Individual Scores'!$D22,Scores!$F$1:$F$253,0)&"C"&COLUMN(Scores!K$1),FALSE)) -> 133 | S22: =IF(ISERROR(MATCH('Individual Scores'!$D22,Scores!$F$1:$F$253,0)),"",INDIRECT("Scores!"&"R"&MATCH('Individual Scores'!$D22,Scores!$F$1:$F$253,0)&"C"&COLUMN(Scores!L$1),FALSE)) -> 132 | T22: =IF(ISERROR(MATCH('Individual Scores'!$D22,Scores!$F$1:$F$253,0)),"",INDIRECT("Scores!"&"R"&MATCH('Individual Scores'!$D22,Scores!$F$1:$F$253,0)&"C"&COLUMN(Scores!N$1),FALSE)) -> 156 | U22: =IF(ISERROR(MATCH('Individual Scores'!$D22,Scores!$F$1:$F$253,0)),"",INDIRECT("Scores!"&"R"&MATCH('Individual Scores'!$D22,Scores!$F$1:$F$253,0)&"C"&COLUMN(Scores!O$1),FALSE)) -> 157 | V22: =IF(ISERROR(MATCH('Individual Scores'!$D22,Scores!$F$1:$F$253,0)),"",INDIRECT("Scores!"&"R"&MATCH('Individual Scores'!$D22,Scores!$F$1:$F$253,0)&"C"&COLUMN(Scores!P$1),FALSE)) -> 145 | W22: =IF(ISERROR(MATCH('Individual Scores'!$D22,Scores!$F$1:$F$253,0)),"",INDIRECT("Scores!"&"R"&MATCH('Individual Scores'!$D22,Scores!$F$1:$F$253,0)&"C"&COLUMN(Scores!S$1),FALSE)) -> 856 | X22: =IF(MAX('Individual Scores'!Q22:V22)>0,MAX('Individual Scores'!Q22:V22),"") -> 157 | Y22: =IF(MAX(SUM('Individual Scores'!Q22:S22),SUM('Individual Scores'!T22:V22))>0,MAX(SUM('Individual Scores'!Q22:S22),SUM('Individual Scores'!T22:V22)),"") -> 458 | AA22: =IF('Team Scores'!$Z$1<2,"",IF(ISERROR(MATCH('Individual Scores'!$D22,Scores!$F$253:$F$506,0)),"",INDIRECT("Scores!"&"R"&(ROW(Scores!$253:$253)-1+MATCH('Individual Scores'!$D22,Scores!$F$253:$F$505,0))&"C"&COLUMN(Scores!J$1),FALSE))) -> 161 | AB22: =IF('Team Scores'!$Z$1<2,"",IF(ISERROR(MATCH('Individual Scores'!$D22,Scores!$F$253:$F$506,0)),"",INDIRECT("Scores!"&"R"&(ROW(Scores!$253:$253)-1+MATCH('Individual Scores'!$D22,Scores!$F$253:$F$505,0))&"C"&COLUMN(Scores!K$1),FALSE))) -> 223 | AC22: =IF('Team Scores'!$Z$1<2,"",IF(ISERROR(MATCH('Individual Scores'!$D22,Scores!$F$253:$F$506,0)),"",INDIRECT("Scores!"&"R"&(ROW(Scores!$253:$253)-1+MATCH('Individual Scores'!$D22,Scores!$F$253:$F$505,0))&"C"&COLUMN(Scores!L$1),FALSE))) -> 171 | AD22: =IF('Team Scores'!$Z$1<2,"",IF(ISERROR(MATCH('Individual Scores'!$D22,Scores!$F$253:$F$506,0)),"",INDIRECT("Scores!"&"R"&(ROW(Scores!$253:$253)-1+MATCH('Individual Scores'!$D22,Scores!$F$253:$F$505,0))&"C"&COLUMN(Scores!N$1),FALSE))) -> 232 | AE22: =IF('Team Scores'!$Z$1<2,"",IF(ISERROR(MATCH('Individual Scores'!$D22,Scores!$F$253:$F$506,0)),"",INDIRECT("Scores!"&"R"&(ROW(Scores!$253:$253)-1+MATCH('Individual Scores'!$D22,Scores!$F$253:$F$505,0))&"C"&COLUMN(Scores!O$1),FALSE))) -> 163 | AF22: =IF('Team Scores'!$Z$1<2,"",IF(ISERROR(MATCH('Individual Scores'!$D22,Scores!$F$253:$F$506,0)),"",INDIRECT("Scores!"&"R"&(ROW(Scores!$253:$253)-1+MATCH('Individual Scores'!$D22,Scores!$F$253:$F$505,0))&"C"&COLUMN(Scores!P$1),FALSE))) -> 180 | AG22: =IF('Team Scores'!$Z$1<2,"",IF(ISERROR(MATCH('Individual Scores'!$D22,Scores!$F$253:$F$506,0)),"",INDIRECT("Scores!"&"R"&(ROW(Scores!$253:$253)-1+MATCH('Individual Scores'!$D22,Scores!$F$253:$F$505,0))&"C"&COLUMN(Scores!S$1),FALSE))) -> 1130 | AH22: 232 | AI22: 575 | AK22: =IF('Team Scores'!$Z$1<3,"",IF(ISERROR(MATCH('Individual Scores'!$D22,Scores!$F$506:$F$759,0)),"",INDIRECT("Scores!"&"R"&(ROW(Scores!$F$506:$F$759)-1+MATCH('Individual Scores'!$D22,Scores!$F$506:$F$759,0))&"C"&COLUMN(Scores!J$1),FALSE))) ->  | AL22: =IF('Team Scores'!$Z$1<3,"",IF(ISERROR(MATCH('Individual Scores'!$D22,Scores!$F$506:$F$759,0)),"",INDIRECT("Scores!"&"R"&(ROW(Scores!$F$506:$F$759)-1+MATCH('Individual Scores'!$D22,Scores!$F$506:$F$759,0))&"C"&COLUMN(Scores!K$1),FALSE))) ->  | AM22: =IF('Team Scores'!$Z$1<3,"",IF(ISERROR(MATCH('Individual Scores'!$D22,Scores!$F$506:$F$759,0)),"",INDIRECT("Scores!"&"R"&(ROW(Scores!$F$506:$F$759)-1+MATCH('Individual Scores'!$D22,Scores!$F$506:$F$759,0))&"C"&COLUMN(Scores!L$1),FALSE))) ->  | AN22: =IF('Team Scores'!$Z$1<3,"",IF(ISERROR(MATCH('Individual Scores'!$D22,Scores!$F$506:$F$759,0)),"",INDIRECT("Scores!"&"R"&(ROW(Scores!$F$506:$F$759)-1+MATCH('Individual Scores'!$D22,Scores!$F$506:$F$759,0))&"C"&COLUMN(Scores!N$1),FALSE))) ->  | AO22: =IF('Team Scores'!$Z$1<3,"",IF(ISERROR(MATCH('Individual Scores'!$D22,Scores!$F$506:$F$759,0)),"",INDIRECT("Scores!"&"R"&(ROW(Scores!$F$506:$F$759)-1+MATCH('Individual Scores'!$D22,Scores!$F$506:$F$759,0))&"C"&COLUMN(Scores!O$1),FALSE))) ->  | AP22: =IF('Team Scores'!$Z$1<3,"",IF(ISERROR(MATCH('Individual Scores'!$D22,Scores!$F$506:$F$759,0)),"",INDIRECT("Scores!"&"R"&(ROW(Scores!$F$506:$F$759)-1+MATCH('Individual Scores'!$D22,Scores!$F$506:$F$759,0))&"C"&COLUMN(Scores!P$1),FALSE))) ->  | AQ22: =IF('Team Scores'!$Z$1<3,"",IF(ISERROR(MATCH('Individual Scores'!$D22,Scores!$F$506:$F$759,0)),"",INDIRECT("Scores!"&"R"&(ROW(Scores!$F$506:$F$759)-1+MATCH('Individual Scores'!$D22,Scores!$F$506:$F$759,0))&"C"&COLUMN(Scores!S$1),FALSE))) -> 
A23: GA | B23: 15 & < | C23: M | D23: Matthew Hickey | E23: 993 | F23: 1129 | H23: 2122 | I23: =IF(COUNT(Q23:V23,AA23:AF23,AK23:AP23)>=18/3*'Team Scores'!$Z$1,IF(H23-VLOOKUP(B23&C23,'Individual Awards Computations'!$AY$54:$AZ$58,2,FALSE)=0,"Leader "&C23&":"&B23,H23-VLOOKUP(B23&C23,'Individual Awards Computations'!$AY$54:$AZ$58,2,FALSE)),"") -> -507 | J23: 231 | K23: 652 | L23: 176.8333333 | M23: 27.30555556 | N23: 150-204 | O23: 1 | Q23: =IF(ISERROR(MATCH('Individual Scores'!$D23,Scores!$F$1:$F$253,0)),"",INDIRECT("Scores!"&"R"&MATCH('Individual Scores'!$D23,Scores!$F$1:$F$253,0)&"C"&COLUMN(Scores!J$1),FALSE)) -> 211 | R23: =IF(ISERROR(MATCH('Individual Scores'!$D23,Scores!$F$1:$F$253,0)),"",INDIRECT("Scores!"&"R"&MATCH('Individual Scores'!$D23,Scores!$F$1:$F$253,0)&"C"&COLUMN(Scores!K$1),FALSE)) -> 153 | S23: =IF(ISERROR(MATCH('Individual Scores'!$D23,Scores!$F$1:$F$253,0)),"",INDIRECT("Scores!"&"R"&MATCH('Individual Scores'!$D23,Scores!$F$1:$F$253,0)&"C"&COLUMN(Scores!L$1),FALSE)) -> 163 | T23: =IF(ISERROR(MATCH('Individual Scores'!$D23,Scores!$F$1:$F$253,0)),"",INDIRECT("Scores!"&"R"&MATCH('Individual Scores'!$D23,Scores!$F$1:$F$253,0)&"C"&COLUMN(Scores!N$1),FALSE)) -> 137 | U23: =IF(ISERROR(MATCH('Individual Scores'!$D23,Scores!$F$1:$F$253,0)),"",INDIRECT("Scores!"&"R"&MATCH('Individual Scores'!$D23,Scores!$F$1:$F$253,0)&"C"&COLUMN(Scores!O$1),FALSE)) -> 185 | V23: =IF(ISERROR(MATCH('Individual Scores'!$D23,Scores!$F$1:$F$253,0)),"",INDIRECT("Scores!"&"R"&MATCH('Individual Scores'!$D23,Scores!$F$1:$F$253,0)&"C"&COLUMN(Scores!P$1),FALSE)) -> 144 | W23: =IF(ISERROR(MATCH('Individual Scores'!$D23,Scores!$F$1:$F$253,0)),"",INDIRECT("Scores!"&"R"&MATCH('Individual Scores'!$D23,Scores!$F$1:$F$253,0)&"C"&COLUMN(Scores!S$1),FALSE)) -> 993 | X23: =IF(MAX('Individual Scores'!Q23:V23)>0,MAX('Individual Scores'!Q23:V23),"") -> 211 | Y23: =IF(MAX(SUM('Individual Scores'!Q23:S23),SUM('Individual Scores'!T23:V23))>0,MAX(SUM('Individual Scores'!Q23:S23),SUM('Individual Scores'!T23:V23)),"") -> 527 | AA23: =IF('Team Scores'!$Z$1<2,"",IF(ISERROR(MATCH('Individual Scores'!$D23,Scores!$F$253:$F$506,0)),"",INDIRECT("Scores!"&"R"&(ROW(Scores!$253:$253)-1+MATCH('Individual Scores'!$D23,Scores!$F$253:$F$505,0))&"C"&COLUMN(Scores!J$1),FALSE))) -> 210 | AB23: =IF('Team Scores'!$Z$1<2,"",IF(ISERROR(MATCH('Individual Scores'!$D23,Scores!$F$253:$F$506,0)),"",INDIRECT("Scores!"&"R"&(ROW(Scores!$253:$253)-1+MATCH('Individual Scores'!$D23,Scores!$F$253:$F$505,0))&"C"&COLUMN(Scores!K$1),FALSE))) -> 231 | AC23: =IF('Team Scores'!$Z$1<2,"",IF(ISERROR(MATCH('Individual Scores'!$D23,Scores!$F$253:$F$506,0)),"",INDIRECT("Scores!"&"R"&(ROW(Scores!$253:$253)-1+MATCH('Individual Scores'!$D23,Scores!$F$253:$F$505,0))&"C"&COLUMN(Scores!L$1),FALSE))) -> 211 | AD23: =IF('Team Scores'!$Z$1<2,"",IF(ISERROR(MATCH('Individual Scores'!$D23,Scores!$F$253:$F$506,0)),"",INDIRECT("Scores!"&"R"&(ROW(Scores!$253:$253)-1+MATCH('Individual Scores'!$D23,Scores!$F$253:$F$505,0))&"C"&COLUMN(Scores!N$1),FALSE))) -> 164 | AE23: =IF('Team Scores'!$Z$1<2,"",IF(ISERROR(MATCH('Individual Scores'!$D23,Scores!$F$253:$F$506,0)),"",INDIRECT("Scores!"&"R"&(ROW(Scores!$253:$253)-1+MATCH('Individual Scores'!$D23,Scores!$F$253:$F$505,0))&"C"&COLUMN(Scores!O$1),FALSE))) -> 144 | AF23: =IF('Team Scores'!$Z$1<2,"",IF(ISERROR(MATCH('Individual Scores'!$D23,Scores!$F$253:$F$506,0)),"",INDIRECT("Scores!"&"R"&(ROW(Scores!$253:$253)-1+MATCH('Individual Scores'!$D23,Scores!$F$253:$F$505,0))&"C"&COLUMN(Scores!P$1),FALSE))) -> 169 | AG23: =IF('Team Scores'!$Z$1<2,"",IF(ISERROR(MATCH('Individual Scores'!$D23,Scores!$F$253:$F$506,0)),"",INDIRECT("Scores!"&"R"&(ROW(Scores!$253:$253)-1+MATCH('Individual Scores'!$D23,Scores!$F$253:$F$505,0))&"C"&COLUMN(Scores!S$1),FALSE))) -> 1129 | AH23: 231 | AI23: 652 | AK23: =IF('Team Scores'!$Z$1<3,"",IF(ISERROR(MATCH('Individual Scores'!$D23,Scores!$F$506:$F$759,0)),"",INDIRECT("Scores!"&"R"&(ROW(Scores!$F$506:$F$759)-1+MATCH('Individual Scores'!$D23,Scores!$F$506:$F$759,0))&"C"&COLUMN(Scores!J$1),FALSE))) ->  | AL23: =IF('Team Scores'!$Z$1<3,"",IF(ISERROR(MATCH('Individual Scores'!$D23,Scores!$F$506:$F$759,0)),"",INDIRECT("Scores!"&"R"&(ROW(Scores!$F$506:$F$759)-1+MATCH('Individual Scores'!$D23,Scores!$F$506:$F$759,0))&"C"&COLUMN(Scores!K$1),FALSE))) ->  | AM23: =IF('Team Scores'!$Z$1<3,"",IF(ISERROR(MATCH('Individual Scores'!$D23,Scores!$F$506:$F$759,0)),"",INDIRECT("Scores!"&"R"&(ROW(Scores!$F$506:$F$759)-1+MATCH('Individual Scores'!$D23,Scores!$F$506:$F$759,0))&"C"&COLUMN(Scores!L$1),FALSE))) ->  | AN23: =IF('Team Scores'!$Z$1<3,"",IF(ISERROR(MATCH('Individual Scores'!$D23,Scores!$F$506:$F$759,0)),"",INDIRECT("Scores!"&"R"&(ROW(Scores!$F$506:$F$759)-1+MATCH('Individual Scores'!$D23,Scores!$F$506:$F$759,0))&"C"&COLUMN(Scores!N$1),FALSE))) ->  | AO23: =IF('Team Scores'!$Z$1<3,"",IF(ISERROR(MATCH('Individual Scores'!$D23,Scores!$F$506:$F$759,0)),"",INDIRECT("Scores!"&"R"&(ROW(Scores!$F$506:$F$759)-1+MATCH('Individual Scores'!$D23,Scores!$F$506:$F$759,0))&"C"&COLUMN(Scores!O$1),FALSE))) ->  | AP23: =IF('Team Scores'!$Z$1<3,"",IF(ISERROR(MATCH('Individual Scores'!$D23,Scores!$F$506:$F$759,0)),"",INDIRECT("Scores!"&"R"&(ROW(Scores!$F$506:$F$759)-1+MATCH('Individual Scores'!$D23,Scores!$F$506:$F$759,0))&"C"&COLUMN(Scores!P$1),FALSE))) ->  | AQ23: =IF('Team Scores'!$Z$1<3,"",IF(ISERROR(MATCH('Individual Scores'!$D23,Scores!$F$506:$F$759,0)),"",INDIRECT("Scores!"&"R"&(ROW(Scores!$F$506:$F$759)-1+MATCH('Individual Scores'!$D23,Scores!$F$506:$F$759,0))&"C"&COLUMN(Scores!S$1),FALSE))) -> 
A24: GA | B24: 15 & < | C24: M | D24: Paris Swinson | E24: 996 | F24: 1081 | H24: 2077 | I24: =IF(COUNT(Q24:V24,AA24:AF24,AK24:AP24)>=18/3*'Team Scores'!$Z$1,IF(H24-VLOOKUP(B24&C24,'Individual Awards Computations'!$AY$54:$AZ$58,2,FALSE)=0,"Leader "&C24&":"&B24,H24-VLOOKUP(B24&C24,'Individual Awards Computations'!$AY$54:$AZ$58,2,FALSE)),"") -> -552 | J24: 246 | K24: 595 | L24: 173.0833333 | M24: 24.08333333 | N24: 149-197 | O24: 1 | Q24: =IF(ISERROR(MATCH('Individual Scores'!$D24,Scores!$F$1:$F$253,0)),"",INDIRECT("Scores!"&"R"&MATCH('Individual Scores'!$D24,Scores!$F$1:$F$253,0)&"C"&COLUMN(Scores!J$1),FALSE)) -> 214 | R24: =IF(ISERROR(MATCH('Individual Scores'!$D24,Scores!$F$1:$F$253,0)),"",INDIRECT("Scores!"&"R"&MATCH('Individual Scores'!$D24,Scores!$F$1:$F$253,0)&"C"&COLUMN(Scores!K$1),FALSE)) -> 141 | S24: =IF(ISERROR(MATCH('Individual Scores'!$D24,Scores!$F$1:$F$253,0)),"",INDIRECT("Scores!"&"R"&MATCH('Individual Scores'!$D24,Scores!$F$1:$F$253,0)&"C"&COLUMN(Scores!L$1),FALSE)) -> 178 | T24: =IF(ISERROR(MATCH('Individual Scores'!$D24,Scores!$F$1:$F$253,0)),"",INDIRECT("Scores!"&"R"&MATCH('Individual Scores'!$D24,Scores!$F$1:$F$253,0)&"C"&COLUMN(Scores!N$1),FALSE)) -> 141 | U24: =IF(ISERROR(MATCH('Individual Scores'!$D24,Scores!$F$1:$F$253,0)),"",INDIRECT("Scores!"&"R"&MATCH('Individual Scores'!$D24,Scores!$F$1:$F$253,0)&"C"&COLUMN(Scores!O$1),FALSE)) -> 146 | V24: =IF(ISERROR(MATCH('Individual Scores'!$D24,Scores!$F$1:$F$253,0)),"",INDIRECT("Scores!"&"R"&MATCH('Individual Scores'!$D24,Scores!$F$1:$F$253,0)&"C"&COLUMN(Scores!P$1),FALSE)) -> 176 | W24: =IF(ISERROR(MATCH('Individual Scores'!$D24,Scores!$F$1:$F$253,0)),"",INDIRECT("Scores!"&"R"&MATCH('Individual Scores'!$D24,Scores!$F$1:$F$253,0)&"C"&COLUMN(Scores!S$1),FALSE)) -> 996 | X24: =IF(MAX('Individual Scores'!Q24:V24)>0,MAX('Individual Scores'!Q24:V24),"") -> 214 | Y24: =IF(MAX(SUM('Individual Scores'!Q24:S24),SUM('Individual Scores'!T24:V24))>0,MAX(SUM('Individual Scores'!Q24:S24),SUM('Individual Scores'!T24:V24)),"") -> 533 | AA24: =IF('Team Scores'!$Z$1<2,"",IF(ISERROR(MATCH('Individual Scores'!$D24,Scores!$F$253:$F$506,0)),"",INDIRECT("Scores!"&"R"&(ROW(Scores!$253:$253)-1+MATCH('Individual Scores'!$D24,Scores!$F$253:$F$505,0))&"C"&COLUMN(Scores!J$1),FALSE))) -> 169 | AB24: =IF('Team Scores'!$Z$1<2,"",IF(ISERROR(MATCH('Individual Scores'!$D24,Scores!$F$253:$F$506,0)),"",INDIRECT("Scores!"&"R"&(ROW(Scores!$253:$253)-1+MATCH('Individual Scores'!$D24,Scores!$F$253:$F$505,0))&"C"&COLUMN(Scores!K$1),FALSE))) -> 179 | AC24: =IF('Team Scores'!$Z$1<2,"",IF(ISERROR(MATCH('Individual Scores'!$D24,Scores!$F$253:$F$506,0)),"",INDIRECT("Scores!"&"R"&(ROW(Scores!$253:$253)-1+MATCH('Individual Scores'!$D24,Scores!$F$253:$F$505,0))&"C"&COLUMN(Scores!L$1),FALSE))) -> 138 | AD24: =IF('Team Scores'!$Z$1<2,"",IF(ISERROR(MATCH('Individual Scores'!$D24,Scores!$F$253:$F$506,0)),"",INDIRECT("Scores!"&"R"&(ROW(Scores!$253:$253)-1+MATCH('Individual Scores'!$D24,Scores!$F$253:$F$505,0))&"C"&COLUMN(Scores!N$1),FALSE))) -> 246 | AE24: =IF('Team Scores'!$Z$1<2,"",IF(ISERROR(MATCH('Individual Scores'!$D24,Scores!$F$253:$F$506,0)),"",INDIRECT("Scores!"&"R"&(ROW(Scores!$253:$253)-1+MATCH('Individual Scores'!$D24,Scores!$F$253:$F$505,0))&"C"&COLUMN(Scores!O$1),FALSE))) -> 190 | AF24: =IF('Team Scores'!$Z$1<2,"",IF(ISERROR(MATCH('Individual Scores'!$D24,Scores!$F$253:$F$506,0)),"",INDIRECT("Scores!"&"R"&(ROW(Scores!$253:$253)-1+MATCH('Individual Scores'!$D24,Scores!$F$253:$F$505,0))&"C"&COLUMN(Scores!P$1),FALSE))) -> 159 | AG24: =IF('Team Scores'!$Z$1<2,"",IF(ISERROR(MATCH('Individual Scores'!$D24,Scores!$F$253:$F$506,0)),"",INDIRECT("Scores!"&"R"&(ROW(Scores!$253:$253)-1+MATCH('Individual Scores'!$D24,Scores!$F$253:$F$505,0))&"C"&COLUMN(Scores!S$1),FALSE))) -> 1081 | AH24: 246 | AI24: 595 | AK24: =IF('Team Scores'!$Z$1<3,"",IF(ISERROR(MATCH('Individual Scores'!$D24,Scores!$F$506:$F$759,0)),"",INDIRECT("Scores!"&"R"&(ROW(Scores!$F$506:$F$759)-1+MATCH('Individual Scores'!$D24,Scores!$F$506:$F$759,0))&"C"&COLUMN(Scores!J$1),FALSE))) ->  | AL24: =IF('Team Scores'!$Z$1<3,"",IF(ISERROR(MATCH('Individual Scores'!$D24,Scores!$F$506:$F$759,0)),"",INDIRECT("Scores!"&"R"&(ROW(Scores!$F$506:$F$759)-1+MATCH('Individual Scores'!$D24,Scores!$F$506:$F$759,0))&"C"&COLUMN(Scores!K$1),FALSE))) ->  | AM24: =IF('Team Scores'!$Z$1<3,"",IF(ISERROR(MATCH('Individual Scores'!$D24,Scores!$F$506:$F$759,0)),"",INDIRECT("Scores!"&"R"&(ROW(Scores!$F$506:$F$759)-1+MATCH('Individual Scores'!$D24,Scores!$F$506:$F$759,0))&"C"&COLUMN(Scores!L$1),FALSE))) ->  | AN24: =IF('Team Scores'!$Z$1<3,"",IF(ISERROR(MATCH('Individual Scores'!$D24,Scores!$F$506:$F$759,0)),"",INDIRECT("Scores!"&"R"&(ROW(Scores!$F$506:$F$759)-1+MATCH('Individual Scores'!$D24,Scores!$F$506:$F$759,0))&"C"&COLUMN(Scores!N$1),FALSE))) ->  | AO24: =IF('Team Scores'!$Z$1<3,"",IF(ISERROR(MATCH('Individual Scores'!$D24,Scores!$F$506:$F$759,0)),"",INDIRECT("Scores!"&"R"&(ROW(Scores!$F$506:$F$759)-1+MATCH('Individual Scores'!$D24,Scores!$F$506:$F$759,0))&"C"&COLUMN(Scores!O$1),FALSE))) ->  | AP24: =IF('Team Scores'!$Z$1<3,"",IF(ISERROR(MATCH('Individual Scores'!$D24,Scores!$F$506:$F$759,0)),"",INDIRECT("Scores!"&"R"&(ROW(Scores!$F$506:$F$759)-1+MATCH('Individual Scores'!$D24,Scores!$F$506:$F$759,0))&"C"&COLUMN(Scores!P$1),FALSE))) ->  | AQ24: =IF('Team Scores'!$Z$1<3,"",IF(ISERROR(MATCH('Individual Scores'!$D24,Scores!$F$506:$F$759,0)),"",INDIRECT("Scores!"&"R"&(ROW(Scores!$F$506:$F$759)-1+MATCH('Individual Scores'!$D24,Scores!$F$506:$F$759,0))&"C"&COLUMN(Scores!S$1),FALSE))) -> 
A25: GA | B25: 15 & < | C25: M | D25: Sean Espey | E25: 1226 | F25: 1148 | H25: 2374 | I25: =IF(COUNT(Q25:V25,AA25:AF25,AK25:AP25)>=18/3*'Team Scores'!$Z$1,IF(H25-VLOOKUP(B25&C25,'Individual Awards Computations'!$AY$54:$AZ$58,2,FALSE)=0,"Leader "&C25&":"&B25,H25-VLOOKUP(B25&C25,'Individual Awards Computations'!$AY$54:$AZ$58,2,FALSE)),"") -> -255 | J25: 245 | K25: 639 | L25: 197.8333333 | M25: 19.36111111 | N25: 178-217 | O25: 1 | Q25: =IF(ISERROR(MATCH('Individual Scores'!$D25,Scores!$F$1:$F$253,0)),"",INDIRECT("Scores!"&"R"&MATCH('Individual Scores'!$D25,Scores!$F$1:$F$253,0)&"C"&COLUMN(Scores!J$1),FALSE)) -> 206 | R25: =IF(ISERROR(MATCH('Individual Scores'!$D25,Scores!$F$1:$F$253,0)),"",INDIRECT("Scores!"&"R"&MATCH('Individual Scores'!$D25,Scores!$F$1:$F$253,0)&"C"&COLUMN(Scores!K$1),FALSE)) -> 188 | S25: =IF(ISERROR(MATCH('Individual Scores'!$D25,Scores!$F$1:$F$253,0)),"",INDIRECT("Scores!"&"R"&MATCH('Individual Scores'!$D25,Scores!$F$1:$F$253,0)&"C"&COLUMN(Scores!L$1),FALSE)) -> 245 | T25: =IF(ISERROR(MATCH('Individual Scores'!$D25,Scores!$F$1:$F$253,0)),"",INDIRECT("Scores!"&"R"&MATCH('Individual Scores'!$D25,Scores!$F$1:$F$253,0)&"C"&COLUMN(Scores!N$1),FALSE)) -> 179 | U25: =IF(ISERROR(MATCH('Individual Scores'!$D25,Scores!$F$1:$F$253,0)),"",INDIRECT("Scores!"&"R"&MATCH('Individual Scores'!$D25,Scores!$F$1:$F$253,0)&"C"&COLUMN(Scores!O$1),FALSE)) -> 205 | V25: =IF(ISERROR(MATCH('Individual Scores'!$D25,Scores!$F$1:$F$253,0)),"",INDIRECT("Scores!"&"R"&MATCH('Individual Scores'!$D25,Scores!$F$1:$F$253,0)&"C"&COLUMN(Scores!P$1),FALSE)) -> 203 | W25: =IF(ISERROR(MATCH('Individual Scores'!$D25,Scores!$F$1:$F$253,0)),"",INDIRECT("Scores!"&"R"&MATCH('Individual Scores'!$D25,Scores!$F$1:$F$253,0)&"C"&COLUMN(Scores!S$1),FALSE)) -> 1226 | X25: =IF(MAX('Individual Scores'!Q25:V25)>0,MAX('Individual Scores'!Q25:V25),"") -> 245 | Y25: =IF(MAX(SUM('Individual Scores'!Q25:S25),SUM('Individual Scores'!T25:V25))>0,MAX(SUM('Individual Scores'!Q25:S25),SUM('Individual Scores'!T25:V25)),"") -> 639 | AA25: =IF('Team Scores'!$Z$1<2,"",IF(ISERROR(MATCH('Individual Scores'!$D25,Scores!$F$253:$F$506,0)),"",INDIRECT("Scores!"&"R"&(ROW(Scores!$253:$253)-1+MATCH('Individual Scores'!$D25,Scores!$F$253:$F$505,0))&"C"&COLUMN(Scores!J$1),FALSE))) -> 137 | AB25: =IF('Team Scores'!$Z$1<2,"",IF(ISERROR(MATCH('Individual Scores'!$D25,Scores!$F$253:$F$506,0)),"",INDIRECT("Scores!"&"R"&(ROW(Scores!$253:$253)-1+MATCH('Individual Scores'!$D25,Scores!$F$253:$F$505,0))&"C"&COLUMN(Scores!K$1),FALSE))) -> 204 | AC25: =IF('Team Scores'!$Z$1<2,"",IF(ISERROR(MATCH('Individual Scores'!$D25,Scores!$F$253:$F$506,0)),"",INDIRECT("Scores!"&"R"&(ROW(Scores!$253:$253)-1+MATCH('Individual Scores'!$D25,Scores!$F$253:$F$505,0))&"C"&COLUMN(Scores!L$1),FALSE))) -> 188 | AD25: =IF('Team Scores'!$Z$1<2,"",IF(ISERROR(MATCH('Individual Scores'!$D25,Scores!$F$253:$F$506,0)),"",INDIRECT("Scores!"&"R"&(ROW(Scores!$253:$253)-1+MATCH('Individual Scores'!$D25,Scores!$F$253:$F$505,0))&"C"&COLUMN(Scores!N$1),FALSE))) -> 235 | AE25: =IF('Team Scores'!$Z$1<2,"",IF(ISERROR(MATCH('Individual Scores'!$D25,Scores!$F$253:$F$506,0)),"",INDIRECT("Scores!"&"R"&(ROW(Scores!$253:$253)-1+MATCH('Individual Scores'!$D25,Scores!$F$253:$F$505,0))&"C"&COLUMN(Scores!O$1),FALSE))) -> 203 | AF25: =IF('Team Scores'!$Z$1<2,"",IF(ISERROR(MATCH('Individual Scores'!$D25,Scores!$F$253:$F$506,0)),"",INDIRECT("Scores!"&"R"&(ROW(Scores!$253:$253)-1+MATCH('Individual Scores'!$D25,Scores!$F$253:$F$505,0))&"C"&COLUMN(Scores!P$1),FALSE))) -> 181 | AG25: =IF('Team Scores'!$Z$1<2,"",IF(ISERROR(MATCH('Individual Scores'!$D25,Scores!$F$253:$F$506,0)),"",INDIRECT("Scores!"&"R"&(ROW(Scores!$253:$253)-1+MATCH('Individual Scores'!$D25,Scores!$F$253:$F$505,0))&"C"&COLUMN(Scores!S$1),FALSE))) -> 1148 | AH25: 235 | AI25: 619 | AK25: =IF('Team Scores'!$Z$1<3,"",IF(ISERROR(MATCH('Individual Scores'!$D25,Scores!$F$506:$F$759,0)),"",INDIRECT("Scores!"&"R"&(ROW(Scores!$F$506:$F$759)-1+MATCH('Individual Scores'!$D25,Scores!$F$506:$F$759,0))&"C"&COLUMN(Scores!J$1),FALSE))) ->  | AL25: =IF('Team Scores'!$Z$1<3,"",IF(ISERROR(MATCH('Individual Scores'!$D25,Scores!$F$506:$F$759,0)),"",INDIRECT("Scores!"&"R"&(ROW(Scores!$F$506:$F$759)-1+MATCH('Individual Scores'!$D25,Scores!$F$506:$F$759,0))&"C"&COLUMN(Scores!K$1),FALSE))) ->  | AM25: =IF('Team Scores'!$Z$1<3,"",IF(ISERROR(MATCH('Individual Scores'!$D25,Scores!$F$506:$F$759,0)),"",INDIRECT("Scores!"&"R"&(ROW(Scores!$F$506:$F$759)-1+MATCH('Individual Scores'!$D25,Scores!$F$506:$F$759,0))&"C"&COLUMN(Scores!L$1),FALSE))) ->  | AN25: =IF('Team Scores'!$Z$1<3,"",IF(ISERROR(MATCH('Individual Scores'!$D25,Scores!$F$506:$F$759,0)),"",INDIRECT("Scores!"&"R"&(ROW(Scores!$F$506:$F$759)-1+MATCH('Individual Scores'!$D25,Scores!$F$506:$F$759,0))&"C"&COLUMN(Scores!N$1),FALSE))) ->  | AO25: =IF('Team Scores'!$Z$1<3,"",IF(ISERROR(MATCH('Individual Scores'!$D25,Scores!$F$506:$F$759,0)),"",INDIRECT("Scores!"&"R"&(ROW(Scores!$F$506:$F$759)-1+MATCH('Individual Scores'!$D25,Scores!$F$506:$F$759,0))&"C"&COLUMN(Scores!O$1),FALSE))) ->  | AP25: =IF('Team Scores'!$Z$1<3,"",IF(ISERROR(MATCH('Individual Scores'!$D25,Scores!$F$506:$F$759,0)),"",INDIRECT("Scores!"&"R"&(ROW(Scores!$F$506:$F$759)-1+MATCH('Individual Scores'!$D25,Scores!$F$506:$F$759,0))&"C"&COLUMN(Scores!P$1),FALSE))) ->  | AQ25: =IF('Team Scores'!$Z$1<3,"",IF(ISERROR(MATCH('Individual Scores'!$D25,Scores!$F$506:$F$759,0)),"",INDIRECT("Scores!"&"R"&(ROW(Scores!$F$506:$F$759)-1+MATCH('Individual Scores'!$D25,Scores!$F$506:$F$759,0))&"C"&COLUMN(Scores!S$1),FALSE))) -> 
A26: GA | B26: 15 & < | C26: M | D26: Tyrell Ingalls | E26: 1055 | F26: 1122 | H26: 2177 | I26: =IF(COUNT(Q26:V26,AA26:AF26,AK26:AP26)>=18/3*'Team Scores'!$Z$1,IF(H26-VLOOKUP(B26&C26,'Individual Awards Computations'!$AY$54:$AZ$58,2,FALSE)=0,"Leader "&C26&":"&B26,H26-VLOOKUP(B26&C26,'Individual Awards Computations'!$AY$54:$AZ$58,2,FALSE)),"") -> -452 | J26: 220 | K26: 600 | L26: 181.4166667 | M26: 21.22222222 | N26: 160-203 | O26: 1 | Q26: =IF(ISERROR(MATCH('Individual Scores'!$D26,Scores!$F$1:$F$253,0)),"",INDIRECT("Scores!"&"R"&MATCH('Individual Scores'!$D26,Scores!$F$1:$F$253,0)&"C"&COLUMN(Scores!J$1),FALSE)) -> 167 | R26: =IF(ISERROR(MATCH('Individual Scores'!$D26,Scores!$F$1:$F$253,0)),"",INDIRECT("Scores!"&"R"&MATCH('Individual Scores'!$D26,Scores!$F$1:$F$253,0)&"C"&COLUMN(Scores!K$1),FALSE)) -> 151 | S26: =IF(ISERROR(MATCH('Individual Scores'!$D26,Scores!$F$1:$F$253,0)),"",INDIRECT("Scores!"&"R"&MATCH('Individual Scores'!$D26,Scores!$F$1:$F$253,0)&"C"&COLUMN(Scores!L$1),FALSE)) -> 162 | T26: =IF(ISERROR(MATCH('Individual Scores'!$D26,Scores!$F$1:$F$253,0)),"",INDIRECT("Scores!"&"R"&MATCH('Individual Scores'!$D26,Scores!$F$1:$F$253,0)&"C"&COLUMN(Scores!N$1),FALSE)) -> 142 | U26: =IF(ISERROR(MATCH('Individual Scores'!$D26,Scores!$F$1:$F$253,0)),"",INDIRECT("Scores!"&"R"&MATCH('Individual Scores'!$D26,Scores!$F$1:$F$253,0)&"C"&COLUMN(Scores!O$1),FALSE)) -> 213 | V26: =IF(ISERROR(MATCH('Individual Scores'!$D26,Scores!$F$1:$F$253,0)),"",INDIRECT("Scores!"&"R"&MATCH('Individual Scores'!$D26,Scores!$F$1:$F$253,0)&"C"&COLUMN(Scores!P$1),FALSE)) -> 220 | W26: =IF(ISERROR(MATCH('Individual Scores'!$D26,Scores!$F$1:$F$253,0)),"",INDIRECT("Scores!"&"R"&MATCH('Individual Scores'!$D26,Scores!$F$1:$F$253,0)&"C"&COLUMN(Scores!S$1),FALSE)) -> 1055 | X26: =IF(MAX('Individual Scores'!Q26:V26)>0,MAX('Individual Scores'!Q26:V26),"") -> 220 | Y26: =IF(MAX(SUM('Individual Scores'!Q26:S26),SUM('Individual Scores'!T26:V26))>0,MAX(SUM('Individual Scores'!Q26:S26),SUM('Individual Scores'!T26:V26)),"") -> 575 | AA26: =IF('Team Scores'!$Z$1<2,"",IF(ISERROR(MATCH('Individual Scores'!$D26,Scores!$F$253:$F$506,0)),"",INDIRECT("Scores!"&"R"&(ROW(Scores!$253:$253)-1+MATCH('Individual Scores'!$D26,Scores!$F$253:$F$505,0))&"C"&COLUMN(Scores!J$1),FALSE))) -> 217 | AB26: =IF('Team Scores'!$Z$1<2,"",IF(ISERROR(MATCH('Individual Scores'!$D26,Scores!$F$253:$F$506,0)),"",INDIRECT("Scores!"&"R"&(ROW(Scores!$253:$253)-1+MATCH('Individual Scores'!$D26,Scores!$F$253:$F$505,0))&"C"&COLUMN(Scores!K$1),FALSE))) -> 203 | AC26: =IF('Team Scores'!$Z$1<2,"",IF(ISERROR(MATCH('Individual Scores'!$D26,Scores!$F$253:$F$506,0)),"",INDIRECT("Scores!"&"R"&(ROW(Scores!$253:$253)-1+MATCH('Individual Scores'!$D26,Scores!$F$253:$F$505,0))&"C"&COLUMN(Scores!L$1),FALSE))) -> 180 | AD26: =IF('Team Scores'!$Z$1<2,"",IF(ISERROR(MATCH('Individual Scores'!$D26,Scores!$F$253:$F$506,0)),"",INDIRECT("Scores!"&"R"&(ROW(Scores!$253:$253)-1+MATCH('Individual Scores'!$D26,Scores!$F$253:$F$505,0))&"C"&COLUMN(Scores!N$1),FALSE))) -> 179 | AE26: =IF('Team Scores'!$Z$1<2,"",IF(ISERROR(MATCH('Individual Scores'!$D26,Scores!$F$253:$F$506,0)),"",INDIRECT("Scores!"&"R"&(ROW(Scores!$253:$253)-1+MATCH('Individual Scores'!$D26,Scores!$F$253:$F$505,0))&"C"&COLUMN(Scores!O$1),FALSE))) -> 181 | AF26: =IF('Team Scores'!$Z$1<2,"",IF(ISERROR(MATCH('Individual Scores'!$D26,Scores!$F$253:$F$506,0)),"",INDIRECT("Scores!"&"R"&(ROW(Scores!$253:$253)-1+MATCH('Individual Scores'!$D26,Scores!$F$253:$F$505,0))&"C"&COLUMN(Scores!P$1),FALSE))) -> 162 | AG26: =IF('Team Scores'!$Z$1<2,"",IF(ISERROR(MATCH('Individual Scores'!$D26,Scores!$F$253:$F$506,0)),"",INDIRECT("Scores!"&"R"&(ROW(Scores!$253:$253)-1+MATCH('Individual Scores'!$D26,Scores!$F$253:$F$505,0))&"C"&COLUMN(Scores!S$1),FALSE))) -> 1122 | AH26: 217 | AI26: 600 | AK26: =IF('Team Scores'!$Z$1<3,"",IF(ISERROR(MATCH('Individual Scores'!$D26,Scores!$F$506:$F$759,0)),"",INDIRECT("Scores!"&"R"&(ROW(Scores!$F$506:$F$759)-1+MATCH('Individual Scores'!$D26,Scores!$F$506:$F$759,0))&"C"&COLUMN(Scores!J$1),FALSE))) ->  | AL26: =IF('Team Scores'!$Z$1<3,"",IF(ISERROR(MATCH('Individual Scores'!$D26,Scores!$F$506:$F$759,0)),"",INDIRECT("Scores!"&"R"&(ROW(Scores!$F$506:$F$759)-1+MATCH('Individual Scores'!$D26,Scores!$F$506:$F$759,0))&"C"&COLUMN(Scores!K$1),FALSE))) ->  | AM26: =IF('Team Scores'!$Z$1<3,"",IF(ISERROR(MATCH('Individual Scores'!$D26,Scores!$F$506:$F$759,0)),"",INDIRECT("Scores!"&"R"&(ROW(Scores!$F$506:$F$759)-1+MATCH('Individual Scores'!$D26,Scores!$F$506:$F$759,0))&"C"&COLUMN(Scores!L$1),FALSE))) ->  | AN26: =IF('Team Scores'!$Z$1<3,"",IF(ISERROR(MATCH('Individual Scores'!$D26,Scores!$F$506:$F$759,0)),"",INDIRECT("Scores!"&"R"&(ROW(Scores!$F$506:$F$759)-1+MATCH('Individual Scores'!$D26,Scores!$F$506:$F$759,0))&"C"&COLUMN(Scores!N$1),FALSE))) ->  | AO26: =IF('Team Scores'!$Z$1<3,"",IF(ISERROR(MATCH('Individual Scores'!$D26,Scores!$F$506:$F$759,0)),"",INDIRECT("Scores!"&"R"&(ROW(Scores!$F$506:$F$759)-1+MATCH('Individual Scores'!$D26,Scores!$F$506:$F$759,0))&"C"&COLUMN(Scores!O$1),FALSE))) ->  | AP26: =IF('Team Scores'!$Z$1<3,"",IF(ISERROR(MATCH('Individual Scores'!$D26,Scores!$F$506:$F$759,0)),"",INDIRECT("Scores!"&"R"&(ROW(Scores!$F$506:$F$759)-1+MATCH('Individual Scores'!$D26,Scores!$F$506:$F$759,0))&"C"&COLUMN(Scores!P$1),FALSE))) ->  | AQ26: =IF('Team Scores'!$Z$1<3,"",IF(ISERROR(MATCH('Individual Scores'!$D26,Scores!$F$506:$F$759,0)),"",INDIRECT("Scores!"&"R"&(ROW(Scores!$F$506:$F$759)-1+MATCH('Individual Scores'!$D26,Scores!$F$506:$F$759,0))&"C"&COLUMN(Scores!S$1),FALSE))) -> 
A27: GA | B27: 15 & < | C27: M | D27: Dominick Baglio | H27: 0 | I27: =IF(COUNT(Q27:V27,AA27:AF27,AK27:AP27)>=18/3*'Team Scores'!$Z$1,IF(H27-VLOOKUP(B27&C27,'Individual Awards Computations'!$AY$54:$AZ$58,2,FALSE)=0,"Leader "&C27&":"&B27,H27-VLOOKUP(B27&C27,'Individual Awards Computations'!$AY$54:$AZ$58,2,FALSE)),"") ->  | O27: 1 | Q27: =IF(ISERROR(MATCH('Individual Scores'!$D27,Scores!$F$1:$F$253,0)),"",INDIRECT("Scores!"&"R"&MATCH('Individual Scores'!$D27,Scores!$F$1:$F$253,0)&"C"&COLUMN(Scores!J$1),FALSE)) ->  | R27: =IF(ISERROR(MATCH('Individual Scores'!$D27,Scores!$F$1:$F$253,0)),"",INDIRECT("Scores!"&"R"&MATCH('Individual Scores'!$D27,Scores!$F$1:$F$253,0)&"C"&COLUMN(Scores!K$1),FALSE)) ->  | S27: =IF(ISERROR(MATCH('Individual Scores'!$D27,Scores!$F$1:$F$253,0)),"",INDIRECT("Scores!"&"R"&MATCH('Individual Scores'!$D27,Scores!$F$1:$F$253,0)&"C"&COLUMN(Scores!L$1),FALSE)) ->  | T27: =IF(ISERROR(MATCH('Individual Scores'!$D27,Scores!$F$1:$F$253,0)),"",INDIRECT("Scores!"&"R"&MATCH('Individual Scores'!$D27,Scores!$F$1:$F$253,0)&"C"&COLUMN(Scores!N$1),FALSE)) ->  | U27: =IF(ISERROR(MATCH('Individual Scores'!$D27,Scores!$F$1:$F$253,0)),"",INDIRECT("Scores!"&"R"&MATCH('Individual Scores'!$D27,Scores!$F$1:$F$253,0)&"C"&COLUMN(Scores!O$1),FALSE)) ->  | V27: =IF(ISERROR(MATCH('Individual Scores'!$D27,Scores!$F$1:$F$253,0)),"",INDIRECT("Scores!"&"R"&MATCH('Individual Scores'!$D27,Scores!$F$1:$F$253,0)&"C"&COLUMN(Scores!P$1),FALSE)) ->  | W27: =IF(ISERROR(MATCH('Individual Scores'!$D27,Scores!$F$1:$F$253,0)),"",INDIRECT("Scores!"&"R"&MATCH('Individual Scores'!$D27,Scores!$F$1:$F$253,0)&"C"&COLUMN(Scores!S$1),FALSE)) ->  | X27: =IF(MAX('Individual Scores'!Q27:V27)>0,MAX('Individual Scores'!Q27:V27),"") ->  | Y27: =IF(MAX(SUM('Individual Scores'!Q27:S27),SUM('Individual Scores'!T27:V27))>0,MAX(SUM('Individual Scores'!Q27:S27),SUM('Individual Scores'!T27:V27)),"") ->  | AA27: =IF('Team Scores'!$Z$1<2,"",IF(ISERROR(MATCH('Individual Scores'!$D27,Scores!$F$253:$F$506,0)),"",INDIRECT("Scores!"&"R"&(ROW(Scores!$253:$253)-1+MATCH('Individual Scores'!$D27,Scores!$F$253:$F$505,0))&"C"&COLUMN(Scores!J$1),FALSE))) ->  | AB27: =IF('Team Scores'!$Z$1<2,"",IF(ISERROR(MATCH('Individual Scores'!$D27,Scores!$F$253:$F$506,0)),"",INDIRECT("Scores!"&"R"&(ROW(Scores!$253:$253)-1+MATCH('Individual Scores'!$D27,Scores!$F$253:$F$505,0))&"C"&COLUMN(Scores!K$1),FALSE))) ->  | AC27: =IF('Team Scores'!$Z$1<2,"",IF(ISERROR(MATCH('Individual Scores'!$D27,Scores!$F$253:$F$506,0)),"",INDIRECT("Scores!"&"R"&(ROW(Scores!$253:$253)-1+MATCH('Individual Scores'!$D27,Scores!$F$253:$F$505,0))&"C"&COLUMN(Scores!L$1),FALSE))) ->  | AD27: =IF('Team Scores'!$Z$1<2,"",IF(ISERROR(MATCH('Individual Scores'!$D27,Scores!$F$253:$F$506,0)),"",INDIRECT("Scores!"&"R"&(ROW(Scores!$253:$253)-1+MATCH('Individual Scores'!$D27,Scores!$F$253:$F$505,0))&"C"&COLUMN(Scores!N$1),FALSE))) ->  | AE27: =IF('Team Scores'!$Z$1<2,"",IF(ISERROR(MATCH('Individual Scores'!$D27,Scores!$F$253:$F$506,0)),"",INDIRECT("Scores!"&"R"&(ROW(Scores!$253:$253)-1+MATCH('Individual Scores'!$D27,Scores!$F$253:$F$505,0))&"C"&COLUMN(Scores!O$1),FALSE))) ->  | AF27: =IF('Team Scores'!$Z$1<2,"",IF(ISERROR(MATCH('Individual Scores'!$D27,Scores!$F$253:$F$506,0)),"",INDIRECT("Scores!"&"R"&(ROW(Scores!$253:$253)-1+MATCH('Individual Scores'!$D27,Scores!$F$253:$F$505,0))&"C"&COLUMN(Scores!P$1),FALSE))) ->  | AG27: =IF('Team Scores'!$Z$1<2,"",IF(ISERROR(MATCH('Individual Scores'!$D27,Scores!$F$253:$F$506,0)),"",INDIRECT("Scores!"&"R"&(ROW(Scores!$253:$253)-1+MATCH('Individual Scores'!$D27,Scores!$F$253:$F$505,0))&"C"&COLUMN(Scores!S$1),FALSE))) ->  | AK27: =IF('Team Scores'!$Z$1<3,"",IF(ISERROR(MATCH('Individual Scores'!$D27,Scores!$F$506:$F$759,0)),"",INDIRECT("Scores!"&"R"&(ROW(Scores!$F$506:$F$759)-1+MATCH('Individual Scores'!$D27,Scores!$F$506:$F$759,0))&"C"&COLUMN(Scores!J$1),FALSE))) ->  | AL27: =IF('Team Scores'!$Z$1<3,"",IF(ISERROR(MATCH('Individual Scores'!$D27,Scores!$F$506:$F$759,0)),"",INDIRECT("Scores!"&"R"&(ROW(Scores!$F$506:$F$759)-1+MATCH('Individual Scores'!$D27,Scores!$F$506:$F$759,0))&"C"&COLUMN(Scores!K$1),FALSE))) ->  | AM27: =IF('Team Scores'!$Z$1<3,"",IF(ISERROR(MATCH('Individual Scores'!$D27,Scores!$F$506:$F$759,0)),"",INDIRECT("Scores!"&"R"&(ROW(Scores!$F$506:$F$759)-1+MATCH('Individual Scores'!$D27,Scores!$F$506:$F$759,0))&"C"&COLUMN(Scores!L$1),FALSE))) ->  | AN27: =IF('Team Scores'!$Z$1<3,"",IF(ISERROR(MATCH('Individual Scores'!$D27,Scores!$F$506:$F$759,0)),"",INDIRECT("Scores!"&"R"&(ROW(Scores!$F$506:$F$759)-1+MATCH('Individual Scores'!$D27,Scores!$F$506:$F$759,0))&"C"&COLUMN(Scores!N$1),FALSE))) ->  | AO27: =IF('Team Scores'!$Z$1<3,"",IF(ISERROR(MATCH('Individual Scores'!$D27,Scores!$F$506:$F$759,0)),"",INDIRECT("Scores!"&"R"&(ROW(Scores!$F$506:$F$759)-1+MATCH('Individual Scores'!$D27,Scores!$F$506:$F$759,0))&"C"&COLUMN(Scores!O$1),FALSE))) ->  | AP27: =IF('Team Scores'!$Z$1<3,"",IF(ISERROR(MATCH('Individual Scores'!$D27,Scores!$F$506:$F$759,0)),"",INDIRECT("Scores!"&"R"&(ROW(Scores!$F$506:$F$759)-1+MATCH('Individual Scores'!$D27,Scores!$F$506:$F$759,0))&"C"&COLUMN(Scores!P$1),FALSE))) ->  | AQ27: =IF('Team Scores'!$Z$1<3,"",IF(ISERROR(MATCH('Individual Scores'!$D27,Scores!$F$506:$F$759,0)),"",INDIRECT("Scores!"&"R"&(ROW(Scores!$F$506:$F$759)-1+MATCH('Individual Scores'!$D27,Scores!$F$506:$F$759,0))&"C"&COLUMN(Scores!S$1),FALSE))) -> 
A28: GA | B28: 15 & < | C28: M | D28: Vacant-GA_B_U15 | E28: 0 | H28: 0 | I28: =IF(COUNT(Q28:V28,AA28:AF28,AK28:AP28)>=18/3*'Team Scores'!$Z$1,IF(H28-VLOOKUP(B28&C28,'Individual Awards Computations'!$AY$54:$AZ$58,2,FALSE)=0,"Leader "&C28&":"&B28,H28-VLOOKUP(B28&C28,'Individual Awards Computations'!$AY$54:$AZ$58,2,FALSE)),"") ->  | O28: 1 | Q28: =IF(ISERROR(MATCH('Individual Scores'!$D28,Scores!$F$1:$F$253,0)),"",INDIRECT("Scores!"&"R"&MATCH('Individual Scores'!$D28,Scores!$F$1:$F$253,0)&"C"&COLUMN(Scores!J$1),FALSE)) -> 0 | R28: =IF(ISERROR(MATCH('Individual Scores'!$D28,Scores!$F$1:$F$253,0)),"",INDIRECT("Scores!"&"R"&MATCH('Individual Scores'!$D28,Scores!$F$1:$F$253,0)&"C"&COLUMN(Scores!K$1),FALSE)) -> 0 | S28: =IF(ISERROR(MATCH('Individual Scores'!$D28,Scores!$F$1:$F$253,0)),"",INDIRECT("Scores!"&"R"&MATCH('Individual Scores'!$D28,Scores!$F$1:$F$253,0)&"C"&COLUMN(Scores!L$1),FALSE)) -> 0 | T28: =IF(ISERROR(MATCH('Individual Scores'!$D28,Scores!$F$1:$F$253,0)),"",INDIRECT("Scores!"&"R"&MATCH('Individual Scores'!$D28,Scores!$F$1:$F$253,0)&"C"&COLUMN(Scores!N$1),FALSE)) -> 0 | U28: =IF(ISERROR(MATCH('Individual Scores'!$D28,Scores!$F$1:$F$253,0)),"",INDIRECT("Scores!"&"R"&MATCH('Individual Scores'!$D28,Scores!$F$1:$F$253,0)&"C"&COLUMN(Scores!O$1),FALSE)) -> 0 | V28: =IF(ISERROR(MATCH('Individual Scores'!$D28,Scores!$F$1:$F$253,0)),"",INDIRECT("Scores!"&"R"&MATCH('Individual Scores'!$D28,Scores!$F$1:$F$253,0)&"C"&COLUMN(Scores!P$1),FALSE)) -> 0 | W28: =IF(ISERROR(MATCH('Individual Scores'!$D28,Scores!$F$1:$F$253,0)),"",INDIRECT("Scores!"&"R"&MATCH('Individual Scores'!$D28,Scores!$F$1:$F$253,0)&"C"&COLUMN(Scores!S$1),FALSE)) -> 0 | X28: =IF(MAX('Individual Scores'!Q28:V28)>0,MAX('Individual Scores'!Q28:V28),"") ->  | Y28: =IF(MAX(SUM('Individual Scores'!Q28:S28),SUM('Individual Scores'!T28:V28))>0,MAX(SUM('Individual Scores'!Q28:S28),SUM('Individual Scores'!T28:V28)),"") ->  | AA28: =IF('Team Scores'!$Z$1<2,"",IF(ISERROR(MATCH('Individual Scores'!$D28,Scores!$F$253:$F$506,0)),"",INDIRECT("Scores!"&"R"&(ROW(Scores!$253:$253)-1+MATCH('Individual Scores'!$D28,Scores!$F$253:$F$505,0))&"C"&COLUMN(Scores!J$1),FALSE))) ->  | AB28: =IF('Team Scores'!$Z$1<2,"",IF(ISERROR(MATCH('Individual Scores'!$D28,Scores!$F$253:$F$506,0)),"",INDIRECT("Scores!"&"R"&(ROW(Scores!$253:$253)-1+MATCH('Individual Scores'!$D28,Scores!$F$253:$F$505,0))&"C"&COLUMN(Scores!K$1),FALSE))) ->  | AC28: =IF('Team Scores'!$Z$1<2,"",IF(ISERROR(MATCH('Individual Scores'!$D28,Scores!$F$253:$F$506,0)),"",INDIRECT("Scores!"&"R"&(ROW(Scores!$253:$253)-1+MATCH('Individual Scores'!$D28,Scores!$F$253:$F$505,0))&"C"&COLUMN(Scores!L$1),FALSE))) ->  | AD28: =IF('Team Scores'!$Z$1<2,"",IF(ISERROR(MATCH('Individual Scores'!$D28,Scores!$F$253:$F$506,0)),"",INDIRECT("Scores!"&"R"&(ROW(Scores!$253:$253)-1+MATCH('Individual Scores'!$D28,Scores!$F$253:$F$505,0))&"C"&COLUMN(Scores!N$1),FALSE))) ->  | AE28: =IF('Team Scores'!$Z$1<2,"",IF(ISERROR(MATCH('Individual Scores'!$D28,Scores!$F$253:$F$506,0)),"",INDIRECT("Scores!"&"R"&(ROW(Scores!$253:$253)-1+MATCH('Individual Scores'!$D28,Scores!$F$253:$F$505,0))&"C"&COLUMN(Scores!O$1),FALSE))) ->  | AF28: =IF('Team Scores'!$Z$1<2,"",IF(ISERROR(MATCH('Individual Scores'!$D28,Scores!$F$253:$F$506,0)),"",INDIRECT("Scores!"&"R"&(ROW(Scores!$253:$253)-1+MATCH('Individual Scores'!$D28,Scores!$F$253:$F$505,0))&"C"&COLUMN(Scores!P$1),FALSE))) ->  | AG28: =IF('Team Scores'!$Z$1<2,"",IF(ISERROR(MATCH('Individual Scores'!$D28,Scores!$F$253:$F$506,0)),"",INDIRECT("Scores!"&"R"&(ROW(Scores!$253:$253)-1+MATCH('Individual Scores'!$D28,Scores!$F$253:$F$505,0))&"C"&COLUMN(Scores!S$1),FALSE))) ->  | AK28: =IF('Team Scores'!$Z$1<3,"",IF(ISERROR(MATCH('Individual Scores'!$D28,Scores!$F$506:$F$759,0)),"",INDIRECT("Scores!"&"R"&(ROW(Scores!$F$506:$F$759)-1+MATCH('Individual Scores'!$D28,Scores!$F$506:$F$759,0))&"C"&COLUMN(Scores!J$1),FALSE))) ->  | AL28: =IF('Team Scores'!$Z$1<3,"",IF(ISERROR(MATCH('Individual Scores'!$D28,Scores!$F$506:$F$759,0)),"",INDIRECT("Scores!"&"R"&(ROW(Scores!$F$506:$F$759)-1+MATCH('Individual Scores'!$D28,Scores!$F$506:$F$759,0))&"C"&COLUMN(Scores!K$1),FALSE))) ->  | AM28: =IF('Team Scores'!$Z$1<3,"",IF(ISERROR(MATCH('Individual Scores'!$D28,Scores!$F$506:$F$759,0)),"",INDIRECT("Scores!"&"R"&(ROW(Scores!$F$506:$F$759)-1+MATCH('Individual Scores'!$D28,Scores!$F$506:$F$759,0))&"C"&COLUMN(Scores!L$1),FALSE))) ->  | AN28: =IF('Team Scores'!$Z$1<3,"",IF(ISERROR(MATCH('Individual Scores'!$D28,Scores!$F$506:$F$759,0)),"",INDIRECT("Scores!"&"R"&(ROW(Scores!$F$506:$F$759)-1+MATCH('Individual Scores'!$D28,Scores!$F$506:$F$759,0))&"C"&COLUMN(Scores!N$1),FALSE))) ->  | AO28: =IF('Team Scores'!$Z$1<3,"",IF(ISERROR(MATCH('Individual Scores'!$D28,Scores!$F$506:$F$759,0)),"",INDIRECT("Scores!"&"R"&(ROW(Scores!$F$506:$F$759)-1+MATCH('Individual Scores'!$D28,Scores!$F$506:$F$759,0))&"C"&COLUMN(Scores!O$1),FALSE))) ->  | AP28: =IF('Team Scores'!$Z$1<3,"",IF(ISERROR(MATCH('Individual Scores'!$D28,Scores!$F$506:$F$759,0)),"",INDIRECT("Scores!"&"R"&(ROW(Scores!$F$506:$F$759)-1+MATCH('Individual Scores'!$D28,Scores!$F$506:$F$759,0))&"C"&COLUMN(Scores!P$1),FALSE))) ->  | AQ28: =IF('Team Scores'!$Z$1<3,"",IF(ISERROR(MATCH('Individual Scores'!$D28,Scores!$F$506:$F$759,0)),"",INDIRECT("Scores!"&"R"&(ROW(Scores!$F$506:$F$759)-1+MATCH('Individual Scores'!$D28,Scores!$F$506:$F$759,0))&"C"&COLUMN(Scores!S$1),FALSE))) -> 
A29: GA | B29: 16-20 | C29: F | D29: Amber Beene | E29: 1153 | F29: 1110 | H29: 2263 | I29: =IF(COUNT(Q29:V29,AA29:AF29,AK29:AP29)>=18/3*'Team Scores'!$Z$1,IF(H29-VLOOKUP(B29&C29,'Individual Awards Computations'!$AY$54:$AZ$58,2,FALSE)=0,"Leader "&C29&":"&B29,H29-VLOOKUP(B29&C29,'Individual Awards Computations'!$AY$54:$AZ$58,2,FALSE)),"") -> -183 | J29: 214 | K29: 604 | L29: 188.5833333 | M29: 13.91666667 | N29: 175-203 | O29: 1 | Q29: =IF(ISERROR(MATCH('Individual Scores'!$D29,Scores!$F$1:$F$253,0)),"",INDIRECT("Scores!"&"R"&MATCH('Individual Scores'!$D29,Scores!$F$1:$F$253,0)&"C"&COLUMN(Scores!J$1),FALSE)) -> 185 | R29: =IF(ISERROR(MATCH('Individual Scores'!$D29,Scores!$F$1:$F$253,0)),"",INDIRECT("Scores!"&"R"&MATCH('Individual Scores'!$D29,Scores!$F$1:$F$253,0)&"C"&COLUMN(Scores!K$1),FALSE)) -> 205 | S29: =IF(ISERROR(MATCH('Individual Scores'!$D29,Scores!$F$1:$F$253,0)),"",INDIRECT("Scores!"&"R"&MATCH('Individual Scores'!$D29,Scores!$F$1:$F$253,0)&"C"&COLUMN(Scores!L$1),FALSE)) -> 214 | T29: =IF(ISERROR(MATCH('Individual Scores'!$D29,Scores!$F$1:$F$253,0)),"",INDIRECT("Scores!"&"R"&MATCH('Individual Scores'!$D29,Scores!$F$1:$F$253,0)&"C"&COLUMN(Scores!N$1),FALSE)) -> 193 | U29: =IF(ISERROR(MATCH('Individual Scores'!$D29,Scores!$F$1:$F$253,0)),"",INDIRECT("Scores!"&"R"&MATCH('Individual Scores'!$D29,Scores!$F$1:$F$253,0)&"C"&COLUMN(Scores!O$1),FALSE)) -> 186 | V29: =IF(ISERROR(MATCH('Individual Scores'!$D29,Scores!$F$1:$F$253,0)),"",INDIRECT("Scores!"&"R"&MATCH('Individual Scores'!$D29,Scores!$F$1:$F$253,0)&"C"&COLUMN(Scores!P$1),FALSE)) -> 170 | W29: =IF(ISERROR(MATCH('Individual Scores'!$D29,Scores!$F$1:$F$253,0)),"",INDIRECT("Scores!"&"R"&MATCH('Individual Scores'!$D29,Scores!$F$1:$F$253,0)&"C"&COLUMN(Scores!S$1),FALSE)) -> 1153 | X29: =IF(MAX('Individual Scores'!Q29:V29)>0,MAX('Individual Scores'!Q29:V29),"") -> 214 | Y29: =IF(MAX(SUM('Individual Scores'!Q29:S29),SUM('Individual Scores'!T29:V29))>0,MAX(SUM('Individual Scores'!Q29:S29),SUM('Individual Scores'!T29:V29)),"") -> 604 | AA29: =IF('Team Scores'!$Z$1<2,"",IF(ISERROR(MATCH('Individual Scores'!$D29,Scores!$F$253:$F$506,0)),"",INDIRECT("Scores!"&"R"&(ROW(Scores!$253:$253)-1+MATCH('Individual Scores'!$D29,Scores!$F$253:$F$505,0))&"C"&COLUMN(Scores!J$1),FALSE))) -> 190 | AB29: =IF('Team Scores'!$Z$1<2,"",IF(ISERROR(MATCH('Individual Scores'!$D29,Scores!$F$253:$F$506,0)),"",INDIRECT("Scores!"&"R"&(ROW(Scores!$253:$253)-1+MATCH('Individual Scores'!$D29,Scores!$F$253:$F$505,0))&"C"&COLUMN(Scores!K$1),FALSE))) -> 212 | AC29: =IF('Team Scores'!$Z$1<2,"",IF(ISERROR(MATCH('Individual Scores'!$D29,Scores!$F$253:$F$506,0)),"",INDIRECT("Scores!"&"R"&(ROW(Scores!$253:$253)-1+MATCH('Individual Scores'!$D29,Scores!$F$253:$F$505,0))&"C"&COLUMN(Scores!L$1),FALSE))) -> 149 | AD29: =IF('Team Scores'!$Z$1<2,"",IF(ISERROR(MATCH('Individual Scores'!$D29,Scores!$F$253:$F$506,0)),"",INDIRECT("Scores!"&"R"&(ROW(Scores!$253:$253)-1+MATCH('Individual Scores'!$D29,Scores!$F$253:$F$505,0))&"C"&COLUMN(Scores!N$1),FALSE))) -> 171 | AE29: =IF('Team Scores'!$Z$1<2,"",IF(ISERROR(MATCH('Individual Scores'!$D29,Scores!$F$253:$F$506,0)),"",INDIRECT("Scores!"&"R"&(ROW(Scores!$253:$253)-1+MATCH('Individual Scores'!$D29,Scores!$F$253:$F$505,0))&"C"&COLUMN(Scores!O$1),FALSE))) -> 201 | AF29: =IF('Team Scores'!$Z$1<2,"",IF(ISERROR(MATCH('Individual Scores'!$D29,Scores!$F$253:$F$506,0)),"",INDIRECT("Scores!"&"R"&(ROW(Scores!$253:$253)-1+MATCH('Individual Scores'!$D29,Scores!$F$253:$F$505,0))&"C"&COLUMN(Scores!P$1),FALSE))) -> 187 | AG29: =IF('Team Scores'!$Z$1<2,"",IF(ISERROR(MATCH('Individual Scores'!$D29,Scores!$F$253:$F$506,0)),"",INDIRECT("Scores!"&"R"&(ROW(Scores!$253:$253)-1+MATCH('Individual Scores'!$D29,Scores!$F$253:$F$505,0))&"C"&COLUMN(Scores!S$1),FALSE))) -> 1110 | AH29: 212 | AI29: 559 | AK29: =IF('Team Scores'!$Z$1<3,"",IF(ISERROR(MATCH('Individual Scores'!$D29,Scores!$F$506:$F$759,0)),"",INDIRECT("Scores!"&"R"&(ROW(Scores!$F$506:$F$759)-1+MATCH('Individual Scores'!$D29,Scores!$F$506:$F$759,0))&"C"&COLUMN(Scores!J$1),FALSE))) ->  | AL29: =IF('Team Scores'!$Z$1<3,"",IF(ISERROR(MATCH('Individual Scores'!$D29,Scores!$F$506:$F$759,0)),"",INDIRECT("Scores!"&"R"&(ROW(Scores!$F$506:$F$759)-1+MATCH('Individual Scores'!$D29,Scores!$F$506:$F$759,0))&"C"&COLUMN(Scores!K$1),FALSE))) ->  | AM29: =IF('Team Scores'!$Z$1<3,"",IF(ISERROR(MATCH('Individual Scores'!$D29,Scores!$F$506:$F$759,0)),"",INDIRECT("Scores!"&"R"&(ROW(Scores!$F$506:$F$759)-1+MATCH('Individual Scores'!$D29,Scores!$F$506:$F$759,0))&"C"&COLUMN(Scores!L$1),FALSE))) ->  | AN29: =IF('Team Scores'!$Z$1<3,"",IF(ISERROR(MATCH('Individual Scores'!$D29,Scores!$F$506:$F$759,0)),"",INDIRECT("Scores!"&"R"&(ROW(Scores!$F$506:$F$759)-1+MATCH('Individual Scores'!$D29,Scores!$F$506:$F$759,0))&"C"&COLUMN(Scores!N$1),FALSE))) ->  | AO29: =IF('Team Scores'!$Z$1<3,"",IF(ISERROR(MATCH('Individual Scores'!$D29,Scores!$F$506:$F$759,0)),"",INDIRECT("Scores!"&"R"&(ROW(Scores!$F$506:$F$759)-1+MATCH('Individual Scores'!$D29,Scores!$F$506:$F$759,0))&"C"&COLUMN(Scores!O$1),FALSE))) ->  | AP29: =IF('Team Scores'!$Z$1<3,"",IF(ISERROR(MATCH('Individual Scores'!$D29,Scores!$F$506:$F$759,0)),"",INDIRECT("Scores!"&"R"&(ROW(Scores!$F$506:$F$759)-1+MATCH('Individual Scores'!$D29,Scores!$F$506:$F$759,0))&"C"&COLUMN(Scores!P$1),FALSE))) ->  | AQ29: =IF('Team Scores'!$Z$1<3,"",IF(ISERROR(MATCH('Individual Scores'!$D29,Scores!$F$506:$F$759,0)),"",INDIRECT("Scores!"&"R"&(ROW(Scores!$F$506:$F$759)-1+MATCH('Individual Scores'!$D29,Scores!$F$506:$F$759,0))&"C"&COLUMN(Scores!S$1),FALSE))) -> 
A30: GA | B30: 16-20 | C30: F | D30: Crystal Fox | E30: 1164 | F30: 1093 | H30: 2257 | I30: =IF(COUNT(Q30:V30,AA30:AF30,AK30:AP30)>=18/3*'Team Scores'!$Z$1,IF(H30-VLOOKUP(B30&C30,'Individual Awards Computations'!$AY$54:$AZ$58,2,FALSE)=0,"Leader "&C30&":"&B30,H30-VLOOKUP(B30&C30,'Individual Awards Computations'!$AY$54:$AZ$58,2,FALSE)),"") -> -189 | J30: 257 | K30: 606 | L30: 188.0833333 | M30: 31.76388889 | N30: 156-220 | O30: 1 | Q30: =IF(ISERROR(MATCH('Individual Scores'!$D30,Scores!$F$1:$F$253,0)),"",INDIRECT("Scores!"&"R"&MATCH('Individual Scores'!$D30,Scores!$F$1:$F$253,0)&"C"&COLUMN(Scores!J$1),FALSE)) -> 245 | R30: =IF(ISERROR(MATCH('Individual Scores'!$D30,Scores!$F$1:$F$253,0)),"",INDIRECT("Scores!"&"R"&MATCH('Individual Scores'!$D30,Scores!$F$1:$F$253,0)&"C"&COLUMN(Scores!K$1),FALSE)) -> 179 | S30: =IF(ISERROR(MATCH('Individual Scores'!$D30,Scores!$F$1:$F$253,0)),"",INDIRECT("Scores!"&"R"&MATCH('Individual Scores'!$D30,Scores!$F$1:$F$253,0)&"C"&COLUMN(Scores!L$1),FALSE)) -> 169 | T30: =IF(ISERROR(MATCH('Individual Scores'!$D30,Scores!$F$1:$F$253,0)),"",INDIRECT("Scores!"&"R"&MATCH('Individual Scores'!$D30,Scores!$F$1:$F$253,0)&"C"&COLUMN(Scores!N$1),FALSE)) -> 159 | U30: =IF(ISERROR(MATCH('Individual Scores'!$D30,Scores!$F$1:$F$253,0)),"",INDIRECT("Scores!"&"R"&MATCH('Individual Scores'!$D30,Scores!$F$1:$F$253,0)&"C"&COLUMN(Scores!O$1),FALSE)) -> 212 | V30: =IF(ISERROR(MATCH('Individual Scores'!$D30,Scores!$F$1:$F$253,0)),"",INDIRECT("Scores!"&"R"&MATCH('Individual Scores'!$D30,Scores!$F$1:$F$253,0)&"C"&COLUMN(Scores!P$1),FALSE)) -> 200 | W30: =IF(ISERROR(MATCH('Individual Scores'!$D30,Scores!$F$1:$F$253,0)),"",INDIRECT("Scores!"&"R"&MATCH('Individual Scores'!$D30,Scores!$F$1:$F$253,0)&"C"&COLUMN(Scores!S$1),FALSE)) -> 1164 | X30: =IF(MAX('Individual Scores'!Q30:V30)>0,MAX('Individual Scores'!Q30:V30),"") -> 245 | Y30: =IF(MAX(SUM('Individual Scores'!Q30:S30),SUM('Individual Scores'!T30:V30))>0,MAX(SUM('Individual Scores'!Q30:S30),SUM('Individual Scores'!T30:V30)),"") -> 593 | AA30: =IF('Team Scores'!$Z$1<2,"",IF(ISERROR(MATCH('Individual Scores'!$D30,Scores!$F$253:$F$506,0)),"",INDIRECT("Scores!"&"R"&(ROW(Scores!$253:$253)-1+MATCH('Individual Scores'!$D30,Scores!$F$253:$F$505,0))&"C"&COLUMN(Scores!J$1),FALSE))) -> 132 | AB30: =IF('Team Scores'!$Z$1<2,"",IF(ISERROR(MATCH('Individual Scores'!$D30,Scores!$F$253:$F$506,0)),"",INDIRECT("Scores!"&"R"&(ROW(Scores!$253:$253)-1+MATCH('Individual Scores'!$D30,Scores!$F$253:$F$505,0))&"C"&COLUMN(Scores!K$1),FALSE))) -> 217 | AC30: =IF('Team Scores'!$Z$1<2,"",IF(ISERROR(MATCH('Individual Scores'!$D30,Scores!$F$253:$F$506,0)),"",INDIRECT("Scores!"&"R"&(ROW(Scores!$253:$253)-1+MATCH('Individual Scores'!$D30,Scores!$F$253:$F$505,0))&"C"&COLUMN(Scores!L$1),FALSE))) -> 257 | AD30: =IF('Team Scores'!$Z$1<2,"",IF(ISERROR(MATCH('Individual Scores'!$D30,Scores!$F$253:$F$506,0)),"",INDIRECT("Scores!"&"R"&(ROW(Scores!$253:$253)-1+MATCH('Individual Scores'!$D30,Scores!$F$253:$F$505,0))&"C"&COLUMN(Scores!N$1),FALSE))) -> 166 | AE30: =IF('Team Scores'!$Z$1<2,"",IF(ISERROR(MATCH('Individual Scores'!$D30,Scores!$F$253:$F$506,0)),"",INDIRECT("Scores!"&"R"&(ROW(Scores!$253:$253)-1+MATCH('Individual Scores'!$D30,Scores!$F$253:$F$505,0))&"C"&COLUMN(Scores!O$1),FALSE))) -> 156 | AF30: =IF('Team Scores'!$Z$1<2,"",IF(ISERROR(MATCH('Individual Scores'!$D30,Scores!$F$253:$F$506,0)),"",INDIRECT("Scores!"&"R"&(ROW(Scores!$253:$253)-1+MATCH('Individual Scores'!$D30,Scores!$F$253:$F$505,0))&"C"&COLUMN(Scores!P$1),FALSE))) -> 165 | AG30: =IF('Team Scores'!$Z$1<2,"",IF(ISERROR(MATCH('Individual Scores'!$D30,Scores!$F$253:$F$506,0)),"",INDIRECT("Scores!"&"R"&(ROW(Scores!$253:$253)-1+MATCH('Individual Scores'!$D30,Scores!$F$253:$F$505,0))&"C"&COLUMN(Scores!S$1),FALSE))) -> 1093 | AH30: =IF(MAX(AA30:AF30)>0,MAX(AA30:AF30),"") -> 257 | AI30: =IF(MAX(SUM(AA30:AC30),SUM(AD30:AF30))>0,MAX(SUM(AA30:AC30),SUM(AD30:AF30)),"") -> 606 | AK30: =IF('Team Scores'!$Z$1<3,"",IF(ISERROR(MATCH('Individual Scores'!$D30,Scores!$F$506:$F$759,0)),"",INDIRECT("Scores!"&"R"&(ROW(Scores!$F$506:$F$759)-1+MATCH('Individual Scores'!$D30,Scores!$F$506:$F$759,0))&"C"&COLUMN(Scores!J$1),FALSE))) ->  | AL30: =IF('Team Scores'!$Z$1<3,"",IF(ISERROR(MATCH('Individual Scores'!$D30,Scores!$F$506:$F$759,0)),"",INDIRECT("Scores!"&"R"&(ROW(Scores!$F$506:$F$759)-1+MATCH('Individual Scores'!$D30,Scores!$F$506:$F$759,0))&"C"&COLUMN(Scores!K$1),FALSE))) ->  | AM30: =IF('Team Scores'!$Z$1<3,"",IF(ISERROR(MATCH('Individual Scores'!$D30,Scores!$F$506:$F$759,0)),"",INDIRECT("Scores!"&"R"&(ROW(Scores!$F$506:$F$759)-1+MATCH('Individual Scores'!$D30,Scores!$F$506:$F$759,0))&"C"&COLUMN(Scores!L$1),FALSE))) ->  | AN30: =IF('Team Scores'!$Z$1<3,"",IF(ISERROR(MATCH('Individual Scores'!$D30,Scores!$F$506:$F$759,0)),"",INDIRECT("Scores!"&"R"&(ROW(Scores!$F$506:$F$759)-1+MATCH('Individual Scores'!$D30,Scores!$F$506:$F$759,0))&"C"&COLUMN(Scores!N$1),FALSE))) ->  | AO30: =IF('Team Scores'!$Z$1<3,"",IF(ISERROR(MATCH('Individual Scores'!$D30,Scores!$F$506:$F$759,0)),"",INDIRECT("Scores!"&"R"&(ROW(Scores!$F$506:$F$759)-1+MATCH('Individual Scores'!$D30,Scores!$F$506:$F$759,0))&"C"&COLUMN(Scores!O$1),FALSE))) ->  | AP30: =IF('Team Scores'!$Z$1<3,"",IF(ISERROR(MATCH('Individual Scores'!$D30,Scores!$F$506:$F$759,0)),"",INDIRECT("Scores!"&"R"&(ROW(Scores!$F$506:$F$759)-1+MATCH('Individual Scores'!$D30,Scores!$F$506:$F$759,0))&"C"&COLUMN(Scores!P$1),FALSE))) ->  | AQ30: =IF('Team Scores'!$Z$1<3,"",IF(ISERROR(MATCH('Individual Scores'!$D30,Scores!$F$506:$F$759,0)),"",INDIRECT("Scores!"&"R"&(ROW(Scores!$F$506:$F$759)-1+MATCH('Individual Scores'!$D30,Scores!$F$506:$F$759,0))&"C"&COLUMN(Scores!S$1),FALSE))) -> 
